Workbook

Sheet Contacts
A1: Active Row: | B1: 182 | DA1: City | DB1: State | DC1: County | DD1: Category | DE1: Type | DF1: Status | DG1: Source | DH1: Date Added | DL1: =_xlfn.TEXTJOIN(" | ",TRUE,DA6:DG6) -> 
A2: ListRow | B2: 176 | C2: Filters: | J2: dblclkON | Q2: Highlight Act Row? | R2: FALSE | T2: Total Leads | U2: 1118 | AS2: 2023-09-18T11:19:51
J3: OFF | T3: Uncontacted Leads | U3: 1117
T4: No Contact info | U4: 0
A5: Current Search | B5: OpenCorp | T5: Mail Ready | U5: 677
B6: RecordNo | C6: Row | D6: Contact | E6: CrossRef | F6: Notes | G6: Category | H6: Contact_Made | I6: Source | J6: E-mail1 | K6: E-mail2 | L6: E-mail3 | M6: Phone1 | N6: Phone2 | O6: Phone3 | P6: Address | Q6: City | R6: State | S6: Zip | T6: County | U6: No emails | V6: No Phone | W6: No Contact Info | X6: Type | Y6: Status | Z6: Link1 | AA6: Link2 | AB6: Files | AC6: UniqueCounty | AD6: UniqueCity | AE6: UniqueState | AF6: UniqueCategory | AG6: UniqueType | AH6: UniqueStatus | AI6: UniqueSource | AJ6: Phone1Label | AK6: Phone2Label | AL6: Phone3Label | AM6: Email1Label | AN6: Email2Label | AO6: Email3Label | AP6: Link1Label | AQ6: Link2Label | AR6: Date Added | AS6: Date Modified | AT6: Employees | AU6: Pay Cycle | AV6: Monthly Gross Pay | AW6: Tax Deposit Frequency | AX6: Street Address | AY6: Street City | AZ6: Street State | BA6: Street Zip | BB6: Deleting | DA6: =IF(COUNTA(DA2:DA5)>0,DA1&_xlfn.TEXTJOIN(",",TRUE,DA2:DA5),"") ->  | DB6: =IF(COUNTA(DB2:DB5)>0,DB1&_xlfn.TEXTJOIN(",",TRUE,DB2:DB5),"") ->  | DH6: =IF(COUNTA(DF2:DF5)>0,DF1&_xlfn.TEXTJOIN(",",TRUE,DF2:DF5),"") -> 
B7: 20230915124517 | C7: =ROW() -> 7 | D7: 5-Star Holdings Inc | E7: Evonne Kautz | G7: Peer | I7: Other | P7: 12568 Kingston Pike | Q7: Knoxville | R7: TN | S7: 37934 | T7: Knox | X7: Bus. | Y7: Active | AB7: S:\Folders\Client Files\5-Star Holdings Inc\ | AC7: =AND(SUBTOTAL(2,LeadTable[[#This Row],[RecordNo]]),LeadTable[[#This Row],[County]]<>"") -> TRUE | AD7: =AND(SUBTOTAL(2,LeadTable[[#This Row],[RecordNo]]),LeadTable[[#This Row],[City]]<>"") -> TRUE | AE7: =AND(SUBTOTAL(2,LeadTable[[#This Row],[RecordNo]]),LeadTable[[#This Row],[State]]<>"") -> TRUE | AF7: =AND(SUBTOTAL(2,LeadTable[[#This Row],[RecordNo]]),LeadTable[[#This Row],[Category]]<>"") -> TRUE | AG7: =AND(SUBTOTAL(2,LeadTable[[#This Row],[RecordNo]]),LeadTable[[#This Row],[Type]]<>"") -> TRUE | AH7: =AND(SUBTOTAL(2,LeadTable[[#This Row],[RecordNo]]),LeadTable[[#This Row],[Status]]<>"") -> TRUE | AI7: =AND(SUBTOTAL(2,LeadTable[[#This Row],[RecordNo]]),LeadTable[[#This Row],[Source]]<>"") -> TRUE | AJ7: Phone 1 | AK7: Phone 2 | AL7: Phone 3 | AM7: Email 1 | AN7: Email 2 | AO7: Email 3 | AP7: Link 1 | AQ7: Link 2 | AR7: 2023-09-15 | AS7: 2024-01-30T14:49:49
B8: 20230921085933 | C8: =ROW() -> 8 | D8: Accounting and Business Consulting LLC | E8: Kate Gurau | F8: Facebook Post | G8: Peer | I8: Other | J8: info@llcabc.com | M8: (773) 701-5661 | N8: (773) 701-5817 | P8: 5 East College Drive Suite #203 | Q8: Arlington Hieghts | R8: IL | S8: 60004 | T8: Cook | X8: Bus. | Y8: Active | AB8: S:\Folders\Client Files\Accounting and Business Consulting LLC\ | AC8: =AND(SUBTOTAL(2,LeadTable[[#This Row],[RecordNo]]),LeadTable[[#This Row],[County]]<>"") -> TRUE | AD8: =AND(SUBTOTAL(2,LeadTable[[#This Row],[RecordNo]]),LeadTable[[#This Row],[City]]<>"") -> TRUE | AE8: =AND(SUBTOTAL(2,LeadTable[[#This Row],[RecordNo]]),LeadTable[[#This Row],[State]]<>"") -> TRUE | AF8: =AND(SUBTOTAL(2,LeadTable[[#This Row],[RecordNo]]),LeadTable[[#This Row],[Category]]<>"") -> TRUE | AG8: =AND(SUBTOTAL(2,LeadTable[[#This Row],[RecordNo]]),LeadTable[[#This Row],[Type]]<>"") -> TRUE | AH8: =AND(SUBTOTAL(2,LeadTable[[#This Row],[RecordNo]]),LeadTable[[#This Row],[Status]]<>"") -> TRUE | AI8: =AND(SUBTOTAL(2,LeadTable[[#This Row],[RecordNo]]),LeadTable[[#This Row],[Source]]<>"") -> TRUE | AJ8: Business | AK8: Fax | AL8: Phone 3 | AM8: Email 1 | AN8: Email 2 | AO8: Email 3 | AP8: Link 1 | AQ8: Link 2 | AR8: 2023-09-21 | AS8: 2024-01-22T15:36:33
B9: 261 | C9: =ROW() -> 9 | D9: Adrienne Aust | E9: Titan File | G9: Vendor | J9: aaust@titanfile.com | X9: Ind. | Y9: Active | AB9: S:\Folders\Client Files\Adrienne Aust\ | AC9: =AND(SUBTOTAL(2,LeadTable[[#This Row],[RecordNo]]),LeadTable[[#This Row],[County]]<>"") -> FALSE | AD9: =AND(SUBTOTAL(2,LeadTable[[#This Row],[RecordNo]]),LeadTable[[#This Row],[City]]<>"") -> FALSE | AE9: =AND(SUBTOTAL(2,LeadTable[[#This Row],[RecordNo]]),LeadTable[[#This Row],[State]]<>"") -> FALSE | AF9: =AND(SUBTOTAL(2,LeadTable[[#This Row],[RecordNo]]),LeadTable[[#This Row],[Category]]<>"") -> TRUE | AG9: =AND(SUBTOTAL(2,LeadTable[[#This Row],[RecordNo]]),LeadTable[[#This Row],[Type]]<>"") -> TRUE | AH9: =AND(SUBTOTAL(2,LeadTable[[#This Row],[RecordNo]]),LeadTable[[#This Row],[Status]]<>"") -> TRUE | AI9: =AND(SUBTOTAL(2,LeadTable[[#This Row],[RecordNo]]),LeadTable[[#This Row],[Source]]<>"") -> FALSE | AJ9: Phone 1 | AK9: Phone 2 | AL9: Phone 3 | AM9: Email 1 | AN9: Email 2 | AO9: Email 3 | AP9: Link1 | AQ9: Link2 | AR9: 2023-03-22 | AS9: 2024-01-02T17:16:06
B10: 424 | C10: =ROW() -> 10 | D10: Advanced Collision (Reddick) | E10: Brent Morris | G10: Bus. | M10: (423) 499-1985 | N10: (423) 499-1997 | X10: Bus. | Y10: Inactive | AB10: S:\Folders\Client Files\Advanced Collision (Reddick)\ | AC10: =AND(SUBTOTAL(2,LeadTable[[#This Row],[RecordNo]]),LeadTable[[#This Row],[County]]<>"") -> FALSE | AD10: =AND(SUBTOTAL(2,LeadTable[[#This Row],[RecordNo]]),LeadTable[[#This Row],[City]]<>"") -> FALSE | AE10: =AND(SUBTOTAL(2,LeadTable[[#This Row],[RecordNo]]),LeadTable[[#This Row],[State]]<>"") -> FALSE | AF10: =AND(SUBTOTAL(2,LeadTable[[#This Row],[RecordNo]]),LeadTable[[#This Row],[Category]]<>"") -> TRUE | AG10: =AND(SUBTOTAL(2,LeadTable[[#This Row],[RecordNo]]),LeadTable[[#This Row],[Type]]<>"") -> TRUE | AH10: =AND(SUBTOTAL(2,LeadTable[[#This Row],[RecordNo]]),LeadTable[[#This Row],[Status]]<>"") -> TRUE | AI10: =AND(SUBTOTAL(2,LeadTable[[#This Row],[RecordNo]]),LeadTable[[#This Row],[Source]]<>"") -> FALSE | AJ10: Phone 1 | AK10: Phone 2 | AL10: Phone 3 | AM10: Email 1 | AN10: Email 2 | AO10: Email 3 | AP10: Link1 | AQ10: Link2 | AR10: 2023-03-22 | AS10: 2024-01-26T10:18:30
B11: 425 | C11: =ROW() -> 11 | D11: Afs Foundation and Waterproofing | E11: David Majetich | G11: Bus. | J11: david.majetich@afsrepair.com | M11: (423) 599-6376 | X11: Bus. | Y11: Inactive | AB11: S:\Folders\Client Files\Afs Foundation and Waterproofing\ | AC11: =AND(SUBTOTAL(2,LeadTable[[#This Row],[RecordNo]]),LeadTable[[#This Row],[County]]<>"") -> FALSE | AD11: =AND(SUBTOTAL(2,LeadTable[[#This Row],[RecordNo]]),LeadTable[[#This Row],[City]]<>"") -> FALSE | AE11: =AND(SUBTOTAL(2,LeadTable[[#This Row],[RecordNo]]),LeadTable[[#This Row],[State]]<>"") -> FALSE | AF11: =AND(SUBTOTAL(2,LeadTable[[#This Row],[RecordNo]]),LeadTable[[#This Row],[Category]]<>"") -> TRUE | AG11: =AND(SUBTOTAL(2,LeadTable[[#This Row],[RecordNo]]),LeadTable[[#This Row],[Type]]<>"") -> TRUE | AH11: =AND(SUBTOTAL(2,LeadTable[[#This Row],[RecordNo]]),LeadTable[[#This Row],[Status]]<>"") -> TRUE | AI11: =AND(SUBTOTAL(2,LeadTable[[#This Row],[RecordNo]]),LeadTable[[#This Row],[Source]]<>"") -> FALSE | AJ11: Phone 1 | AK11: Phone 2 | AL11: Phone 3 | AM11: Email 1 | AN11: Email 2 | AO11: Email 3 | AP11: Link1 | AQ11: Link2 | AR11: 2023-03-22 | AS11: 2023-10-28T10:46:22
B12: 20240103132240 | C12: =ROW() -> 12 | D12: Alan Rowe | E12: Horticulture Equipment & Services, LLC | G12: Client | J12: ARowe@HortEquipment.com | M12: (931) 607-4170 | N12: (931) 563-2377 | O12: (931) 649-3293 | P12: 3390 Spring Creek Rd. | Q12: Estill Springs | R12: TN | S12: 37330 | T12: Franklin | X12: Ind. | Y12: Inactive | Z12: http://www.hortequipment.com/ | AB12: S:\Folders\Client Files\Alan Rowe\ | AC12: =AND(SUBTOTAL(2,LeadTable[[#This Row],[RecordNo]]),LeadTable[[#This Row],[County]]<>"") -> TRUE | AD12: =AND(SUBTOTAL(2,LeadTable[[#This Row],[RecordNo]]),LeadTable[[#This Row],[City]]<>"") -> TRUE | AE12: =AND(SUBTOTAL(2,LeadTable[[#This Row],[RecordNo]]),LeadTable[[#This Row],[State]]<>"") -> TRUE | AF12: =AND(SUBTOTAL(2,LeadTable[[#This Row],[RecordNo]]),LeadTable[[#This Row],[Category]]<>"") -> TRUE | AG12: =AND(SUBTOTAL(2,LeadTable[[#This Row],[RecordNo]]),LeadTable[[#This Row],[Type]]<>"") -> TRUE | AH12: =AND(SUBTOTAL(2,LeadTable[[#This Row],[RecordNo]]),LeadTable[[#This Row],[Status]]<>"") -> TRUE | AI12: =AND(SUBTOTAL(2,LeadTable[[#This Row],[RecordNo]]),LeadTable[[#This Row],[Source]]<>"") -> FALSE | AJ12: Cell | AK12: Office | AL12: Fax | AM12: Email 1 | AN12: Email 2 | AO12: Email 3 | AP12: Link 1 | AQ12: Link 2 | AR12: 2024-01-03 | AS12: 2024-01-17T15:20:06
B13: 20240117114150 | C13: =ROW() -> 13 | D13: Alberto Rodriguez | E13: DOM Law, PA | G13: Client | J13: alberto@domlaw.com | M13: (727) 417-1492 | X13: Ind. | Y13: Inactive | AB13: S:\Folders\Client Files\Alberto Rodriguez\ | AC13: =AND(SUBTOTAL(2,LeadTable[[#This Row],[RecordNo]]),LeadTable[[#This Row],[County]]<>"") -> FALSE | AD13: =AND(SUBTOTAL(2,LeadTable[[#This Row],[RecordNo]]),LeadTable[[#This Row],[City]]<>"") -> FALSE | AE13: =AND(SUBTOTAL(2,LeadTable[[#This Row],[RecordNo]]),LeadTable[[#This Row],[State]]<>"") -> FALSE | AF13: =AND(SUBTOTAL(2,LeadTable[[#This Row],[RecordNo]]),LeadTable[[#This Row],[Category]]<>"") -> TRUE | AG13: =AND(SUBTOTAL(2,LeadTable[[#This Row],[RecordNo]]),LeadTable[[#This Row],[Type]]<>"") -> TRUE | AH13: =AND(SUBTOTAL(2,LeadTable[[#This Row],[RecordNo]]),LeadTable[[#This Row],[Status]]<>"") -> TRUE | AI13: =AND(SUBTOTAL(2,LeadTable[[#This Row],[RecordNo]]),LeadTable[[#This Row],[Source]]<>"") -> FALSE | AJ13: Phone 1 | AK13: Phone 2 | AL13: Phone 3 | AM13: Email 1 | AN13: Email 2 | AO13: Email 3 | AP13: Link 1 | AQ13: Link 2 | AR13: 2024-01-17 | AS13: 2024-01-17T15:14:19
B14: 262 | C14: =ROW() -> 14 | D14: Alex Hulgan | G14: Personal | M14: (423) 827-2128 | X14: Ind. | Y14: Active | AB14: S:\Folders\Client Files\Alex Hulgan\ | AC14: =AND(SUBTOTAL(2,LeadTable[[#This Row],[RecordNo]]),LeadTable[[#This Row],[County]]<>"") -> FALSE | AD14: =AND(SUBTOTAL(2,LeadTable[[#This Row],[RecordNo]]),LeadTable[[#This Row],[City]]<>"") -> FALSE | AE14: =AND(SUBTOTAL(2,LeadTable[[#This Row],[RecordNo]]),LeadTable[[#This Row],[State]]<>"") -> FALSE | AF14: =AND(SUBTOTAL(2,LeadTable[[#This Row],[RecordNo]]),LeadTable[[#This Row],[Category]]<>"") -> TRUE | AG14: =AND(SUBTOTAL(2,LeadTable[[#This Row],[RecordNo]]),LeadTable[[#This Row],[Type]]<>"") -> TRUE | AH14: =AND(SUBTOTAL(2,LeadTable[[#This Row],[RecordNo]]),LeadTable[[#This Row],[Status]]<>"") -> TRUE | AI14: =AND(SUBTOTAL(2,LeadTable[[#This Row],[RecordNo]]),LeadTable[[#This Row],[Source]]<>"") -> FALSE | AJ14: Phone 1 | AK14: Phone 2 | AL14: Phone 3 | AM14: Email 1 | AN14: Email 2 | AO14: Email 3 | AP14: Link1 | AQ14: Link2 | AR14: 2023-03-22 | AS14: 2023-11-21T11:40:19
B15: 263 | C15: =ROW() -> 15 | D15: Alex Richter | E15: Marbella Construction | G15: Bus. | J15: a_e_richter@yahoo.com | M15: (423) 330-9896 | O15: (423) 490-0737 | P15: P.O. Box 318 | Q15: Ooltewah | R15: TN | S15: 37363 | T15: Hamilton | X15: Ind. | Y15: Inactive | AB15: S:\Folders\Client Files\Alex Richter\ | AC15: =AND(SUBTOTAL(2,LeadTable[[#This Row],[RecordNo]]),LeadTable[[#This Row],[County]]<>"") -> TRUE | AD15: =AND(SUBTOTAL(2,LeadTable[[#This Row],[RecordNo]]),LeadTable[[#This Row],[City]]<>"") -> TRUE | AE15: =AND(SUBTOTAL(2,LeadTable[[#This Row],[RecordNo]]),LeadTable[[#This Row],[State]]<>"") -> TRUE | AF15: =AND(SUBTOTAL(2,LeadTable[[#This Row],[RecordNo]]),LeadTable[[#This Row],[Category]]<>"") -> TRUE | AG15: =AND(SUBTOTAL(2,LeadTable[[#This Row],[RecordNo]]),LeadTable[[#This Row],[Type]]<>"") -> TRUE | AH15: =AND(SUBTOTAL(2,LeadTable[[#This Row],[RecordNo]]),LeadTable[[#This Row],[Status]]<>"") -> TRUE | AI15: =AND(SUBTOTAL(2,LeadTable[[#This Row],[RecordNo]]),LeadTable[[#This Row],[Source]]<>"") -> FALSE | AJ15: Phone 1 | AK15: Phone 2 | AL15: Phone 3 | AM15: Email 1 | AN15: Email 2 | AO15: Email 3 | AP15: Link1 | AQ15: Link2 | AR15: 2023-03-22
B16: 264 | C16: =ROW() -> 16 | D16: Alexandra Krouse | G16: Personal | X16: Ind. | Y16: Active | AB16: S:\Folders\Client Files\Alexandra Krouse\ | AC16: =AND(SUBTOTAL(2,LeadTable[[#This Row],[RecordNo]]),LeadTable[[#This Row],[County]]<>"") -> FALSE | AD16: =AND(SUBTOTAL(2,LeadTable[[#This Row],[RecordNo]]),LeadTable[[#This Row],[City]]<>"") -> FALSE | AE16: =AND(SUBTOTAL(2,LeadTable[[#This Row],[RecordNo]]),LeadTable[[#This Row],[State]]<>"") -> FALSE | AF16: =AND(SUBTOTAL(2,LeadTable[[#This Row],[RecordNo]]),LeadTable[[#This Row],[Category]]<>"") -> TRUE | AG16: =AND(SUBTOTAL(2,LeadTable[[#This Row],[RecordNo]]),LeadTable[[#This Row],[Type]]<>"") -> TRUE | AH16: =AND(SUBTOTAL(2,LeadTable[[#This Row],[RecordNo]]),LeadTable[[#This Row],[Status]]<>"") -> TRUE | AI16: =AND(SUBTOTAL(2,LeadTable[[#This Row],[RecordNo]]),LeadTable[[#This Row],[Source]]<>"") -> FALSE | AJ16: Phone 1 | AK16: Phone 2 | AL16: Phone 3 | AM16: Email 1 | AN16: Email 2 | AO16: Email 3 | AP16: Link1 | AQ16: Link2 | AR16: 2023-03-22
B17: 265 | C17: =ROW() -> 17 | D17: Alicia Brown | E17: Internal Revenue Service | G17: IRS | X17: Ind. | Y17: Inactive | AB17: S:\Folders\Client Files\Alicia Brown\ | AC17: =AND(SUBTOTAL(2,LeadTable[[#This Row],[RecordNo]]),LeadTable[[#This Row],[County]]<>"") -> FALSE | AD17: =AND(SUBTOTAL(2,LeadTable[[#This Row],[RecordNo]]),LeadTable[[#This Row],[City]]<>"") -> FALSE | AE17: =AND(SUBTOTAL(2,LeadTable[[#This Row],[RecordNo]]),LeadTable[[#This Row],[State]]<>"") -> FALSE | AF17: =AND(SUBTOTAL(2,LeadTable[[#This Row],[RecordNo]]),LeadTable[[#This Row],[Category]]<>"") -> TRUE | AG17: =AND(SUBTOTAL(2,LeadTable[[#This Row],[RecordNo]]),LeadTable[[#This Row],[Type]]<>"") -> TRUE | AH17: =AND(SUBTOTAL(2,LeadTable[[#This Row],[RecordNo]]),LeadTable[[#This Row],[Status]]<>"") -> TRUE | AI17: =AND(SUBTOTAL(2,LeadTable[[#This Row],[RecordNo]]),LeadTable[[#This Row],[Source]]<>"") -> FALSE | AJ17: Phone 1 | AK17: Phone 2 | AL17: Phone 3 | AM17: Email 1 | AN17: Email 2 | AO17: Email 3 | AP17: Link1 | AQ17: Link2 | AR17: 2023-03-22 | AS17: 2023-10-28T10:43:08
B18: 20230802114307 | C18: =ROW() -> 18 | D18: Allen A Scott | G18: Peer | M18: (865) 986-4035 | N18: (423) 442-3530 | P18: 111 East Broadway Ave | Q18: Lenoir City | R18: TN | S18: 37771 | T18: Loudon | X18: Bus. | Y18: Active | AB18: S:\Folders\Client Files\Allen A Scott\ | AC18: =AND(SUBTOTAL(2,LeadTable[[#This Row],[RecordNo]]),LeadTable[[#This Row],[County]]<>"") -> TRUE | AD18: =AND(SUBTOTAL(2,LeadTable[[#This Row],[RecordNo]]),LeadTable[[#This Row],[City]]<>"") -> TRUE | AE18: =AND(SUBTOTAL(2,LeadTable[[#This Row],[RecordNo]]),LeadTable[[#This Row],[State]]<>"") -> TRUE | AF18: =AND(SUBTOTAL(2,LeadTable[[#This Row],[RecordNo]]),LeadTable[[#This Row],[Category]]<>"") -> TRUE | AG18: =AND(SUBTOTAL(2,LeadTable[[#This Row],[RecordNo]]),LeadTable[[#This Row],[Type]]<>"") -> TRUE | AH18: =AND(SUBTOTAL(2,LeadTable[[#This Row],[RecordNo]]),LeadTable[[#This Row],[Status]]<>"") -> TRUE | AI18: =AND(SUBTOTAL(2,LeadTable[[#This Row],[RecordNo]]),LeadTable[[#This Row],[Source]]<>"") -> FALSE | AJ18: Lenoir City | AK18: Madisonville | AL18: Phone 3 | AM18: Email 1 | AN18: Email 2 | AO18: Email 3 | AP18: Link 1 | AQ18: Link 2 | AR18: 2023-08-02T15:20:00 | AS18: 2023-12-04T15:02:03
B19: 20230814104156 | C19: =ROW() -> 19 | D19: Allen J Ferrer CPA | E19: Ferrer Tax & Accounting | F19: Reddit user: idkwat2dowithmyhands | G19: Peer | I19: Other | J19: allen@ajfcpatax.com | M19: (201) 407-1182 | N19: (628) 313-0986 | O19: (415) 965-2422 | P19: 200 Gate 5 Rd Ste 201 | Q19: Sausalito | R19: CA | S19: 94965 | T19: Marin | X19: Ind. | Y19: Active | Z19: https://www.ajfcpatax.com/ | AB19: S:\Folders\Client Files\Allen J Ferrer CPA\ | AC19: =AND(SUBTOTAL(2,LeadTable[[#This Row],[RecordNo]]),LeadTable[[#This Row],[County]]<>"") -> TRUE | AD19: =AND(SUBTOTAL(2,LeadTable[[#This Row],[RecordNo]]),LeadTable[[#This Row],[City]]<>"") -> TRUE | AE19: =AND(SUBTOTAL(2,LeadTable[[#This Row],[RecordNo]]),LeadTable[[#This Row],[State]]<>"") -> TRUE | AF19: =AND(SUBTOTAL(2,LeadTable[[#This Row],[RecordNo]]),LeadTable[[#This Row],[Category]]<>"") -> TRUE | AG19: =AND(SUBTOTAL(2,LeadTable[[#This Row],[RecordNo]]),LeadTable[[#This Row],[Type]]<>"") -> TRUE | AH19: =AND(SUBTOTAL(2,LeadTable[[#This Row],[RecordNo]]),LeadTable[[#This Row],[Status]]<>"") -> TRUE | AI19: =AND(SUBTOTAL(2,LeadTable[[#This Row],[RecordNo]]),LeadTable[[#This Row],[Source]]<>"") -> TRUE | AJ19: Phone 1 | AK19: Office | AL19: Fax | AM19: Email 1 | AN19: Email 2 | AO19: Email 3 | AP19: Website | AQ19: Link 2 | AR19: 2023-08-14 | AS19: 2023-12-04T15:22:21
B20: 266 | C20: =ROW() -> 20 | D20: Allen Sherwood | G20: Medical | M20: (423) 495-5951 | P20: 6401 Mountain View Dr | Q20: Ooltewah | R20: TN | S20: 37363 | T20: Hamilton | X20: Ind. | Y20: Active | AB20: S:\Folders\Client Files\Allen Sherwood\ | AC20: =AND(SUBTOTAL(2,LeadTable[[#This Row],[RecordNo]]),LeadTable[[#This Row],[County]]<>"") -> TRUE | AD20: =AND(SUBTOTAL(2,LeadTable[[#This Row],[RecordNo]]),LeadTable[[#This Row],[City]]<>"") -> TRUE | AE20: =AND(SUBTOTAL(2,LeadTable[[#This Row],[RecordNo]]),LeadTable[[#This Row],[State]]<>"") -> TRUE | AF20: =AND(SUBTOTAL(2,LeadTable[[#This Row],[RecordNo]]),LeadTable[[#This Row],[Category]]<>"") -> TRUE | AG20: =AND(SUBTOTAL(2,LeadTable[[#This Row],[RecordNo]]),LeadTable[[#This Row],[Type]]<>"") -> TRUE | AH20: =AND(SUBTOTAL(2,LeadTable[[#This Row],[RecordNo]]),LeadTable[[#This Row],[Status]]<>"") -> TRUE | AI20: =AND(SUBTOTAL(2,LeadTable[[#This Row],[RecordNo]]),LeadTable[[#This Row],[Source]]<>"") -> FALSE | AJ20: Phone 1 | AK20: Phone 2 | AL20: Phone 3 | AM20: Email 1 | AN20: Email 2 | AO20: Email 3 | AP20: Link1 | AQ20: Link2 | AR20: 2023-03-22
B21: 427 | C21: =ROW() -> 21 | D21: Allstate | E21: Dorothy Grisham | G21: Bus. | J21: dleegrisham@allstate.com | M21: (423) 899-6161 | N21: (423) 855-0441 | X21: Bus. | Y21: Active | AB21: S:\Folders\Client Files\Allstate\ | AC21: =AND(SUBTOTAL(2,LeadTable[[#This Row],[RecordNo]]),LeadTable[[#This Row],[County]]<>"") -> FALSE | AD21: =AND(SUBTOTAL(2,LeadTable[[#This Row],[RecordNo]]),LeadTable[[#This Row],[City]]<>"") -> FALSE | AE21: =AND(SUBTOTAL(2,LeadTable[[#This Row],[RecordNo]]),LeadTable[[#This Row],[State]]<>"") -> FALSE | AF21: =AND(SUBTOTAL(2,LeadTable[[#This Row],[RecordNo]]),LeadTable[[#This Row],[Category]]<>"") -> TRUE | AG21: =AND(SUBTOTAL(2,LeadTable[[#This Row],[RecordNo]]),LeadTable[[#This Row],[Type]]<>"") -> TRUE | AH21: =AND(SUBTOTAL(2,LeadTable[[#This Row],[RecordNo]]),LeadTable[[#This Row],[Status]]<>"") -> TRUE | AI21: =AND(SUBTOTAL(2,LeadTable[[#This Row],[RecordNo]]),LeadTable[[#This Row],[Source]]<>"") -> FALSE | AJ21: Phone 1 | AK21: Phone 2 | AL21: Phone 3 | AM21: Email 1 | AN21: Email 2 | AO21: Email 3 | AP21: Link1 | AQ21: Link2 | AR21: 2023-03-22 | AS21: 2023-10-28T10:43:15
B22: 267 | C22: =ROW() -> 22 | D22: Alonzo Brown | G22: IRS | J22: alonzo.brown@irs.gov | M22: (615) 530-2512 | X22: Ind. | Y22: Active | AB22: S:\Folders\Client Files\Alonzo Brown\ | AC22: =AND(SUBTOTAL(2,LeadTable[[#This Row],[RecordNo]]),LeadTable[[#This Row],[County]]<>"") -> FALSE | AD22: =AND(SUBTOTAL(2,LeadTable[[#This Row],[RecordNo]]),LeadTable[[#This Row],[City]]<>"") -> FALSE | AE22: =AND(SUBTOTAL(2,LeadTable[[#This Row],[RecordNo]]),LeadTable[[#This Row],[State]]<>"") -> FALSE | AF22: =AND(SUBTOTAL(2,LeadTable[[#This Row],[RecordNo]]),LeadTable[[#This Row],[Category]]<>"") -> TRUE | AG22: =AND(SUBTOTAL(2,LeadTable[[#This Row],[RecordNo]]),LeadTable[[#This Row],[Type]]<>"") -> TRUE | AH22: =AND(SUBTOTAL(2,LeadTable[[#This Row],[RecordNo]]),LeadTable[[#This Row],[Status]]<>"") -> TRUE | AI22: =AND(SUBTOTAL(2,LeadTable[[#This Row],[RecordNo]]),LeadTable[[#This Row],[Source]]<>"") -> FALSE | AJ22: Phone 1 | AK22: Phone 2 | AL22: Phone 3 | AM22: Email 1 | AN22: Email 2 | AO22: Email 3 | AP22: Link1 | AQ22: Link2 | AR22: 2023-03-22
B23: 268 | C23: =ROW() -> 23 | D23: Amanda Wilder | G23: Personal | J23: a.nwilder@yahoo.com | M23: (256) 604-6506 | X23: Ind. | Y23: Active | AB23: S:\Folders\Client Files\Amanda Wilder\ | AC23: =AND(SUBTOTAL(2,LeadTable[[#This Row],[RecordNo]]),LeadTable[[#This Row],[County]]<>"") -> FALSE | AD23: =AND(SUBTOTAL(2,LeadTable[[#This Row],[RecordNo]]),LeadTable[[#This Row],[City]]<>"") -> FALSE | AE23: =AND(SUBTOTAL(2,LeadTable[[#This Row],[RecordNo]]),LeadTable[[#This Row],[State]]<>"") -> FALSE | AF23: =AND(SUBTOTAL(2,LeadTable[[#This Row],[RecordNo]]),LeadTable[[#This Row],[Category]]<>"") -> TRUE | AG23: =AND(SUBTOTAL(2,LeadTable[[#This Row],[RecordNo]]),LeadTable[[#This Row],[Type]]<>"") -> TRUE | AH23: =AND(SUBTOTAL(2,LeadTable[[#This Row],[RecordNo]]),LeadTable[[#This Row],[Status]]<>"") -> TRUE | AI23: =AND(SUBTOTAL(2,LeadTable[[#This Row],[RecordNo]]),LeadTable[[#This Row],[Source]]<>"") -> FALSE | AJ23: Phone 1 | AK23: Phone 2 | AL23: Phone 3 | AM23: Email 1 | AN23: Email 2 | AO23: Email 3 | AP23: Link1 | AQ23: Link2 | AR23: 2023-03-22
B24: 20231220102248 | C24: =ROW() -> 24 | D24: Amber Delgado | E24: AMB Accounting Services | F24: Referred Christian Jackson to me. | G24: Peer | J24: ambas.llc@gmail.com | M24: (703) 634-9570 | R24: MD | X24: Bus. | Y24: Active | Z24: www.ambaccountingllc.com | AB24: S:\Folders\Client Files\Amber Delgado\ | AC24: =AND(SUBTOTAL(2,LeadTable[[#This Row],[RecordNo]]),LeadTable[[#This Row],[County]]<>"") -> FALSE | AD24: =AND(SUBTOTAL(2,LeadTable[[#This Row],[RecordNo]]),LeadTable[[#This Row],[City]]<>"") -> FALSE | AE24: =AND(SUBTOTAL(2,LeadTable[[#This Row],[RecordNo]]),LeadTable[[#This Row],[State]]<>"") -> TRUE | AF24: =AND(SUBTOTAL(2,LeadTable[[#This Row],[RecordNo]]),LeadTable[[#This Row],[Category]]<>"") -> TRUE | AG24: =AND(SUBTOTAL(2,LeadTable[[#This Row],[RecordNo]]),LeadTable[[#This Row],[Type]]<>"") -> TRUE | AH24: =AND(SUBTOTAL(2,LeadTable[[#This Row],[RecordNo]]),LeadTable[[#This Row],[Status]]<>"") -> TRUE | AI24: =AND(SUBTOTAL(2,LeadTable[[#This Row],[RecordNo]]),LeadTable[[#This Row],[Source]]<>"") -> FALSE | AJ24: Phone 1 | AK24: Phone 2 | AL24: Phone 3 | AM24: Email 1 | AN24: Email 2 | AO24: Email 3 | AP24: Link 1 | AQ24: Link 2 | AR24: 2023-12-20 | AS24: 2023-12-20T10:22:48
B25: 20231204153212 | C25: =ROW() -> 25 | D25: Amy King Psyhos | E25: U S Tax Solutions | G25: Peer | J25: Amy@ustaxsolutionsinc.com | M25: (423) 870-2440 | P25: 4510 Hixson Pike Suite E | Q25: Hixson | R25: TN | S25: 37343 | T25: Hamilton | X25: Bus. | Y25: Active | AB25: S:\Folders\Client Files\Amy King Psyhos\ | AC25: =AND(SUBTOTAL(2,LeadTable[[#This Row],[RecordNo]]),LeadTable[[#This Row],[County]]<>"") -> TRUE | AD25: =AND(SUBTOTAL(2,LeadTable[[#This Row],[RecordNo]]),LeadTable[[#This Row],[City]]<>"") -> TRUE | AE25: =AND(SUBTOTAL(2,LeadTable[[#This Row],[RecordNo]]),LeadTable[[#This Row],[State]]<>"") -> TRUE | AF25: =AND(SUBTOTAL(2,LeadTable[[#This Row],[RecordNo]]),LeadTable[[#This Row],[Category]]<>"") -> TRUE | AG25: =AND(SUBTOTAL(2,LeadTable[[#This Row],[RecordNo]]),LeadTable[[#This Row],[Type]]<>"") -> TRUE | AH25: =AND(SUBTOTAL(2,LeadTable[[#This Row],[RecordNo]]),LeadTable[[#This Row],[Status]]<>"") -> TRUE | AI25: =AND(SUBTOTAL(2,LeadTable[[#This Row],[RecordNo]]),LeadTable[[#This Row],[Source]]<>"") -> FALSE | AJ25: Office | AK25: Phone 2 | AL25: Phone 3 | AM25: Email 1 | AN25: Email 2 | AO25: Email 3 | AP25: Link 1 | AQ25: Link 2 | AR25: 2023-12-04 | AS25: 2024-01-30T14:50:26
B26: 20240105083515 | C26: =ROW() -> 26 | D26: Andrea Riegel | E26: Regal Virtual Bookkeeping | F26: Replied to FB Post about rep for tax pros | G26: Peer | J26: Andrea@RegalVirtualBookkeeping.com | M26: (574) 208-3999 | Q26: Mishawaka | R26: IN | S26: 46545 | T26: St. Joseph | X26: Bus. | Y26: Active | Z26: http://www.RegalVirtualBookkeeping.com | AB26: S:\Folders\Client Files\Andrea Riegel\ | AC26: =AND(SUBTOTAL(2,LeadTable[[#This Row],[RecordNo]]),LeadTable[[#This Row],[County]]<>"") -> TRUE | AD26: =AND(SUBTOTAL(2,LeadTable[[#This Row],[RecordNo]]),LeadTable[[#This Row],[City]]<>"") -> TRUE | AE26: =AND(SUBTOTAL(2,LeadTable[[#This Row],[RecordNo]]),LeadTable[[#This Row],[State]]<>"") -> TRUE | AF26: =AND(SUBTOTAL(2,LeadTable[[#This Row],[RecordNo]]),LeadTable[[#This Row],[Category]]<>"") -> TRUE | AG26: =AND(SUBTOTAL(2,LeadTable[[#This Row],[RecordNo]]),LeadTable[[#This Row],[Type]]<>"") -> TRUE | AH26: =AND(SUBTOTAL(2,LeadTable[[#This Row],[RecordNo]]),LeadTable[[#This Row],[Status]]<>"") -> TRUE | AI26: =AND(SUBTOTAL(2,LeadTable[[#This Row],[RecordNo]]),LeadTable[[#This Row],[Source]]<>"") -> FALSE | AJ26: Phone 1 | AK26: Phone 2 | AL26: Phone 3 | AM26: Email 1 | AN26: Email 2 | AO26: Email 3 | AP26: Link 1 | AQ26: Link 2 | AR26: 2024-01-05 | AS26: 2024-01-05T08:36:55
B27: 269 | C27: =ROW() -> 27 | D27: Andrew Kohls | G27: Personal | J27: andrewkohls@gmail.com | M27: (423) 653-5944 | X27: Ind. | Y27: Active | AB27: S:\Folders\Client Files\Andrew Kohls\ | AC27: =AND(SUBTOTAL(2,LeadTable[[#This Row],[RecordNo]]),LeadTable[[#This Row],[County]]<>"") -> FALSE | AD27: =AND(SUBTOTAL(2,LeadTable[[#This Row],[RecordNo]]),LeadTable[[#This Row],[City]]<>"") -> FALSE | AE27: =AND(SUBTOTAL(2,LeadTable[[#This Row],[RecordNo]]),LeadTable[[#This Row],[State]]<>"") -> FALSE | AF27: =AND(SUBTOTAL(2,LeadTable[[#This Row],[RecordNo]]),LeadTable[[#This Row],[Category]]<>"") -> TRUE | AG27: =AND(SUBTOTAL(2,LeadTable[[#This Row],[RecordNo]]),LeadTable[[#This Row],[Type]]<>"") -> TRUE | AH27: =AND(SUBTOTAL(2,LeadTable[[#This Row],[RecordNo]]),LeadTable[[#This Row],[Status]]<>"") -> TRUE | AI27: =AND(SUBTOTAL(2,LeadTable[[#This Row],[RecordNo]]),LeadTable[[#This Row],[Source]]<>"") -> FALSE | AJ27: Phone 1 | AK27: Phone 2 | AL27: Phone 3 | AM27: Email 1 | AN27: Email 2 | AO27: Email 3 | AP27: Link1 | AQ27: Link2 | AR27: 2023-03-22
B28: 20230902132328 | C28: =ROW() -> 28 | D28: Andrew Lee | F28: From Reddit Post | G28: Client | I28: Other | J28: Contactandrewleeventures@gmail.com | M28: (713) 494-7770 | P28: 132 Waterford Way | Q28: Montgomery | R28: Tx | S28: 77356 | T28: Montgomery | X28: Ind. | Y28: Inactive | AB28: S:\Folders\Client Files\Andrew Lee\ | AC28: =AND(SUBTOTAL(2,LeadTable[[#This Row],[RecordNo]]),LeadTable[[#This Row],[County]]<>"") -> TRUE | AD28: =AND(SUBTOTAL(2,LeadTable[[#This Row],[RecordNo]]),LeadTable[[#This Row],[City]]<>"") -> TRUE | AE28: =AND(SUBTOTAL(2,LeadTable[[#This Row],[RecordNo]]),LeadTable[[#This Row],[State]]<>"") -> TRUE | AF28: =AND(SUBTOTAL(2,LeadTable[[#This Row],[RecordNo]]),LeadTable[[#This Row],[Category]]<>"") -> TRUE | AG28: =AND(SUBTOTAL(2,LeadTable[[#This Row],[RecordNo]]),LeadTable[[#This Row],[Type]]<>"") -> TRUE | AH28: =AND(SUBTOTAL(2,LeadTable[[#This Row],[RecordNo]]),LeadTable[[#This Row],[Status]]<>"") -> TRUE | AI28: =AND(SUBTOTAL(2,LeadTable[[#This Row],[RecordNo]]),LeadTable[[#This Row],[Source]]<>"") -> TRUE | AJ28: Phone 1 | AK28: Phone 2 | AL28: Phone 3 | AM28: Email 1 | AN28: Email 2 | AO28: Email 3 | AP28: Link 1 | AQ28: Link 2 | AR28: 2023-09-02 | AS28: 2024-01-04T12:26:28
B29: 273 | C29: =ROW() -> 29 | D29: Angela Lambert | E29: Lambert'S Southern Pies | G29: Client | M29: 8659819700 | P29: Po Box 6775 | Q29: Maryville | R29: TN | S29: 37802 | T29: Blount | X29: Ind. | Y29: Inactive | AB29: S:\Folders\Client Files\Angela Lambert\ | AC29: =AND(SUBTOTAL(2,LeadTable[[#This Row],[RecordNo]]),LeadTable[[#This Row],[County]]<>"") -> TRUE | AD29: =AND(SUBTOTAL(2,LeadTable[[#This Row],[RecordNo]]),LeadTable[[#This Row],[City]]<>"") -> TRUE | AE29: =AND(SUBTOTAL(2,LeadTable[[#This Row],[RecordNo]]),LeadTable[[#This Row],[State]]<>"") -> TRUE | AF29: =AND(SUBTOTAL(2,LeadTable[[#This Row],[RecordNo]]),LeadTable[[#This Row],[Category]]<>"") -> TRUE | AG29: =AND(SUBTOTAL(2,LeadTable[[#This Row],[RecordNo]]),LeadTable[[#This Row],[Type]]<>"") -> TRUE | AH29: =AND(SUBTOTAL(2,LeadTable[[#This Row],[RecordNo]]),LeadTable[[#This Row],[Status]]<>"") -> TRUE | AI29: =AND(SUBTOTAL(2,LeadTable[[#This Row],[RecordNo]]),LeadTable[[#This Row],[Source]]<>"") -> FALSE | AJ29: Phone 1 | AK29: Phone 2 | AL29: Phone 3 | AM29: Email 1 | AN29: Email 2 | AO29: Email 3 | AP29: Link1 | AQ29: Link2 | AR29: 2023-03-22 | AS29: 2023-07-04T09:20:39
B30: 275 | C30: =ROW() -> 30 | D30: Ariadna Riba | E30: Force Manager | G30: Vendor | J30: ariadna.riba@forcemanager.net | X30: Ind. | Y30: Inactive | AB30: S:\Folders\Client Files\Ariadna Riba\ | AC30: =AND(SUBTOTAL(2,LeadTable[[#This Row],[RecordNo]]),LeadTable[[#This Row],[County]]<>"") -> FALSE | AD30: =AND(SUBTOTAL(2,LeadTable[[#This Row],[RecordNo]]),LeadTable[[#This Row],[City]]<>"") -> FALSE | AE30: =AND(SUBTOTAL(2,LeadTable[[#This Row],[RecordNo]]),LeadTable[[#This Row],[State]]<>"") -> FALSE | AF30: =AND(SUBTOTAL(2,LeadTable[[#This Row],[RecordNo]]),LeadTable[[#This Row],[Category]]<>"") -> TRUE | AG30: =AND(SUBTOTAL(2,LeadTable[[#This Row],[RecordNo]]),LeadTable[[#This Row],[Type]]<>"") -> TRUE | AH30: =AND(SUBTOTAL(2,LeadTable[[#This Row],[RecordNo]]),LeadTable[[#This Row],[Status]]<>"") -> TRUE | AI30: =AND(SUBTOTAL(2,LeadTable[[#This Row],[RecordNo]]),LeadTable[[#This Row],[Source]]<>"") -> FALSE | AJ30: Phone 1 | AK30: Phone 2 | AL30: Phone 3 | AM30: Email 1 | AN30: Email 2 | AO30: Email 3 | AP30: Link1 | AQ30: Link2 | AR30: 2023-03-22 | AS30: 2023-12-04T15:22:07
B31: 20231204151655 | C31: =ROW() -> 31 | D31: Artistic Renovations of Ohio LLC | E31: Ken and Sue Perrin | G31: Client | J31: sue@artisticreno.com | M31: (216) 520-0838 | P31: 12333 Ridge Road Unit 1B | Q31: North Royalton | R31: OH | S31: 44133 | X31: Bus. | Y31: Inactive | AB31: S:\Folders\Client Files\Artistic Renovations of Ohio LLC\ | AC31: =AND(SUBTOTAL(2,LeadTable[[#This Row],[RecordNo]]),LeadTable[[#This Row],[County]]<>"") -> FALSE | AD31: =AND(SUBTOTAL(2,LeadTable[[#This Row],[RecordNo]]),LeadTable[[#This Row],[City]]<>"") -> TRUE | AE31: =AND(SUBTOTAL(2,LeadTable[[#This Row],[RecordNo]]),LeadTable[[#This Row],[State]]<>"") -> TRUE | AF31: =AND(SUBTOTAL(2,LeadTable[[#This Row],[RecordNo]]),LeadTable[[#This Row],[Category]]<>"") -> TRUE | AG31: =AND(SUBTOTAL(2,LeadTable[[#This Row],[RecordNo]]),LeadTable[[#This Row],[Type]]<>"") -> TRUE | AH31: =AND(SUBTOTAL(2,LeadTable[[#This Row],[RecordNo]]),LeadTable[[#This Row],[Status]]<>"") -> TRUE | AI31: =AND(SUBTOTAL(2,LeadTable[[#This Row],[RecordNo]]),LeadTable[[#This Row],[Source]]<>"") -> FALSE | AJ31: Phone 1 | AK31: Phone 2 | AL31: Phone 3 | AM31: Email 1 | AN31: Email 2 | AO31: Email 3 | AP31: Link 1 | AQ31: Link 2 | AR31: 2023-12-04 | AS31: 2024-02-02T14:33:06
B32: 422 | C32: =ROW() -> 32 | D32: Autumn Campbell | E32: Allstate | G32: Bus. | J32: acampbell10@allstate.com | X32: Ind. | Y32: Inactive | AB32: S:\Folders\Client Files\Autumn Campbell\ | AC32: =AND(SUBTOTAL(2,LeadTable[[#This Row],[RecordNo]]),LeadTable[[#This Row],[County]]<>"") -> FALSE | AD32: =AND(SUBTOTAL(2,LeadTable[[#This Row],[RecordNo]]),LeadTable[[#This Row],[City]]<>"") -> FALSE | AE32: =AND(SUBTOTAL(2,LeadTable[[#This Row],[RecordNo]]),LeadTable[[#This Row],[State]]<>"") -> FALSE | AF32: =AND(SUBTOTAL(2,LeadTable[[#This Row],[RecordNo]]),LeadTable[[#This Row],[Category]]<>"") -> TRUE | AG32: =AND(SUBTOTAL(2,LeadTable[[#This Row],[RecordNo]]),LeadTable[[#This Row],[Type]]<>"") -> TRUE | AH32: =AND(SUBTOTAL(2,LeadTable[[#This Row],[RecordNo]]),LeadTable[[#This Row],[Status]]<>"") -> TRUE | AI32: =AND(SUBTOTAL(2,LeadTable[[#This Row],[RecordNo]]),LeadTable[[#This Row],[Source]]<>"") -> FALSE | AJ32: Phone 1 | AK32: Phone 2 | AL32: Phone 3 | AM32: Email 1 | AN32: Email 2 | AO32: Email 3 | AP32: Link1 | AQ32: Link2 | AR32: 2023-03-22
B33: 277 | C33: =ROW() -> 33 | D33: Barbara Humphries | E33: Internal Revenue Service | G33: Gov. | J33: barbara.humphries@irs.gov | M33: (865) 243-0598 | N33: (865) 806-0662 | X33: Ind. | Y33: Active | AB33: S:\Folders\Client Files\Barbara Humphries\ | AC33: =AND(SUBTOTAL(2,LeadTable[[#This Row],[RecordNo]]),LeadTable[[#This Row],[County]]<>"") -> FALSE | AD33: =AND(SUBTOTAL(2,LeadTable[[#This Row],[RecordNo]]),LeadTable[[#This Row],[City]]<>"") -> FALSE | AE33: =AND(SUBTOTAL(2,LeadTable[[#This Row],[RecordNo]]),LeadTable[[#This Row],[State]]<>"") -> FALSE | AF33: =AND(SUBTOTAL(2,LeadTable[[#This Row],[RecordNo]]),LeadTable[[#This Row],[Category]]<>"") -> TRUE | AG33: =AND(SUBTOTAL(2,LeadTable[[#This Row],[RecordNo]]),LeadTable[[#This Row],[Type]]<>"") -> TRUE | AH33: =AND(SUBTOTAL(2,LeadTable[[#This Row],[RecordNo]]),LeadTable[[#This Row],[Status]]<>"") -> TRUE | AI33: =AND(SUBTOTAL(2,LeadTable[[#This Row],[RecordNo]]),LeadTable[[#This Row],[Source]]<>"") -> FALSE | AJ33: Phone 1 | AK33: Phone 2 | AL33: Phone 3 | AM33: Email 1 | AN33: Email 2 | AO33: Email 3 | AP33: Link1 | AQ33: Link2 | AR33: 2023-03-22 | AS33: 2023-12-04T15:21:13
B34: 429 | C34: =ROW() -> 34 | D34: BCBS | G34: Medical | M34: (423) 463-7141 | N34: (423) 535-5707 | X34: Bus. | Y34: Active | AB34: S:\Folders\Client Files\BCBS\ | AC34: =AND(SUBTOTAL(2,LeadTable[[#This Row],[RecordNo]]),LeadTable[[#This Row],[County]]<>"") -> FALSE | AD34: =AND(SUBTOTAL(2,LeadTable[[#This Row],[RecordNo]]),LeadTable[[#This Row],[City]]<>"") -> FALSE | AE34: =AND(SUBTOTAL(2,LeadTable[[#This Row],[RecordNo]]),LeadTable[[#This Row],[State]]<>"") -> FALSE | AF34: =AND(SUBTOTAL(2,LeadTable[[#This Row],[RecordNo]]),LeadTable[[#This Row],[Category]]<>"") -> TRUE | AG34: =AND(SUBTOTAL(2,LeadTable[[#This Row],[RecordNo]]),LeadTable[[#This Row],[Type]]<>"") -> TRUE | AH34: =AND(SUBTOTAL(2,LeadTable[[#This Row],[RecordNo]]),LeadTable[[#This Row],[Status]]<>"") -> TRUE | AI34: =AND(SUBTOTAL(2,LeadTable[[#This Row],[RecordNo]]),LeadTable[[#This Row],[Source]]<>"") -> FALSE | AJ34: Phone 1 | AK34: Phone 2 | AL34: Phone 3 | AM34: Email 1 | AN34: Email 2 | AO34: Email 3 | AP34: Link1 | AQ34: Link2 | AR34: 2023-03-22
B35: 278 | C35: =ROW() -> 35 | D35: Beatriz Jaramillo | E35: Internal Revenue Service | G35: Gov. | J35: beatriz.e.jaramillo@irs.gov | M35: (423) 305-2280 | N35: (423) 421-5618 | X35: Ind. | Y35: Active | AB35: S:\Folders\Client Files\Beatriz Jaramillo\ | AC35: =AND(SUBTOTAL(2,LeadTable[[#This Row],[RecordNo]]),LeadTable[[#This Row],[County]]<>"") -> FALSE | AD35: =AND(SUBTOTAL(2,LeadTable[[#This Row],[RecordNo]]),LeadTable[[#This Row],[City]]<>"") -> FALSE | AE35: =AND(SUBTOTAL(2,LeadTable[[#This Row],[RecordNo]]),LeadTable[[#This Row],[State]]<>"") -> FALSE | AF35: =AND(SUBTOTAL(2,LeadTable[[#This Row],[RecordNo]]),LeadTable[[#This Row],[Category]]<>"") -> TRUE | AG35: =AND(SUBTOTAL(2,LeadTable[[#This Row],[RecordNo]]),LeadTable[[#This Row],[Type]]<>"") -> TRUE | AH35: =AND(SUBTOTAL(2,LeadTable[[#This Row],[RecordNo]]),LeadTable[[#This Row],[Status]]<>"") -> TRUE | AI35: =AND(SUBTOTAL(2,LeadTable[[#This Row],[RecordNo]]),LeadTable[[#This Row],[Source]]<>"") -> FALSE | AJ35: Phone 1 | AK35: Phone 2 | AL35: Phone 3 | AM35: Email 1 | AN35: Email 2 | AO35: Email 3 | AP35: Link1 | AQ35: Link2 | AR35: 2023-03-22 | AS35: 2023-12-04T15:22:16
B36: 280 | C36: =ROW() -> 36 | D36: Beverly Calbert | E36: Internal Revenue Service | G36: Gov. | X36: Ind. | Y36: Inactive | AB36: S:\Folders\Client Files\Beverly Calbert\ | AC36: =AND(SUBTOTAL(2,LeadTable[[#This Row],[RecordNo]]),LeadTable[[#This Row],[County]]<>"") -> FALSE | AD36: =AND(SUBTOTAL(2,LeadTable[[#This Row],[RecordNo]]),LeadTable[[#This Row],[City]]<>"") -> FALSE | AE36: =AND(SUBTOTAL(2,LeadTable[[#This Row],[RecordNo]]),LeadTable[[#This Row],[State]]<>"") -> FALSE | AF36: =AND(SUBTOTAL(2,LeadTable[[#This Row],[RecordNo]]),LeadTable[[#This Row],[Category]]<>"") -> TRUE | AG36: =AND(SUBTOTAL(2,LeadTable[[#This Row],[RecordNo]]),LeadTable[[#This Row],[Type]]<>"") -> TRUE | AH36: =AND(SUBTOTAL(2,LeadTable[[#This Row],[RecordNo]]),LeadTable[[#This Row],[Status]]<>"") -> TRUE | AI36: =AND(SUBTOTAL(2,LeadTable[[#This Row],[RecordNo]]),LeadTable[[#This Row],[Source]]<>"") -> FALSE | AJ36: Phone 1 | AK36: Phone 2 | AL36: Phone 3 | AM36: Email 1 | AN36: Email 2 | AO36: Email 3 | AP36: Link1 | AQ36: Link2 | AR36: 2023-03-22
B37: 20231104172500 | C37: =ROW() -> 37 | D37: Billye Richards | E37: Total Package Tax Solutions | G37: Peer | J37: info@totalpackagetaxsolutions.com | M37: (281) 836-3611 | P37: 1846 Snake River Rd Ste B | Q37: Katy | R37: Tx | X37: Bus. | Y37: Active | Z37: https://www.facebook.com/p/Total-Package-Tax-Solutions-100063787855740/?paipv=0&eav=AfaRnB9TUc8e70iuOkPIw8jhKJTs_V3mQyrDXbN4MwQNhlq-emHaVoxxpuh3WR30V00&_rdr | AA37: totalpackagetaxsolutions.com | AB37: S:\Folders\Client Files\Billye Richards\ | AC37: =AND(SUBTOTAL(2,LeadTable[[#This Row],[RecordNo]]),LeadTable[[#This Row],[County]]<>"") -> FALSE | AD37: =AND(SUBTOTAL(2,LeadTable[[#This Row],[RecordNo]]),LeadTable[[#This Row],[City]]<>"") -> TRUE | AE37: =AND(SUBTOTAL(2,LeadTable[[#This Row],[RecordNo]]),LeadTable[[#This Row],[State]]<>"") -> TRUE | AF37: =AND(SUBTOTAL(2,LeadTable[[#This Row],[RecordNo]]),LeadTable[[#This Row],[Category]]<>"") -> TRUE | AG37: =AND(SUBTOTAL(2,LeadTable[[#This Row],[RecordNo]]),LeadTable[[#This Row],[Type]]<>"") -> TRUE | AH37: =AND(SUBTOTAL(2,LeadTable[[#This Row],[RecordNo]]),LeadTable[[#This Row],[Status]]<>"") -> TRUE | AI37: =AND(SUBTOTAL(2,LeadTable[[#This Row],[RecordNo]]),LeadTable[[#This Row],[Source]]<>"") -> FALSE | AJ37: Phone 1 | AK37: Phone 2 | AL37: Phone 3 | AM37: Email 1 | AN37: Email 2 | AO37: Email 3 | AP37: Link 1 | AQ37: Link 2 | AR37: 2023-11-04 | AS37: 2023-11-17T12:41:08
B38: 20230509154727 | C38: =ROW() -> 38 | D38: Blake Cordell | E38: Kristen Cordell | P38: 306 Progress Dr | Q38: Signal Mountain | R38: TN | S38: 37377 | T38: Hamilton | AB38: S:\Folders\Client Files\Blake Cordell\ | AC38: =AND(SUBTOTAL(2,LeadTable[[#This Row],[RecordNo]]),LeadTable[[#This Row],[County]]<>"") -> TRUE | AD38: =AND(SUBTOTAL(2,LeadTable[[#This Row],[RecordNo]]),LeadTable[[#This Row],[City]]<>"") -> TRUE | AE38: =AND(SUBTOTAL(2,LeadTable[[#This Row],[RecordNo]]),LeadTable[[#This Row],[State]]<>"") -> TRUE | AF38: =AND(SUBTOTAL(2,LeadTable[[#This Row],[RecordNo]]),LeadTable[[#This Row],[Category]]<>"") -> FALSE | AG38: =AND(SUBTOTAL(2,LeadTable[[#This Row],[RecordNo]]),LeadTable[[#This Row],[Type]]<>"") -> FALSE | AH38: =AND(SUBTOTAL(2,LeadTable[[#This Row],[RecordNo]]),LeadTable[[#This Row],[Status]]<>"") -> FALSE | AI38: =AND(SUBTOTAL(2,LeadTable[[#This Row],[RecordNo]]),LeadTable[[#This Row],[Source]]<>"") -> FALSE | AJ38: Phone 1 | AK38: Phone 2 | AL38: Phone 3 | AM38: Email 1 | AN38: Email 2 | AO38: Email 3 | AP38: Link1 | AQ38: Link2 | AR38: 2023-03-22
B39: 449 | C39: =ROW() -> 39 | D39: Bob Frost | G39: Bus. | J39: bfrost@frostcompany.net | M39: (423) 855-1438 | X39: Bus. | Y39: Inactive | AB39: S:\Folders\Client Files\Bob Frost\ | AC39: =AND(SUBTOTAL(2,LeadTable[[#This Row],[RecordNo]]),LeadTable[[#This Row],[County]]<>"") -> FALSE | AD39: =AND(SUBTOTAL(2,LeadTable[[#This Row],[RecordNo]]),LeadTable[[#This Row],[City]]<>"") -> FALSE | AE39: =AND(SUBTOTAL(2,LeadTable[[#This Row],[RecordNo]]),LeadTable[[#This Row],[State]]<>"") -> FALSE | AF39: =AND(SUBTOTAL(2,LeadTable[[#This Row],[RecordNo]]),LeadTable[[#This Row],[Category]]<>"") -> TRUE | AG39: =AND(SUBTOTAL(2,LeadTable[[#This Row],[RecordNo]]),LeadTable[[#This Row],[Type]]<>"") -> TRUE | AH39: =AND(SUBTOTAL(2,LeadTable[[#This Row],[RecordNo]]),LeadTable[[#This Row],[Status]]<>"") -> TRUE | AI39: =AND(SUBTOTAL(2,LeadTable[[#This Row],[RecordNo]]),LeadTable[[#This Row],[Source]]<>"") -> FALSE | AJ39: Phone 1 | AK39: Phone 2 | AL39: Phone 3 | AM39: Email 1 | AN39: Email 2 | AO39: Email 3 | AP39: Link1 | AQ39: Link2 | AR39: 2023-03-22
B40: 282 | C40: =ROW() -> 40 | D40: Brad Steigerwalt | G40: Personal | X40: Ind. | Y40: Inactive | AB40: S:\Folders\Client Files\Brad Steigerwalt\ | AC40: =AND(SUBTOTAL(2,LeadTable[[#This Row],[RecordNo]]),LeadTable[[#This Row],[County]]<>"") -> FALSE | AD40: =AND(SUBTOTAL(2,LeadTable[[#This Row],[RecordNo]]),LeadTable[[#This Row],[City]]<>"") -> FALSE | AE40: =AND(SUBTOTAL(2,LeadTable[[#This Row],[RecordNo]]),LeadTable[[#This Row],[State]]<>"") -> FALSE | AF40: =AND(SUBTOTAL(2,LeadTable[[#This Row],[RecordNo]]),LeadTable[[#This Row],[Category]]<>"") -> TRUE | AG40: =AND(SUBTOTAL(2,LeadTable[[#This Row],[RecordNo]]),LeadTable[[#This Row],[Type]]<>"") -> TRUE | AH40: =AND(SUBTOTAL(2,LeadTable[[#This Row],[RecordNo]]),LeadTable[[#This Row],[Status]]<>"") -> TRUE | AI40: =AND(SUBTOTAL(2,LeadTable[[#This Row],[RecordNo]]),LeadTable[[#This Row],[Source]]<>"") -> FALSE | AJ40: Phone 1 | AK40: Phone 2 | AL40: Phone 3 | AM40: Email 1 | AN40: Email 2 | AO40: Email 3 | AP40: Link1 | AQ40: Link2 | AR40: 2023-03-22
B41: 430 | C41: =ROW() -> 41 | D41: Brandon Rodriguez Heating and Air | E41: Brandon Rodriguez | G41: Bus. | J41: brandon_rod86@yahoo.com | M41: (423) 596-5884 | X41: Bus. | Y41: Inactive | AB41: S:\Folders\Client Files\Brandon Rodriguez Heating and Air\ | AC41: =AND(SUBTOTAL(2,LeadTable[[#This Row],[RecordNo]]),LeadTable[[#This Row],[County]]<>"") -> FALSE | AD41: =AND(SUBTOTAL(2,LeadTable[[#This Row],[RecordNo]]),LeadTable[[#This Row],[City]]<>"") -> FALSE | AE41: =AND(SUBTOTAL(2,LeadTable[[#This Row],[RecordNo]]),LeadTable[[#This Row],[State]]<>"") -> FALSE | AF41: =AND(SUBTOTAL(2,LeadTable[[#This Row],[RecordNo]]),LeadTable[[#This Row],[Category]]<>"") -> TRUE | AG41: =AND(SUBTOTAL(2,LeadTable[[#This Row],[RecordNo]]),LeadTable[[#This Row],[Type]]<>"") -> TRUE | AH41: =AND(SUBTOTAL(2,LeadTable[[#This Row],[RecordNo]]),LeadTable[[#This Row],[Status]]<>"") -> TRUE | AI41: =AND(SUBTOTAL(2,LeadTable[[#This Row],[RecordNo]]),LeadTable[[#This Row],[Source]]<>"") -> FALSE | AJ41: Phone 1 | AK41: Phone 2 | AL41: Phone 3 | AM41: Email 1 | AN41: Email 2 | AO41: Email 3 | AP41: Link1 | AQ41: Link2 | AR41: 2023-03-22
B42: 20230630165402 | C42: =ROW() -> 42 | D42: Brent Larson | E42: Larson Consulting | G42: Peer | X42: Ind. | Y42: Active | AB42: S:\Folders\Client Files\Brent Larson\ | AC42: =AND(SUBTOTAL(2,LeadTable[[#This Row],[RecordNo]]),LeadTable[[#This Row],[County]]<>"") -> FALSE | AD42: =AND(SUBTOTAL(2,LeadTable[[#This Row],[RecordNo]]),LeadTable[[#This Row],[City]]<>"") -> FALSE | AE42: =AND(SUBTOTAL(2,LeadTable[[#This Row],[RecordNo]]),LeadTable[[#This Row],[State]]<>"") -> FALSE | AF42: =AND(SUBTOTAL(2,LeadTable[[#This Row],[RecordNo]]),LeadTable[[#This Row],[Category]]<>"") -> TRUE | AG42: =AND(SUBTOTAL(2,LeadTable[[#This Row],[RecordNo]]),LeadTable[[#This Row],[Type]]<>"") -> TRUE | AH42: =AND(SUBTOTAL(2,LeadTable[[#This Row],[RecordNo]]),LeadTable[[#This Row],[Status]]<>"") -> TRUE | AI42: =AND(SUBTOTAL(2,LeadTable[[#This Row],[RecordNo]]),LeadTable[[#This Row],[Source]]<>"") -> FALSE | AJ42: Phone 1 | AK42: Phone 2 | AL42: Phone 3 | AM42: Email 1 | AN42: Email 2 | AO42: Email 3 | AP42: Link 1 | AQ42: Link 2 | AS42: 2023-11-30T14:19:04
B43: 285 | C43: =ROW() -> 43 | D43: Brian Fain | G43: Bus. | N43: (423) 650-1245 | X43: Ind. | Y43: Active | AB43: S:\Folders\Client Files\Brian Fain\ | AC43: =AND(SUBTOTAL(2,LeadTable[[#This Row],[RecordNo]]),LeadTable[[#This Row],[County]]<>"") -> FALSE | AD43: =AND(SUBTOTAL(2,LeadTable[[#This Row],[RecordNo]]),LeadTable[[#This Row],[City]]<>"") -> FALSE | AE43: =AND(SUBTOTAL(2,LeadTable[[#This Row],[RecordNo]]),LeadTable[[#This Row],[State]]<>"") -> FALSE | AF43: =AND(SUBTOTAL(2,LeadTable[[#This Row],[RecordNo]]),LeadTable[[#This Row],[Category]]<>"") -> TRUE | AG43: =AND(SUBTOTAL(2,LeadTable[[#This Row],[RecordNo]]),LeadTable[[#This Row],[Type]]<>"") -> TRUE | AH43: =AND(SUBTOTAL(2,LeadTable[[#This Row],[RecordNo]]),LeadTable[[#This Row],[Status]]<>"") -> TRUE | AI43: =AND(SUBTOTAL(2,LeadTable[[#This Row],[RecordNo]]),LeadTable[[#This Row],[Source]]<>"") -> FALSE | AJ43: Phone 1 | AK43: Phone 2 | AL43: Phone 3 | AM43: Email 1 | AN43: Email 2 | AO43: Email 3 | AP43: Link1 | AQ43: Link2 | AR43: 2023-03-22 | AS43: 2023-12-04T15:23:24
B44: 20230509154031 | C44: =ROW() -> 44 | D44: Brian Vance | E44: Tina A Vance | P44: 5525 Old Dayton Pike | Q44: Chattanooga | R44: TN | S44: 37415 | T44: Hamilton | AB44: S:\Folders\Client Files\Brian Vance\ | AC44: =AND(SUBTOTAL(2,LeadTable[[#This Row],[RecordNo]]),LeadTable[[#This Row],[County]]<>"") -> TRUE | AD44: =AND(SUBTOTAL(2,LeadTable[[#This Row],[RecordNo]]),LeadTable[[#This Row],[City]]<>"") -> TRUE | AE44: =AND(SUBTOTAL(2,LeadTable[[#This Row],[RecordNo]]),LeadTable[[#This Row],[State]]<>"") -> TRUE | AF44: =AND(SUBTOTAL(2,LeadTable[[#This Row],[RecordNo]]),LeadTable[[#This Row],[Category]]<>"") -> FALSE | AG44: =AND(SUBTOTAL(2,LeadTable[[#This Row],[RecordNo]]),LeadTable[[#This Row],[Type]]<>"") -> FALSE | AH44: =AND(SUBTOTAL(2,LeadTable[[#This Row],[RecordNo]]),LeadTable[[#This Row],[Status]]<>"") -> FALSE | AI44: =AND(SUBTOTAL(2,LeadTable[[#This Row],[RecordNo]]),LeadTable[[#This Row],[Source]]<>"") -> FALSE | AJ44: Phone 1 | AK44: Phone 2 | AL44: Phone 3 | AM44: Email 1 | AN44: Email 2 | AO44: Email 3 | AP44: Link1 | AQ44: Link2 | AR44: 2023-03-22 | AS44: 2023-12-04T15:23:37
B45: 286 | C45: =ROW() -> 45 | D45: Brittney Holt | G45: Personal | J45: bleigh2520@yahoo.com | M45: (256) 714-0918 | X45: Ind. | Y45: Active | AB45: S:\Folders\Client Files\Brittney Holt\ | AC45: =AND(SUBTOTAL(2,LeadTable[[#This Row],[RecordNo]]),LeadTable[[#This Row],[County]]<>"") -> FALSE | AD45: =AND(SUBTOTAL(2,LeadTable[[#This Row],[RecordNo]]),LeadTable[[#This Row],[City]]<>"") -> FALSE | AE45: =AND(SUBTOTAL(2,LeadTable[[#This Row],[RecordNo]]),LeadTable[[#This Row],[State]]<>"") -> FALSE | AF45: =AND(SUBTOTAL(2,LeadTable[[#This Row],[RecordNo]]),LeadTable[[#This Row],[Category]]<>"") -> TRUE | AG45: =AND(SUBTOTAL(2,LeadTable[[#This Row],[RecordNo]]),LeadTable[[#This Row],[Type]]<>"") -> TRUE | AH45: =AND(SUBTOTAL(2,LeadTable[[#This Row],[RecordNo]]),LeadTable[[#This Row],[Status]]<>"") -> TRUE | AI45: =AND(SUBTOTAL(2,LeadTable[[#This Row],[RecordNo]]),LeadTable[[#This Row],[Source]]<>"") -> FALSE | AJ45: Phone 1 | AK45: Phone 2 | AL45: Phone 3 | AM45: Email 1 | AN45: Email 2 | AO45: Email 3 | AP45: Link1 | AQ45: Link2 | AR45: 2023-03-22
B46: 431 | C46: =ROW() -> 46 | D46: Brogan Heating and Air | G46: Bus. | M46: (423) 693-8873 | X46: Bus. | Y46: Active | AB46: S:\Folders\Client Files\Brogan Heating and Air\ | AC46: =AND(SUBTOTAL(2,LeadTable[[#This Row],[RecordNo]]),LeadTable[[#This Row],[County]]<>"") -> FALSE | AD46: =AND(SUBTOTAL(2,LeadTable[[#This Row],[RecordNo]]),LeadTable[[#This Row],[City]]<>"") -> FALSE | AE46: =AND(SUBTOTAL(2,LeadTable[[#This Row],[RecordNo]]),LeadTable[[#This Row],[State]]<>"") -> FALSE | AF46: =AND(SUBTOTAL(2,LeadTable[[#This Row],[RecordNo]]),LeadTable[[#This Row],[Category]]<>"") -> TRUE | AG46: =AND(SUBTOTAL(2,LeadTable[[#This Row],[RecordNo]]),LeadTable[[#This Row],[Type]]<>"") -> TRUE | AH46: =AND(SUBTOTAL(2,LeadTable[[#This Row],[RecordNo]]),LeadTable[[#This Row],[Status]]<>"") -> TRUE | AI46: =AND(SUBTOTAL(2,LeadTable[[#This Row],[RecordNo]]),LeadTable[[#This Row],[Source]]<>"") -> FALSE | AJ46: Phone 1 | AK46: Phone 2 | AL46: Phone 3 | AM46: Email 1 | AN46: Email 2 | AO46: Email 3 | AP46: Link1 | AQ46: Link2 | AR46: 2023-03-22
B47: 20231106102325 | C47: =ROW() -> 47 | D47: Carlos D Ramirez Flores | F47: Replied to my request for contacts in FB Group: The Entrepreneurial Accountants looking for a retired revenue officer like you somebody bilingual | G47: Peer | M47: 772 579 6973 | Q47: Miami | R47: FL | X47: Bus. | Y47: Active | Z47: https://miamitaxcon.com/ | AB47: S:\Folders\Client Files\Carlos D Ramirez Flores\ | AC47: =AND(SUBTOTAL(2,LeadTable[[#This Row],[RecordNo]]),LeadTable[[#This Row],[County]]<>"") -> FALSE | AD47: =AND(SUBTOTAL(2,LeadTable[[#This Row],[RecordNo]]),LeadTable[[#This Row],[City]]<>"") -> TRUE | AE47: =AND(SUBTOTAL(2,LeadTable[[#This Row],[RecordNo]]),LeadTable[[#This Row],[State]]<>"") -> TRUE | AF47: =AND(SUBTOTAL(2,LeadTable[[#This Row],[RecordNo]]),LeadTable[[#This Row],[Category]]<>"") -> TRUE | AG47: =AND(SUBTOTAL(2,LeadTable[[#This Row],[RecordNo]]),LeadTable[[#This Row],[Type]]<>"") -> TRUE | AH47: =AND(SUBTOTAL(2,LeadTable[[#This Row],[RecordNo]]),LeadTable[[#This Row],[Status]]<>"") -> TRUE | AI47: =AND(SUBTOTAL(2,LeadTable[[#This Row],[RecordNo]]),LeadTable[[#This Row],[Source]]<>"") -> FALSE | AJ47: Phone 1 | AK47: Phone 2 | AL47: Phone 3 | AM47: Email 1 | AN47: Email 2 | AO47: Email 3 | AP47: Link 1 | AQ47: Link 2 | AR47: 2023-11-06 | AS47: 2023-11-21T11:37:19
B48: 20231204151812 | C48: =ROW() -> 48 | D48: Carol L Sharkey | G48: Client | J48: cpashark@gmail.com | M48: (314) 704-7860 | P48: 106 Crickett Court | Q48: Saint Peters | R48: MO | S48: 63376 | X48: Ind. | Y48: Active | AB48: S:\Folders\Client Files\Carol L Sharkey\ | AC48: =AND(SUBTOTAL(2,LeadTable[[#This Row],[RecordNo]]),LeadTable[[#This Row],[County]]<>"") -> FALSE | AD48: =AND(SUBTOTAL(2,LeadTable[[#This Row],[RecordNo]]),LeadTable[[#This Row],[City]]<>"") -> TRUE | AE48: =AND(SUBTOTAL(2,LeadTable[[#This Row],[RecordNo]]),LeadTable[[#This Row],[State]]<>"") -> TRUE | AF48: =AND(SUBTOTAL(2,LeadTable[[#This Row],[RecordNo]]),LeadTable[[#This Row],[Category]]<>"") -> TRUE | AG48: =AND(SUBTOTAL(2,LeadTable[[#This Row],[RecordNo]]),LeadTable[[#This Row],[Type]]<>"") -> TRUE | AH48: =AND(SUBTOTAL(2,LeadTable[[#This Row],[RecordNo]]),LeadTable[[#This Row],[Status]]<>"") -> TRUE | AI48: =AND(SUBTOTAL(2,LeadTable[[#This Row],[RecordNo]]),LeadTable[[#This Row],[Source]]<>"") -> FALSE | AJ48: Phone 1 | AK48: Phone 2 | AL48: Phone 3 | AM48: Email 1 | AN48: Email 2 | AO48: Email 3 | AP48: Link 1 | AQ48: Link 2 | AR48: 2023-12-04 | AS48: 2024-01-30T16:30:37
B49: 432 | C49: =ROW() -> 49 | D49: Case Auto Repair | G49: Bus. | M49: (423) 559-7995 | X49: Bus. | Y49: Active | AB49: S:\Folders\Client Files\Case Auto Repair\ | AC49: =AND(SUBTOTAL(2,LeadTable[[#This Row],[RecordNo]]),LeadTable[[#This Row],[County]]<>"") -> FALSE | AD49: =AND(SUBTOTAL(2,LeadTable[[#This Row],[RecordNo]]),LeadTable[[#This Row],[City]]<>"") -> FALSE | AE49: =AND(SUBTOTAL(2,LeadTable[[#This Row],[RecordNo]]),LeadTable[[#This Row],[State]]<>"") -> FALSE | AF49: =AND(SUBTOTAL(2,LeadTable[[#This Row],[RecordNo]]),LeadTable[[#This Row],[Category]]<>"") -> TRUE | AG49: =AND(SUBTOTAL(2,LeadTable[[#This Row],[RecordNo]]),LeadTable[[#This Row],[Type]]<>"") -> TRUE | AH49: =AND(SUBTOTAL(2,LeadTable[[#This Row],[RecordNo]]),LeadTable[[#This Row],[Status]]<>"") -> TRUE | AI49: =AND(SUBTOTAL(2,LeadTable[[#This Row],[RecordNo]]),LeadTable[[#This Row],[Source]]<>"") -> FALSE | AJ49: Phone 1 | AK49: Phone 2 | AL49: Phone 3 | AM49: Email 1 | AN49: Email 2 | AO49: Email 3 | AP49: Link1 | AQ49: Link2 | AR49: 2023-03-22
B50: 288 | C50: =ROW() -> 50 | D50: Catherine Martinez | E50: Chi Memorial Lung Care Associates | G50: Medical | Q50: Chattanooga | R50: TN | S50: 37343 | T50: Hamilton | X50: Ind. | Y50: Inactive | AB50: S:\Folders\Client Files\Catherine Martinez\ | AC50: =AND(SUBTOTAL(2,LeadTable[[#This Row],[RecordNo]]),LeadTable[[#This Row],[County]]<>"") -> TRUE | AD50: =AND(SUBTOTAL(2,LeadTable[[#This Row],[RecordNo]]),LeadTable[[#This Row],[City]]<>"") -> TRUE | AE50: =AND(SUBTOTAL(2,LeadTable[[#This Row],[RecordNo]]),LeadTable[[#This Row],[State]]<>"") -> TRUE | AF50: =AND(SUBTOTAL(2,LeadTable[[#This Row],[RecordNo]]),LeadTable[[#This Row],[Category]]<>"") -> TRUE | AG50: =AND(SUBTOTAL(2,LeadTable[[#This Row],[RecordNo]]),LeadTable[[#This Row],[Type]]<>"") -> TRUE | AH50: =AND(SUBTOTAL(2,LeadTable[[#This Row],[RecordNo]]),LeadTable[[#This Row],[Status]]<>"") -> TRUE | AI50: =AND(SUBTOTAL(2,LeadTable[[#This Row],[RecordNo]]),LeadTable[[#This Row],[Source]]<>"") -> FALSE | AJ50: Phone 1 | AK50: Phone 2 | AL50: Phone 3 | AM50: Email 1 | AN50: Email 2 | AO50: Email 3 | AP50: Link1 | AQ50: Link2 | AR50: 2023-03-22 | AS50: 2023-12-04T15:25:01
B51: 20231112094455 | C51: =ROW() -> 51 | D51: Cathi Korelin | E51: Elite Tax, Iinc. | F51: Specializes in Real Estate. Found on facebook post | G51: Peer | J51: cathi@elitetaxinc.com | M51: (573) 797-9977 | R51: MO | X51: Bus. | Y51: Active | Z51: elitetaxinc.com | AB51: S:\Folders\Client Files\Cathi Korelin\ | AC51: =AND(SUBTOTAL(2,LeadTable[[#This Row],[RecordNo]]),LeadTable[[#This Row],[County]]<>"") -> FALSE | AD51: =AND(SUBTOTAL(2,LeadTable[[#This Row],[RecordNo]]),LeadTable[[#This Row],[City]]<>"") -> FALSE | AE51: =AND(SUBTOTAL(2,LeadTable[[#This Row],[RecordNo]]),LeadTable[[#This Row],[State]]<>"") -> TRUE | AF51: =AND(SUBTOTAL(2,LeadTable[[#This Row],[RecordNo]]),LeadTable[[#This Row],[Category]]<>"") -> TRUE | AG51: =AND(SUBTOTAL(2,LeadTable[[#This Row],[RecordNo]]),LeadTable[[#This Row],[Type]]<>"") -> TRUE | AH51: =AND(SUBTOTAL(2,LeadTable[[#This Row],[RecordNo]]),LeadTable[[#This Row],[Status]]<>"") -> TRUE | AI51: =AND(SUBTOTAL(2,LeadTable[[#This Row],[RecordNo]]),LeadTable[[#This Row],[Source]]<>"") -> FALSE | AJ51: Phone 1 | AK51: Phone 2 | AL51: Phone 3 | AM51: Email 1 | AN51: Email 2 | AO51: Email 3 | AP51: Link 1 | AQ51: Link 2 | AR51: 2023-11-12 | AS51: 2023-12-04T15:20:48
B52: 289 | C52: =ROW() -> 52 | D52: Cathy and Ken Yeager | G52: Personal | J52: catyak@comcast.net | X52: Ind. | Y52: Inactive | AB52: S:\Folders\Client Files\Cathy and Ken Yeager\ | AC52: =AND(SUBTOTAL(2,LeadTable[[#This Row],[RecordNo]]),LeadTable[[#This Row],[County]]<>"") -> FALSE | AD52: =AND(SUBTOTAL(2,LeadTable[[#This Row],[RecordNo]]),LeadTable[[#This Row],[City]]<>"") -> FALSE | AE52: =AND(SUBTOTAL(2,LeadTable[[#This Row],[RecordNo]]),LeadTable[[#This Row],[State]]<>"") -> FALSE | AF52: =AND(SUBTOTAL(2,LeadTable[[#This Row],[RecordNo]]),LeadTable[[#This Row],[Category]]<>"") -> TRUE | AG52: =AND(SUBTOTAL(2,LeadTable[[#This Row],[RecordNo]]),LeadTable[[#This Row],[Type]]<>"") -> TRUE | AH52: =AND(SUBTOTAL(2,LeadTable[[#This Row],[RecordNo]]),LeadTable[[#This Row],[Status]]<>"") -> TRUE | AI52: =AND(SUBTOTAL(2,LeadTable[[#This Row],[RecordNo]]),LeadTable[[#This Row],[Source]]<>"") -> FALSE | AJ52: Phone 1 | AK52: Phone 2 | AL52: Phone 3 | AM52: Email 1 | AN52: Email 2 | AO52: Email 3 | AP52: Link1 | AQ52: Link2 | AR52: 2023-03-22
B53: 20240110135447 | C53: =ROW() -> 53 | D53: Chardley Point Du Jour | E53: Point du Jour Tax Experts | F53: Reached out to me from Reddit Chat. Username is Embarrassed_Foot8460 | G53: Peer | J53: info@pdjtaxexperts.com | M53: (954) 774-5275 | N53: (954) 907-0703 | Q53: Miami | R53: FL | S53: 33168 | T53: Miami-Dade | X53: Bus. | Y53: Active | Z53: https://www.pdjtaxexperts.com/ | AB53: S:\Folders\Client Files\Chardley Point Du Jour\ | AC53: =AND(SUBTOTAL(2,LeadTable[[#This Row],[RecordNo]]),LeadTable[[#This Row],[County]]<>"") -> TRUE | AD53: =AND(SUBTOTAL(2,LeadTable[[#This Row],[RecordNo]]),LeadTable[[#This Row],[City]]<>"") -> TRUE | AE53: =AND(SUBTOTAL(2,LeadTable[[#This Row],[RecordNo]]),LeadTable[[#This Row],[State]]<>"") -> TRUE | AF53: =AND(SUBTOTAL(2,LeadTable[[#This Row],[RecordNo]]),LeadTable[[#This Row],[Category]]<>"") -> TRUE | AG53: =AND(SUBTOTAL(2,LeadTable[[#This Row],[RecordNo]]),LeadTable[[#This Row],[Type]]<>"") -> TRUE | AH53: =AND(SUBTOTAL(2,LeadTable[[#This Row],[RecordNo]]),LeadTable[[#This Row],[Status]]<>"") -> TRUE | AI53: =AND(SUBTOTAL(2,LeadTable[[#This Row],[RecordNo]]),LeadTable[[#This Row],[Source]]<>"") -> FALSE | AJ53: Office | AK53: Cell | AL53: Phone 3 | AM53: Email 1 | AN53: Email 2 | AO53: Email 3 | AP53: Link 1 | AQ53: Link 2 | AR53: 2024-01-10 | AS53: 2024-01-10T13:54:47
B54: 20230530143825 | C54: =ROW() -> 54 | D54: Charles W "Bill" Johnston | E54: Tax And More | G54: Peer | J54: taxandmore@live.com | M54: 4232009979 | P54: 169 Southern Lane | Q54: Tazewell | R54: TN | S54: 37879 | T54: Claiborne | X54: Ind. | Y54: Active | AB54: S:\Folders\Client Files\Bill Johnston\ | AC54: =AND(SUBTOTAL(2,LeadTable[[#This Row],[RecordNo]]),LeadTable[[#This Row],[County]]<>"") -> TRUE | AD54: =AND(SUBTOTAL(2,LeadTable[[#This Row],[RecordNo]]),LeadTable[[#This Row],[City]]<>"") -> TRUE | AE54: =AND(SUBTOTAL(2,LeadTable[[#This Row],[RecordNo]]),LeadTable[[#This Row],[State]]<>"") -> TRUE | AF54: =AND(SUBTOTAL(2,LeadTable[[#This Row],[RecordNo]]),LeadTable[[#This Row],[Category]]<>"") -> TRUE | AG54: =AND(SUBTOTAL(2,LeadTable[[#This Row],[RecordNo]]),LeadTable[[#This Row],[Type]]<>"") -> TRUE | AH54: =AND(SUBTOTAL(2,LeadTable[[#This Row],[RecordNo]]),LeadTable[[#This Row],[Status]]<>"") -> TRUE | AI54: =AND(SUBTOTAL(2,LeadTable[[#This Row],[RecordNo]]),LeadTable[[#This Row],[Source]]<>"") -> FALSE | AJ54: Phone 1 | AK54: Phone 2 | AL54: Phone 3 | AM54: Email 1 | AN54: Email 2 | AO54: Email 3 | AP54: Link 1 | AQ54: Link 2 | AR54: 2023-03-22 | AS54: 2023-12-14T09:37:30
B55: 291 | C55: =ROW() -> 55 | D55: Charlie Lambert | E55: Lambert's Flooring, Inc. | G55: Client | J55: charlietlambert@icloud.com | M55: (865) 454-9025 | P55: Po Box 6775 | Q55: Maryville | R55: TN | S55: 37802 | T55: Blount | X55: Ind. | Y55: Inactive | AB55: S:\Folders\Client Files\Charlie Lambert\ | AC55: =AND(SUBTOTAL(2,LeadTable[[#This Row],[RecordNo]]),LeadTable[[#This Row],[County]]<>"") -> TRUE | AD55: =AND(SUBTOTAL(2,LeadTable[[#This Row],[RecordNo]]),LeadTable[[#This Row],[City]]<>"") -> TRUE | AE55: =AND(SUBTOTAL(2,LeadTable[[#This Row],[RecordNo]]),LeadTable[[#This Row],[State]]<>"") -> TRUE | AF55: =AND(SUBTOTAL(2,LeadTable[[#This Row],[RecordNo]]),LeadTable[[#This Row],[Category]]<>"") -> TRUE | AG55: =AND(SUBTOTAL(2,LeadTable[[#This Row],[RecordNo]]),LeadTable[[#This Row],[Type]]<>"") -> TRUE | AH55: =AND(SUBTOTAL(2,LeadTable[[#This Row],[RecordNo]]),LeadTable[[#This Row],[Status]]<>"") -> TRUE | AI55: =AND(SUBTOTAL(2,LeadTable[[#This Row],[RecordNo]]),LeadTable[[#This Row],[Source]]<>"") -> FALSE | AJ55: Phone 1 | AK55: Phone 2 | AL55: Phone 3 | AM55: Email 1 | AN55: Email 2 | AO55: Email 3 | AP55: Link1 | AQ55: Link2 | AR55: 2023-03-22 | AS55: 2023-12-04T15:05:38
B56: 433 | C56: =ROW() -> 56 | D56: Chattanooga Heart Institute | G56: Medical | M56: (423) 697-2000 | P56: 2501 Citico Ave | Q56: Chattanooga | R56: TN | S56: 37404 | T56: Hamilton | X56: Bus. | Y56: Active | AB56: S:\Folders\Client Files\Chattanooga Heart Institute\ | AC56: =AND(SUBTOTAL(2,LeadTable[[#This Row],[RecordNo]]),LeadTable[[#This Row],[County]]<>"") -> TRUE | AD56: =AND(SUBTOTAL(2,LeadTable[[#This Row],[RecordNo]]),LeadTable[[#This Row],[City]]<>"") -> TRUE | AE56: =AND(SUBTOTAL(2,LeadTable[[#This Row],[RecordNo]]),LeadTable[[#This Row],[State]]<>"") -> TRUE | AF56: =AND(SUBTOTAL(2,LeadTable[[#This Row],[RecordNo]]),LeadTable[[#This Row],[Category]]<>"") -> TRUE | AG56: =AND(SUBTOTAL(2,LeadTable[[#This Row],[RecordNo]]),LeadTable[[#This Row],[Type]]<>"") -> TRUE | AH56: =AND(SUBTOTAL(2,LeadTable[[#This Row],[RecordNo]]),LeadTable[[#This Row],[Status]]<>"") -> TRUE | AI56: =AND(SUBTOTAL(2,LeadTable[[#This Row],[RecordNo]]),LeadTable[[#This Row],[Source]]<>"") -> FALSE | AJ56: Phone 1 | AK56: Phone 2 | AL56: Phone 3 | AM56: Email 1 | AN56: Email 2 | AO56: Email 3 | AP56: Link1 | AQ56: Link2 | AR56: 2023-03-22
B57: 434 | C57: =ROW() -> 57 | D57: Chattanooga Property Management | G57: Bus. | M57: (706) 639-5808 | X57: Bus. | Y57: Inactive | AB57: S:\Folders\Client Files\Chattanooga Property Management\ | AC57: =AND(SUBTOTAL(2,LeadTable[[#This Row],[RecordNo]]),LeadTable[[#This Row],[County]]<>"") -> FALSE | AD57: =AND(SUBTOTAL(2,LeadTable[[#This Row],[RecordNo]]),LeadTable[[#This Row],[City]]<>"") -> FALSE | AE57: =AND(SUBTOTAL(2,LeadTable[[#This Row],[RecordNo]]),LeadTable[[#This Row],[State]]<>"") -> FALSE | AF57: =AND(SUBTOTAL(2,LeadTable[[#This Row],[RecordNo]]),LeadTable[[#This Row],[Category]]<>"") -> TRUE | AG57: =AND(SUBTOTAL(2,LeadTable[[#This Row],[RecordNo]]),LeadTable[[#This Row],[Type]]<>"") -> TRUE | AH57: =AND(SUBTOTAL(2,LeadTable[[#This Row],[RecordNo]]),LeadTable[[#This Row],[Status]]<>"") -> TRUE | AI57: =AND(SUBTOTAL(2,LeadTable[[#This Row],[RecordNo]]),LeadTable[[#This Row],[Source]]<>"") -> FALSE | AJ57: Phone 1 | AK57: Phone 2 | AL57: Phone 3 | AM57: Email 1 | AN57: Email 2 | AO57: Email 3 | AP57: Link1 | AQ57: Link2 | AR57: 2023-03-22
B58: 435 | C58: =ROW() -> 58 | D58: Chattanooga Skin and Cancer Clinic | G58: Medical | M58: (423) 899-2700 | X58: Bus. | Y58: Active | AB58: S:\Folders\Client Files\Chattanooga Skin and Cancer Clinic\ | AC58: =AND(SUBTOTAL(2,LeadTable[[#This Row],[RecordNo]]),LeadTable[[#This Row],[County]]<>"") -> FALSE | AD58: =AND(SUBTOTAL(2,LeadTable[[#This Row],[RecordNo]]),LeadTable[[#This Row],[City]]<>"") -> FALSE | AE58: =AND(SUBTOTAL(2,LeadTable[[#This Row],[RecordNo]]),LeadTable[[#This Row],[State]]<>"") -> FALSE | AF58: =AND(SUBTOTAL(2,LeadTable[[#This Row],[RecordNo]]),LeadTable[[#This Row],[Category]]<>"") -> TRUE | AG58: =AND(SUBTOTAL(2,LeadTable[[#This Row],[RecordNo]]),LeadTable[[#This Row],[Type]]<>"") -> TRUE | AH58: =AND(SUBTOTAL(2,LeadTable[[#This Row],[RecordNo]]),LeadTable[[#This Row],[Status]]<>"") -> TRUE | AI58: =AND(SUBTOTAL(2,LeadTable[[#This Row],[RecordNo]]),LeadTable[[#This Row],[Source]]<>"") -> FALSE | AJ58: Phone 1 | AK58: Phone 2 | AL58: Phone 3 | AM58: Email 1 | AN58: Email 2 | AO58: Email 3 | AP58: Link1 | AQ58: Link2 | AR58: 2023-03-22
B59: 436 | C59: =ROW() -> 59 | D59: CHI Memorial | G59: Medical | M59: (423) 899-2904 | P59: Ste. 170 1238 Taft Hwy | Q59: Signal Mountain | R59: TN | S59: 37377 | T59: Hamilton | X59: Bus. | Y59: Active | AB59: S:\Folders\Client Files\CHI Memorial\ | AC59: =AND(SUBTOTAL(2,LeadTable[[#This Row],[RecordNo]]),LeadTable[[#This Row],[County]]<>"") -> TRUE | AD59: =AND(SUBTOTAL(2,LeadTable[[#This Row],[RecordNo]]),LeadTable[[#This Row],[City]]<>"") -> TRUE | AE59: =AND(SUBTOTAL(2,LeadTable[[#This Row],[RecordNo]]),LeadTable[[#This Row],[State]]<>"") -> TRUE | AF59: =AND(SUBTOTAL(2,LeadTable[[#This Row],[RecordNo]]),LeadTable[[#This Row],[Category]]<>"") -> TRUE | AG59: =AND(SUBTOTAL(2,LeadTable[[#This Row],[RecordNo]]),LeadTable[[#This Row],[Type]]<>"") -> TRUE | AH59: =AND(SUBTOTAL(2,LeadTable[[#This Row],[RecordNo]]),LeadTable[[#This Row],[Status]]<>"") -> TRUE | AI59: =AND(SUBTOTAL(2,LeadTable[[#This Row],[RecordNo]]),LeadTable[[#This Row],[Source]]<>"") -> FALSE | AJ59: Phone 1 | AK59: Phone 2 | AL59: Phone 3 | AM59: Email 1 | AN59: Email 2 | AO59: Email 3 | AP59: Link1 | AQ59: Link2 | AR59: 2023-03-22
B60: 437 | C60: =ROW() -> 60 | D60: CHI Memorial Family Practice Associates | G60: Medical | M60: (423) 495-5951 | P60: 6401 Mountain View Dr | Q60: Ooltewah | R60: TN | S60: 37363 | T60: Hamilton | X60: Bus. | Y60: Active | AB60: S:\Folders\Client Files\CHI Memorial Family Practice Associates\ | AC60: =AND(SUBTOTAL(2,LeadTable[[#This Row],[RecordNo]]),LeadTable[[#This Row],[County]]<>"") -> TRUE | AD60: =AND(SUBTOTAL(2,LeadTable[[#This Row],[RecordNo]]),LeadTable[[#This Row],[City]]<>"") -> TRUE | AE60: =AND(SUBTOTAL(2,LeadTable[[#This Row],[RecordNo]]),LeadTable[[#This Row],[State]]<>"") -> TRUE | AF60: =AND(SUBTOTAL(2,LeadTable[[#This Row],[RecordNo]]),LeadTable[[#This Row],[Category]]<>"") -> TRUE | AG60: =AND(SUBTOTAL(2,LeadTable[[#This Row],[RecordNo]]),LeadTable[[#This Row],[Type]]<>"") -> TRUE | AH60: =AND(SUBTOTAL(2,LeadTable[[#This Row],[RecordNo]]),LeadTable[[#This Row],[Status]]<>"") -> TRUE | AI60: =AND(SUBTOTAL(2,LeadTable[[#This Row],[RecordNo]]),LeadTable[[#This Row],[Source]]<>"") -> FALSE | AJ60: Phone 1 | AK60: Phone 2 | AL60: Phone 3 | AM60: Email 1 | AN60: Email 2 | AO60: Email 3 | AP60: Link1 | AQ60: Link2 | AR60: 2023-03-22
B61: 438 | C61: =ROW() -> 61 | D61: CHI Memorial Lung Care Associates | G61: Medical | M61: (423) 495-2635 | P61: Ste 205 2051 Hamill Rd | Q61: Chattanooga | R61: TN | S61: 37343 | T61: Hamilton | X61: Bus. | Y61: Active | AB61: S:\Folders\Client Files\CHI Memorial Lung Care Associates\ | AC61: =AND(SUBTOTAL(2,LeadTable[[#This Row],[RecordNo]]),LeadTable[[#This Row],[County]]<>"") -> TRUE | AD61: =AND(SUBTOTAL(2,LeadTable[[#This Row],[RecordNo]]),LeadTable[[#This Row],[City]]<>"") -> TRUE | AE61: =AND(SUBTOTAL(2,LeadTable[[#This Row],[RecordNo]]),LeadTable[[#This Row],[State]]<>"") -> TRUE | AF61: =AND(SUBTOTAL(2,LeadTable[[#This Row],[RecordNo]]),LeadTable[[#This Row],[Category]]<>"") -> TRUE | AG61: =AND(SUBTOTAL(2,LeadTable[[#This Row],[RecordNo]]),LeadTable[[#This Row],[Type]]<>"") -> TRUE | AH61: =AND(SUBTOTAL(2,LeadTable[[#This Row],[RecordNo]]),LeadTable[[#This Row],[Status]]<>"") -> TRUE | AI61: =AND(SUBTOTAL(2,LeadTable[[#This Row],[RecordNo]]),LeadTable[[#This Row],[Source]]<>"") -> FALSE | AJ61: Phone 1 | AK61: Phone 2 | AL61: Phone 3 | AM61: Email 1 | AN61: Email 2 | AO61: Email 3 | AP61: Link1 | AQ61: Link2 | AR61: 2023-03-22
B62: 293 | C62: =ROW() -> 62 | D62: Chris Collins | G62: Personal | J62: washiburr@gmail.com | M62: (423) 713-8380 | P62: 1420 Saint Michaels Way | Q62: Newport News | R62: VA | S62: 23606 | T62: Newport News City | X62: Ind. | Y62: Active | AB62: S:\Folders\Client Files\Chris Collins\ | AC62: =AND(SUBTOTAL(2,LeadTable[[#This Row],[RecordNo]]),LeadTable[[#This Row],[County]]<>"") -> TRUE | AD62: =AND(SUBTOTAL(2,LeadTable[[#This Row],[RecordNo]]),LeadTable[[#This Row],[City]]<>"") -> TRUE | AE62: =AND(SUBTOTAL(2,LeadTable[[#This Row],[RecordNo]]),LeadTable[[#This Row],[State]]<>"") -> TRUE | AF62: =AND(SUBTOTAL(2,LeadTable[[#This Row],[RecordNo]]),LeadTable[[#This Row],[Category]]<>"") -> TRUE | AG62: =AND(SUBTOTAL(2,LeadTable[[#This Row],[RecordNo]]),LeadTable[[#This Row],[Type]]<>"") -> TRUE | AH62: =AND(SUBTOTAL(2,LeadTable[[#This Row],[RecordNo]]),LeadTable[[#This Row],[Status]]<>"") -> TRUE | AI62: =AND(SUBTOTAL(2,LeadTable[[#This Row],[RecordNo]]),LeadTable[[#This Row],[Source]]<>"") -> FALSE | AJ62: Phone 1 | AK62: Phone 2 | AL62: Phone 3 | AM62: Email 1 | AN62: Email 2 | AO62: Email 3 | AP62: Link1 | AQ62: Link2 | AR62: 2023-03-22
B63: 20240112161641 | C63: =ROW() -> 63 | D63: Christian Jackson | G63: Client | J63: chrisjackson9981@gmail.com | M63: (202) 409-1850 | P63: 2210 Parkside Dr | Q63: Bowie | R63: MD | S63: 20721 | T63: Prince George's | X63: Ind. | Y63: Active | AB63: S:\Folders\Client Files\Christian Jackson\ | AC63: =AND(SUBTOTAL(2,LeadTable[[#This Row],[RecordNo]]),LeadTable[[#This Row],[County]]<>"") -> TRUE | AD63: =AND(SUBTOTAL(2,LeadTable[[#This Row],[RecordNo]]),LeadTable[[#This Row],[City]]<>"") -> TRUE | AE63: =AND(SUBTOTAL(2,LeadTable[[#This Row],[RecordNo]]),LeadTable[[#This Row],[State]]<>"") -> TRUE | AF63: =AND(SUBTOTAL(2,LeadTable[[#This Row],[RecordNo]]),LeadTable[[#This Row],[Category]]<>"") -> TRUE | AG63: =AND(SUBTOTAL(2,LeadTable[[#This Row],[RecordNo]]),LeadTable[[#This Row],[Type]]<>"") -> TRUE | AH63: =AND(SUBTOTAL(2,LeadTable[[#This Row],[RecordNo]]),LeadTable[[#This Row],[Status]]<>"") -> TRUE | AI63: =AND(SUBTOTAL(2,LeadTable[[#This Row],[RecordNo]]),LeadTable[[#This Row],[Source]]<>"") -> FALSE | AJ63: Phone 1 | AK63: Phone 2 | AL63: Phone 3 | AM63: Email 1 | AN63: Email 2 | AO63: Email 3 | AP63: Link 1 | AQ63: Link 2 | AR63: 2024-01-12 | AS63: 2024-01-22T15:36:23
B64: 20240116120950 | C64: =ROW() -> 64 | D64: Cindy McCullough | G64: Peer | J64: cmccullough120@gmail.com | M64: (669) 237-8161 | Q64: Fremont | R64: CA | X64: Bus. | Y64: Active | AB64: S:\Folders\Client Files\Cindy McCullough\ | AC64: =AND(SUBTOTAL(2,LeadTable[[#This Row],[RecordNo]]),LeadTable[[#This Row],[County]]<>"") -> FALSE | AD64: =AND(SUBTOTAL(2,LeadTable[[#This Row],[RecordNo]]),LeadTable[[#This Row],[City]]<>"") -> TRUE | AE64: =AND(SUBTOTAL(2,LeadTable[[#This Row],[RecordNo]]),LeadTable[[#This Row],[State]]<>"") -> TRUE | AF64: =AND(SUBTOTAL(2,LeadTable[[#This Row],[RecordNo]]),LeadTable[[#This Row],[Category]]<>"") -> TRUE | AG64: =AND(SUBTOTAL(2,LeadTable[[#This Row],[RecordNo]]),LeadTable[[#This Row],[Type]]<>"") -> TRUE | AH64: =AND(SUBTOTAL(2,LeadTable[[#This Row],[RecordNo]]),LeadTable[[#This Row],[Status]]<>"") -> TRUE | AI64: =AND(SUBTOTAL(2,LeadTable[[#This Row],[RecordNo]]),LeadTable[[#This Row],[Source]]<>"") -> FALSE | AJ64: Phone 1 | AK64: Phone 2 | AL64: Phone 3 | AM64: Email 1 | AN64: Email 2 | AO64: Email 3 | AP64: Link 1 | AQ64: Link 2 | AR64: 2024-01-16 | AS64: 2024-01-16T12:09:50
B65: 295 | C65: =ROW() -> 65 | D65: Clark Stelling | G65: Personal | J65: clarkstelling@comast.net | X65: Ind. | Y65: Inactive | AB65: S:\Folders\Client Files\Clark Stelling\ | AC65: =AND(SUBTOTAL(2,LeadTable[[#This Row],[RecordNo]]),LeadTable[[#This Row],[County]]<>"") -> FALSE | AD65: =AND(SUBTOTAL(2,LeadTable[[#This Row],[RecordNo]]),LeadTable[[#This Row],[City]]<>"") -> FALSE | AE65: =AND(SUBTOTAL(2,LeadTable[[#This Row],[RecordNo]]),LeadTable[[#This Row],[State]]<>"") -> FALSE | AF65: =AND(SUBTOTAL(2,LeadTable[[#This Row],[RecordNo]]),LeadTable[[#This Row],[Category]]<>"") -> TRUE | AG65: =AND(SUBTOTAL(2,LeadTable[[#This Row],[RecordNo]]),LeadTable[[#This Row],[Type]]<>"") -> TRUE | AH65: =AND(SUBTOTAL(2,LeadTable[[#This Row],[RecordNo]]),LeadTable[[#This Row],[Status]]<>"") -> TRUE | AI65: =AND(SUBTOTAL(2,LeadTable[[#This Row],[RecordNo]]),LeadTable[[#This Row],[Source]]<>"") -> FALSE | AJ65: Phone 1 | AK65: Phone 2 | AL65: Phone 3 | AM65: Email 1 | AN65: Email 2 | AO65: Email 3 | AP65: Link1 | AQ65: Link2 | AR65: 2023-03-22
B66: 296 | C66: =ROW() -> 66 | D66: Claudia Kaminski | G66: Personal | X66: Ind. | Y66: Active | AB66: S:\Folders\Client Files\Claudia Kaminski\ | AC66: =AND(SUBTOTAL(2,LeadTable[[#This Row],[RecordNo]]),LeadTable[[#This Row],[County]]<>"") -> FALSE | AD66: =AND(SUBTOTAL(2,LeadTable[[#This Row],[RecordNo]]),LeadTable[[#This Row],[City]]<>"") -> FALSE | AE66: =AND(SUBTOTAL(2,LeadTable[[#This Row],[RecordNo]]),LeadTable[[#This Row],[State]]<>"") -> FALSE | AF66: =AND(SUBTOTAL(2,LeadTable[[#This Row],[RecordNo]]),LeadTable[[#This Row],[Category]]<>"") -> TRUE | AG66: =AND(SUBTOTAL(2,LeadTable[[#This Row],[RecordNo]]),LeadTable[[#This Row],[Type]]<>"") -> TRUE | AH66: =AND(SUBTOTAL(2,LeadTable[[#This Row],[RecordNo]]),LeadTable[[#This Row],[Status]]<>"") -> TRUE | AI66: =AND(SUBTOTAL(2,LeadTable[[#This Row],[RecordNo]]),LeadTable[[#This Row],[Source]]<>"") -> FALSE | AJ66: Phone 1 | AK66: Phone 2 | AL66: Phone 3 | AM66: Email 1 | AN66: Email 2 | AO66: Email 3 | AP66: Link1 | AQ66: Link2 | AR66: 2023-03-22
B67: 635 | C67: =ROW() -> 67 | D67: College Hunks | E67: Brett Collins | J67: brett.collins@chhj.com | M67: (888) 888-8888 | O67: (770) 377-8510 | Y67: Active | AB67: S:\Folders\Client Files\College Hunks\ | AC67: =AND(SUBTOTAL(2,LeadTable[[#This Row],[RecordNo]]),LeadTable[[#This Row],[County]]<>"") -> FALSE | AD67: =AND(SUBTOTAL(2,LeadTable[[#This Row],[RecordNo]]),LeadTable[[#This Row],[City]]<>"") -> FALSE | AE67: =AND(SUBTOTAL(2,LeadTable[[#This Row],[RecordNo]]),LeadTable[[#This Row],[State]]<>"") -> FALSE | AF67: =AND(SUBTOTAL(2,LeadTable[[#This Row],[RecordNo]]),LeadTable[[#This Row],[Category]]<>"") -> FALSE | AG67: =AND(SUBTOTAL(2,LeadTable[[#This Row],[RecordNo]]),LeadTable[[#This Row],[Type]]<>"") -> FALSE | AH67: =AND(SUBTOTAL(2,LeadTable[[#This Row],[RecordNo]]),LeadTable[[#This Row],[Status]]<>"") -> TRUE | AI67: =AND(SUBTOTAL(2,LeadTable[[#This Row],[RecordNo]]),LeadTable[[#This Row],[Source]]<>"") -> FALSE | AJ67: Phone 1 | AK67: Phone 2 | AL67: Phone 3 | AM67: Email 1 | AN67: Email 2 | AO67: Email 3 | AP67: Link1 | AQ67: Link2 | AR67: 2023-03-22
B68: 439 | C68: =ROW() -> 68 | D68: Consultants In Pain Management | G68: Medical | J68: info@cpainman.org | M68: (423) 648-8480 | X68: Bus. | Y68: Active | AB68: S:\Folders\Client Files\Consultants In Pain Management\ | AC68: =AND(SUBTOTAL(2,LeadTable[[#This Row],[RecordNo]]),LeadTable[[#This Row],[County]]<>"") -> FALSE | AD68: =AND(SUBTOTAL(2,LeadTable[[#This Row],[RecordNo]]),LeadTable[[#This Row],[City]]<>"") -> FALSE | AE68: =AND(SUBTOTAL(2,LeadTable[[#This Row],[RecordNo]]),LeadTable[[#This Row],[State]]<>"") -> FALSE | AF68: =AND(SUBTOTAL(2,LeadTable[[#This Row],[RecordNo]]),LeadTable[[#This Row],[Category]]<>"") -> TRUE | AG68: =AND(SUBTOTAL(2,LeadTable[[#This Row],[RecordNo]]),LeadTable[[#This Row],[Type]]<>"") -> TRUE | AH68: =AND(SUBTOTAL(2,LeadTable[[#This Row],[RecordNo]]),LeadTable[[#This Row],[Status]]<>"") -> TRUE | AI68: =AND(SUBTOTAL(2,LeadTable[[#This Row],[RecordNo]]),LeadTable[[#This Row],[Source]]<>"") -> FALSE | AJ68: Phone 1 | AK68: Phone 2 | AL68: Phone 3 | AM68: Email 1 | AN68: Email 2 | AO68: Email 3 | AP68: Link1 | AQ68: Link2 | AR68: 2023-03-22 | AS68: 2023-11-05T07:24:23
B69: 440 | C69: =ROW() -> 69 | D69: Cooks Pest Control | G69: Bus. | X69: Bus. | Y69: Inactive | AB69: S:\Folders\Client Files\Cooks Pest Control\ | AC69: =AND(SUBTOTAL(2,LeadTable[[#This Row],[RecordNo]]),LeadTable[[#This Row],[County]]<>"") -> FALSE | AD69: =AND(SUBTOTAL(2,LeadTable[[#This Row],[RecordNo]]),LeadTable[[#This Row],[City]]<>"") -> FALSE | AE69: =AND(SUBTOTAL(2,LeadTable[[#This Row],[RecordNo]]),LeadTable[[#This Row],[State]]<>"") -> FALSE | AF69: =AND(SUBTOTAL(2,LeadTable[[#This Row],[RecordNo]]),LeadTable[[#This Row],[Category]]<>"") -> TRUE | AG69: =AND(SUBTOTAL(2,LeadTable[[#This Row],[RecordNo]]),LeadTable[[#This Row],[Type]]<>"") -> TRUE | AH69: =AND(SUBTOTAL(2,LeadTable[[#This Row],[RecordNo]]),LeadTable[[#This Row],[Status]]<>"") -> TRUE | AI69: =AND(SUBTOTAL(2,LeadTable[[#This Row],[RecordNo]]),LeadTable[[#This Row],[Source]]<>"") -> FALSE | AJ69: Phone 1 | AK69: Phone 2 | AL69: Phone 3 | AM69: Email 1 | AN69: Email 2 | AO69: Email 3 | AP69: Link1 | AQ69: Link2 | AR69: 2023-03-22
B70: 441 | C70: =ROW() -> 70 | D70: Cox Wealth Management LLC | E70: Richard Cox | G70: Bus. | J70: info@coxwealth.com | M70: (423) 894-3882 | X70: Bus. | Y70: Inactive | AB70: S:\Folders\Client Files\Cox Wealth Management LLC\ | AC70: =AND(SUBTOTAL(2,LeadTable[[#This Row],[RecordNo]]),LeadTable[[#This Row],[County]]<>"") -> FALSE | AD70: =AND(SUBTOTAL(2,LeadTable[[#This Row],[RecordNo]]),LeadTable[[#This Row],[City]]<>"") -> FALSE | AE70: =AND(SUBTOTAL(2,LeadTable[[#This Row],[RecordNo]]),LeadTable[[#This Row],[State]]<>"") -> FALSE | AF70: =AND(SUBTOTAL(2,LeadTable[[#This Row],[RecordNo]]),LeadTable[[#This Row],[Category]]<>"") -> TRUE | AG70: =AND(SUBTOTAL(2,LeadTable[[#This Row],[RecordNo]]),LeadTable[[#This Row],[Type]]<>"") -> TRUE | AH70: =AND(SUBTOTAL(2,LeadTable[[#This Row],[RecordNo]]),LeadTable[[#This Row],[Status]]<>"") -> TRUE | AI70: =AND(SUBTOTAL(2,LeadTable[[#This Row],[RecordNo]]),LeadTable[[#This Row],[Source]]<>"") -> FALSE | AJ70: Phone 1 | AK70: Phone 2 | AL70: Phone 3 | AM70: Email 1 | AN70: Email 2 | AO70: Email 3 | AP70: Link1 | AQ70: Link2 | AR70: 2023-03-22
B71: 20230623141751 | C71: =ROW() -> 71 | D71: Curtis L Greene | E71: Global Protective Services | G71: Client | I71: NFTL | J71: Curtis783@gmail.com | M71: (423) 504-1362 | N71: (423) 504-0138 | P71: PO Box 5571 | Q71: Chattanooga | R71: TN | S71: 37406 | T71: Hamilton | X71: Ind. | Y71: Inactive | AB71: S:\Folders\Client Files\Curtis L Greene\ | AC71: =AND(SUBTOTAL(2,LeadTable[[#This Row],[RecordNo]]),LeadTable[[#This Row],[County]]<>"") -> TRUE | AD71: =AND(SUBTOTAL(2,LeadTable[[#This Row],[RecordNo]]),LeadTable[[#This Row],[City]]<>"") -> TRUE | AE71: =AND(SUBTOTAL(2,LeadTable[[#This Row],[RecordNo]]),LeadTable[[#This Row],[State]]<>"") -> TRUE | AF71: =AND(SUBTOTAL(2,LeadTable[[#This Row],[RecordNo]]),LeadTable[[#This Row],[Category]]<>"") -> TRUE | AG71: =AND(SUBTOTAL(2,LeadTable[[#This Row],[RecordNo]]),LeadTable[[#This Row],[Type]]<>"") -> TRUE | AH71: =AND(SUBTOTAL(2,LeadTable[[#This Row],[RecordNo]]),LeadTable[[#This Row],[Status]]<>"") -> TRUE | AI71: =AND(SUBTOTAL(2,LeadTable[[#This Row],[RecordNo]]),LeadTable[[#This Row],[Source]]<>"") -> TRUE | AJ71: Mobile | AK71: Mobile | AL71: Phone 3 | AM71: Email 1 | AN71: Email 2 | AO71: Email 3 | AP71: Link 1 | AQ71: Link 2 | AS71: 2023-12-04T15:06:27 | AX71: 3825 Wauchula St | AY71: Chattanooga | AZ71: TN | BA71: 37406
B72: 299 | C72: =ROW() -> 72 | D72: Daniel and Thea Rogers | G72: Personal | J72: dtdd@bellsouth.net | M72: (404) 713-8344 | N72: (770) 653-3600 | X72: Ind. | Y72: Active | AB72: S:\Folders\Client Files\Daniel and Thea Rogers\ | AC72: =AND(SUBTOTAL(2,LeadTable[[#This Row],[RecordNo]]),LeadTable[[#This Row],[County]]<>"") -> FALSE | AD72: =AND(SUBTOTAL(2,LeadTable[[#This Row],[RecordNo]]),LeadTable[[#This Row],[City]]<>"") -> FALSE | AE72: =AND(SUBTOTAL(2,LeadTable[[#This Row],[RecordNo]]),LeadTable[[#This Row],[State]]<>"") -> FALSE | AF72: =AND(SUBTOTAL(2,LeadTable[[#This Row],[RecordNo]]),LeadTable[[#This Row],[Category]]<>"") -> TRUE | AG72: =AND(SUBTOTAL(2,LeadTable[[#This Row],[RecordNo]]),LeadTable[[#This Row],[Type]]<>"") -> TRUE | AH72: =AND(SUBTOTAL(2,LeadTable[[#This Row],[RecordNo]]),LeadTable[[#This Row],[Status]]<>"") -> TRUE | AI72: =AND(SUBTOTAL(2,LeadTable[[#This Row],[RecordNo]]),LeadTable[[#This Row],[Source]]<>"") -> FALSE | AJ72: Phone 1 | AK72: Phone 2 | AL72: Phone 3 | AM72: Email 1 | AN72: Email 2 | AO72: Email 3 | AP72: Link1 | AQ72: Link2 | AR72: 2023-03-22
B73: 300 | C73: =ROW() -> 73 | D73: Daniel Kueter | E73: Chattanooga Heart Institute | G73: Medical | M73: (423) 265-2233 | X73: Ind. | Y73: Active | AB73: S:\Folders\Client Files\Daniel Kueter\ | AC73: =AND(SUBTOTAL(2,LeadTable[[#This Row],[RecordNo]]),LeadTable[[#This Row],[County]]<>"") -> FALSE | AD73: =AND(SUBTOTAL(2,LeadTable[[#This Row],[RecordNo]]),LeadTable[[#This Row],[City]]<>"") -> FALSE | AE73: =AND(SUBTOTAL(2,LeadTable[[#This Row],[RecordNo]]),LeadTable[[#This Row],[State]]<>"") -> FALSE | AF73: =AND(SUBTOTAL(2,LeadTable[[#This Row],[RecordNo]]),LeadTable[[#This Row],[Category]]<>"") -> TRUE | AG73: =AND(SUBTOTAL(2,LeadTable[[#This Row],[RecordNo]]),LeadTable[[#This Row],[Type]]<>"") -> TRUE | AH73: =AND(SUBTOTAL(2,LeadTable[[#This Row],[RecordNo]]),LeadTable[[#This Row],[Status]]<>"") -> TRUE | AI73: =AND(SUBTOTAL(2,LeadTable[[#This Row],[RecordNo]]),LeadTable[[#This Row],[Source]]<>"") -> FALSE | AJ73: Phone 1 | AK73: Phone 2 | AL73: Phone 3 | AM73: Email 1 | AN73: Email 2 | AO73: Email 3 | AP73: Link1 | AQ73: Link2 | AR73: 2023-03-22
B74: 20230922154612 | C74: =ROW() -> 74 | D74: Daniel Todd | E74: Sarah Gottesfeld | F74: Facebook referral from Suzanne Missy Simonetta-Lee | G74: Client | I74: Other | X74: Ind. | Y74: Inactive | AB74: S:\Folders\Client Files\Daniel Todd\ | AC74: =AND(SUBTOTAL(2,LeadTable[[#This Row],[RecordNo]]),LeadTable[[#This Row],[County]]<>"") -> FALSE | AD74: =AND(SUBTOTAL(2,LeadTable[[#This Row],[RecordNo]]),LeadTable[[#This Row],[City]]<>"") -> FALSE | AE74: =AND(SUBTOTAL(2,LeadTable[[#This Row],[RecordNo]]),LeadTable[[#This Row],[State]]<>"") -> FALSE | AF74: =AND(SUBTOTAL(2,LeadTable[[#This Row],[RecordNo]]),LeadTable[[#This Row],[Category]]<>"") -> TRUE | AG74: =AND(SUBTOTAL(2,LeadTable[[#This Row],[RecordNo]]),LeadTable[[#This Row],[Type]]<>"") -> TRUE | AH74: =AND(SUBTOTAL(2,LeadTable[[#This Row],[RecordNo]]),LeadTable[[#This Row],[Status]]<>"") -> TRUE | AI74: =AND(SUBTOTAL(2,LeadTable[[#This Row],[RecordNo]]),LeadTable[[#This Row],[Source]]<>"") -> TRUE | AJ74: Phone 1 | AK74: Phone 2 | AL74: Phone 3 | AM74: Email 1 | AN74: Email 2 | AO74: Email 3 | AP74: Link 1 | AQ74: Link 2 | AR74: 2023-09-22 | AS74: 2024-01-17T13:01:36
B75: 302 | C75: =ROW() -> 75 | D75: Davey Daniels | E75: Tennessee Oncology | G75: Medical | P75: 605 Glenwood Drive Ste 200 | Q75: Chattanooga | R75: TN | S75: 37402 | T75: Hamilton | X75: Ind. | Y75: Active | AB75: S:\Folders\Client Files\Davey Daniels\ | AC75: =AND(SUBTOTAL(2,LeadTable[[#This Row],[RecordNo]]),LeadTable[[#This Row],[County]]<>"") -> TRUE | AD75: =AND(SUBTOTAL(2,LeadTable[[#This Row],[RecordNo]]),LeadTable[[#This Row],[City]]<>"") -> TRUE | AE75: =AND(SUBTOTAL(2,LeadTable[[#This Row],[RecordNo]]),LeadTable[[#This Row],[State]]<>"") -> TRUE | AF75: =AND(SUBTOTAL(2,LeadTable[[#This Row],[RecordNo]]),LeadTable[[#This Row],[Category]]<>"") -> TRUE | AG75: =AND(SUBTOTAL(2,LeadTable[[#This Row],[RecordNo]]),LeadTable[[#This Row],[Type]]<>"") -> TRUE | AH75: =AND(SUBTOTAL(2,LeadTable[[#This Row],[RecordNo]]),LeadTable[[#This Row],[Status]]<>"") -> TRUE | AI75: =AND(SUBTOTAL(2,LeadTable[[#This Row],[RecordNo]]),LeadTable[[#This Row],[Source]]<>"") -> FALSE | AJ75: Phone 1 | AK75: Phone 2 | AL75: Phone 3 | AM75: Email 1 | AN75: Email 2 | AO75: Email 3 | AP75: Link1 | AQ75: Link2 | AR75: 2023-03-22
B76: 20230517101308 | C76: =ROW() -> 76 | D76: David Barnett | E76: Larson Consulting (Melissa Dunn) | F76: The phone & fax are to Melissa | G76: Client | J76: melissa@larsonknoxville.com | M76: (865) 766-4720 | P76: 1122 Burning Tree Ln | Q76: Knoxville | R76: TN | S76: 37923 | X76: Ind. | Y76: Job Complete | AB76: S:\Folders\Client Files\David Barnett\ | AC76: =AND(SUBTOTAL(2,LeadTable[[#This Row],[RecordNo]]),LeadTable[[#This Row],[County]]<>"") -> FALSE | AD76: =AND(SUBTOTAL(2,LeadTable[[#This Row],[RecordNo]]),LeadTable[[#This Row],[City]]<>"") -> TRUE | AE76: =AND(SUBTOTAL(2,LeadTable[[#This Row],[RecordNo]]),LeadTable[[#This Row],[State]]<>"") -> TRUE | AF76: =AND(SUBTOTAL(2,LeadTable[[#This Row],[RecordNo]]),LeadTable[[#This Row],[Category]]<>"") -> TRUE | AG76: =AND(SUBTOTAL(2,LeadTable[[#This Row],[RecordNo]]),LeadTable[[#This Row],[Type]]<>"") -> TRUE | AH76: =AND(SUBTOTAL(2,LeadTable[[#This Row],[RecordNo]]),LeadTable[[#This Row],[Status]]<>"") -> TRUE | AI76: =AND(SUBTOTAL(2,LeadTable[[#This Row],[RecordNo]]),LeadTable[[#This Row],[Source]]<>"") -> FALSE | AJ76: Phone 1 | AK76: Phone 2 | AL76: Phone 3 | AM76: Email 1 | AN76: Email 2 | AO76: Email 3 | AP76: Link1 | AQ76: Link2 | AR76: 2023-03-22 | AS76: 2023-09-18T11:06:26
B77: 20231106093117 | C77: =ROW() -> 77 | D77: David Orr | F77: Replied to my request for contacts in FB Group: The Entrepreneurial Accountants Real Estate Investors, Rental Property Owners | G77: Peer | M77: (512) 200-4588 | Q77: Austin | R77: TX | S77: 78750 | T77: Travis | X77: Bus. | Y77: Active | Z77: https://taxmodern.com/contact | AB77: S:\Folders\Client Files\David Orr\ | AC77: =AND(SUBTOTAL(2,LeadTable[[#This Row],[RecordNo]]),LeadTable[[#This Row],[County]]<>"") -> TRUE | AD77: =AND(SUBTOTAL(2,LeadTable[[#This Row],[RecordNo]]),LeadTable[[#This Row],[City]]<>"") -> TRUE | AE77: =AND(SUBTOTAL(2,LeadTable[[#This Row],[RecordNo]]),LeadTable[[#This Row],[State]]<>"") -> TRUE | AF77: =AND(SUBTOTAL(2,LeadTable[[#This Row],[RecordNo]]),LeadTable[[#This Row],[Category]]<>"") -> TRUE | AG77: =AND(SUBTOTAL(2,LeadTable[[#This Row],[RecordNo]]),LeadTable[[#This Row],[Type]]<>"") -> TRUE | AH77: =AND(SUBTOTAL(2,LeadTable[[#This Row],[RecordNo]]),LeadTable[[#This Row],[Status]]<>"") -> TRUE | AI77: =AND(SUBTOTAL(2,LeadTable[[#This Row],[RecordNo]]),LeadTable[[#This Row],[Source]]<>"") -> FALSE | AJ77: Phone 1 | AK77: Phone 2 | AL77: Phone 3 | AM77: Email 1 | AN77: Email 2 | AO77: Email 3 | AP77: Link 1 | AQ77: Link 2 | AR77: 2023-11-06 | AS77: 2023-12-04T14:47:50
B78: 305 | C78: =ROW() -> 78 | D78: David Winters | E78: Chi Memorial Family Practice Associates | G78: Medical | M78: (423) 495-5951 | P78: 6401 Mountain View Dr | Q78: Ooltewah | S78: 37363 | T78: Hamilton | X78: Ind. | Y78: Inactive | AB78: S:\Folders\Client Files\David Winters\ | AC78: =AND(SUBTOTAL(2,LeadTable[[#This Row],[RecordNo]]),LeadTable[[#This Row],[County]]<>"") -> TRUE | AD78: =AND(SUBTOTAL(2,LeadTable[[#This Row],[RecordNo]]),LeadTable[[#This Row],[City]]<>"") -> TRUE | AE78: =AND(SUBTOTAL(2,LeadTable[[#This Row],[RecordNo]]),LeadTable[[#This Row],[State]]<>"") -> FALSE | AF78: =AND(SUBTOTAL(2,LeadTable[[#This Row],[RecordNo]]),LeadTable[[#This Row],[Category]]<>"") -> TRUE | AG78: =AND(SUBTOTAL(2,LeadTable[[#This Row],[RecordNo]]),LeadTable[[#This Row],[Type]]<>"") -> TRUE | AH78: =AND(SUBTOTAL(2,LeadTable[[#This Row],[RecordNo]]),LeadTable[[#This Row],[Status]]<>"") -> TRUE | AI78: =AND(SUBTOTAL(2,LeadTable[[#This Row],[RecordNo]]),LeadTable[[#This Row],[Source]]<>"") -> FALSE | AJ78: Phone 1 | AK78: Phone 2 | AL78: Phone 3 | AM78: Email 1 | AN78: Email 2 | AO78: Email 3 | AP78: Link1 | AQ78: Link2 | AR78: 2023-03-22
B79: 442 | C79: =ROW() -> 79 | D79: DavidS Bridal | G79: Bus. | M79: (423) 855-5300 | X79: Bus. | Y79: Inactive | AB79: S:\Folders\Client Files\DavidS Bridal\ | AC79: =AND(SUBTOTAL(2,LeadTable[[#This Row],[RecordNo]]),LeadTable[[#This Row],[County]]<>"") -> FALSE | AD79: =AND(SUBTOTAL(2,LeadTable[[#This Row],[RecordNo]]),LeadTable[[#This Row],[City]]<>"") -> FALSE | AE79: =AND(SUBTOTAL(2,LeadTable[[#This Row],[RecordNo]]),LeadTable[[#This Row],[State]]<>"") -> FALSE | AF79: =AND(SUBTOTAL(2,LeadTable[[#This Row],[RecordNo]]),LeadTable[[#This Row],[Category]]<>"") -> TRUE | AG79: =AND(SUBTOTAL(2,LeadTable[[#This Row],[RecordNo]]),LeadTable[[#This Row],[Type]]<>"") -> TRUE | AH79: =AND(SUBTOTAL(2,LeadTable[[#This Row],[RecordNo]]),LeadTable[[#This Row],[Status]]<>"") -> TRUE | AI79: =AND(SUBTOTAL(2,LeadTable[[#This Row],[RecordNo]]),LeadTable[[#This Row],[Source]]<>"") -> FALSE | AJ79: Phone 1 | AK79: Phone 2 | AL79: Phone 3 | AM79: Email 1 | AN79: Email 2 | AO79: Email 3 | AP79: Link1 | AQ79: Link2 | AR79: 2023-03-22
B80: 482 | C80: =ROW() -> 80 | D80: dc Tax LLC | J80: info@dctax.us | M80: (423)482-9737 | P80: 9301 Ocoee St #64 | Q80: Chattanooga | R80: TN | S80: 37363 | T80: Hamilton | Y80: Active | AB80: S:\Folders\Client Files\Dc Tax LLC\ | AC80: =AND(SUBTOTAL(2,LeadTable[[#This Row],[RecordNo]]),LeadTable[[#This Row],[County]]<>"") -> TRUE | AD80: =AND(SUBTOTAL(2,LeadTable[[#This Row],[RecordNo]]),LeadTable[[#This Row],[City]]<>"") -> TRUE | AE80: =AND(SUBTOTAL(2,LeadTable[[#This Row],[RecordNo]]),LeadTable[[#This Row],[State]]<>"") -> TRUE | AF80: =AND(SUBTOTAL(2,LeadTable[[#This Row],[RecordNo]]),LeadTable[[#This Row],[Category]]<>"") -> FALSE | AG80: =AND(SUBTOTAL(2,LeadTable[[#This Row],[RecordNo]]),LeadTable[[#This Row],[Type]]<>"") -> FALSE | AH80: =AND(SUBTOTAL(2,LeadTable[[#This Row],[RecordNo]]),LeadTable[[#This Row],[Status]]<>"") -> TRUE | AI80: =AND(SUBTOTAL(2,LeadTable[[#This Row],[RecordNo]]),LeadTable[[#This Row],[Source]]<>"") -> FALSE | AJ80: Phone 1 | AK80: Phone 2 | AL80: Phone 3 | AM80: Email 1 | AN80: Email 2 | AO80: Email 3 | AP80: Link1 | AQ80: Link2 | AR80: 2023-03-22
B81: 307 | C81: =ROW() -> 81 | D81: Debra Montgomery | G81: Personal | J81: deb.montgomery@yahoo.com | M81: (813) 405-5783 | P81: #609 11575 Memorial Parkway Sw | Q81: Huntsville | R81: AL | S81: 35803 | T81: Madison | X81: Ind. | Y81: Active | AB81: S:\Folders\Client Files\Debra Montgomery\ | AC81: =AND(SUBTOTAL(2,LeadTable[[#This Row],[RecordNo]]),LeadTable[[#This Row],[County]]<>"") -> TRUE | AD81: =AND(SUBTOTAL(2,LeadTable[[#This Row],[RecordNo]]),LeadTable[[#This Row],[City]]<>"") -> TRUE | AE81: =AND(SUBTOTAL(2,LeadTable[[#This Row],[RecordNo]]),LeadTable[[#This Row],[State]]<>"") -> TRUE | AF81: =AND(SUBTOTAL(2,LeadTable[[#This Row],[RecordNo]]),LeadTable[[#This Row],[Category]]<>"") -> TRUE | AG81: =AND(SUBTOTAL(2,LeadTable[[#This Row],[RecordNo]]),LeadTable[[#This Row],[Type]]<>"") -> TRUE | AH81: =AND(SUBTOTAL(2,LeadTable[[#This Row],[RecordNo]]),LeadTable[[#This Row],[Status]]<>"") -> TRUE | AI81: =AND(SUBTOTAL(2,LeadTable[[#This Row],[RecordNo]]),LeadTable[[#This Row],[Source]]<>"") -> FALSE | AJ81: Phone 1 | AK81: Phone 2 | AL81: Phone 3 | AM81: Email 1 | AN81: Email 2 | AO81: Email 3 | AP81: Link1 | AQ81: Link2 | AR81: 2023-03-22 | AS81: 2024-01-03T12:15:41
B82: 20230712123737 | C82: =ROW() -> 82 | D82: Denyse Rose | E82: IRS | G82: IRS | M82: (865) 385-4489 | N82: (877) 621-5121 | X82: Ind. | Y82: Active | AB82: S:\Folders\Client Files\Denyse Rose\ | AC82: =AND(SUBTOTAL(2,LeadTable[[#This Row],[RecordNo]]),LeadTable[[#This Row],[County]]<>"") -> FALSE | AD82: =AND(SUBTOTAL(2,LeadTable[[#This Row],[RecordNo]]),LeadTable[[#This Row],[City]]<>"") -> FALSE | AE82: =AND(SUBTOTAL(2,LeadTable[[#This Row],[RecordNo]]),LeadTable[[#This Row],[State]]<>"") -> FALSE | AF82: =AND(SUBTOTAL(2,LeadTable[[#This Row],[RecordNo]]),LeadTable[[#This Row],[Category]]<>"") -> TRUE | AG82: =AND(SUBTOTAL(2,LeadTable[[#This Row],[RecordNo]]),LeadTable[[#This Row],[Type]]<>"") -> TRUE | AH82: =AND(SUBTOTAL(2,LeadTable[[#This Row],[RecordNo]]),LeadTable[[#This Row],[Status]]<>"") -> TRUE | AI82: =AND(SUBTOTAL(2,LeadTable[[#This Row],[RecordNo]]),LeadTable[[#This Row],[Source]]<>"") -> FALSE | AJ82: Gov't Cell | AK82: Fax | AL82: Phone 3 | AM82: Email 1 | AN82: Email 2 | AO82: Email 3 | AP82: Link 1 | AQ82: Link 2 | AS82: 2023-07-31T14:41:21
B83: 309 | C83: =ROW() -> 83 | D83: Dilcia Nunez | G83: Personal | M83: (423) 284-3503 | X83: Ind. | Y83: Active | AB83: S:\Folders\Client Files\Dilcia Nunez\ | AC83: =AND(SUBTOTAL(2,LeadTable[[#This Row],[RecordNo]]),LeadTable[[#This Row],[County]]<>"") -> FALSE | AD83: =AND(SUBTOTAL(2,LeadTable[[#This Row],[RecordNo]]),LeadTable[[#This Row],[City]]<>"") -> FALSE | AE83: =AND(SUBTOTAL(2,LeadTable[[#This Row],[RecordNo]]),LeadTable[[#This Row],[State]]<>"") -> FALSE | AF83: =AND(SUBTOTAL(2,LeadTable[[#This Row],[RecordNo]]),LeadTable[[#This Row],[Category]]<>"") -> TRUE | AG83: =AND(SUBTOTAL(2,LeadTable[[#This Row],[RecordNo]]),LeadTable[[#This Row],[Type]]<>"") -> TRUE | AH83: =AND(SUBTOTAL(2,LeadTable[[#This Row],[RecordNo]]),LeadTable[[#This Row],[Status]]<>"") -> TRUE | AI83: =AND(SUBTOTAL(2,LeadTable[[#This Row],[RecordNo]]),LeadTable[[#This Row],[Source]]<>"") -> FALSE | AJ83: Phone 1 | AK83: Phone 2 | AL83: Phone 3 | AM83: Email 1 | AN83: Email 2 | AO83: Email 3 | AP83: Link1 | AQ83: Link2 | AR83: 2023-03-22
B84: 20240117130021 | C84: =ROW() -> 84 | D84: Domenick Lazzara | E84: DOM Law, PC | G84: Client | J84: dom@domlaw.com | M84: (305) 575-9463 | P84: 1509 W 890 S | Q84: Provo | R84: UT | S84: 84601 | T84: Utah | X84: Ind. | Y84: Active | Z84: domlaw.com | AB84: S:\Folders\Client Files\Domenick Lazzara\ | AC84: =AND(SUBTOTAL(2,LeadTable[[#This Row],[RecordNo]]),LeadTable[[#This Row],[County]]<>"") -> TRUE | AD84: =AND(SUBTOTAL(2,LeadTable[[#This Row],[RecordNo]]),LeadTable[[#This Row],[City]]<>"") -> TRUE | AE84: =AND(SUBTOTAL(2,LeadTable[[#This Row],[RecordNo]]),LeadTable[[#This Row],[State]]<>"") -> TRUE | AF84: =AND(SUBTOTAL(2,LeadTable[[#This Row],[RecordNo]]),LeadTable[[#This Row],[Category]]<>"") -> TRUE | AG84: =AND(SUBTOTAL(2,LeadTable[[#This Row],[RecordNo]]),LeadTable[[#This Row],[Type]]<>"") -> TRUE | AH84: =AND(SUBTOTAL(2,LeadTable[[#This Row],[RecordNo]]),LeadTable[[#This Row],[Status]]<>"") -> TRUE | AI84: =AND(SUBTOTAL(2,LeadTable[[#This Row],[RecordNo]]),LeadTable[[#This Row],[Source]]<>"") -> FALSE | AJ84: Phone 1 | AK84: Phone 2 | AL84: Phone 3 | AM84: Email 1 | AN84: Email 2 | AO84: Email 3 | AP84: Link 1 | AQ84: Link 2 | AR84: 2024-01-17 | AS84: 2024-01-31T17:31:16
B85: 311 | C85: =ROW() -> 85 | D85: Don Lemons | E85: Internal Revenue Service | G85: Gov. | J85: donald.lemons@irs.gov | M85: (423) 505-9145 | X85: Ind. | Y85: Active | AB85: S:\Folders\Client Files\Don Lemons\ | AC85: =AND(SUBTOTAL(2,LeadTable[[#This Row],[RecordNo]]),LeadTable[[#This Row],[County]]<>"") -> FALSE | AD85: =AND(SUBTOTAL(2,LeadTable[[#This Row],[RecordNo]]),LeadTable[[#This Row],[City]]<>"") -> FALSE | AE85: =AND(SUBTOTAL(2,LeadTable[[#This Row],[RecordNo]]),LeadTable[[#This Row],[State]]<>"") -> FALSE | AF85: =AND(SUBTOTAL(2,LeadTable[[#This Row],[RecordNo]]),LeadTable[[#This Row],[Category]]<>"") -> TRUE | AG85: =AND(SUBTOTAL(2,LeadTable[[#This Row],[RecordNo]]),LeadTable[[#This Row],[Type]]<>"") -> TRUE | AH85: =AND(SUBTOTAL(2,LeadTable[[#This Row],[RecordNo]]),LeadTable[[#This Row],[Status]]<>"") -> TRUE | AI85: =AND(SUBTOTAL(2,LeadTable[[#This Row],[RecordNo]]),LeadTable[[#This Row],[Source]]<>"") -> FALSE | AJ85: Phone 1 | AK85: Phone 2 | AL85: Phone 3 | AM85: Email 1 | AN85: Email 2 | AO85: Email 3 | AP85: Link1 | AQ85: Link2 | AR85: 2023-03-22
B86: 310 | C86: =ROW() -> 86 | D86: Don Provonsha | E86: Bcbs | G86: Medical | N86: (423) 463-7141 | X86: Ind. | Y86: Active | AB86: S:\Folders\Client Files\Don Provonsha\ | AC86: =AND(SUBTOTAL(2,LeadTable[[#This Row],[RecordNo]]),LeadTable[[#This Row],[County]]<>"") -> FALSE | AD86: =AND(SUBTOTAL(2,LeadTable[[#This Row],[RecordNo]]),LeadTable[[#This Row],[City]]<>"") -> FALSE | AE86: =AND(SUBTOTAL(2,LeadTable[[#This Row],[RecordNo]]),LeadTable[[#This Row],[State]]<>"") -> FALSE | AF86: =AND(SUBTOTAL(2,LeadTable[[#This Row],[RecordNo]]),LeadTable[[#This Row],[Category]]<>"") -> TRUE | AG86: =AND(SUBTOTAL(2,LeadTable[[#This Row],[RecordNo]]),LeadTable[[#This Row],[Type]]<>"") -> TRUE | AH86: =AND(SUBTOTAL(2,LeadTable[[#This Row],[RecordNo]]),LeadTable[[#This Row],[Status]]<>"") -> TRUE | AI86: =AND(SUBTOTAL(2,LeadTable[[#This Row],[RecordNo]]),LeadTable[[#This Row],[Source]]<>"") -> FALSE | AJ86: Phone 1 | AK86: Phone 2 | AL86: Phone 3 | AM86: Email 1 | AN86: Email 2 | AO86: Email 3 | AP86: Link1 | AQ86: Link2 | AR86: 2023-03-22
B87: 20230530110914 | C87: =ROW() -> 87 | D87: Donna B Walker CPA | E87: Walker & Cummings, Cpa's, Pllc | G87: Peer | J87: dbwalkercpa@aol.com | M87: (865) 984-5019 | P87: 402 S Washington St | Q87: Maryville | R87: TN | S87: 37804 | T87: Blount | X87: Ind. | Y87: Active | Z87: https://www.walkercummingscpas.com | AB87: S:\Folders\Client Files\Donna B Walker CPA\ | AC87: =AND(SUBTOTAL(2,LeadTable[[#This Row],[RecordNo]]),LeadTable[[#This Row],[County]]<>"") -> TRUE | AD87: =AND(SUBTOTAL(2,LeadTable[[#This Row],[RecordNo]]),LeadTable[[#This Row],[City]]<>"") -> TRUE | AE87: =AND(SUBTOTAL(2,LeadTable[[#This Row],[RecordNo]]),LeadTable[[#This Row],[State]]<>"") -> TRUE | AF87: =AND(SUBTOTAL(2,LeadTable[[#This Row],[RecordNo]]),LeadTable[[#This Row],[Category]]<>"") -> TRUE | AG87: =AND(SUBTOTAL(2,LeadTable[[#This Row],[RecordNo]]),LeadTable[[#This Row],[Type]]<>"") -> TRUE | AH87: =AND(SUBTOTAL(2,LeadTable[[#This Row],[RecordNo]]),LeadTable[[#This Row],[Status]]<>"") -> TRUE | AI87: =AND(SUBTOTAL(2,LeadTable[[#This Row],[RecordNo]]),LeadTable[[#This Row],[Source]]<>"") -> FALSE | AJ87: Phone 1 | AK87: Phone 2 | AL87: Phone 3 | AM87: Email 1 | AN87: Email 2 | AO87: Email 3 | AP87: Link1 | AQ87: Link2 | AR87: 2023-03-22 | AS87: 2023-12-04T15:24:25
B88: 314 | C88: =ROW() -> 88 | D88: Doug Bullington | G88: Personal | J88: briteblinds@bellsouth.net | X88: Ind. | Y88: Active | AB88: S:\Folders\Client Files\Doug Bullington\ | AC88: =AND(SUBTOTAL(2,LeadTable[[#This Row],[RecordNo]]),LeadTable[[#This Row],[County]]<>"") -> FALSE | AD88: =AND(SUBTOTAL(2,LeadTable[[#This Row],[RecordNo]]),LeadTable[[#This Row],[City]]<>"") -> FALSE | AE88: =AND(SUBTOTAL(2,LeadTable[[#This Row],[RecordNo]]),LeadTable[[#This Row],[State]]<>"") -> FALSE | AF88: =AND(SUBTOTAL(2,LeadTable[[#This Row],[RecordNo]]),LeadTable[[#This Row],[Category]]<>"") -> TRUE | AG88: =AND(SUBTOTAL(2,LeadTable[[#This Row],[RecordNo]]),LeadTable[[#This Row],[Type]]<>"") -> TRUE | AH88: =AND(SUBTOTAL(2,LeadTable[[#This Row],[RecordNo]]),LeadTable[[#This Row],[Status]]<>"") -> TRUE | AI88: =AND(SUBTOTAL(2,LeadTable[[#This Row],[RecordNo]]),LeadTable[[#This Row],[Source]]<>"") -> FALSE | AJ88: Phone 1 | AK88: Phone 2 | AL88: Phone 3 | AM88: Email 1 | AN88: Email 2 | AO88: Email 3 | AP88: Link1 | AQ88: Link2 | AR88: 2023-03-22
B89: 444 | C89: =ROW() -> 89 | D89: Dream Coat Painting Company | E89: J. Luke Smith | G89: Bus. | J89: dreamcoatpaintingcompany@gmail.com | M89: 4239946680 | X89: Bus. | Y89: Inactive | AB89: S:\Folders\Client Files\Dream Coat Painting Company\ | AC89: =AND(SUBTOTAL(2,LeadTable[[#This Row],[RecordNo]]),LeadTable[[#This Row],[County]]<>"") -> FALSE | AD89: =AND(SUBTOTAL(2,LeadTable[[#This Row],[RecordNo]]),LeadTable[[#This Row],[City]]<>"") -> FALSE | AE89: =AND(SUBTOTAL(2,LeadTable[[#This Row],[RecordNo]]),LeadTable[[#This Row],[State]]<>"") -> FALSE | AF89: =AND(SUBTOTAL(2,LeadTable[[#This Row],[RecordNo]]),LeadTable[[#This Row],[Category]]<>"") -> TRUE | AG89: =AND(SUBTOTAL(2,LeadTable[[#This Row],[RecordNo]]),LeadTable[[#This Row],[Type]]<>"") -> TRUE | AH89: =AND(SUBTOTAL(2,LeadTable[[#This Row],[RecordNo]]),LeadTable[[#This Row],[Status]]<>"") -> TRUE | AI89: =AND(SUBTOTAL(2,LeadTable[[#This Row],[RecordNo]]),LeadTable[[#This Row],[Source]]<>"") -> FALSE | AJ89: Phone 1 | AK89: Phone 2 | AL89: Phone 3 | AM89: Email 1 | AN89: Email 2 | AO89: Email 3 | AP89: Link1 | AQ89: Link2 | AR89: 2023-03-22
B90: 445 | C90: =ROW() -> 90 | D90: Edward Jones | G90: Bus. | M90: (423) 244-8000 | X90: Bus. | Y90: Inactive | AB90: S:\Folders\Client Files\Edward Jones\ | AC90: =AND(SUBTOTAL(2,LeadTable[[#This Row],[RecordNo]]),LeadTable[[#This Row],[County]]<>"") -> FALSE | AD90: =AND(SUBTOTAL(2,LeadTable[[#This Row],[RecordNo]]),LeadTable[[#This Row],[City]]<>"") -> FALSE | AE90: =AND(SUBTOTAL(2,LeadTable[[#This Row],[RecordNo]]),LeadTable[[#This Row],[State]]<>"") -> FALSE | AF90: =AND(SUBTOTAL(2,LeadTable[[#This Row],[RecordNo]]),LeadTable[[#This Row],[Category]]<>"") -> TRUE | AG90: =AND(SUBTOTAL(2,LeadTable[[#This Row],[RecordNo]]),LeadTable[[#This Row],[Type]]<>"") -> TRUE | AH90: =AND(SUBTOTAL(2,LeadTable[[#This Row],[RecordNo]]),LeadTable[[#This Row],[Status]]<>"") -> TRUE | AI90: =AND(SUBTOTAL(2,LeadTable[[#This Row],[RecordNo]]),LeadTable[[#This Row],[Source]]<>"") -> FALSE | AJ90: Phone 1 | AK90: Phone 2 | AL90: Phone 3 | AM90: Email 1 | AN90: Email 2 | AO90: Email 3 | AP90: Link1 | AQ90: Link2 | AR90: 2023-03-22
B91: 446 | C91: =ROW() -> 91 | D91: Enterprise Rent A Car | G91: Bus. | M91: (423) 899-2633 | X91: Bus. | Y91: Active | AB91: S:\Folders\Client Files\Enterprise Rent A Car\ | AC91: =AND(SUBTOTAL(2,LeadTable[[#This Row],[RecordNo]]),LeadTable[[#This Row],[County]]<>"") -> FALSE | AD91: =AND(SUBTOTAL(2,LeadTable[[#This Row],[RecordNo]]),LeadTable[[#This Row],[City]]<>"") -> FALSE | AE91: =AND(SUBTOTAL(2,LeadTable[[#This Row],[RecordNo]]),LeadTable[[#This Row],[State]]<>"") -> FALSE | AF91: =AND(SUBTOTAL(2,LeadTable[[#This Row],[RecordNo]]),LeadTable[[#This Row],[Category]]<>"") -> TRUE | AG91: =AND(SUBTOTAL(2,LeadTable[[#This Row],[RecordNo]]),LeadTable[[#This Row],[Type]]<>"") -> TRUE | AH91: =AND(SUBTOTAL(2,LeadTable[[#This Row],[RecordNo]]),LeadTable[[#This Row],[Status]]<>"") -> TRUE | AI91: =AND(SUBTOTAL(2,LeadTable[[#This Row],[RecordNo]]),LeadTable[[#This Row],[Source]]<>"") -> FALSE | AJ91: Phone 1 | AK91: Phone 2 | AL91: Phone 3 | AM91: Email 1 | AN91: Email 2 | AO91: Email 3 | AP91: Link1 | AQ91: Link2 | AR91: 2023-03-22
B92: 447 | C92: =ROW() -> 92 | D92: Epb | G92: Bus. | M92: (423) 648-1372 | X92: Bus. | Y92: Active | AB92: S:\Folders\Client Files\Epb\ | AC92: =AND(SUBTOTAL(2,LeadTable[[#This Row],[RecordNo]]),LeadTable[[#This Row],[County]]<>"") -> FALSE | AD92: =AND(SUBTOTAL(2,LeadTable[[#This Row],[RecordNo]]),LeadTable[[#This Row],[City]]<>"") -> FALSE | AE92: =AND(SUBTOTAL(2,LeadTable[[#This Row],[RecordNo]]),LeadTable[[#This Row],[State]]<>"") -> FALSE | AF92: =AND(SUBTOTAL(2,LeadTable[[#This Row],[RecordNo]]),LeadTable[[#This Row],[Category]]<>"") -> TRUE | AG92: =AND(SUBTOTAL(2,LeadTable[[#This Row],[RecordNo]]),LeadTable[[#This Row],[Type]]<>"") -> TRUE | AH92: =AND(SUBTOTAL(2,LeadTable[[#This Row],[RecordNo]]),LeadTable[[#This Row],[Status]]<>"") -> TRUE | AI92: =AND(SUBTOTAL(2,LeadTable[[#This Row],[RecordNo]]),LeadTable[[#This Row],[Source]]<>"") -> FALSE | AJ92: Phone 1 | AK92: Phone 2 | AL92: Phone 3 | AM92: Email 1 | AN92: Email 2 | AO92: Email 3 | AP92: Link1 | AQ92: Link2 | AR92: 2023-03-22
B93: 20231120144248 | C93: =ROW() -> 93 | D93: Erica Reindel Stark | E93: TAPP (Taxes, Accounting, Payroll, & Planning) | F93: Individuals, small business. financial advisor, payroll & bookkeeping. | G93: Peer | J93: info@tapp-financial.com | M93: (440) 885-3133 | P93: 7003 Pearl Rd #17 | Q93: Middleburg Hts | R93: OH | S93: 44130 | X93: Bus. | Y93: Active | Z93: https://www.tapp-financial.com/ | AB93: S:\Folders\Client Files\Erica Reindel Stark\ | AC93: =AND(SUBTOTAL(2,LeadTable[[#This Row],[RecordNo]]),LeadTable[[#This Row],[County]]<>"") -> FALSE | AD93: =AND(SUBTOTAL(2,LeadTable[[#This Row],[RecordNo]]),LeadTable[[#This Row],[City]]<>"") -> TRUE | AE93: =AND(SUBTOTAL(2,LeadTable[[#This Row],[RecordNo]]),LeadTable[[#This Row],[State]]<>"") -> TRUE | AF93: =AND(SUBTOTAL(2,LeadTable[[#This Row],[RecordNo]]),LeadTable[[#This Row],[Category]]<>"") -> TRUE | AG93: =AND(SUBTOTAL(2,LeadTable[[#This Row],[RecordNo]]),LeadTable[[#This Row],[Type]]<>"") -> TRUE | AH93: =AND(SUBTOTAL(2,LeadTable[[#This Row],[RecordNo]]),LeadTable[[#This Row],[Status]]<>"") -> TRUE | AI93: =AND(SUBTOTAL(2,LeadTable[[#This Row],[RecordNo]]),LeadTable[[#This Row],[Source]]<>"") -> FALSE | AJ93: Phone 1 | AK93: Phone 2 | AL93: Phone 3 | AM93: Email 1 | AN93: Email 2 | AO93: Email 3 | AP93: Link 1 | AQ93: Link 2 | AR93: 2023-11-20 | AS93: 2023-12-04T14:43:19
B94: 318 | C94: =ROW() -> 94 | D94: Erin Chung | G94: Personal | J94: ismellgood3@gmail.com | M94: (423) 443-2880 | N94: (423) 443-2880 | P94: 205 Margarita Dr | Q94: Killeen | R94: TX | S94: 76542 | T94: Bell | X94: Ind. | Y94: Active | AB94: S:\Folders\Client Files\Erin Chung\ | AC94: =AND(SUBTOTAL(2,LeadTable[[#This Row],[RecordNo]]),LeadTable[[#This Row],[County]]<>"") -> TRUE | AD94: =AND(SUBTOTAL(2,LeadTable[[#This Row],[RecordNo]]),LeadTable[[#This Row],[City]]<>"") -> TRUE | AE94: =AND(SUBTOTAL(2,LeadTable[[#This Row],[RecordNo]]),LeadTable[[#This Row],[State]]<>"") -> TRUE | AF94: =AND(SUBTOTAL(2,LeadTable[[#This Row],[RecordNo]]),LeadTable[[#This Row],[Category]]<>"") -> TRUE | AG94: =AND(SUBTOTAL(2,LeadTable[[#This Row],[RecordNo]]),LeadTable[[#This Row],[Type]]<>"") -> TRUE | AH94: =AND(SUBTOTAL(2,LeadTable[[#This Row],[RecordNo]]),LeadTable[[#This Row],[Status]]<>"") -> TRUE | AI94: =AND(SUBTOTAL(2,LeadTable[[#This Row],[RecordNo]]),LeadTable[[#This Row],[Source]]<>"") -> FALSE | AJ94: Phone 1 | AK94: Phone 2 | AL94: Phone 3 | AM94: Email 1 | AN94: Email 2 | AO94: Email 3 | AP94: Link1 | AQ94: Link2 | AR94: 2023-03-22 | AS94: 2023-07-19T13:16:44
B95: 20230912101224 | C95: =ROW() -> 95 | D95: Evonne Kautz | E95: 5-Star Holdings, Inc. | F95: From postcard mailing Sep 2023 | G95: Peer | I95: Other | J95: evonne@5-starinc.com | M95: (865) 208-0899 | N95: (865) 392-1755 | P95: 12568 Kingston Pike | Q95: Knoxville | R95: TN | S95: 37934 | T95: Knox | X95: Ind. | Y95: Active | AB95: S:\Folders\Client Files\Evonne Kautz\ | AC95: =AND(SUBTOTAL(2,LeadTable[[#This Row],[RecordNo]]),LeadTable[[#This Row],[County]]<>"") -> TRUE | AD95: =AND(SUBTOTAL(2,LeadTable[[#This Row],[RecordNo]]),LeadTable[[#This Row],[City]]<>"") -> TRUE | AE95: =AND(SUBTOTAL(2,LeadTable[[#This Row],[RecordNo]]),LeadTable[[#This Row],[State]]<>"") -> TRUE | AF95: =AND(SUBTOTAL(2,LeadTable[[#This Row],[RecordNo]]),LeadTable[[#This Row],[Category]]<>"") -> TRUE | AG95: =AND(SUBTOTAL(2,LeadTable[[#This Row],[RecordNo]]),LeadTable[[#This Row],[Type]]<>"") -> TRUE | AH95: =AND(SUBTOTAL(2,LeadTable[[#This Row],[RecordNo]]),LeadTable[[#This Row],[Status]]<>"") -> TRUE | AI95: =AND(SUBTOTAL(2,LeadTable[[#This Row],[RecordNo]]),LeadTable[[#This Row],[Source]]<>"") -> TRUE | AJ95: Phone 1 | AK95: Phone 2 | AL95: Phone 3 | AM95: Email 1 | AN95: Email 2 | AO95: Email 3 | AP95: Link 1 | AQ95: Link 2 | AR95: 2023-09-12 | AS95: 2024-01-30T14:47:02
B96: 20230927112923 | C96: =ROW() -> 96 | D96: Felicia V Linton | E96: Internal Revenue Service | G96: IRS | M96: (321) 253-7632 | N96: 4074631405 | X96: Ind. | Y96: Active | AB96: S:\Folders\Client Files\Felicia V Linton\ | AC96: =AND(SUBTOTAL(2,LeadTable[[#This Row],[RecordNo]]),LeadTable[[#This Row],[County]]<>"") -> FALSE | AD96: =AND(SUBTOTAL(2,LeadTable[[#This Row],[RecordNo]]),LeadTable[[#This Row],[City]]<>"") -> FALSE | AE96: =AND(SUBTOTAL(2,LeadTable[[#This Row],[RecordNo]]),LeadTable[[#This Row],[State]]<>"") -> FALSE | AF96: =AND(SUBTOTAL(2,LeadTable[[#This Row],[RecordNo]]),LeadTable[[#This Row],[Category]]<>"") -> TRUE | AG96: =AND(SUBTOTAL(2,LeadTable[[#This Row],[RecordNo]]),LeadTable[[#This Row],[Type]]<>"") -> TRUE | AH96: =AND(SUBTOTAL(2,LeadTable[[#This Row],[RecordNo]]),LeadTable[[#This Row],[Status]]<>"") -> TRUE | AI96: =AND(SUBTOTAL(2,LeadTable[[#This Row],[RecordNo]]),LeadTable[[#This Row],[Source]]<>"") -> FALSE | AJ96: Office | AK96: Gov't Cell | AL96: Phone 3 | AM96: Email 1 | AN96: Email 2 | AO96: Email 3 | AP96: Link 1 | AQ96: Link 2 | AR96: 2023-09-27 | AS96: 2023-09-27T11:29:40
B97: 448 | C97: =ROW() -> 97 | D97: Forcemanager | G97: Vendor | J97: support@forcemanager.net | X97: Bus. | Y97: Inactive | AB97: S:\Folders\Client Files\Forcemanager\ | AC97: =AND(SUBTOTAL(2,LeadTable[[#This Row],[RecordNo]]),LeadTable[[#This Row],[County]]<>"") -> FALSE | AD97: =AND(SUBTOTAL(2,LeadTable[[#This Row],[RecordNo]]),LeadTable[[#This Row],[City]]<>"") -> FALSE | AE97: =AND(SUBTOTAL(2,LeadTable[[#This Row],[RecordNo]]),LeadTable[[#This Row],[State]]<>"") -> FALSE | AF97: =AND(SUBTOTAL(2,LeadTable[[#This Row],[RecordNo]]),LeadTable[[#This Row],[Category]]<>"") -> TRUE | AG97: =AND(SUBTOTAL(2,LeadTable[[#This Row],[RecordNo]]),LeadTable[[#This Row],[Type]]<>"") -> TRUE | AH97: =AND(SUBTOTAL(2,LeadTable[[#This Row],[RecordNo]]),LeadTable[[#This Row],[Status]]<>"") -> TRUE | AI97: =AND(SUBTOTAL(2,LeadTable[[#This Row],[RecordNo]]),LeadTable[[#This Row],[Source]]<>"") -> FALSE | AJ97: Phone 1 | AK97: Phone 2 | AL97: Phone 3 | AM97: Email 1 | AN97: Email 2 | AO97: Email 3 | AP97: Link1 | AQ97: Link2 | AR97: 2023-03-22
B98: 450 | C98: =ROW() -> 98 | D98: Galen Medical | G98: Medical | M98: (423) 899-2904 | P98: Ste. 170 1238 Taft Hwy | Q98: Signal Mountain | R98: TN | S98: 37377 | T98: Hamilton | X98: Bus. | Y98: Active | AB98: S:\Folders\Client Files\Galen Medical\ | AC98: =AND(SUBTOTAL(2,LeadTable[[#This Row],[RecordNo]]),LeadTable[[#This Row],[County]]<>"") -> TRUE | AD98: =AND(SUBTOTAL(2,LeadTable[[#This Row],[RecordNo]]),LeadTable[[#This Row],[City]]<>"") -> TRUE | AE98: =AND(SUBTOTAL(2,LeadTable[[#This Row],[RecordNo]]),LeadTable[[#This Row],[State]]<>"") -> TRUE | AF98: =AND(SUBTOTAL(2,LeadTable[[#This Row],[RecordNo]]),LeadTable[[#This Row],[Category]]<>"") -> TRUE | AG98: =AND(SUBTOTAL(2,LeadTable[[#This Row],[RecordNo]]),LeadTable[[#This Row],[Type]]<>"") -> TRUE | AH98: =AND(SUBTOTAL(2,LeadTable[[#This Row],[RecordNo]]),LeadTable[[#This Row],[Status]]<>"") -> TRUE | AI98: =AND(SUBTOTAL(2,LeadTable[[#This Row],[RecordNo]]),LeadTable[[#This Row],[Source]]<>"") -> FALSE | AJ98: Phone 1 | AK98: Phone 2 | AL98: Phone 3 | AM98: Email 1 | AN98: Email 2 | AO98: Email 3 | AP98: Link1 | AQ98: Link2 | AR98: 2023-03-22
B99: 451 | C99: =ROW() -> 99 | D99: Galen Mountain View Medicine | G99: Medical | M99: (423) 551-3562 | P99: 9309 Alison Pike | Q99: Ooltewah | R99: TN | S99: 37363 | T99: Hamilton | X99: Bus. | Y99: Active | AB99: S:\Folders\Client Files\Galen Mountain View Medicine\ | AC99: =AND(SUBTOTAL(2,LeadTable[[#This Row],[RecordNo]]),LeadTable[[#This Row],[County]]<>"") -> TRUE | AD99: =AND(SUBTOTAL(2,LeadTable[[#This Row],[RecordNo]]),LeadTable[[#This Row],[City]]<>"") -> TRUE | AE99: =AND(SUBTOTAL(2,LeadTable[[#This Row],[RecordNo]]),LeadTable[[#This Row],[State]]<>"") -> TRUE | AF99: =AND(SUBTOTAL(2,LeadTable[[#This Row],[RecordNo]]),LeadTable[[#This Row],[Category]]<>"") -> TRUE | AG99: =AND(SUBTOTAL(2,LeadTable[[#This Row],[RecordNo]]),LeadTable[[#This Row],[Type]]<>"") -> TRUE | AH99: =AND(SUBTOTAL(2,LeadTable[[#This Row],[RecordNo]]),LeadTable[[#This Row],[Status]]<>"") -> TRUE | AI99: =AND(SUBTOTAL(2,LeadTable[[#This Row],[RecordNo]]),LeadTable[[#This Row],[Source]]<>"") -> FALSE | AJ99: Phone 1 | AK99: Phone 2 | AL99: Phone 3 | AM99: Email 1 | AN99: Email 2 | AO99: Email 3 | AP99: Link1 | AQ99: Link2 | AR99: 2023-03-22
B100: 452 | C100: =ROW() -> 100 | D100: Gary Hyde Cpa | G100: Peer | M100: 4237156462 | P100: 415 S White St | Q100: Athens | R100: TN | S100: 37371 | T100: Mcminn | X100: Bus. | Y100: Inactive | AB100: S:\Folders\Client Files\Gary Hyde Cpa\ | AC100: =AND(SUBTOTAL(2,LeadTable[[#This Row],[RecordNo]]),LeadTable[[#This Row],[County]]<>"") -> TRUE | AD100: =AND(SUBTOTAL(2,LeadTable[[#This Row],[RecordNo]]),LeadTable[[#This Row],[City]]<>"") -> TRUE | AE100: =AND(SUBTOTAL(2,LeadTable[[#This Row],[RecordNo]]),LeadTable[[#This Row],[State]]<>"") -> TRUE | AF100: =AND(SUBTOTAL(2,LeadTable[[#This Row],[RecordNo]]),LeadTable[[#This Row],[Category]]<>"") -> TRUE | AG100: =AND(SUBTOTAL(2,LeadTable[[#This Row],[RecordNo]]),LeadTable[[#This Row],[Type]]<>"") -> TRUE | AH100: =AND(SUBTOTAL(2,LeadTable[[#This Row],[RecordNo]]),LeadTable[[#This Row],[Status]]<>"") -> TRUE | AI100: =AND(SUBTOTAL(2,LeadTable[[#This Row],[RecordNo]]),LeadTable[[#This Row],[Source]]<>"") -> FALSE | AJ100: Phone 1 | AK100: Phone 2 | AL100: Phone 3 | AM100: Email 1 | AN100: Email 2 | AO100: Email 3 | AP100: Link1 | AQ100: Link2 | AR100: 2023-03-22 | AS100: 2023-12-04T14:59:28
B101: 321 | C101: =ROW() -> 101 | D101: Gary Simon | G101: Personal | X101: Ind. | Y101: Active | AB101: S:\Folders\Client Files\Gary Simon\ | AC101: =AND(SUBTOTAL(2,LeadTable[[#This Row],[RecordNo]]),LeadTable[[#This Row],[County]]<>"") -> FALSE | AD101: =AND(SUBTOTAL(2,LeadTable[[#This Row],[RecordNo]]),LeadTable[[#This Row],[City]]<>"") -> FALSE | AE101: =AND(SUBTOTAL(2,LeadTable[[#This Row],[RecordNo]]),LeadTable[[#This Row],[State]]<>"") -> FALSE | AF101: =AND(SUBTOTAL(2,LeadTable[[#This Row],[RecordNo]]),LeadTable[[#This Row],[Category]]<>"") -> TRUE | AG101: =AND(SUBTOTAL(2,LeadTable[[#This Row],[RecordNo]]),LeadTable[[#This Row],[Type]]<>"") -> TRUE | AH101: =AND(SUBTOTAL(2,LeadTable[[#This Row],[RecordNo]]),LeadTable[[#This Row],[Status]]<>"") -> TRUE | AI101: =AND(SUBTOTAL(2,LeadTable[[#This Row],[RecordNo]]),LeadTable[[#This Row],[Source]]<>"") -> FALSE | AJ101: Phone 1 | AK101: Phone 2 | AL101: Phone 3 | AM101: Email 1 | AN101: Email 2 | AO101: Email 3 | AP101: Link1 | AQ101: Link2 | AR101: 2023-03-22
B102: 322 | C102: =ROW() -> 102 | D102: George Cupp | G102: Personal | J102: george_cupp@comcast.net | M102: (423) 894-0202 | N102: (423) 432-8296 | X102: Ind. | Y102: Active | AB102: S:\Folders\Client Files\George Cupp\ | AC102: =AND(SUBTOTAL(2,LeadTable[[#This Row],[RecordNo]]),LeadTable[[#This Row],[County]]<>"") -> FALSE | AD102: =AND(SUBTOTAL(2,LeadTable[[#This Row],[RecordNo]]),LeadTable[[#This Row],[City]]<>"") -> FALSE | AE102: =AND(SUBTOTAL(2,LeadTable[[#This Row],[RecordNo]]),LeadTable[[#This Row],[State]]<>"") -> FALSE | AF102: =AND(SUBTOTAL(2,LeadTable[[#This Row],[RecordNo]]),LeadTable[[#This Row],[Category]]<>"") -> TRUE | AG102: =AND(SUBTOTAL(2,LeadTable[[#This Row],[RecordNo]]),LeadTable[[#This Row],[Type]]<>"") -> TRUE | AH102: =AND(SUBTOTAL(2,LeadTable[[#This Row],[RecordNo]]),LeadTable[[#This Row],[Status]]<>"") -> TRUE | AI102: =AND(SUBTOTAL(2,LeadTable[[#This Row],[RecordNo]]),LeadTable[[#This Row],[Source]]<>"") -> FALSE | AJ102: Phone 1 | AK102: Phone 2 | AL102: Phone 3 | AM102: Email 1 | AN102: Email 2 | AO102: Email 3 | AP102: Link1 | AQ102: Link2 | AR102: 2023-03-22
B103: 323 | C103: =ROW() -> 103 | D103: George Levy | G103: Personal | J103: george@georgeplease.com | N103: (248) 895-1704 | X103: Ind. | Y103: Active | AB103: S:\Folders\Client Files\George Levy\ | AC103: =AND(SUBTOTAL(2,LeadTable[[#This Row],[RecordNo]]),LeadTable[[#This Row],[County]]<>"") -> FALSE | AD103: =AND(SUBTOTAL(2,LeadTable[[#This Row],[RecordNo]]),LeadTable[[#This Row],[City]]<>"") -> FALSE | AE103: =AND(SUBTOTAL(2,LeadTable[[#This Row],[RecordNo]]),LeadTable[[#This Row],[State]]<>"") -> FALSE | AF103: =AND(SUBTOTAL(2,LeadTable[[#This Row],[RecordNo]]),LeadTable[[#This Row],[Category]]<>"") -> TRUE | AG103: =AND(SUBTOTAL(2,LeadTable[[#This Row],[RecordNo]]),LeadTable[[#This Row],[Type]]<>"") -> TRUE | AH103: =AND(SUBTOTAL(2,LeadTable[[#This Row],[RecordNo]]),LeadTable[[#This Row],[Status]]<>"") -> TRUE | AI103: =AND(SUBTOTAL(2,LeadTable[[#This Row],[RecordNo]]),LeadTable[[#This Row],[Source]]<>"") -> FALSE | AJ103: Phone 1 | AK103: Phone 2 | AL103: Phone 3 | AM103: Email 1 | AN103: Email 2 | AO103: Email 3 | AP103: Link1 | AQ103: Link2 | AR103: 2023-03-22
B104: 20230706194649 | C104: =ROW() -> 104 | D104: GetNetSet | G104: Vendor | J104: support@getnetset.com | M104: (207) 420-8535 | X104: Bus. | Y104: Active | Z104: getnetset.com | AB104: S:\Folders\Client Files\GetNetSet\ | AC104: =AND(SUBTOTAL(2,LeadTable[[#This Row],[RecordNo]]),LeadTable[[#This Row],[County]]<>"") -> FALSE | AD104: =AND(SUBTOTAL(2,LeadTable[[#This Row],[RecordNo]]),LeadTable[[#This Row],[City]]<>"") -> FALSE | AE104: =AND(SUBTOTAL(2,LeadTable[[#This Row],[RecordNo]]),LeadTable[[#This Row],[State]]<>"") -> FALSE | AF104: =AND(SUBTOTAL(2,LeadTable[[#This Row],[RecordNo]]),LeadTable[[#This Row],[Category]]<>"") -> TRUE | AG104: =AND(SUBTOTAL(2,LeadTable[[#This Row],[RecordNo]]),LeadTable[[#This Row],[Type]]<>"") -> TRUE | AH104: =AND(SUBTOTAL(2,LeadTable[[#This Row],[RecordNo]]),LeadTable[[#This Row],[Status]]<>"") -> TRUE | AI104: =AND(SUBTOTAL(2,LeadTable[[#This Row],[RecordNo]]),LeadTable[[#This Row],[Source]]<>"") -> FALSE | AJ104: Phone 1 | AK104: Phone 2 | AL104: Phone 3 | AM104: Email 1 | AN104: Email 2 | AO104: Email 3 | AP104: Link 1 | AQ104: Link 2 | AS104: 2023-07-06T19:46:49
B105: 324 | C105: =ROW() -> 105 | D105: Ginger Stelling | G105: Personal | J105: gingerstelling@comcast.net | M105: (404) 376-5314 | X105: Ind. | Y105: Inactive | AB105: S:\Folders\Client Files\Ginger Stelling\ | AC105: =AND(SUBTOTAL(2,LeadTable[[#This Row],[RecordNo]]),LeadTable[[#This Row],[County]]<>"") -> FALSE | AD105: =AND(SUBTOTAL(2,LeadTable[[#This Row],[RecordNo]]),LeadTable[[#This Row],[City]]<>"") -> FALSE | AE105: =AND(SUBTOTAL(2,LeadTable[[#This Row],[RecordNo]]),LeadTable[[#This Row],[State]]<>"") -> FALSE | AF105: =AND(SUBTOTAL(2,LeadTable[[#This Row],[RecordNo]]),LeadTable[[#This Row],[Category]]<>"") -> TRUE | AG105: =AND(SUBTOTAL(2,LeadTable[[#This Row],[RecordNo]]),LeadTable[[#This Row],[Type]]<>"") -> TRUE | AH105: =AND(SUBTOTAL(2,LeadTable[[#This Row],[RecordNo]]),LeadTable[[#This Row],[Status]]<>"") -> TRUE | AI105: =AND(SUBTOTAL(2,LeadTable[[#This Row],[RecordNo]]),LeadTable[[#This Row],[Source]]<>"") -> FALSE | AJ105: Phone 1 | AK105: Phone 2 | AL105: Phone 3 | AM105: Email 1 | AN105: Email 2 | AO105: Email 3 | AP105: Link1 | AQ105: Link2 | AR105: 2023-03-22
B106: 20230712123123 | C106: =ROW() -> 106 | D106: Global Protective Services | E106: Curtis L Greene | G106: Client | I106: NFTL | P106: 9301 Ocoee St 64 | Q106: Chattanooga | R106: TN | S106: 37363 | T106: Hamilton | X106: Bus. | Y106: Inactive | AB106: S:\Folders\Client Files\Global Protective Services\ | AC106: =AND(SUBTOTAL(2,LeadTable[[#This Row],[RecordNo]]),LeadTable[[#This Row],[County]]<>"") -> TRUE | AD106: =AND(SUBTOTAL(2,LeadTable[[#This Row],[RecordNo]]),LeadTable[[#This Row],[City]]<>"") -> TRUE | AE106: =AND(SUBTOTAL(2,LeadTable[[#This Row],[RecordNo]]),LeadTable[[#This Row],[State]]<>"") -> TRUE | AF106: =AND(SUBTOTAL(2,LeadTable[[#This Row],[RecordNo]]),LeadTable[[#This Row],[Category]]<>"") -> TRUE | AG106: =AND(SUBTOTAL(2,LeadTable[[#This Row],[RecordNo]]),LeadTable[[#This Row],[Type]]<>"") -> TRUE | AH106: =AND(SUBTOTAL(2,LeadTable[[#This Row],[RecordNo]]),LeadTable[[#This Row],[Status]]<>"") -> TRUE | AI106: =AND(SUBTOTAL(2,LeadTable[[#This Row],[RecordNo]]),LeadTable[[#This Row],[Source]]<>"") -> TRUE | AJ106: Phone 1 | AK106: Phone 2 | AL106: Phone 3 | AM106: Email 1 | AN106: Email 2 | AO106: Email 3 | AP106: Link 1 | AQ106: Link 2 | AS106: 2023-09-18T11:05:02 | AT106: 10 | AU106: BiWeekly | AW106: Monthly
B107: 326 | C107: =ROW() -> 107 | D107: Grandma | G107: Personal | J107: grandma@shrydvd.com | M107: (423) 290-2811 | X107: Ind. | Y107: Inactive | AB107: S:\Folders\Client Files\Grandma \ | AC107: =AND(SUBTOTAL(2,LeadTable[[#This Row],[RecordNo]]),LeadTable[[#This Row],[County]]<>"") -> FALSE | AD107: =AND(SUBTOTAL(2,LeadTable[[#This Row],[RecordNo]]),LeadTable[[#This Row],[City]]<>"") -> FALSE | AE107: =AND(SUBTOTAL(2,LeadTable[[#This Row],[RecordNo]]),LeadTable[[#This Row],[State]]<>"") -> FALSE | AF107: =AND(SUBTOTAL(2,LeadTable[[#This Row],[RecordNo]]),LeadTable[[#This Row],[Category]]<>"") -> TRUE | AG107: =AND(SUBTOTAL(2,LeadTable[[#This Row],[RecordNo]]),LeadTable[[#This Row],[Type]]<>"") -> TRUE | AH107: =AND(SUBTOTAL(2,LeadTable[[#This Row],[RecordNo]]),LeadTable[[#This Row],[Status]]<>"") -> TRUE | AI107: =AND(SUBTOTAL(2,LeadTable[[#This Row],[RecordNo]]),LeadTable[[#This Row],[Source]]<>"") -> FALSE | AJ107: Phone 1 | AK107: Phone 2 | AL107: Phone 3 | AM107: Email 1 | AN107: Email 2 | AO107: Email 3 | AP107: Link1 | AQ107: Link2 | AR107: 2023-03-22
B108: 20230530124722 | C108: =ROW() -> 108 | D108: Greg Baker CPA | G108: Peer | M108: (865) 983-9000 | O108: (865) 983-0455 | P108: 1713 E Broadway Ave | Q108: Maryville | R108: TN | S108: 37804 | T108: Blount | X108: Bus. | Y108: Active | Z108: http://gregbakercpa.business.site | AB108: S:\Folders\Client Files\Greg Baker CPA\ | AC108: =AND(SUBTOTAL(2,LeadTable[[#This Row],[RecordNo]]),LeadTable[[#This Row],[County]]<>"") -> TRUE | AD108: =AND(SUBTOTAL(2,LeadTable[[#This Row],[RecordNo]]),LeadTable[[#This Row],[City]]<>"") -> TRUE | AE108: =AND(SUBTOTAL(2,LeadTable[[#This Row],[RecordNo]]),LeadTable[[#This Row],[State]]<>"") -> TRUE | AF108: =AND(SUBTOTAL(2,LeadTable[[#This Row],[RecordNo]]),LeadTable[[#This Row],[Category]]<>"") -> TRUE | AG108: =AND(SUBTOTAL(2,LeadTable[[#This Row],[RecordNo]]),LeadTable[[#This Row],[Type]]<>"") -> TRUE | AH108: =AND(SUBTOTAL(2,LeadTable[[#This Row],[RecordNo]]),LeadTable[[#This Row],[Status]]<>"") -> TRUE | AI108: =AND(SUBTOTAL(2,LeadTable[[#This Row],[RecordNo]]),LeadTable[[#This Row],[Source]]<>"") -> FALSE | AJ108: Phone 1 | AK108: Phone 2 | AL108: Fax | AM108: Email 1 | AN108: Email 2 | AO108: Email 3 | AP108: Link 1 | AQ108: Link 2 | AR108: 2023-03-22 | AS108: 2023-12-04T14:56:33
B109: 327 | C109: =ROW() -> 109 | D109: Greg Gates | G109: Personal | J109: gmgates64@canoemail.com | M109: (305) 563-0610 | X109: Ind. | Y109: Active | AB109: S:\Folders\Client Files\Greg Gates\ | AC109: =AND(SUBTOTAL(2,LeadTable[[#This Row],[RecordNo]]),LeadTable[[#This Row],[County]]<>"") -> FALSE | AD109: =AND(SUBTOTAL(2,LeadTable[[#This Row],[RecordNo]]),LeadTable[[#This Row],[City]]<>"") -> FALSE | AE109: =AND(SUBTOTAL(2,LeadTable[[#This Row],[RecordNo]]),LeadTable[[#This Row],[State]]<>"") -> FALSE | AF109: =AND(SUBTOTAL(2,LeadTable[[#This Row],[RecordNo]]),LeadTable[[#This Row],[Category]]<>"") -> TRUE | AG109: =AND(SUBTOTAL(2,LeadTable[[#This Row],[RecordNo]]),LeadTable[[#This Row],[Type]]<>"") -> TRUE | AH109: =AND(SUBTOTAL(2,LeadTable[[#This Row],[RecordNo]]),LeadTable[[#This Row],[Status]]<>"") -> TRUE | AI109: =AND(SUBTOTAL(2,LeadTable[[#This Row],[RecordNo]]),LeadTable[[#This Row],[Source]]<>"") -> FALSE | AJ109: Phone 1 | AK109: Phone 2 | AL109: Phone 3 | AM109: Email 1 | AN109: Email 2 | AO109: Email 3 | AP109: Link1 | AQ109: Link2 | AR109: 2023-03-22
B110: 20231104172137 | C110: =ROW() -> 110 | D110: Greg Zumbach | F110: Replied to my request for contacts in FB Group: The Entrepreneurial Accountants Specializes in Assisted/Independent Living Centers, farming & construction | G110: Peer | J110: greg.zumbach@team-cpa.com | M110: (319) 361-3124 | Q110: Gilbertville | R110: IA | X110: Bus. | Y110: Active | AB110: S:\Folders\Client Files\Greg Zumbach\ | AC110: =AND(SUBTOTAL(2,LeadTable[[#This Row],[RecordNo]]),LeadTable[[#This Row],[County]]<>"") -> FALSE | AD110: =AND(SUBTOTAL(2,LeadTable[[#This Row],[RecordNo]]),LeadTable[[#This Row],[City]]<>"") -> TRUE | AE110: =AND(SUBTOTAL(2,LeadTable[[#This Row],[RecordNo]]),LeadTable[[#This Row],[State]]<>"") -> TRUE | AF110: =AND(SUBTOTAL(2,LeadTable[[#This Row],[RecordNo]]),LeadTable[[#This Row],[Category]]<>"") -> TRUE | AG110: =AND(SUBTOTAL(2,LeadTable[[#This Row],[RecordNo]]),LeadTable[[#This Row],[Type]]<>"") -> TRUE | AH110: =AND(SUBTOTAL(2,LeadTable[[#This Row],[RecordNo]]),LeadTable[[#This Row],[Status]]<>"") -> TRUE | AI110: =AND(SUBTOTAL(2,LeadTable[[#This Row],[RecordNo]]),LeadTable[[#This Row],[Source]]<>"") -> FALSE | AJ110: Phone 1 | AK110: Phone 2 | AL110: Phone 3 | AM110: Email 1 | AN110: Email 2 | AO110: Email 3 | AP110: Link 1 | AQ110: Link 2 | AR110: 2023-11-04 | AS110: 2023-12-04T15:25:37
B111: 328 | C111: =ROW() -> 111 | D111: Gregory Murray | G111: Personal | J111: gregmurr1@yahoo.com | M111: (423) 595-1970 | P111: 6026 Morning Glory Dr | Q111: Harrison | R111: TN | S111: 37341 | T111: Hamilton | X111: Ind. | Y111: Active | AB111: S:\Folders\Client Files\Gregory Murray\ | AC111: =AND(SUBTOTAL(2,LeadTable[[#This Row],[RecordNo]]),LeadTable[[#This Row],[County]]<>"") -> TRUE | AD111: =AND(SUBTOTAL(2,LeadTable[[#This Row],[RecordNo]]),LeadTable[[#This Row],[City]]<>"") -> TRUE | AE111: =AND(SUBTOTAL(2,LeadTable[[#This Row],[RecordNo]]),LeadTable[[#This Row],[State]]<>"") -> TRUE | AF111: =AND(SUBTOTAL(2,LeadTable[[#This Row],[RecordNo]]),LeadTable[[#This Row],[Category]]<>"") -> TRUE | AG111: =AND(SUBTOTAL(2,LeadTable[[#This Row],[RecordNo]]),LeadTable[[#This Row],[Type]]<>"") -> TRUE | AH111: =AND(SUBTOTAL(2,LeadTable[[#This Row],[RecordNo]]),LeadTable[[#This Row],[Status]]<>"") -> TRUE | AI111: =AND(SUBTOTAL(2,LeadTable[[#This Row],[RecordNo]]),LeadTable[[#This Row],[Source]]<>"") -> FALSE | AJ111: Phone 1 | AK111: Phone 2 | AL111: Phone 3 | AM111: Email 1 | AN111: Email 2 | AO111: Email 3 | AP111: Link1 | AQ111: Link2 | AR111: 2023-03-22
B112: 20230509145625 | C112: =ROW() -> 112 | D112: Hamilton County Register Of Deeds | G112: Vendor | M112: (423) 209-6560 | P112: 625 Georgia Avenue | Q112: Chattanooga | R112: TN | S112: 37402 | T112: Hamilton | AB112: S:\Folders\Client Files\Hamilton County Register Of Deeds\ | AC112: =AND(SUBTOTAL(2,LeadTable[[#This Row],[RecordNo]]),LeadTable[[#This Row],[County]]<>"") -> TRUE | AD112: =AND(SUBTOTAL(2,LeadTable[[#This Row],[RecordNo]]),LeadTable[[#This Row],[City]]<>"") -> TRUE | AE112: =AND(SUBTOTAL(2,LeadTable[[#This Row],[RecordNo]]),LeadTable[[#This Row],[State]]<>"") -> TRUE | AF112: =AND(SUBTOTAL(2,LeadTable[[#This Row],[RecordNo]]),LeadTable[[#This Row],[Category]]<>"") -> TRUE | AG112: =AND(SUBTOTAL(2,LeadTable[[#This Row],[RecordNo]]),LeadTable[[#This Row],[Type]]<>"") -> FALSE | AH112: =AND(SUBTOTAL(2,LeadTable[[#This Row],[RecordNo]]),LeadTable[[#This Row],[Status]]<>"") -> FALSE | AI112: =AND(SUBTOTAL(2,LeadTable[[#This Row],[RecordNo]]),LeadTable[[#This Row],[Source]]<>"") -> FALSE | AJ112: Phone 1 | AK112: Phone 2 | AL112: Phone 3 | AM112: Email 1 | AN112: Email 2 | AO112: Email 3 | AP112: Link1 | AQ112: Link2 | AR112: 2023-03-22 | AS112: 2023-10-28T10:45:38
B113: 453 | C113: =ROW() -> 113 | D113: Harrison Family Dentistry | G113: Medical | J113: info@harrisonfamilydentistry.com | M113: (423) 388-3562 | N113: (423) 344-3884 | P113: 5707 Hwy 58 | Q113: Harrison | R113: TN | S113: 37341 | T113: Hamilton | X113: Bus. | Y113: Active | AB113: S:\Folders\Client Files\Harrison Family Dentistry\ | AC113: =AND(SUBTOTAL(2,LeadTable[[#This Row],[RecordNo]]),LeadTable[[#This Row],[County]]<>"") -> TRUE | AD113: =AND(SUBTOTAL(2,LeadTable[[#This Row],[RecordNo]]),LeadTable[[#This Row],[City]]<>"") -> TRUE | AE113: =AND(SUBTOTAL(2,LeadTable[[#This Row],[RecordNo]]),LeadTable[[#This Row],[State]]<>"") -> TRUE | AF113: =AND(SUBTOTAL(2,LeadTable[[#This Row],[RecordNo]]),LeadTable[[#This Row],[Category]]<>"") -> TRUE | AG113: =AND(SUBTOTAL(2,LeadTable[[#This Row],[RecordNo]]),LeadTable[[#This Row],[Type]]<>"") -> TRUE | AH113: =AND(SUBTOTAL(2,LeadTable[[#This Row],[RecordNo]]),LeadTable[[#This Row],[Status]]<>"") -> TRUE | AI113: =AND(SUBTOTAL(2,LeadTable[[#This Row],[RecordNo]]),LeadTable[[#This Row],[Source]]<>"") -> FALSE | AJ113: Phone 1 | AK113: Phone 2 | AL113: Phone 3 | AM113: Email 1 | AN113: Email 2 | AO113: Email 3 | AP113: Link1 | AQ113: Link2 | AR113: 2023-03-22
B114: 330 | C114: =ROW() -> 114 | D114: Henry Chung | G114: Personal | N114: (931) 401-2311 | X114: Ind. | Y114: Active | AB114: S:\Folders\Client Files\Henry Chung\ | AC114: =AND(SUBTOTAL(2,LeadTable[[#This Row],[RecordNo]]),LeadTable[[#This Row],[County]]<>"") -> FALSE | AD114: =AND(SUBTOTAL(2,LeadTable[[#This Row],[RecordNo]]),LeadTable[[#This Row],[City]]<>"") -> FALSE | AE114: =AND(SUBTOTAL(2,LeadTable[[#This Row],[RecordNo]]),LeadTable[[#This Row],[State]]<>"") -> FALSE | AF114: =AND(SUBTOTAL(2,LeadTable[[#This Row],[RecordNo]]),LeadTable[[#This Row],[Category]]<>"") -> TRUE | AG114: =AND(SUBTOTAL(2,LeadTable[[#This Row],[RecordNo]]),LeadTable[[#This Row],[Type]]<>"") -> TRUE | AH114: =AND(SUBTOTAL(2,LeadTable[[#This Row],[RecordNo]]),LeadTable[[#This Row],[Status]]<>"") -> TRUE | AI114: =AND(SUBTOTAL(2,LeadTable[[#This Row],[RecordNo]]),LeadTable[[#This Row],[Source]]<>"") -> FALSE | AJ114: Phone 1 | AK114: Phone 2 | AL114: Phone 3 | AM114: Email 1 | AN114: Email 2 | AO114: Email 3 | AP114: Link1 | AQ114: Link2 | AR114: 2023-03-22
B115: 20231104170113 | C115: =ROW() -> 115 | D115: Honore Ndondjie | E115: FIDELUIS TAX & ADVISORY | F115: Specializes in International Tax Replied to my request for contacts in FB Group: The Entrepreneurial Accountants | G115: Peer | J115: fideluisllc@gmail.com | M115: (774) 641-7279 | Q115: Charlotte | R115: NC | X115: Bus. | Y115: Active | Z115: https://fideluistax.com/ | AB115: S:\Folders\Client Files\Honore Ndondjie\ | AC115: =AND(SUBTOTAL(2,LeadTable[[#This Row],[RecordNo]]),LeadTable[[#This Row],[County]]<>"") -> FALSE | AD115: =AND(SUBTOTAL(2,LeadTable[[#This Row],[RecordNo]]),LeadTable[[#This Row],[City]]<>"") -> TRUE | AE115: =AND(SUBTOTAL(2,LeadTable[[#This Row],[RecordNo]]),LeadTable[[#This Row],[State]]<>"") -> TRUE | AF115: =AND(SUBTOTAL(2,LeadTable[[#This Row],[RecordNo]]),LeadTable[[#This Row],[Category]]<>"") -> TRUE | AG115: =AND(SUBTOTAL(2,LeadTable[[#This Row],[RecordNo]]),LeadTable[[#This Row],[Type]]<>"") -> TRUE | AH115: =AND(SUBTOTAL(2,LeadTable[[#This Row],[RecordNo]]),LeadTable[[#This Row],[Status]]<>"") -> TRUE | AI115: =AND(SUBTOTAL(2,LeadTable[[#This Row],[RecordNo]]),LeadTable[[#This Row],[Source]]<>"") -> FALSE | AJ115: Phone 1 | AK115: Phone 2 | AL115: Phone 3 | AM115: Email 1 | AN115: Email 2 | AO115: Email 3 | AP115: Link 1 | AQ115: Link 2 | AR115: 2023-11-04 | AS115: 2023-12-04T14:57:13
B116: 20240111150050 | C116: =ROW() -> 116 | D116: Horticulture Equipment and Services LLC | E116: Alan Rowe | G116: Client | J116: ARowe@HortEquipment.com | M116: (931) 607-4170 | N116: (931) 563-2377 | O116: (931) 649-3293 | P116: 3390 Spring Creek Rd. | Q116: Estill Springs | R116: TN | S116: 37330 | T116: Franklin | X116: Bus. | Y116: Active | Z116: http://www.hortequipment.com/ | AB116: S:\Folders\Client Files\Horticulture Equipment and Services LLC\ | AC116: =AND(SUBTOTAL(2,LeadTable[[#This Row],[RecordNo]]),LeadTable[[#This Row],[County]]<>"") -> TRUE | AD116: =AND(SUBTOTAL(2,LeadTable[[#This Row],[RecordNo]]),LeadTable[[#This Row],[City]]<>"") -> TRUE | AE116: =AND(SUBTOTAL(2,LeadTable[[#This Row],[RecordNo]]),LeadTable[[#This Row],[State]]<>"") -> TRUE | AF116: =AND(SUBTOTAL(2,LeadTable[[#This Row],[RecordNo]]),LeadTable[[#This Row],[Category]]<>"") -> TRUE | AG116: =AND(SUBTOTAL(2,LeadTable[[#This Row],[RecordNo]]),LeadTable[[#This Row],[Type]]<>"") -> TRUE | AH116: =AND(SUBTOTAL(2,LeadTable[[#This Row],[RecordNo]]),LeadTable[[#This Row],[Status]]<>"") -> TRUE | AI116: =AND(SUBTOTAL(2,LeadTable[[#This Row],[RecordNo]]),LeadTable[[#This Row],[Source]]<>"") -> FALSE | AJ116: Phone 1 | AK116: Phone 2 | AL116: Phone 3 | AM116: Email 1 | AN116: Email 2 | AO116: Email 3 | AP116: Link 1 | AQ116: Link 2 | AR116: 2024-01-11 | AS116: 2024-01-19T15:02:55
B117: 454 | C117: =ROW() -> 117 | D117: Infoflo Solutions | E117: Shai Berliner | G117: Vendor | J117: shai@infoflosolutions.com | M117: (646) 465-7676 | P117: 148 Sheppard Avenue West | Q117: Toronto | R117: ONTARIO | S117: M2N 1M8 | X117: Bus. | Y117: Inactive | AB117: S:\Folders\Client Files\Infoflo Solutions\ | AC117: =AND(SUBTOTAL(2,LeadTable[[#This Row],[RecordNo]]),LeadTable[[#This Row],[County]]<>"") -> FALSE | AD117: =AND(SUBTOTAL(2,LeadTable[[#This Row],[RecordNo]]),LeadTable[[#This Row],[City]]<>"") -> TRUE | AE117: =AND(SUBTOTAL(2,LeadTable[[#This Row],[RecordNo]]),LeadTable[[#This Row],[State]]<>"") -> TRUE | AF117: =AND(SUBTOTAL(2,LeadTable[[#This Row],[RecordNo]]),LeadTable[[#This Row],[Category]]<>"") -> TRUE | AG117: =AND(SUBTOTAL(2,LeadTable[[#This Row],[RecordNo]]),LeadTable[[#This Row],[Type]]<>"") -> TRUE | AH117: =AND(SUBTOTAL(2,LeadTable[[#This Row],[RecordNo]]),LeadTable[[#This Row],[Status]]<>"") -> TRUE | AI117: =AND(SUBTOTAL(2,LeadTable[[#This Row],[RecordNo]]),LeadTable[[#This Row],[Source]]<>"") -> FALSE | AJ117: Phone 1 | AK117: Phone 2 | AL117: Phone 3 | AM117: Email 1 | AN117: Email 2 | AO117: Email 3 | AP117: Link1 | AQ117: Link2 | AR117: 2023-03-22
B118: 20231106115732 | C118: =ROW() -> 118 | D118: Inho Choi | E118: Choice Tax Solutions, PLLC | F118: Replied to my request for contacts in FB Group: The Entrepreneurial Accountants Specializes in Restaurants | G118: Peer | J118: Inho@ctspllc.com | M118: (253) 409-3998 | Q118: Edgewood | R118: WA | S118: 98372 | T118: Pierce | X118: Bus. | Y118: Active | Z118: https://www.ctspllc.com/ | AB118: S:\Folders\Client Files\Inho Choi\ | AC118: =AND(SUBTOTAL(2,LeadTable[[#This Row],[RecordNo]]),LeadTable[[#This Row],[County]]<>"") -> TRUE | AD118: =AND(SUBTOTAL(2,LeadTable[[#This Row],[RecordNo]]),LeadTable[[#This Row],[City]]<>"") -> TRUE | AE118: =AND(SUBTOTAL(2,LeadTable[[#This Row],[RecordNo]]),LeadTable[[#This Row],[State]]<>"") -> TRUE | AF118: =AND(SUBTOTAL(2,LeadTable[[#This Row],[RecordNo]]),LeadTable[[#This Row],[Category]]<>"") -> TRUE | AG118: =AND(SUBTOTAL(2,LeadTable[[#This Row],[RecordNo]]),LeadTable[[#This Row],[Type]]<>"") -> TRUE | AH118: =AND(SUBTOTAL(2,LeadTable[[#This Row],[RecordNo]]),LeadTable[[#This Row],[Status]]<>"") -> TRUE | AI118: =AND(SUBTOTAL(2,LeadTable[[#This Row],[RecordNo]]),LeadTable[[#This Row],[Source]]<>"") -> FALSE | AJ118: Phone 1 | AK118: Phone 2 | AL118: Phone 3 | AM118: Email 1 | AN118: Email 2 | AO118: Email 3 | AP118: Link 1 | AQ118: Link 2 | AR118: 2023-11-06 | AS118: 2023-12-04T14:57:16
B119: 455 | C119: =ROW() -> 119 | D119: Internal Revenue Service | F119: IA BMF (800) 829-3903 IA IMF (800) 829-7650 | G119: Gov. | M119: (866) 860-4259 | N119: (866) 255-0654 | X119: Bus. | Y119: Active | AB119: S:\Folders\Client Files\Internal Revenue Service\ | AC119: =AND(SUBTOTAL(2,LeadTable[[#This Row],[RecordNo]]),LeadTable[[#This Row],[County]]<>"") -> FALSE | AD119: =AND(SUBTOTAL(2,LeadTable[[#This Row],[RecordNo]]),LeadTable[[#This Row],[City]]<>"") -> FALSE | AE119: =AND(SUBTOTAL(2,LeadTable[[#This Row],[RecordNo]]),LeadTable[[#This Row],[State]]<>"") -> FALSE | AF119: =AND(SUBTOTAL(2,LeadTable[[#This Row],[RecordNo]]),LeadTable[[#This Row],[Category]]<>"") -> TRUE | AG119: =AND(SUBTOTAL(2,LeadTable[[#This Row],[RecordNo]]),LeadTable[[#This Row],[Type]]<>"") -> TRUE | AH119: =AND(SUBTOTAL(2,LeadTable[[#This Row],[RecordNo]]),LeadTable[[#This Row],[Status]]<>"") -> TRUE | AI119: =AND(SUBTOTAL(2,LeadTable[[#This Row],[RecordNo]]),LeadTable[[#This Row],[Source]]<>"") -> FALSE | AJ119: Pract.Priority | AK119: e-services | AL119: Phone 3 | AM119: Email 1 | AN119: Email 2 | AO119: Email 3 | AP119: Link1 | AQ119: Link2 | AR119: 2023-03-22 | AS119: 2023-09-27T11:29:27
B120: 456 | C120: =ROW() -> 120 | D120: Invitae (Erlanger East Genetics) | G120: Medical | M120: (423) 267-0466 | X120: Bus. | Y120: Active | AB120: S:\Folders\Client Files\Invitae (Erlanger East Genetics)\ | AC120: =AND(SUBTOTAL(2,LeadTable[[#This Row],[RecordNo]]),LeadTable[[#This Row],[County]]<>"") -> FALSE | AD120: =AND(SUBTOTAL(2,LeadTable[[#This Row],[RecordNo]]),LeadTable[[#This Row],[City]]<>"") -> FALSE | AE120: =AND(SUBTOTAL(2,LeadTable[[#This Row],[RecordNo]]),LeadTable[[#This Row],[State]]<>"") -> FALSE | AF120: =AND(SUBTOTAL(2,LeadTable[[#This Row],[RecordNo]]),LeadTable[[#This Row],[Category]]<>"") -> TRUE | AG120: =AND(SUBTOTAL(2,LeadTable[[#This Row],[RecordNo]]),LeadTable[[#This Row],[Type]]<>"") -> TRUE | AH120: =AND(SUBTOTAL(2,LeadTable[[#This Row],[RecordNo]]),LeadTable[[#This Row],[Status]]<>"") -> TRUE | AI120: =AND(SUBTOTAL(2,LeadTable[[#This Row],[RecordNo]]),LeadTable[[#This Row],[Source]]<>"") -> FALSE | AJ120: Phone 1 | AK120: Phone 2 | AL120: Phone 3 | AM120: Email 1 | AN120: Email 2 | AO120: Email 3 | AP120: Link1 | AQ120: Link2 | AR120: 2023-03-22
B121: 20230718105547 | C121: =ROW() -> 121 | D121: IRS Chattanooga POD | G121: IRS | M121: (423) 855-6063 | P121: 5740 Uptain Road Suite 7800 | Q121: Chattanooga | R121: TN | S121: 37411 | T121: Hamilton | X121: Bus. | Y121: Active | AB121: S:\Folders\Client Files\IRS Chattanooga POD\ | AC121: =AND(SUBTOTAL(2,LeadTable[[#This Row],[RecordNo]]),LeadTable[[#This Row],[County]]<>"") -> TRUE | AD121: =AND(SUBTOTAL(2,LeadTable[[#This Row],[RecordNo]]),LeadTable[[#This Row],[City]]<>"") -> TRUE | AE121: =AND(SUBTOTAL(2,LeadTable[[#This Row],[RecordNo]]),LeadTable[[#This Row],[State]]<>"") -> TRUE | AF121: =AND(SUBTOTAL(2,LeadTable[[#This Row],[RecordNo]]),LeadTable[[#This Row],[Category]]<>"") -> TRUE | AG121: =AND(SUBTOTAL(2,LeadTable[[#This Row],[RecordNo]]),LeadTable[[#This Row],[Type]]<>"") -> TRUE | AH121: =AND(SUBTOTAL(2,LeadTable[[#This Row],[RecordNo]]),LeadTable[[#This Row],[Status]]<>"") -> TRUE | AI121: =AND(SUBTOTAL(2,LeadTable[[#This Row],[RecordNo]]),LeadTable[[#This Row],[Source]]<>"") -> FALSE | AJ121: Fax | AK121: Phone 2 | AL121: Phone 3 | AM121: Email 1 | AN121: Email 2 | AO121: Email 3 | AP121: Link 1 | AQ121: Link 2 | AS121: 2023-07-18T10:55:47
B122: 20230718105648 | C122: =ROW() -> 122 | D122: IRS Knoxville POD | G122: IRS | M122: (865) 329-4549 | P122: 710 Locust St Suite 400 | Q122: Knoxville | R122: TN | S122: 37902 | T122: Knox | X122: Bus. | Y122: Active | AB122: S:\Folders\Client Files\IRS Knoxville POD\ | AC122: =AND(SUBTOTAL(2,LeadTable[[#This Row],[RecordNo]]),LeadTable[[#This Row],[County]]<>"") -> TRUE | AD122: =AND(SUBTOTAL(2,LeadTable[[#This Row],[RecordNo]]),LeadTable[[#This Row],[City]]<>"") -> TRUE | AE122: =AND(SUBTOTAL(2,LeadTable[[#This Row],[RecordNo]]),LeadTable[[#This Row],[State]]<>"") -> TRUE | AF122: =AND(SUBTOTAL(2,LeadTable[[#This Row],[RecordNo]]),LeadTable[[#This Row],[Category]]<>"") -> TRUE | AG122: =AND(SUBTOTAL(2,LeadTable[[#This Row],[RecordNo]]),LeadTable[[#This Row],[Type]]<>"") -> TRUE | AH122: =AND(SUBTOTAL(2,LeadTable[[#This Row],[RecordNo]]),LeadTable[[#This Row],[Status]]<>"") -> TRUE | AI122: =AND(SUBTOTAL(2,LeadTable[[#This Row],[RecordNo]]),LeadTable[[#This Row],[Source]]<>"") -> FALSE | AJ122: Fax | AK122: Phone 2 | AL122: Phone 3 | AM122: Email 1 | AN122: Email 2 | AO122: Email 3 | AP122: Link 1 | AQ122: Link 2 | AS122: 2023-07-18T10:56:48
B123: 331 | C123: =ROW() -> 123 | D123: Ismail Farayare | G123: Gov. | X123: Ind. | Y123: Active | AB123: S:\Folders\Client Files\Ismail Farayare\ | AC123: =AND(SUBTOTAL(2,LeadTable[[#This Row],[RecordNo]]),LeadTable[[#This Row],[County]]<>"") -> FALSE | AD123: =AND(SUBTOTAL(2,LeadTable[[#This Row],[RecordNo]]),LeadTable[[#This Row],[City]]<>"") -> FALSE | AE123: =AND(SUBTOTAL(2,LeadTable[[#This Row],[RecordNo]]),LeadTable[[#This Row],[State]]<>"") -> FALSE | AF123: =AND(SUBTOTAL(2,LeadTable[[#This Row],[RecordNo]]),LeadTable[[#This Row],[Category]]<>"") -> TRUE | AG123: =AND(SUBTOTAL(2,LeadTable[[#This Row],[RecordNo]]),LeadTable[[#This Row],[Type]]<>"") -> TRUE | AH123: =AND(SUBTOTAL(2,LeadTable[[#This Row],[RecordNo]]),LeadTable[[#This Row],[Status]]<>"") -> TRUE | AI123: =AND(SUBTOTAL(2,LeadTable[[#This Row],[RecordNo]]),LeadTable[[#This Row],[Source]]<>"") -> FALSE | AJ123: Phone 1 | AK123: Phone 2 | AL123: Phone 3 | AM123: Email 1 | AN123: Email 2 | AO123: Email 3 | AP123: Link1 | AQ123: Link2 | AR123: 2023-03-22
B124: 332 | C124: =ROW() -> 124 | D124: J Benton | G124: Personal | J124: bigjohnb2002@yahoo.com | X124: Ind. | Y124: Inactive | AB124: S:\Folders\Client Files\J Benton\ | AC124: =AND(SUBTOTAL(2,LeadTable[[#This Row],[RecordNo]]),LeadTable[[#This Row],[County]]<>"") -> FALSE | AD124: =AND(SUBTOTAL(2,LeadTable[[#This Row],[RecordNo]]),LeadTable[[#This Row],[City]]<>"") -> FALSE | AE124: =AND(SUBTOTAL(2,LeadTable[[#This Row],[RecordNo]]),LeadTable[[#This Row],[State]]<>"") -> FALSE | AF124: =AND(SUBTOTAL(2,LeadTable[[#This Row],[RecordNo]]),LeadTable[[#This Row],[Category]]<>"") -> TRUE | AG124: =AND(SUBTOTAL(2,LeadTable[[#This Row],[RecordNo]]),LeadTable[[#This Row],[Type]]<>"") -> TRUE | AH124: =AND(SUBTOTAL(2,LeadTable[[#This Row],[RecordNo]]),LeadTable[[#This Row],[Status]]<>"") -> TRUE | AI124: =AND(SUBTOTAL(2,LeadTable[[#This Row],[RecordNo]]),LeadTable[[#This Row],[Source]]<>"") -> FALSE | AJ124: Phone 1 | AK124: Phone 2 | AL124: Phone 3 | AM124: Email 1 | AN124: Email 2 | AO124: Email 3 | AP124: Link1 | AQ124: Link2 | AR124: 2023-03-22
B125: 20231204150443 | C125: =ROW() -> 125 | D125: J Wayne Walston CPA | F125: Worked with at IRS | G125: Peer | I125: Other | J125: cpajww@aol.com | M125: (423) 413-8752 | N125: (423) 472-0036 | P125: 3882 Jill St NE | Q125: Cleveland | R125: TN | S125: 37312 | T125: Bradley | X125: Bus. | Y125: Active | AB125: S:\Folders\Client Files\J Wayne Walston CPA\ | AC125: =AND(SUBTOTAL(2,LeadTable[[#This Row],[RecordNo]]),LeadTable[[#This Row],[County]]<>"") -> TRUE | AD125: =AND(SUBTOTAL(2,LeadTable[[#This Row],[RecordNo]]),LeadTable[[#This Row],[City]]<>"") -> TRUE | AE125: =AND(SUBTOTAL(2,LeadTable[[#This Row],[RecordNo]]),LeadTable[[#This Row],[State]]<>"") -> TRUE | AF125: =AND(SUBTOTAL(2,LeadTable[[#This Row],[RecordNo]]),LeadTable[[#This Row],[Category]]<>"") -> TRUE | AG125: =AND(SUBTOTAL(2,LeadTable[[#This Row],[RecordNo]]),LeadTable[[#This Row],[Type]]<>"") -> TRUE | AH125: =AND(SUBTOTAL(2,LeadTable[[#This Row],[RecordNo]]),LeadTable[[#This Row],[Status]]<>"") -> TRUE | AI125: =AND(SUBTOTAL(2,LeadTable[[#This Row],[RecordNo]]),LeadTable[[#This Row],[Source]]<>"") -> TRUE | AJ125: Cell | AK125: Fax | AL125: Phone 3 | AM125: Email 1 | AN125: Email 2 | AO125: Email 3 | AP125: Link 1 | AQ125: Link 2 | AR125: 2023-12-04 | AS125: 2024-01-11T14:12:01
B126: 335 | C126: =ROW() -> 126 | D126: James Butts | G126: Personal | J126: lb2204@alltel.net | X126: Ind. | Y126: Inactive | AB126: S:\Folders\Client Files\James Butts\ | AC126: =AND(SUBTOTAL(2,LeadTable[[#This Row],[RecordNo]]),LeadTable[[#This Row],[County]]<>"") -> FALSE | AD126: =AND(SUBTOTAL(2,LeadTable[[#This Row],[RecordNo]]),LeadTable[[#This Row],[City]]<>"") -> FALSE | AE126: =AND(SUBTOTAL(2,LeadTable[[#This Row],[RecordNo]]),LeadTable[[#This Row],[State]]<>"") -> FALSE | AF126: =AND(SUBTOTAL(2,LeadTable[[#This Row],[RecordNo]]),LeadTable[[#This Row],[Category]]<>"") -> TRUE | AG126: =AND(SUBTOTAL(2,LeadTable[[#This Row],[RecordNo]]),LeadTable[[#This Row],[Type]]<>"") -> TRUE | AH126: =AND(SUBTOTAL(2,LeadTable[[#This Row],[RecordNo]]),LeadTable[[#This Row],[Status]]<>"") -> TRUE | AI126: =AND(SUBTOTAL(2,LeadTable[[#This Row],[RecordNo]]),LeadTable[[#This Row],[Source]]<>"") -> FALSE | AJ126: Phone 1 | AK126: Phone 2 | AL126: Phone 3 | AM126: Email 1 | AN126: Email 2 | AO126: Email 3 | AP126: Link1 | AQ126: Link2 | AR126: 2023-03-22
B127: 336 | C127: =ROW() -> 127 | D127: James Clements | G127: Personal | J127: clements2397@gmail.com | M127: (256) 337-0441 | X127: Ind. | Y127: Active | AB127: S:\Folders\Client Files\James Clements\ | AC127: =AND(SUBTOTAL(2,LeadTable[[#This Row],[RecordNo]]),LeadTable[[#This Row],[County]]<>"") -> FALSE | AD127: =AND(SUBTOTAL(2,LeadTable[[#This Row],[RecordNo]]),LeadTable[[#This Row],[City]]<>"") -> FALSE | AE127: =AND(SUBTOTAL(2,LeadTable[[#This Row],[RecordNo]]),LeadTable[[#This Row],[State]]<>"") -> FALSE | AF127: =AND(SUBTOTAL(2,LeadTable[[#This Row],[RecordNo]]),LeadTable[[#This Row],[Category]]<>"") -> TRUE | AG127: =AND(SUBTOTAL(2,LeadTable[[#This Row],[RecordNo]]),LeadTable[[#This Row],[Type]]<>"") -> TRUE | AH127: =AND(SUBTOTAL(2,LeadTable[[#This Row],[RecordNo]]),LeadTable[[#This Row],[Status]]<>"") -> TRUE | AI127: =AND(SUBTOTAL(2,LeadTable[[#This Row],[RecordNo]]),LeadTable[[#This Row],[Source]]<>"") -> FALSE | AJ127: Phone 1 | AK127: Phone 2 | AL127: Phone 3 | AM127: Email 1 | AN127: Email 2 | AO127: Email 3 | AP127: Link1 | AQ127: Link2 | AR127: 2023-03-22
B128: 337 | C128: =ROW() -> 128 | D128: James Killian | G128: Bus. | M128: (423) 504-4325 | N128: (423) 504-4325 | X128: Ind. | Y128: Inactive | AB128: S:\Folders\Client Files\James Killian\ | AC128: =AND(SUBTOTAL(2,LeadTable[[#This Row],[RecordNo]]),LeadTable[[#This Row],[County]]<>"") -> FALSE | AD128: =AND(SUBTOTAL(2,LeadTable[[#This Row],[RecordNo]]),LeadTable[[#This Row],[City]]<>"") -> FALSE | AE128: =AND(SUBTOTAL(2,LeadTable[[#This Row],[RecordNo]]),LeadTable[[#This Row],[State]]<>"") -> FALSE | AF128: =AND(SUBTOTAL(2,LeadTable[[#This Row],[RecordNo]]),LeadTable[[#This Row],[Category]]<>"") -> TRUE | AG128: =AND(SUBTOTAL(2,LeadTable[[#This Row],[RecordNo]]),LeadTable[[#This Row],[Type]]<>"") -> TRUE | AH128: =AND(SUBTOTAL(2,LeadTable[[#This Row],[RecordNo]]),LeadTable[[#This Row],[Status]]<>"") -> TRUE | AI128: =AND(SUBTOTAL(2,LeadTable[[#This Row],[RecordNo]]),LeadTable[[#This Row],[Source]]<>"") -> FALSE | AJ128: Phone 1 | AK128: Phone 2 | AL128: Phone 3 | AM128: Email 1 | AN128: Email 2 | AO128: Email 3 | AP128: Link1 | AQ128: Link2 | AR128: 2023-03-22
B129: 338 | C129: =ROW() -> 129 | D129: Jamie Boyer | G129: Personal | J129: mytruck18rlimg@icloud.com | M129: (706) 781-6164 | N129: (706) 994-0613 | X129: Ind. | Y129: Inactive | AB129: S:\Folders\Client Files\Jamie Boyer\ | AC129: =AND(SUBTOTAL(2,LeadTable[[#This Row],[RecordNo]]),LeadTable[[#This Row],[County]]<>"") -> FALSE | AD129: =AND(SUBTOTAL(2,LeadTable[[#This Row],[RecordNo]]),LeadTable[[#This Row],[City]]<>"") -> FALSE | AE129: =AND(SUBTOTAL(2,LeadTable[[#This Row],[RecordNo]]),LeadTable[[#This Row],[State]]<>"") -> FALSE | AF129: =AND(SUBTOTAL(2,LeadTable[[#This Row],[RecordNo]]),LeadTable[[#This Row],[Category]]<>"") -> TRUE | AG129: =AND(SUBTOTAL(2,LeadTable[[#This Row],[RecordNo]]),LeadTable[[#This Row],[Type]]<>"") -> TRUE | AH129: =AND(SUBTOTAL(2,LeadTable[[#This Row],[RecordNo]]),LeadTable[[#This Row],[Status]]<>"") -> TRUE | AI129: =AND(SUBTOTAL(2,LeadTable[[#This Row],[RecordNo]]),LeadTable[[#This Row],[Source]]<>"") -> FALSE | AJ129: Phone 1 | AK129: Phone 2 | AL129: Phone 3 | AM129: Email 1 | AN129: Email 2 | AO129: Email 3 | AP129: Link1 | AQ129: Link2 | AR129: 2023-03-22
B130: 339 | C130: =ROW() -> 130 | D130: Jane Harvey | G130: Personal | J130: eharvey9547@epbfi.com | M130: (423) 903-2633 | N130: (423) 910-0072 | X130: Ind. | Y130: Active | AB130: S:\Folders\Client Files\Jane Harvey\ | AC130: =AND(SUBTOTAL(2,LeadTable[[#This Row],[RecordNo]]),LeadTable[[#This Row],[County]]<>"") -> FALSE | AD130: =AND(SUBTOTAL(2,LeadTable[[#This Row],[RecordNo]]),LeadTable[[#This Row],[City]]<>"") -> FALSE | AE130: =AND(SUBTOTAL(2,LeadTable[[#This Row],[RecordNo]]),LeadTable[[#This Row],[State]]<>"") -> FALSE | AF130: =AND(SUBTOTAL(2,LeadTable[[#This Row],[RecordNo]]),LeadTable[[#This Row],[Category]]<>"") -> TRUE | AG130: =AND(SUBTOTAL(2,LeadTable[[#This Row],[RecordNo]]),LeadTable[[#This Row],[Type]]<>"") -> TRUE | AH130: =AND(SUBTOTAL(2,LeadTable[[#This Row],[RecordNo]]),LeadTable[[#This Row],[Status]]<>"") -> TRUE | AI130: =AND(SUBTOTAL(2,LeadTable[[#This Row],[RecordNo]]),LeadTable[[#This Row],[Source]]<>"") -> FALSE | AJ130: Phone 1 | AK130: Phone 2 | AL130: Phone 3 | AM130: Email 1 | AN130: Email 2 | AO130: Email 3 | AP130: Link1 | AQ130: Link2 | AR130: 2023-03-22
B131: 340 | C131: =ROW() -> 131 | D131: Jason Taylor | G131: Personal | M131: (423) 774-3161 | X131: Ind. | Y131: Inactive | AB131: S:\Folders\Client Files\Jason Taylor\ | AC131: =AND(SUBTOTAL(2,LeadTable[[#This Row],[RecordNo]]),LeadTable[[#This Row],[County]]<>"") -> FALSE | AD131: =AND(SUBTOTAL(2,LeadTable[[#This Row],[RecordNo]]),LeadTable[[#This Row],[City]]<>"") -> FALSE | AE131: =AND(SUBTOTAL(2,LeadTable[[#This Row],[RecordNo]]),LeadTable[[#This Row],[State]]<>"") -> FALSE | AF131: =AND(SUBTOTAL(2,LeadTable[[#This Row],[RecordNo]]),LeadTable[[#This Row],[Category]]<>"") -> TRUE | AG131: =AND(SUBTOTAL(2,LeadTable[[#This Row],[RecordNo]]),LeadTable[[#This Row],[Type]]<>"") -> TRUE | AH131: =AND(SUBTOTAL(2,LeadTable[[#This Row],[RecordNo]]),LeadTable[[#This Row],[Status]]<>"") -> TRUE | AI131: =AND(SUBTOTAL(2,LeadTable[[#This Row],[RecordNo]]),LeadTable[[#This Row],[Source]]<>"") -> FALSE | AJ131: Phone 1 | AK131: Phone 2 | AL131: Phone 3 | AM131: Email 1 | AN131: Email 2 | AO131: Email 3 | AP131: Link1 | AQ131: Link2 | AR131: 2023-03-22
B132: 20230602142009 | C132: =ROW() -> 132 | D132: JDL Construction Inc | E132: Tami Lance | F132: Referred by Bill Johnston, Tax & More | G132: Client | I132: Google Ads | J132: tami@jdlinctn.com | K132: jdlconstruction@att.net | L132: Tamilance.jdl@gmail.com | M132: 865-567-3800 | P132: 3631 Louisville Rd | Q132: Louisville | R132: TN | S132: 37777 | T132: Blount | X132: Bus. | Y132: Uncontacted | Z132: https://jdlconstructiontn.net/ | AB132: S:\Folders\Client Files\JDL Construction Inc\ | AC132: =AND(SUBTOTAL(2,LeadTable[[#This Row],[RecordNo]]),LeadTable[[#This Row],[County]]<>"") -> TRUE | AD132: =AND(SUBTOTAL(2,LeadTable[[#This Row],[RecordNo]]),LeadTable[[#This Row],[City]]<>"") -> TRUE | AE132: =AND(SUBTOTAL(2,LeadTable[[#This Row],[RecordNo]]),LeadTable[[#This Row],[State]]<>"") -> TRUE | AF132: =AND(SUBTOTAL(2,LeadTable[[#This Row],[RecordNo]]),LeadTable[[#This Row],[Category]]<>"") -> TRUE | AG132: =AND(SUBTOTAL(2,LeadTable[[#This Row],[RecordNo]]),LeadTable[[#This Row],[Type]]<>"") -> TRUE | AH132: =AND(SUBTOTAL(2,LeadTable[[#This Row],[RecordNo]]),LeadTable[[#This Row],[Status]]<>"") -> TRUE | AI132: =AND(SUBTOTAL(2,LeadTable[[#This Row],[RecordNo]]),LeadTable[[#This Row],[Source]]<>"") -> TRUE | AJ132: Tami | AK132: Phone 2 | AL132: Phone 3 | AM132: Tami | AN132: Business | AO132: Email 3 | AP132: Website | AQ132: Link 2 | AR132: 2023-03-22 | AS132: 2023-12-04T15:07:51
B133: 342 | C133: =ROW() -> 133 | D133: Jennie Mahaffey | G133: Medical | X133: Ind. | Y133: Inactive | AB133: S:\Folders\Client Files\Jennie Mahaffey\ | AC133: =AND(SUBTOTAL(2,LeadTable[[#This Row],[RecordNo]]),LeadTable[[#This Row],[County]]<>"") -> FALSE | AD133: =AND(SUBTOTAL(2,LeadTable[[#This Row],[RecordNo]]),LeadTable[[#This Row],[City]]<>"") -> FALSE | AE133: =AND(SUBTOTAL(2,LeadTable[[#This Row],[RecordNo]]),LeadTable[[#This Row],[State]]<>"") -> FALSE | AF133: =AND(SUBTOTAL(2,LeadTable[[#This Row],[RecordNo]]),LeadTable[[#This Row],[Category]]<>"") -> TRUE | AG133: =AND(SUBTOTAL(2,LeadTable[[#This Row],[RecordNo]]),LeadTable[[#This Row],[Type]]<>"") -> TRUE | AH133: =AND(SUBTOTAL(2,LeadTable[[#This Row],[RecordNo]]),LeadTable[[#This Row],[Status]]<>"") -> TRUE | AI133: =AND(SUBTOTAL(2,LeadTable[[#This Row],[RecordNo]]),LeadTable[[#This Row],[Source]]<>"") -> FALSE | AJ133: Phone 1 | AK133: Phone 2 | AL133: Phone 3 | AM133: Email 1 | AN133: Email 2 | AO133: Email 3 | AP133: Link1 | AQ133: Link2 | AR133: 2023-03-22
B134: 343 | C134: =ROW() -> 134 | D134: Jennifer Baggett | G134: Personal | J134: killerbarbie0985@gmail.com | M134: (423) 599-6562 | X134: Ind. | Y134: Active | AB134: S:\Folders\Client Files\Jennifer Baggett\ | AC134: =AND(SUBTOTAL(2,LeadTable[[#This Row],[RecordNo]]),LeadTable[[#This Row],[County]]<>"") -> FALSE | AD134: =AND(SUBTOTAL(2,LeadTable[[#This Row],[RecordNo]]),LeadTable[[#This Row],[City]]<>"") -> FALSE | AE134: =AND(SUBTOTAL(2,LeadTable[[#This Row],[RecordNo]]),LeadTable[[#This Row],[State]]<>"") -> FALSE | AF134: =AND(SUBTOTAL(2,LeadTable[[#This Row],[RecordNo]]),LeadTable[[#This Row],[Category]]<>"") -> TRUE | AG134: =AND(SUBTOTAL(2,LeadTable[[#This Row],[RecordNo]]),LeadTable[[#This Row],[Type]]<>"") -> TRUE | AH134: =AND(SUBTOTAL(2,LeadTable[[#This Row],[RecordNo]]),LeadTable[[#This Row],[Status]]<>"") -> TRUE | AI134: =AND(SUBTOTAL(2,LeadTable[[#This Row],[RecordNo]]),LeadTable[[#This Row],[Source]]<>"") -> FALSE | AJ134: Phone 1 | AK134: Phone 2 | AL134: Phone 3 | AM134: Email 1 | AN134: Email 2 | AO134: Email 3 | AP134: Link1 | AQ134: Link2 | AR134: 2023-03-22
B135: 344 | C135: =ROW() -> 135 | D135: Jennifer Dotson | E135: Internal Revenue Service | G135: Gov. | X135: Ind. | Y135: Inactive | AB135: S:\Folders\Client Files\Jennifer Dotson\ | AC135: =AND(SUBTOTAL(2,LeadTable[[#This Row],[RecordNo]]),LeadTable[[#This Row],[County]]<>"") -> FALSE | AD135: =AND(SUBTOTAL(2,LeadTable[[#This Row],[RecordNo]]),LeadTable[[#This Row],[City]]<>"") -> FALSE | AE135: =AND(SUBTOTAL(2,LeadTable[[#This Row],[RecordNo]]),LeadTable[[#This Row],[State]]<>"") -> FALSE | AF135: =AND(SUBTOTAL(2,LeadTable[[#This Row],[RecordNo]]),LeadTable[[#This Row],[Category]]<>"") -> TRUE | AG135: =AND(SUBTOTAL(2,LeadTable[[#This Row],[RecordNo]]),LeadTable[[#This Row],[Type]]<>"") -> TRUE | AH135: =AND(SUBTOTAL(2,LeadTable[[#This Row],[RecordNo]]),LeadTable[[#This Row],[Status]]<>"") -> TRUE | AI135: =AND(SUBTOTAL(2,LeadTable[[#This Row],[RecordNo]]),LeadTable[[#This Row],[Source]]<>"") -> FALSE | AJ135: Phone 1 | AK135: Phone 2 | AL135: Phone 3 | AM135: Email 1 | AN135: Email 2 | AO135: Email 3 | AP135: Link1 | AQ135: Link2 | AR135: 2023-03-22
B136: 345 | C136: =ROW() -> 136 | D136: Jennifer Mcdonald | E136: Internal Revenue Service | G136: Personal | J136: jennifer.j.macdonald@irs.gov | N136: (304) 616-2414 | X136: Ind. | Y136: Inactive | AB136: S:\Folders\Client Files\Jennifer Mcdonald\ | AC136: =AND(SUBTOTAL(2,LeadTable[[#This Row],[RecordNo]]),LeadTable[[#This Row],[County]]<>"") -> FALSE | AD136: =AND(SUBTOTAL(2,LeadTable[[#This Row],[RecordNo]]),LeadTable[[#This Row],[City]]<>"") -> FALSE | AE136: =AND(SUBTOTAL(2,LeadTable[[#This Row],[RecordNo]]),LeadTable[[#This Row],[State]]<>"") -> FALSE | AF136: =AND(SUBTOTAL(2,LeadTable[[#This Row],[RecordNo]]),LeadTable[[#This Row],[Category]]<>"") -> TRUE | AG136: =AND(SUBTOTAL(2,LeadTable[[#This Row],[RecordNo]]),LeadTable[[#This Row],[Type]]<>"") -> TRUE | AH136: =AND(SUBTOTAL(2,LeadTable[[#This Row],[RecordNo]]),LeadTable[[#This Row],[Status]]<>"") -> TRUE | AI136: =AND(SUBTOTAL(2,LeadTable[[#This Row],[RecordNo]]),LeadTable[[#This Row],[Source]]<>"") -> FALSE | AJ136: Phone 1 | AK136: Phone 2 | AL136: Phone 3 | AM136: Email 1 | AN136: Email 2 | AO136: Email 3 | AP136: Link1 | AQ136: Link2 | AR136: 2023-03-22
B137: 347 | C137: =ROW() -> 137 | D137: Jerry Holmes | G137: Personal | M137: (423) 821-8708 | X137: Ind. | Y137: Inactive | AB137: S:\Folders\Client Files\Jerry Holmes\ | AC137: =AND(SUBTOTAL(2,LeadTable[[#This Row],[RecordNo]]),LeadTable[[#This Row],[County]]<>"") -> FALSE | AD137: =AND(SUBTOTAL(2,LeadTable[[#This Row],[RecordNo]]),LeadTable[[#This Row],[City]]<>"") -> FALSE | AE137: =AND(SUBTOTAL(2,LeadTable[[#This Row],[RecordNo]]),LeadTable[[#This Row],[State]]<>"") -> FALSE | AF137: =AND(SUBTOTAL(2,LeadTable[[#This Row],[RecordNo]]),LeadTable[[#This Row],[Category]]<>"") -> TRUE | AG137: =AND(SUBTOTAL(2,LeadTable[[#This Row],[RecordNo]]),LeadTable[[#This Row],[Type]]<>"") -> TRUE | AH137: =AND(SUBTOTAL(2,LeadTable[[#This Row],[RecordNo]]),LeadTable[[#This Row],[Status]]<>"") -> TRUE | AI137: =AND(SUBTOTAL(2,LeadTable[[#This Row],[RecordNo]]),LeadTable[[#This Row],[Source]]<>"") -> FALSE | AJ137: Phone 1 | AK137: Phone 2 | AL137: Phone 3 | AM137: Email 1 | AN137: Email 2 | AO137: Email 3 | AP137: Link1 | AQ137: Link2 | AR137: 2023-03-22
B138: 348 | C138: =ROW() -> 138 | D138: Jerry Martin | G138: Personal | J138: jeremartin@windstream.net | M138: (706) 745-6972 | N138: (706) 897-7352 | X138: Ind. | Y138: Inactive | AB138: S:\Folders\Client Files\Jerry Martin\ | AC138: =AND(SUBTOTAL(2,LeadTable[[#This Row],[RecordNo]]),LeadTable[[#This Row],[County]]<>"") -> FALSE | AD138: =AND(SUBTOTAL(2,LeadTable[[#This Row],[RecordNo]]),LeadTable[[#This Row],[City]]<>"") -> FALSE | AE138: =AND(SUBTOTAL(2,LeadTable[[#This Row],[RecordNo]]),LeadTable[[#This Row],[State]]<>"") -> FALSE | AF138: =AND(SUBTOTAL(2,LeadTable[[#This Row],[RecordNo]]),LeadTable[[#This Row],[Category]]<>"") -> TRUE | AG138: =AND(SUBTOTAL(2,LeadTable[[#This Row],[RecordNo]]),LeadTable[[#This Row],[Type]]<>"") -> TRUE | AH138: =AND(SUBTOTAL(2,LeadTable[[#This Row],[RecordNo]]),LeadTable[[#This Row],[Status]]<>"") -> TRUE | AI138: =AND(SUBTOTAL(2,LeadTable[[#This Row],[RecordNo]]),LeadTable[[#This Row],[Source]]<>"") -> FALSE | AJ138: Phone 1 | AK138: Phone 2 | AL138: Phone 3 | AM138: Email 1 | AN138: Email 2 | AO138: Email 3 | AP138: Link1 | AQ138: Link2 | AR138: 2023-03-22
B139: 349 | C139: =ROW() -> 139 | D139: Jimmy Stephens | E139: Kristina Stephens | G139: Client | N139: (757) 274-5135 | P139: 6830 Benwood Dr | Q139: Ooltewah | R139: TN | S139: 37363 | T139: Hamilton | X139: Ind. | Y139: Inactive | AB139: S:\Folders\Client Files\Jimmy Stephens\ | AC139: =AND(SUBTOTAL(2,LeadTable[[#This Row],[RecordNo]]),LeadTable[[#This Row],[County]]<>"") -> TRUE | AD139: =AND(SUBTOTAL(2,LeadTable[[#This Row],[RecordNo]]),LeadTable[[#This Row],[City]]<>"") -> TRUE | AE139: =AND(SUBTOTAL(2,LeadTable[[#This Row],[RecordNo]]),LeadTable[[#This Row],[State]]<>"") -> TRUE | AF139: =AND(SUBTOTAL(2,LeadTable[[#This Row],[RecordNo]]),LeadTable[[#This Row],[Category]]<>"") -> TRUE | AG139: =AND(SUBTOTAL(2,LeadTable[[#This Row],[RecordNo]]),LeadTable[[#This Row],[Type]]<>"") -> TRUE | AH139: =AND(SUBTOTAL(2,LeadTable[[#This Row],[RecordNo]]),LeadTable[[#This Row],[Status]]<>"") -> TRUE | AI139: =AND(SUBTOTAL(2,LeadTable[[#This Row],[RecordNo]]),LeadTable[[#This Row],[Source]]<>"") -> FALSE | AJ139: Phone 1 | AK139: Phone 2 | AL139: Phone 3 | AM139: Email 1 | AN139: Email 2 | AO139: Email 3 | AP139: Link1 | AQ139: Link2 | AR139: 2023-03-22 | AS139: 2023-12-04T15:20:16
B140: 20231121113927 | C140: =ROW() -> 140 | D140: Jo Lundy | E140: Miller & McPhail | G140: Peer | J140: Jlundy@millerandmcphailcpa.com | M140: (423) 745-6680 | P140: 123 West Washington Avenue | Q140: Athens | R140: TN | S140: 37303 | T140: McMinn | X140: Bus. | Y140: Active | AB140: S:\Folders\Client Files\Jo Lundy\ | AC140: =AND(SUBTOTAL(2,LeadTable[[#This Row],[RecordNo]]),LeadTable[[#This Row],[County]]<>"") -> TRUE | AD140: =AND(SUBTOTAL(2,LeadTable[[#This Row],[RecordNo]]),LeadTable[[#This Row],[City]]<>"") -> TRUE | AE140: =AND(SUBTOTAL(2,LeadTable[[#This Row],[RecordNo]]),LeadTable[[#This Row],[State]]<>"") -> TRUE | AF140: =AND(SUBTOTAL(2,LeadTable[[#This Row],[RecordNo]]),LeadTable[[#This Row],[Category]]<>"") -> TRUE | AG140: =AND(SUBTOTAL(2,LeadTable[[#This Row],[RecordNo]]),LeadTable[[#This Row],[Type]]<>"") -> TRUE | AH140: =AND(SUBTOTAL(2,LeadTable[[#This Row],[RecordNo]]),LeadTable[[#This Row],[Status]]<>"") -> TRUE | AI140: =AND(SUBTOTAL(2,LeadTable[[#This Row],[RecordNo]]),LeadTable[[#This Row],[Source]]<>"") -> FALSE | AJ140: Phone 1 | AK140: Phone 2 | AL140: Phone 3 | AM140: Email 1 | AN140: Email 2 | AO140: Email 3 | AP140: Link 1 | AQ140: Link 2 | AR140: 2023-11-21 | AS140: 2023-12-04T14:57:20
B141: 352 | C141: =ROW() -> 141 | D141: Joseph Hulgan | G141: Personal | J141: jhulgan1117@gmail.com | M141: (423) 260-3606 | X141: Ind. | Y141: Active | AB141: S:\Folders\Client Files\Joseph Hulgan\ | AC141: =AND(SUBTOTAL(2,LeadTable[[#This Row],[RecordNo]]),LeadTable[[#This Row],[County]]<>"") -> FALSE | AD141: =AND(SUBTOTAL(2,LeadTable[[#This Row],[RecordNo]]),LeadTable[[#This Row],[City]]<>"") -> FALSE | AE141: =AND(SUBTOTAL(2,LeadTable[[#This Row],[RecordNo]]),LeadTable[[#This Row],[State]]<>"") -> FALSE | AF141: =AND(SUBTOTAL(2,LeadTable[[#This Row],[RecordNo]]),LeadTable[[#This Row],[Category]]<>"") -> TRUE | AG141: =AND(SUBTOTAL(2,LeadTable[[#This Row],[RecordNo]]),LeadTable[[#This Row],[Type]]<>"") -> TRUE | AH141: =AND(SUBTOTAL(2,LeadTable[[#This Row],[RecordNo]]),LeadTable[[#This Row],[Status]]<>"") -> TRUE | AI141: =AND(SUBTOTAL(2,LeadTable[[#This Row],[RecordNo]]),LeadTable[[#This Row],[Source]]<>"") -> FALSE | AJ141: Phone 1 | AK141: Phone 2 | AL141: Phone 3 | AM141: Email 1 | AN141: Email 2 | AO141: Email 3 | AP141: Link1 | AQ141: Link2 | AR141: 2023-03-22
B142: 20231204163030 | C142: =ROW() -> 142 | D142: Josh Roper | E142: Altruis CPA's, LLC | G142: Peer | J142: josh@altruiscpas.com | M142: (770) 952-8544 | N142: (678) 327-6236 | P142: 180 Interstate N Pkwy E SE Unit 205 | Q142: Atlanta | R142: GA | S142: 30339 | T142: Cobb | X142: Bus. | Y142: Active | Z142: https://www.altruiscpas.com/ | AB142: S:\Folders\Client Files\Josh Roper\ | AC142: =AND(SUBTOTAL(2,LeadTable[[#This Row],[RecordNo]]),LeadTable[[#This Row],[County]]<>"") -> TRUE | AD142: =AND(SUBTOTAL(2,LeadTable[[#This Row],[RecordNo]]),LeadTable[[#This Row],[City]]<>"") -> TRUE | AE142: =AND(SUBTOTAL(2,LeadTable[[#This Row],[RecordNo]]),LeadTable[[#This Row],[State]]<>"") -> TRUE | AF142: =AND(SUBTOTAL(2,LeadTable[[#This Row],[RecordNo]]),LeadTable[[#This Row],[Category]]<>"") -> TRUE | AG142: =AND(SUBTOTAL(2,LeadTable[[#This Row],[RecordNo]]),LeadTable[[#This Row],[Type]]<>"") -> TRUE | AH142: =AND(SUBTOTAL(2,LeadTable[[#This Row],[RecordNo]]),LeadTable[[#This Row],[Status]]<>"") -> TRUE | AI142: =AND(SUBTOTAL(2,LeadTable[[#This Row],[RecordNo]]),LeadTable[[#This Row],[Source]]<>"") -> FALSE | AJ142: Office | AK142: Josh | AL142: Phone 3 | AM142: Email 1 | AN142: Email 2 | AO142: Email 3 | AP142: Link 1 | AQ142: Link 2 | AR142: 2023-12-04 | AS142: 2023-12-04T16:30:30
B143: 353 | C143: =ROW() -> 143 | D143: Joyce Rogers | G143: Personal | J143: rogersx@alltel.net | M143: (706) 897-2768 | X143: Ind. | Y143: Inactive | AB143: S:\Folders\Client Files\Joyce Rogers\ | AC143: =AND(SUBTOTAL(2,LeadTable[[#This Row],[RecordNo]]),LeadTable[[#This Row],[County]]<>"") -> FALSE | AD143: =AND(SUBTOTAL(2,LeadTable[[#This Row],[RecordNo]]),LeadTable[[#This Row],[City]]<>"") -> FALSE | AE143: =AND(SUBTOTAL(2,LeadTable[[#This Row],[RecordNo]]),LeadTable[[#This Row],[State]]<>"") -> FALSE | AF143: =AND(SUBTOTAL(2,LeadTable[[#This Row],[RecordNo]]),LeadTable[[#This Row],[Category]]<>"") -> TRUE | AG143: =AND(SUBTOTAL(2,LeadTable[[#This Row],[RecordNo]]),LeadTable[[#This Row],[Type]]<>"") -> TRUE | AH143: =AND(SUBTOTAL(2,LeadTable[[#This Row],[RecordNo]]),LeadTable[[#This Row],[Status]]<>"") -> TRUE | AI143: =AND(SUBTOTAL(2,LeadTable[[#This Row],[RecordNo]]),LeadTable[[#This Row],[Source]]<>"") -> FALSE | AJ143: Phone 1 | AK143: Phone 2 | AL143: Phone 3 | AM143: Email 1 | AN143: Email 2 | AO143: Email 3 | AP143: Link1 | AQ143: Link2 | AR143: 2023-03-22
B144: 354 | C144: =ROW() -> 144 | D144: Kamryn Kessel | G144: Personal | J144: kamrynkessel@gmail.com | M144: (850) 530-9079 | X144: Ind. | Y144: Active | AB144: S:\Folders\Client Files\Kamryn Kessel\ | AC144: =AND(SUBTOTAL(2,LeadTable[[#This Row],[RecordNo]]),LeadTable[[#This Row],[County]]<>"") -> FALSE | AD144: =AND(SUBTOTAL(2,LeadTable[[#This Row],[RecordNo]]),LeadTable[[#This Row],[City]]<>"") -> FALSE | AE144: =AND(SUBTOTAL(2,LeadTable[[#This Row],[RecordNo]]),LeadTable[[#This Row],[State]]<>"") -> FALSE | AF144: =AND(SUBTOTAL(2,LeadTable[[#This Row],[RecordNo]]),LeadTable[[#This Row],[Category]]<>"") -> TRUE | AG144: =AND(SUBTOTAL(2,LeadTable[[#This Row],[RecordNo]]),LeadTable[[#This Row],[Type]]<>"") -> TRUE | AH144: =AND(SUBTOTAL(2,LeadTable[[#This Row],[RecordNo]]),LeadTable[[#This Row],[Status]]<>"") -> TRUE | AI144: =AND(SUBTOTAL(2,LeadTable[[#This Row],[RecordNo]]),LeadTable[[#This Row],[Source]]<>"") -> FALSE | AJ144: Phone 1 | AK144: Phone 2 | AL144: Phone 3 | AM144: Email 1 | AN144: Email 2 | AO144: Email 3 | AP144: Link1 | AQ144: Link2 | AR144: 2023-03-22
B145: 20231104170301 | C145: =ROW() -> 145 | D145: Kareena Sharma | F145: Replied to my request for contacts in FB Group: The Entrepreneurial Accountants Specializes in trucking, logistics, real estate. | G145: Peer | Q145: Los Angeles | R145: CA | X145: Bus. | Y145: Active | Z145: www.kstaxcpa.com | AB145: S:\Folders\Client Files\Kareena Sharma\ | AC145: =AND(SUBTOTAL(2,LeadTable[[#This Row],[RecordNo]]),LeadTable[[#This Row],[County]]<>"") -> FALSE | AD145: =AND(SUBTOTAL(2,LeadTable[[#This Row],[RecordNo]]),LeadTable[[#This Row],[City]]<>"") -> TRUE | AE145: =AND(SUBTOTAL(2,LeadTable[[#This Row],[RecordNo]]),LeadTable[[#This Row],[State]]<>"") -> TRUE | AF145: =AND(SUBTOTAL(2,LeadTable[[#This Row],[RecordNo]]),LeadTable[[#This Row],[Category]]<>"") -> TRUE | AG145: =AND(SUBTOTAL(2,LeadTable[[#This Row],[RecordNo]]),LeadTable[[#This Row],[Type]]<>"") -> TRUE | AH145: =AND(SUBTOTAL(2,LeadTable[[#This Row],[RecordNo]]),LeadTable[[#This Row],[Status]]<>"") -> TRUE | AI145: =AND(SUBTOTAL(2,LeadTable[[#This Row],[RecordNo]]),LeadTable[[#This Row],[Source]]<>"") -> FALSE | AJ145: Phone 1 | AK145: Phone 2 | AL145: Phone 3 | AM145: Email 1 | AN145: Email 2 | AO145: Email 3 | AP145: Link 1 | AQ145: Link 2 | AR145: 2023-11-04 | AS145: 2023-12-04T14:58:05
B146: 20230921085657 | C146: =ROW() -> 146 | D146: Kate Gurau | E146: Accounting & Business Consulting, LLC | F146: From Facebook post | G146: Peer | I146: Other | P146: 5 East College Drive Suite #203 | Q146: Arlington Hieghts | R146: IL | S146: 60004 | X146: Ind. | Y146: Active | AB146: S:\Folders\Client Files\Kate Gurau\ | AC146: =AND(SUBTOTAL(2,LeadTable[[#This Row],[RecordNo]]),LeadTable[[#This Row],[County]]<>"") -> FALSE | AD146: =AND(SUBTOTAL(2,LeadTable[[#This Row],[RecordNo]]),LeadTable[[#This Row],[City]]<>"") -> TRUE | AE146: =AND(SUBTOTAL(2,LeadTable[[#This Row],[RecordNo]]),LeadTable[[#This Row],[State]]<>"") -> TRUE | AF146: =AND(SUBTOTAL(2,LeadTable[[#This Row],[RecordNo]]),LeadTable[[#This Row],[Category]]<>"") -> TRUE | AG146: =AND(SUBTOTAL(2,LeadTable[[#This Row],[RecordNo]]),LeadTable[[#This Row],[Type]]<>"") -> TRUE | AH146: =AND(SUBTOTAL(2,LeadTable[[#This Row],[RecordNo]]),LeadTable[[#This Row],[Status]]<>"") -> TRUE | AI146: =AND(SUBTOTAL(2,LeadTable[[#This Row],[RecordNo]]),LeadTable[[#This Row],[Source]]<>"") -> TRUE | AJ146: Phone 1 | AK146: Phone 2 | AL146: Phone 3 | AM146: Email 1 | AN146: Email 2 | AO146: Email 3 | AP146: Link 1 | AQ146: Link 2 | AR146: 2023-09-21 | AS146: 2023-12-04T14:58:08
B147: 356 | C147: =ROW() -> 147 | D147: Kathy Thacker | E147: Internal Revenue Service | G147: Gov. | J147: kathleen.m.thacker@irs.gov | M147: (321) 356-9082 | X147: Ind. | Y147: Inactive | AB147: S:\Folders\Client Files\Kathy Thacker\ | AC147: =AND(SUBTOTAL(2,LeadTable[[#This Row],[RecordNo]]),LeadTable[[#This Row],[County]]<>"") -> FALSE | AD147: =AND(SUBTOTAL(2,LeadTable[[#This Row],[RecordNo]]),LeadTable[[#This Row],[City]]<>"") -> FALSE | AE147: =AND(SUBTOTAL(2,LeadTable[[#This Row],[RecordNo]]),LeadTable[[#This Row],[State]]<>"") -> FALSE | AF147: =AND(SUBTOTAL(2,LeadTable[[#This Row],[RecordNo]]),LeadTable[[#This Row],[Category]]<>"") -> TRUE | AG147: =AND(SUBTOTAL(2,LeadTable[[#This Row],[RecordNo]]),LeadTable[[#This Row],[Type]]<>"") -> TRUE | AH147: =AND(SUBTOTAL(2,LeadTable[[#This Row],[RecordNo]]),LeadTable[[#This Row],[Status]]<>"") -> TRUE | AI147: =AND(SUBTOTAL(2,LeadTable[[#This Row],[RecordNo]]),LeadTable[[#This Row],[Source]]<>"") -> FALSE | AJ147: Phone 1 | AK147: Phone 2 | AL147: Phone 3 | AM147: Email 1 | AN147: Email 2 | AO147: Email 3 | AP147: Link1 | AQ147: Link2 | AR147: 2023-03-22
B148: 457 | C148: =ROW() -> 148 | D148: Keith Hodge Plumbing | G148: Bus. | M148: (423) 401-6791 | X148: Bus. | Y148: Inactive | AB148: S:\Folders\Client Files\Keith Hodge Plumbing\ | AC148: =AND(SUBTOTAL(2,LeadTable[[#This Row],[RecordNo]]),LeadTable[[#This Row],[County]]<>"") -> FALSE | AD148: =AND(SUBTOTAL(2,LeadTable[[#This Row],[RecordNo]]),LeadTable[[#This Row],[City]]<>"") -> FALSE | AE148: =AND(SUBTOTAL(2,LeadTable[[#This Row],[RecordNo]]),LeadTable[[#This Row],[State]]<>"") -> FALSE | AF148: =AND(SUBTOTAL(2,LeadTable[[#This Row],[RecordNo]]),LeadTable[[#This Row],[Category]]<>"") -> TRUE | AG148: =AND(SUBTOTAL(2,LeadTable[[#This Row],[RecordNo]]),LeadTable[[#This Row],[Type]]<>"") -> TRUE | AH148: =AND(SUBTOTAL(2,LeadTable[[#This Row],[RecordNo]]),LeadTable[[#This Row],[Status]]<>"") -> TRUE | AI148: =AND(SUBTOTAL(2,LeadTable[[#This Row],[RecordNo]]),LeadTable[[#This Row],[Source]]<>"") -> FALSE | AJ148: Phone 1 | AK148: Phone 2 | AL148: Phone 3 | AM148: Email 1 | AN148: Email 2 | AO148: Email 3 | AP148: Link1 | AQ148: Link2 | AR148: 2023-03-22
B149: 20231204151524 | C149: =ROW() -> 149 | D149: Ken and Sue Perrin | G149: Client | J149: ken@artisticreno.com | K149: sue@artisticreno.com | M149: (216) 832-4229 | N149: (216) 832-4221 | P149: 479 Elm Court | Q149: Seven Hills | R149: OH | S149: 44131 | T149: Cuyahoga | X149: Ind. | Y149: Active | Z149: http://artisticreno.com | AB149: S:\Folders\Client Files\Ken and Sue Perrin\ | AC149: =AND(SUBTOTAL(2,LeadTable[[#This Row],[RecordNo]]),LeadTable[[#This Row],[County]]<>"") -> TRUE | AD149: =AND(SUBTOTAL(2,LeadTable[[#This Row],[RecordNo]]),LeadTable[[#This Row],[City]]<>"") -> TRUE | AE149: =AND(SUBTOTAL(2,LeadTable[[#This Row],[RecordNo]]),LeadTable[[#This Row],[State]]<>"") -> TRUE | AF149: =AND(SUBTOTAL(2,LeadTable[[#This Row],[RecordNo]]),LeadTable[[#This Row],[Category]]<>"") -> TRUE | AG149: =AND(SUBTOTAL(2,LeadTable[[#This Row],[RecordNo]]),LeadTable[[#This Row],[Type]]<>"") -> TRUE | AH149: =AND(SUBTOTAL(2,LeadTable[[#This Row],[RecordNo]]),LeadTable[[#This Row],[Status]]<>"") -> TRUE | AI149: =AND(SUBTOTAL(2,LeadTable[[#This Row],[RecordNo]]),LeadTable[[#This Row],[Source]]<>"") -> FALSE | AJ149: Sue's Cell | AK149: Ken's Cell | AL149: Phone 3 | AM149: Email 1 | AN149: Email 2 | AO149: Email 3 | AP149: Link 1 | AQ149: Link 2 | AR149: 2023-12-04 | AS149: 2024-02-02T14:32:55
B150: 357 | C150: =ROW() -> 150 | D150: Kenneth And Yvonne Mee | G150: Personal | N150: (423) 304-5618 | X150: Ind. | Y150: Active | AB150: S:\Folders\Client Files\Kenneth And Yvonne Mee\ | AC150: =AND(SUBTOTAL(2,LeadTable[[#This Row],[RecordNo]]),LeadTable[[#This Row],[County]]<>"") -> FALSE | AD150: =AND(SUBTOTAL(2,LeadTable[[#This Row],[RecordNo]]),LeadTable[[#This Row],[City]]<>"") -> FALSE | AE150: =AND(SUBTOTAL(2,LeadTable[[#This Row],[RecordNo]]),LeadTable[[#This Row],[State]]<>"") -> FALSE | AF150: =AND(SUBTOTAL(2,LeadTable[[#This Row],[RecordNo]]),LeadTable[[#This Row],[Category]]<>"") -> TRUE | AG150: =AND(SUBTOTAL(2,LeadTable[[#This Row],[RecordNo]]),LeadTable[[#This Row],[Type]]<>"") -> TRUE | AH150: =AND(SUBTOTAL(2,LeadTable[[#This Row],[RecordNo]]),LeadTable[[#This Row],[Status]]<>"") -> TRUE | AI150: =AND(SUBTOTAL(2,LeadTable[[#This Row],[RecordNo]]),LeadTable[[#This Row],[Source]]<>"") -> FALSE | AJ150: Phone 1 | AK150: Phone 2 | AL150: Phone 3 | AM150: Email 1 | AN150: Email 2 | AO150: Email 3 | AP150: Link1 | AQ150: Link2 | AR150: 2023-03-22
B151: 358 | C151: =ROW() -> 151 | D151: Kenny Livingston | G151: Personal | M151: (423) 314-1827 | X151: Ind. | Y151: Active | AB151: S:\Folders\Client Files\Kenny Livingston\ | AC151: =AND(SUBTOTAL(2,LeadTable[[#This Row],[RecordNo]]),LeadTable[[#This Row],[County]]<>"") -> FALSE | AD151: =AND(SUBTOTAL(2,LeadTable[[#This Row],[RecordNo]]),LeadTable[[#This Row],[City]]<>"") -> FALSE | AE151: =AND(SUBTOTAL(2,LeadTable[[#This Row],[RecordNo]]),LeadTable[[#This Row],[State]]<>"") -> FALSE | AF151: =AND(SUBTOTAL(2,LeadTable[[#This Row],[RecordNo]]),LeadTable[[#This Row],[Category]]<>"") -> TRUE | AG151: =AND(SUBTOTAL(2,LeadTable[[#This Row],[RecordNo]]),LeadTable[[#This Row],[Type]]<>"") -> TRUE | AH151: =AND(SUBTOTAL(2,LeadTable[[#This Row],[RecordNo]]),LeadTable[[#This Row],[Status]]<>"") -> TRUE | AI151: =AND(SUBTOTAL(2,LeadTable[[#This Row],[RecordNo]]),LeadTable[[#This Row],[Source]]<>"") -> FALSE | AJ151: Phone 1 | AK151: Phone 2 | AL151: Phone 3 | AM151: Email 1 | AN151: Email 2 | AO151: Email 3 | AP151: Link1 | AQ151: Link2 | AR151: 2023-03-22 | AS151: 2024-02-02T14:29:43
B152: 359 | C152: =ROW() -> 152 | D152: Kevin Smith | E152: Internal Revenue Service | G152: Gov. | X152: Ind. | Y152: Inactive | AB152: S:\Folders\Client Files\Kevin Smith\ | AC152: =AND(SUBTOTAL(2,LeadTable[[#This Row],[RecordNo]]),LeadTable[[#This Row],[County]]<>"") -> FALSE | AD152: =AND(SUBTOTAL(2,LeadTable[[#This Row],[RecordNo]]),LeadTable[[#This Row],[City]]<>"") -> FALSE | AE152: =AND(SUBTOTAL(2,LeadTable[[#This Row],[RecordNo]]),LeadTable[[#This Row],[State]]<>"") -> FALSE | AF152: =AND(SUBTOTAL(2,LeadTable[[#This Row],[RecordNo]]),LeadTable[[#This Row],[Category]]<>"") -> TRUE | AG152: =AND(SUBTOTAL(2,LeadTable[[#This Row],[RecordNo]]),LeadTable[[#This Row],[Type]]<>"") -> TRUE | AH152: =AND(SUBTOTAL(2,LeadTable[[#This Row],[RecordNo]]),LeadTable[[#This Row],[Status]]<>"") -> TRUE | AI152: =AND(SUBTOTAL(2,LeadTable[[#This Row],[RecordNo]]),LeadTable[[#This Row],[Source]]<>"") -> FALSE | AJ152: Phone 1 | AK152: Phone 2 | AL152: Phone 3 | AM152: Email 1 | AN152: Email 2 | AO152: Email 3 | AP152: Link1 | AQ152: Link2 | AR152: 2023-03-22
B153: 458 | C153: =ROW() -> 153 | D153: Kree Investments LLC | G153: Bus. | P153: 3676 Moccassin Cv | Q153: Memphis | R153: TN | S153: 38109 | T153: Shelby | X153: Bus. | Y153: Inactive | AB153: S:\Folders\Client Files\Kree Investments LLC\ | AC153: =AND(SUBTOTAL(2,LeadTable[[#This Row],[RecordNo]]),LeadTable[[#This Row],[County]]<>"") -> TRUE | AD153: =AND(SUBTOTAL(2,LeadTable[[#This Row],[RecordNo]]),LeadTable[[#This Row],[City]]<>"") -> TRUE | AE153: =AND(SUBTOTAL(2,LeadTable[[#This Row],[RecordNo]]),LeadTable[[#This Row],[State]]<>"") -> TRUE | AF153: =AND(SUBTOTAL(2,LeadTable[[#This Row],[RecordNo]]),LeadTable[[#This Row],[Category]]<>"") -> TRUE | AG153: =AND(SUBTOTAL(2,LeadTable[[#This Row],[RecordNo]]),LeadTable[[#This Row],[Type]]<>"") -> TRUE | AH153: =AND(SUBTOTAL(2,LeadTable[[#This Row],[RecordNo]]),LeadTable[[#This Row],[Status]]<>"") -> TRUE | AI153: =AND(SUBTOTAL(2,LeadTable[[#This Row],[RecordNo]]),LeadTable[[#This Row],[Source]]<>"") -> FALSE | AJ153: Phone 1 | AK153: Phone 2 | AL153: Phone 3 | AM153: Email 1 | AN153: Email 2 | AO153: Email 3 | AP153: Link1 | AQ153: Link2 | AR153: 2023-03-22
B154: 360 | C154: =ROW() -> 154 | D154: Kristina Stephens | G154: Client | M154: (757) 477-3206 | P154: 6830 Benwood Dr | Q154: Ooltewah | R154: TN | S154: 37363 | T154: Hamilton | X154: Ind. | Y154: Inactive | AB154: S:\Folders\Client Files\Kristina Stephens\ | AC154: =AND(SUBTOTAL(2,LeadTable[[#This Row],[RecordNo]]),LeadTable[[#This Row],[County]]<>"") -> TRUE | AD154: =AND(SUBTOTAL(2,LeadTable[[#This Row],[RecordNo]]),LeadTable[[#This Row],[City]]<>"") -> TRUE | AE154: =AND(SUBTOTAL(2,LeadTable[[#This Row],[RecordNo]]),LeadTable[[#This Row],[State]]<>"") -> TRUE | AF154: =AND(SUBTOTAL(2,LeadTable[[#This Row],[RecordNo]]),LeadTable[[#This Row],[Category]]<>"") -> TRUE | AG154: =AND(SUBTOTAL(2,LeadTable[[#This Row],[RecordNo]]),LeadTable[[#This Row],[Type]]<>"") -> TRUE | AH154: =AND(SUBTOTAL(2,LeadTable[[#This Row],[RecordNo]]),LeadTable[[#This Row],[Status]]<>"") -> TRUE | AI154: =AND(SUBTOTAL(2,LeadTable[[#This Row],[RecordNo]]),LeadTable[[#This Row],[Source]]<>"") -> FALSE | AJ154: Phone 1 | AK154: Phone 2 | AL154: Phone 3 | AM154: Email 1 | AN154: Email 2 | AO154: Email 3 | AP154: Link1 | AQ154: Link2 | AR154: 2023-03-22 | AS154: 2023-12-04T15:20:29
B155: 20240104125629 | C155: =ROW() -> 155 | D155: Krystal Le | F155: Reponded to FB Post about providing rep services to tax pros | G155: Peer | J155: krystal@lecpa.co | M155: (469) 987-0618 | P155: 3901 W Walnut Street | Q155: Garland | R155: Tx | S155: 75042 | T155: Dallas | X155: Bus. | Y155: Active | Z155: lecpa.co | AB155: S:\Folders\Client Files\Krystal Le\ | AC155: =AND(SUBTOTAL(2,LeadTable[[#This Row],[RecordNo]]),LeadTable[[#This Row],[County]]<>"") -> TRUE | AD155: =AND(SUBTOTAL(2,LeadTable[[#This Row],[RecordNo]]),LeadTable[[#This Row],[City]]<>"") -> TRUE | AE155: =AND(SUBTOTAL(2,LeadTable[[#This Row],[RecordNo]]),LeadTable[[#This Row],[State]]<>"") -> TRUE | AF155: =AND(SUBTOTAL(2,LeadTable[[#This Row],[RecordNo]]),LeadTable[[#This Row],[Category]]<>"") -> TRUE | AG155: =AND(SUBTOTAL(2,LeadTable[[#This Row],[RecordNo]]),LeadTable[[#This Row],[Type]]<>"") -> TRUE | AH155: =AND(SUBTOTAL(2,LeadTable[[#This Row],[RecordNo]]),LeadTable[[#This Row],[Status]]<>"") -> TRUE | AI155: =AND(SUBTOTAL(2,LeadTable[[#This Row],[RecordNo]]),LeadTable[[#This Row],[Source]]<>"") -> FALSE | AJ155: Phone 1 | AK155: Phone 2 | AL155: Phone 3 | AM155: Email 1 | AN155: Email 2 | AO155: Email 3 | AP155: Link 1 | AQ155: Link 2 | AR155: 2024-01-04 | AS155: 2024-01-04T12:56:29
B156: 459 | C156: =ROW() -> 156 | D156: Lamberts Flooring Inc | E156: Charlie Lambert | G156: Client | J156: charlietlambert@icloud.com | M156: (865) 984-0604 | O156: (865) 454-9025 | P156: Po Box 6725 | Q156: Maryville | R156: TN | S156: 37825 | T156: Claiborne | X156: Bus. | Y156: Job Complete | AB156: S:\Folders\Client Files\Lamberts Flooring Inc\ | AC156: =AND(SUBTOTAL(2,LeadTable[[#This Row],[RecordNo]]),LeadTable[[#This Row],[County]]<>"") -> TRUE | AD156: =AND(SUBTOTAL(2,LeadTable[[#This Row],[RecordNo]]),LeadTable[[#This Row],[City]]<>"") -> TRUE | AE156: =AND(SUBTOTAL(2,LeadTable[[#This Row],[RecordNo]]),LeadTable[[#This Row],[State]]<>"") -> TRUE | AF156: =AND(SUBTOTAL(2,LeadTable[[#This Row],[RecordNo]]),LeadTable[[#This Row],[Category]]<>"") -> TRUE | AG156: =AND(SUBTOTAL(2,LeadTable[[#This Row],[RecordNo]]),LeadTable[[#This Row],[Type]]<>"") -> TRUE | AH156: =AND(SUBTOTAL(2,LeadTable[[#This Row],[RecordNo]]),LeadTable[[#This Row],[Status]]<>"") -> TRUE | AI156: =AND(SUBTOTAL(2,LeadTable[[#This Row],[RecordNo]]),LeadTable[[#This Row],[Source]]<>"") -> FALSE | AJ156: Phone 1 | AK156: Phone 2 | AL156: Phone 3 | AM156: Email 1 | AN156: Email 2 | AO156: Email 3 | AP156: Link1 | AQ156: Link2 | AR156: 2023-03-22 | AS156: 2023-09-18T11:33:43
B157: 460 | C157: =ROW() -> 157 | D157: Lamberts Southern Pies Inc | E157: Charlie T Lambert | G157: Client | M157: (865) 981-9700 | P157: Po Box 6725 | Q157: Maryville | R157: TN | S157: 37825 | T157: Claiborne | X157: Bus. | Y157: Job Complete | AB157: S:\Folders\Client Files\Lamberts Southern Pies Inc\ | AC157: =AND(SUBTOTAL(2,LeadTable[[#This Row],[RecordNo]]),LeadTable[[#This Row],[County]]<>"") -> TRUE | AD157: =AND(SUBTOTAL(2,LeadTable[[#This Row],[RecordNo]]),LeadTable[[#This Row],[City]]<>"") -> TRUE | AE157: =AND(SUBTOTAL(2,LeadTable[[#This Row],[RecordNo]]),LeadTable[[#This Row],[State]]<>"") -> TRUE | AF157: =AND(SUBTOTAL(2,LeadTable[[#This Row],[RecordNo]]),LeadTable[[#This Row],[Category]]<>"") -> TRUE | AG157: =AND(SUBTOTAL(2,LeadTable[[#This Row],[RecordNo]]),LeadTable[[#This Row],[Type]]<>"") -> TRUE | AH157: =AND(SUBTOTAL(2,LeadTable[[#This Row],[RecordNo]]),LeadTable[[#This Row],[Status]]<>"") -> TRUE | AI157: =AND(SUBTOTAL(2,LeadTable[[#This Row],[RecordNo]]),LeadTable[[#This Row],[Source]]<>"") -> FALSE | AJ157: Phone 1 | AK157: Phone 2 | AL157: Phone 3 | AM157: Email 1 | AN157: Email 2 | AO157: Email 3 | AP157: Link1 | AQ157: Link2 | AR157: 2023-03-22 | AS157: 2023-09-18T11:32:20
B158: 461 | C158: =ROW() -> 158 | D158: Larson Consulting | E158: Brent Larson | G158: Peer | P158: 9724 Kingston Pike Suite 204 | Q158: Knoxville | R158: TN | S158: 37922 | T158: Knox | X158: Bus. | Y158: Active | AB158: S:\Folders\Client Files\Larson Consulting\ | AC158: =AND(SUBTOTAL(2,LeadTable[[#This Row],[RecordNo]]),LeadTable[[#This Row],[County]]<>"") -> TRUE | AD158: =AND(SUBTOTAL(2,LeadTable[[#This Row],[RecordNo]]),LeadTable[[#This Row],[City]]<>"") -> TRUE | AE158: =AND(SUBTOTAL(2,LeadTable[[#This Row],[RecordNo]]),LeadTable[[#This Row],[State]]<>"") -> TRUE | AF158: =AND(SUBTOTAL(2,LeadTable[[#This Row],[RecordNo]]),LeadTable[[#This Row],[Category]]<>"") -> TRUE | AG158: =AND(SUBTOTAL(2,LeadTable[[#This Row],[RecordNo]]),LeadTable[[#This Row],[Type]]<>"") -> TRUE | AH158: =AND(SUBTOTAL(2,LeadTable[[#This Row],[RecordNo]]),LeadTable[[#This Row],[Status]]<>"") -> TRUE | AI158: =AND(SUBTOTAL(2,LeadTable[[#This Row],[RecordNo]]),LeadTable[[#This Row],[Source]]<>"") -> FALSE | AJ158: Phone 1 | AK158: Phone 2 | AL158: Phone 3 | AM158: Email 1 | AN158: Email 2 | AO158: Email 3 | AP158: Link1 | AQ158: Link2 | AR158: 2023-03-22 | AS158: 2024-01-31T14:24:20
B159: 361 | C159: =ROW() -> 159 | D159: Lee Turner | G159: Personal | J159: turner.lmt4@gmail.com | M159: (678) 458-1063 | X159: Ind. | Y159: Active | AB159: S:\Folders\Client Files\Lee Turner\ | AC159: =AND(SUBTOTAL(2,LeadTable[[#This Row],[RecordNo]]),LeadTable[[#This Row],[County]]<>"") -> FALSE | AD159: =AND(SUBTOTAL(2,LeadTable[[#This Row],[RecordNo]]),LeadTable[[#This Row],[City]]<>"") -> FALSE | AE159: =AND(SUBTOTAL(2,LeadTable[[#This Row],[RecordNo]]),LeadTable[[#This Row],[State]]<>"") -> FALSE | AF159: =AND(SUBTOTAL(2,LeadTable[[#This Row],[RecordNo]]),LeadTable[[#This Row],[Category]]<>"") -> TRUE | AG159: =AND(SUBTOTAL(2,LeadTable[[#This Row],[RecordNo]]),LeadTable[[#This Row],[Type]]<>"") -> TRUE | AH159: =AND(SUBTOTAL(2,LeadTable[[#This Row],[RecordNo]]),LeadTable[[#This Row],[Status]]<>"") -> TRUE | AI159: =AND(SUBTOTAL(2,LeadTable[[#This Row],[RecordNo]]),LeadTable[[#This Row],[Source]]<>"") -> FALSE | AJ159: Phone 1 | AK159: Phone 2 | AL159: Phone 3 | AM159: Email 1 | AN159: Email 2 | AO159: Email 3 | AP159: Link1 | AQ159: Link2 | AR159: 2023-03-22 | AS159: 2023-11-05T07:25:10
B160: 362 | C160: =ROW() -> 160 | D160: Linda | E160: Kristina Stephens | G160: Client | N160: (540) 460-4522 | X160: Ind. | Y160: Inactive | AB160: S:\Folders\Client Files\Linda \ | AC160: =AND(SUBTOTAL(2,LeadTable[[#This Row],[RecordNo]]),LeadTable[[#This Row],[County]]<>"") -> FALSE | AD160: =AND(SUBTOTAL(2,LeadTable[[#This Row],[RecordNo]]),LeadTable[[#This Row],[City]]<>"") -> FALSE | AE160: =AND(SUBTOTAL(2,LeadTable[[#This Row],[RecordNo]]),LeadTable[[#This Row],[State]]<>"") -> FALSE | AF160: =AND(SUBTOTAL(2,LeadTable[[#This Row],[RecordNo]]),LeadTable[[#This Row],[Category]]<>"") -> TRUE | AG160: =AND(SUBTOTAL(2,LeadTable[[#This Row],[RecordNo]]),LeadTable[[#This Row],[Type]]<>"") -> TRUE | AH160: =AND(SUBTOTAL(2,LeadTable[[#This Row],[RecordNo]]),LeadTable[[#This Row],[Status]]<>"") -> TRUE | AI160: =AND(SUBTOTAL(2,LeadTable[[#This Row],[RecordNo]]),LeadTable[[#This Row],[Source]]<>"") -> FALSE | AJ160: Phone 1 | AK160: Phone 2 | AL160: Phone 3 | AM160: Email 1 | AN160: Email 2 | AO160: Email 3 | AP160: Link1 | AQ160: Link2 | AR160: 2023-03-22 | AS160: 2024-01-04T13:10:10
B161: 20240105084828 | C161: =ROW() -> 161 | D161: Linda Holmes Cummins | F161: Replied to FB Post about rep for tax pros | G161: Peer | X161: Bus. | Y161: Active | AB161: S:\Folders\Client Files\Linda Holmes Cummins\ | AC161: =AND(SUBTOTAL(2,LeadTable[[#This Row],[RecordNo]]),LeadTable[[#This Row],[County]]<>"") -> FALSE | AD161: =AND(SUBTOTAL(2,LeadTable[[#This Row],[RecordNo]]),LeadTable[[#This Row],[City]]<>"") -> FALSE | AE161: =AND(SUBTOTAL(2,LeadTable[[#This Row],[RecordNo]]),LeadTable[[#This Row],[State]]<>"") -> FALSE | AF161: =AND(SUBTOTAL(2,LeadTable[[#This Row],[RecordNo]]),LeadTable[[#This Row],[Category]]<>"") -> TRUE | AG161: =AND(SUBTOTAL(2,LeadTable[[#This Row],[RecordNo]]),LeadTable[[#This Row],[Type]]<>"") -> TRUE | AH161: =AND(SUBTOTAL(2,LeadTable[[#This Row],[RecordNo]]),LeadTable[[#This Row],[Status]]<>"") -> TRUE | AI161: =AND(SUBTOTAL(2,LeadTable[[#This Row],[RecordNo]]),LeadTable[[#This Row],[Source]]<>"") -> FALSE | AJ161: Phone 1 | AK161: Phone 2 | AL161: Phone 3 | AM161: Email 1 | AN161: Email 2 | AO161: Email 3 | AP161: Link 1 | AQ161: Link 2 | AR161: 2024-01-05 | AS161: 2024-01-05T08:48:28
B162: 20240104131424 | C162: =ROW() -> 162 | D162: Linda Rodriguez | E162: Linda's Tax Office | F162: Replied to FB Post about rep for tax pros | G162: Peer | J162: lindastaxoffice@gmail.com | M162: (508) 347-1077 | N162: (508) 347-1055 | P162: 113 Main Street Suite 1 | Q162: Sturbridge | R162: MA | S162: 1566 | T162: Worcester | X162: Bus. | Y162: Active | Z162: https://lindarodriguezea.com/ | AB162: S:\Folders\Client Files\Linda Rodriguez\ | AC162: =AND(SUBTOTAL(2,LeadTable[[#This Row],[RecordNo]]),LeadTable[[#This Row],[County]]<>"") -> TRUE | AD162: =AND(SUBTOTAL(2,LeadTable[[#This Row],[RecordNo]]),LeadTable[[#This Row],[City]]<>"") -> TRUE | AE162: =AND(SUBTOTAL(2,LeadTable[[#This Row],[RecordNo]]),LeadTable[[#This Row],[State]]<>"") -> TRUE | AF162: =AND(SUBTOTAL(2,LeadTable[[#This Row],[RecordNo]]),LeadTable[[#This Row],[Category]]<>"") -> TRUE | AG162: =AND(SUBTOTAL(2,LeadTable[[#This Row],[RecordNo]]),LeadTable[[#This Row],[Type]]<>"") -> TRUE | AH162: =AND(SUBTOTAL(2,LeadTable[[#This Row],[RecordNo]]),LeadTable[[#This Row],[Status]]<>"") -> TRUE | AI162: =AND(SUBTOTAL(2,LeadTable[[#This Row],[RecordNo]]),LeadTable[[#This Row],[Source]]<>"") -> FALSE | AJ162: Phone 1 | AK162: Fax | AL162: Phone 3 | AM162: Email 1 | AN162: Email 2 | AO162: Email 3 | AP162: Link 1 | AQ162: Link 2 | AR162: 2024-01-04 | AS162: 2024-01-04T13:14:24
B163: 363 | C163: =ROW() -> 163 | D163: Lisa Bonham | G163: Medical | J163: lisabonahm@uniongeneral.org | X163: Ind. | Y163: Inactive | AB163: S:\Folders\Client Files\Lisa Bonham\ | AC163: =AND(SUBTOTAL(2,LeadTable[[#This Row],[RecordNo]]),LeadTable[[#This Row],[County]]<>"") -> FALSE | AD163: =AND(SUBTOTAL(2,LeadTable[[#This Row],[RecordNo]]),LeadTable[[#This Row],[City]]<>"") -> FALSE | AE163: =AND(SUBTOTAL(2,LeadTable[[#This Row],[RecordNo]]),LeadTable[[#This Row],[State]]<>"") -> FALSE | AF163: =AND(SUBTOTAL(2,LeadTable[[#This Row],[RecordNo]]),LeadTable[[#This Row],[Category]]<>"") -> TRUE | AG163: =AND(SUBTOTAL(2,LeadTable[[#This Row],[RecordNo]]),LeadTable[[#This Row],[Type]]<>"") -> TRUE | AH163: =AND(SUBTOTAL(2,LeadTable[[#This Row],[RecordNo]]),LeadTable[[#This Row],[Status]]<>"") -> TRUE | AI163: =AND(SUBTOTAL(2,LeadTable[[#This Row],[RecordNo]]),LeadTable[[#This Row],[Source]]<>"") -> FALSE | AJ163: Phone 1 | AK163: Phone 2 | AL163: Phone 3 | AM163: Email 1 | AN163: Email 2 | AO163: Email 3 | AP163: Link1 | AQ163: Link2 | AR163: 2023-03-22 | AS163: 2023-12-04T15:26:16
B164: 20240126101746 | C164: =ROW() -> 164 | D164: Lisa L Booker (LisaB) | E164: Internal Revenue Service | F164: Communications & Liasion Senior Stakeholder Liaison Area 3 | G164: IRS | J164: Lisa.L.Booker@irs.gov | M164: (615) 250-5253 | N164: (855) 221-4805 | P164: 801 Broadway | Q164: Nashville | R164: TN | S164: 37203 | T164: Davidson | X164: Ind. | Y164: Active | AB164: S:\Folders\Client Files\Lisa L Booker (LisaB)\ | AC164: =AND(SUBTOTAL(2,LeadTable[[#This Row],[RecordNo]]),LeadTable[[#This Row],[County]]<>"") -> TRUE | AD164: =AND(SUBTOTAL(2,LeadTable[[#This Row],[RecordNo]]),LeadTable[[#This Row],[City]]<>"") -> TRUE | AE164: =AND(SUBTOTAL(2,LeadTable[[#This Row],[RecordNo]]),LeadTable[[#This Row],[State]]<>"") -> TRUE | AF164: =AND(SUBTOTAL(2,LeadTable[[#This Row],[RecordNo]]),LeadTable[[#This Row],[Category]]<>"") -> TRUE | AG164: =AND(SUBTOTAL(2,LeadTable[[#This Row],[RecordNo]]),LeadTable[[#This Row],[Type]]<>"") -> TRUE | AH164: =AND(SUBTOTAL(2,LeadTable[[#This Row],[RecordNo]]),LeadTable[[#This Row],[Status]]<>"") -> TRUE | AI164: =AND(SUBTOTAL(2,LeadTable[[#This Row],[RecordNo]]),LeadTable[[#This Row],[Source]]<>"") -> FALSE | AJ164: Phone | AK164: E-Fax | AL164: Phone 3 | AM164: Email 1 | AN164: Email 2 | AO164: Email 3 | AP164: Link 1 | AQ164: Link 2 | AR164: 2024-01-26 | AS164: 2024-01-26T10:17:46
B165: 365 | C165: =ROW() -> 165 | D165: Lysandra Spate | G165: Medical | J165: lysandra_spates@memorial.org | P165: 6401 Mountain View Dr | Q165: Ooltewah | S165: 37363 | T165: Hamilton | X165: Ind. | Y165: Inactive | AB165: S:\Folders\Client Files\Lysandra Spate\ | AC165: =AND(SUBTOTAL(2,LeadTable[[#This Row],[RecordNo]]),LeadTable[[#This Row],[County]]<>"") -> TRUE | AD165: =AND(SUBTOTAL(2,LeadTable[[#This Row],[RecordNo]]),LeadTable[[#This Row],[City]]<>"") -> TRUE | AE165: =AND(SUBTOTAL(2,LeadTable[[#This Row],[RecordNo]]),LeadTable[[#This Row],[State]]<>"") -> FALSE | AF165: =AND(SUBTOTAL(2,LeadTable[[#This Row],[RecordNo]]),LeadTable[[#This Row],[Category]]<>"") -> TRUE | AG165: =AND(SUBTOTAL(2,LeadTable[[#This Row],[RecordNo]]),LeadTable[[#This Row],[Type]]<>"") -> TRUE | AH165: =AND(SUBTOTAL(2,LeadTable[[#This Row],[RecordNo]]),LeadTable[[#This Row],[Status]]<>"") -> TRUE | AI165: =AND(SUBTOTAL(2,LeadTable[[#This Row],[RecordNo]]),LeadTable[[#This Row],[Source]]<>"") -> FALSE | AJ165: Phone 1 | AK165: Phone 2 | AL165: Phone 3 | AM165: Email 1 | AN165: Email 2 | AO165: Email 3 | AP165: Link1 | AQ165: Link2 | AR165: 2023-03-22 | AS165: 2024-01-02T17:15:59
B166: 366 | C166: =ROW() -> 166 | D166: Mama | G166: Personal | J166: jerlyn1@windstream.net | M166: (706) 745-6972 | N166: (706) 400-2070 | X166: Ind. | Y166: Inactive | AB166: S:\Folders\Client Files\Mama \ | AC166: =AND(SUBTOTAL(2,LeadTable[[#This Row],[RecordNo]]),LeadTable[[#This Row],[County]]<>"") -> FALSE | AD166: =AND(SUBTOTAL(2,LeadTable[[#This Row],[RecordNo]]),LeadTable[[#This Row],[City]]<>"") -> FALSE | AE166: =AND(SUBTOTAL(2,LeadTable[[#This Row],[RecordNo]]),LeadTable[[#This Row],[State]]<>"") -> FALSE | AF166: =AND(SUBTOTAL(2,LeadTable[[#This Row],[RecordNo]]),LeadTable[[#This Row],[Category]]<>"") -> TRUE | AG166: =AND(SUBTOTAL(2,LeadTable[[#This Row],[RecordNo]]),LeadTable[[#This Row],[Type]]<>"") -> TRUE | AH166: =AND(SUBTOTAL(2,LeadTable[[#This Row],[RecordNo]]),LeadTable[[#This Row],[Status]]<>"") -> TRUE | AI166: =AND(SUBTOTAL(2,LeadTable[[#This Row],[RecordNo]]),LeadTable[[#This Row],[Source]]<>"") -> FALSE | AJ166: Phone 1 | AK166: Phone 2 | AL166: Phone 3 | AM166: Email 1 | AN166: Email 2 | AO166: Email 3 | AP166: Link1 | AQ166: Link2 | AR166: 2023-03-22
B167: 20230531093117 | C167: =ROW() -> 167 | D167: Manta | E167: Draek Greco | F167: Mon - Fri 10am to 7pm ET | G167: Vendor | J167: dgreco@manta.com | M167: 8663635010 | P167: 2600 Ashton Blvd Suite 300 | Q167: Lehi | R167: UT | S167: 84043 | T167: Utah | X167: Bus. | Y167: Active | Z167: https://www.manta.com/ | AA167: https://www.manta.com/member/m1r682v/dashboard | AB167: S:\Folders\Client Files\Manta\ | AC167: =AND(SUBTOTAL(2,LeadTable[[#This Row],[RecordNo]]),LeadTable[[#This Row],[County]]<>"") -> TRUE | AD167: =AND(SUBTOTAL(2,LeadTable[[#This Row],[RecordNo]]),LeadTable[[#This Row],[City]]<>"") -> TRUE | AE167: =AND(SUBTOTAL(2,LeadTable[[#This Row],[RecordNo]]),LeadTable[[#This Row],[State]]<>"") -> TRUE | AF167: =AND(SUBTOTAL(2,LeadTable[[#This Row],[RecordNo]]),LeadTable[[#This Row],[Category]]<>"") -> TRUE | AG167: =AND(SUBTOTAL(2,LeadTable[[#This Row],[RecordNo]]),LeadTable[[#This Row],[Type]]<>"") -> TRUE | AH167: =AND(SUBTOTAL(2,LeadTable[[#This Row],[RecordNo]]),LeadTable[[#This Row],[Status]]<>"") -> TRUE | AI167: =AND(SUBTOTAL(2,LeadTable[[#This Row],[RecordNo]]),LeadTable[[#This Row],[Source]]<>"") -> FALSE | AJ167: Phone 1 | AK167: Phone 2 | AL167: Phone 3 | AM167: Email 1 | AN167: Email 2 | AO167: Email 3 | AP167: website | AQ167: dashboard | AR167: 2023-03-22 | AS167: 2023-11-06T11:45:20
B168: 462 | C168: =ROW() -> 168 | D168: Marbella Construction | E168: Alex Richter | G168: Bus. | J168: info@marbellaconstruction.us | M168: (423) 595-2547 | P168: 9317 Fuller Rd | Q168: Chattanooga | R168: TN | S168: 37421 | T168: Hamilton | X168: Bus. | Y168: Inactive | Z168: http://marbellaconstruction.us | AB168: S:\Folders\Client Files\Marbella Construction\ | AC168: =AND(SUBTOTAL(2,LeadTable[[#This Row],[RecordNo]]),LeadTable[[#This Row],[County]]<>"") -> TRUE | AD168: =AND(SUBTOTAL(2,LeadTable[[#This Row],[RecordNo]]),LeadTable[[#This Row],[City]]<>"") -> TRUE | AE168: =AND(SUBTOTAL(2,LeadTable[[#This Row],[RecordNo]]),LeadTable[[#This Row],[State]]<>"") -> TRUE | AF168: =AND(SUBTOTAL(2,LeadTable[[#This Row],[RecordNo]]),LeadTable[[#This Row],[Category]]<>"") -> TRUE | AG168: =AND(SUBTOTAL(2,LeadTable[[#This Row],[RecordNo]]),LeadTable[[#This Row],[Type]]<>"") -> TRUE | AH168: =AND(SUBTOTAL(2,LeadTable[[#This Row],[RecordNo]]),LeadTable[[#This Row],[Status]]<>"") -> TRUE | AI168: =AND(SUBTOTAL(2,LeadTable[[#This Row],[RecordNo]]),LeadTable[[#This Row],[Source]]<>"") -> FALSE | AJ168: Phone 1 | AK168: Phone 2 | AL168: Phone 3 | AM168: Email 1 | AN168: Email 2 | AO168: Email 3 | AP168: Link1 | AQ168: Link2 | AR168: 2023-03-22
B169: 20231104171708 | C169: =ROW() -> 169 | D169: Marc Neglia | F169: Specializes in chiropractors and wellness professionals & landscapers. Replied to my request for contacts in FB Group: The Entrepreneurial Accountants | G169: Peer | J169: Mneglia22@gmail.com | M169: 609-238-8289 | Q169: Waxhaw | R169: NC | X169: Bus. | Y169: Active | AB169: S:\Folders\Client Files\Marc Neglia\ | AC169: =AND(SUBTOTAL(2,LeadTable[[#This Row],[RecordNo]]),LeadTable[[#This Row],[County]]<>"") -> FALSE | AD169: =AND(SUBTOTAL(2,LeadTable[[#This Row],[RecordNo]]),LeadTable[[#This Row],[City]]<>"") -> TRUE | AE169: =AND(SUBTOTAL(2,LeadTable[[#This Row],[RecordNo]]),LeadTable[[#This Row],[State]]<>"") -> TRUE | AF169: =AND(SUBTOTAL(2,LeadTable[[#This Row],[RecordNo]]),LeadTable[[#This Row],[Category]]<>"") -> TRUE | AG169: =AND(SUBTOTAL(2,LeadTable[[#This Row],[RecordNo]]),LeadTable[[#This Row],[Type]]<>"") -> TRUE | AH169: =AND(SUBTOTAL(2,LeadTable[[#This Row],[RecordNo]]),LeadTable[[#This Row],[Status]]<>"") -> TRUE | AI169: =AND(SUBTOTAL(2,LeadTable[[#This Row],[RecordNo]]),LeadTable[[#This Row],[Source]]<>"") -> FALSE | AJ169: Phone 1 | AK169: Phone 2 | AL169: Phone 3 | AM169: Email 1 | AN169: Email 2 | AO169: Email 3 | AP169: Link 1 | AQ169: Link 2 | AR169: 2023-11-04 | AS169: 2023-12-04T14:59:03
B170: 367 | C170: =ROW() -> 170 | D170: Marian Kessel | G170: Personal | J170: marian28@cox.net | N170: (706) 897-9611 | X170: Ind. | Y170: Active | AB170: S:\Folders\Client Files\Marian Kessel\ | AC170: =AND(SUBTOTAL(2,LeadTable[[#This Row],[RecordNo]]),LeadTable[[#This Row],[County]]<>"") -> FALSE | AD170: =AND(SUBTOTAL(2,LeadTable[[#This Row],[RecordNo]]),LeadTable[[#This Row],[City]]<>"") -> FALSE | AE170: =AND(SUBTOTAL(2,LeadTable[[#This Row],[RecordNo]]),LeadTable[[#This Row],[State]]<>"") -> FALSE | AF170: =AND(SUBTOTAL(2,LeadTable[[#This Row],[RecordNo]]),LeadTable[[#This Row],[Category]]<>"") -> TRUE | AG170: =AND(SUBTOTAL(2,LeadTable[[#This Row],[RecordNo]]),LeadTable[[#This Row],[Type]]<>"") -> TRUE | AH170: =AND(SUBTOTAL(2,LeadTable[[#This Row],[RecordNo]]),LeadTable[[#This Row],[Status]]<>"") -> TRUE | AI170: =AND(SUBTOTAL(2,LeadTable[[#This Row],[RecordNo]]),LeadTable[[#This Row],[Source]]<>"") -> FALSE | AJ170: Phone 1 | AK170: Phone 2 | AL170: Phone 3 | AM170: Email 1 | AN170: Email 2 | AO170: Email 3 | AP170: Link1 | AQ170: Link2 | AR170: 2023-03-22
B171: 20231121112838 | C171: =ROW() -> 171 | D171: Marilyn Miller | E171: Miller & McPhail | G171: Peer | J171: Mmiller@millerandmcphailcpa.com | M171: (423) 745-6680 | P171: 123 W Washington Ave | Q171: Athens | R171: TN | S171: 37303 | T171: McMinn | X171: Bus. | Y171: Active | AB171: S:\Folders\Client Files\Marilyn Miller\ | AC171: =AND(SUBTOTAL(2,LeadTable[[#This Row],[RecordNo]]),LeadTable[[#This Row],[County]]<>"") -> TRUE | AD171: =AND(SUBTOTAL(2,LeadTable[[#This Row],[RecordNo]]),LeadTable[[#This Row],[City]]<>"") -> TRUE | AE171: =AND(SUBTOTAL(2,LeadTable[[#This Row],[RecordNo]]),LeadTable[[#This Row],[State]]<>"") -> TRUE | AF171: =AND(SUBTOTAL(2,LeadTable[[#This Row],[RecordNo]]),LeadTable[[#This Row],[Category]]<>"") -> TRUE | AG171: =AND(SUBTOTAL(2,LeadTable[[#This Row],[RecordNo]]),LeadTable[[#This Row],[Type]]<>"") -> TRUE | AH171: =AND(SUBTOTAL(2,LeadTable[[#This Row],[RecordNo]]),LeadTable[[#This Row],[Status]]<>"") -> TRUE | AI171: =AND(SUBTOTAL(2,LeadTable[[#This Row],[RecordNo]]),LeadTable[[#This Row],[Source]]<>"") -> FALSE | AJ171: Phone 1 | AK171: Phone 2 | AL171: Phone 3 | AM171: Email 1 | AN171: Email 2 | AO171: Email 3 | AP171: Link 1 | AQ171: Link 2 | AR171: 2023-11-21 | AS171: 2023-12-04T15:29:23
B172: 20231104170801 | C172: =ROW() -> 172 | D172: Mark Bernstein | F172: Replied to my request for contacts in FB Group: The Entrepreneurial Accountants Specializes in law firms, and doctor's offices | G172: Peer | J172: Mark@markabernsteincpa.com | M172: 954-252-4955 | Q172: Hollywood | R172: FL | X172: Bus. | Y172: Active | AB172: S:\Folders\Client Files\Mark Bernstein\ | AC172: =AND(SUBTOTAL(2,LeadTable[[#This Row],[RecordNo]]),LeadTable[[#This Row],[County]]<>"") -> FALSE | AD172: =AND(SUBTOTAL(2,LeadTable[[#This Row],[RecordNo]]),LeadTable[[#This Row],[City]]<>"") -> TRUE | AE172: =AND(SUBTOTAL(2,LeadTable[[#This Row],[RecordNo]]),LeadTable[[#This Row],[State]]<>"") -> TRUE | AF172: =AND(SUBTOTAL(2,LeadTable[[#This Row],[RecordNo]]),LeadTable[[#This Row],[Category]]<>"") -> TRUE | AG172: =AND(SUBTOTAL(2,LeadTable[[#This Row],[RecordNo]]),LeadTable[[#This Row],[Type]]<>"") -> TRUE | AH172: =AND(SUBTOTAL(2,LeadTable[[#This Row],[RecordNo]]),LeadTable[[#This Row],[Status]]<>"") -> TRUE | AI172: =AND(SUBTOTAL(2,LeadTable[[#This Row],[RecordNo]]),LeadTable[[#This Row],[Source]]<>"") -> FALSE | AJ172: Phone 1 | AK172: Phone 2 | AL172: Phone 3 | AM172: Email 1 | AN172: Email 2 | AO172: Email 3 | AP172: Link 1 | AQ172: Link 2 | AR172: 2023-11-04 | AS172: 2023-12-04T14:59:11
B173: 368 | C173: =ROW() -> 173 | D173: Mark Schilling | E173: Internal Revenue Service | G173: Gov. | M173: (865) 591-7500 | X173: Ind. | Y173: Inactive | AB173: S:\Folders\Client Files\Mark Schilling\ | AC173: =AND(SUBTOTAL(2,LeadTable[[#This Row],[RecordNo]]),LeadTable[[#This Row],[County]]<>"") -> FALSE | AD173: =AND(SUBTOTAL(2,LeadTable[[#This Row],[RecordNo]]),LeadTable[[#This Row],[City]]<>"") -> FALSE | AE173: =AND(SUBTOTAL(2,LeadTable[[#This Row],[RecordNo]]),LeadTable[[#This Row],[State]]<>"") -> FALSE | AF173: =AND(SUBTOTAL(2,LeadTable[[#This Row],[RecordNo]]),LeadTable[[#This Row],[Category]]<>"") -> TRUE | AG173: =AND(SUBTOTAL(2,LeadTable[[#This Row],[RecordNo]]),LeadTable[[#This Row],[Type]]<>"") -> TRUE | AH173: =AND(SUBTOTAL(2,LeadTable[[#This Row],[RecordNo]]),LeadTable[[#This Row],[Status]]<>"") -> TRUE | AI173: =AND(SUBTOTAL(2,LeadTable[[#This Row],[RecordNo]]),LeadTable[[#This Row],[Source]]<>"") -> FALSE | AJ173: Phone 1 | AK173: Phone 2 | AL173: Phone 3 | AM173: Email 1 | AN173: Email 2 | AO173: Email 3 | AP173: Link1 | AQ173: Link2 | AR173: 2023-03-22
B174: 371 | C174: =ROW() -> 174 | D174: Matthew Martin | G174: Vendor | J174: matthewmartin@onpay.com | X174: Ind. | Y174: Inactive | AB174: S:\Folders\Client Files\Matthew Martin\ | AC174: =AND(SUBTOTAL(2,LeadTable[[#This Row],[RecordNo]]),LeadTable[[#This Row],[County]]<>"") -> FALSE | AD174: =AND(SUBTOTAL(2,LeadTable[[#This Row],[RecordNo]]),LeadTable[[#This Row],[City]]<>"") -> FALSE | AE174: =AND(SUBTOTAL(2,LeadTable[[#This Row],[RecordNo]]),LeadTable[[#This Row],[State]]<>"") -> FALSE | AF174: =AND(SUBTOTAL(2,LeadTable[[#This Row],[RecordNo]]),LeadTable[[#This Row],[Category]]<>"") -> TRUE | AG174: =AND(SUBTOTAL(2,LeadTable[[#This Row],[RecordNo]]),LeadTable[[#This Row],[Type]]<>"") -> TRUE | AH174: =AND(SUBTOTAL(2,LeadTable[[#This Row],[RecordNo]]),LeadTable[[#This Row],[Status]]<>"") -> TRUE | AI174: =AND(SUBTOTAL(2,LeadTable[[#This Row],[RecordNo]]),LeadTable[[#This Row],[Source]]<>"") -> FALSE | AJ174: Phone 1 | AK174: Phone 2 | AL174: Phone 3 | AM174: Email 1 | AN174: Email 2 | AO174: Email 3 | AP174: Link1 | AQ174: Link2 | AR174: 2023-03-22
B175: 372 | C175: =ROW() -> 175 | D175: Matthew Turner | G175: Personal | J175: turner.matt@mail.com | M175: (678) 849-5337 | X175: Ind. | Y175: Active | AB175: S:\Folders\Client Files\Matthew Turner\ | AC175: =AND(SUBTOTAL(2,LeadTable[[#This Row],[RecordNo]]),LeadTable[[#This Row],[County]]<>"") -> FALSE | AD175: =AND(SUBTOTAL(2,LeadTable[[#This Row],[RecordNo]]),LeadTable[[#This Row],[City]]<>"") -> FALSE | AE175: =AND(SUBTOTAL(2,LeadTable[[#This Row],[RecordNo]]),LeadTable[[#This Row],[State]]<>"") -> FALSE | AF175: =AND(SUBTOTAL(2,LeadTable[[#This Row],[RecordNo]]),LeadTable[[#This Row],[Category]]<>"") -> TRUE | AG175: =AND(SUBTOTAL(2,LeadTable[[#This Row],[RecordNo]]),LeadTable[[#This Row],[Type]]<>"") -> TRUE | AH175: =AND(SUBTOTAL(2,LeadTable[[#This Row],[RecordNo]]),LeadTable[[#This Row],[Status]]<>"") -> TRUE | AI175: =AND(SUBTOTAL(2,LeadTable[[#This Row],[RecordNo]]),LeadTable[[#This Row],[Source]]<>"") -> FALSE | AJ175: Phone 1 | AK175: Phone 2 | AL175: Phone 3 | AM175: Email 1 | AN175: Email 2 | AO175: Email 3 | AP175: Link1 | AQ175: Link2 | AR175: 2023-03-22
B176: 20230509153907 | C176: =ROW() -> 176 | D176: Maurice N Saliba | P176: 6401 Brookmead Cir | Q176: Hixson | R176: TN | S176: 37343 | T176: Hamilton | AB176: S:\Folders\Client Files\Maurice N Saliba\ | AC176: =AND(SUBTOTAL(2,LeadTable[[#This Row],[RecordNo]]),LeadTable[[#This Row],[County]]<>"") -> TRUE | AD176: =AND(SUBTOTAL(2,LeadTable[[#This Row],[RecordNo]]),LeadTable[[#This Row],[City]]<>"") -> TRUE | AE176: =AND(SUBTOTAL(2,LeadTable[[#This Row],[RecordNo]]),LeadTable[[#This Row],[State]]<>"") -> TRUE | AF176: =AND(SUBTOTAL(2,LeadTable[[#This Row],[RecordNo]]),LeadTable[[#This Row],[Category]]<>"") -> FALSE | AG176: =AND(SUBTOTAL(2,LeadTable[[#This Row],[RecordNo]]),LeadTable[[#This Row],[Type]]<>"") -> FALSE | AH176: =AND(SUBTOTAL(2,LeadTable[[#This Row],[RecordNo]]),LeadTable[[#This Row],[Status]]<>"") -> FALSE | AI176: =AND(SUBTOTAL(2,LeadTable[[#This Row],[RecordNo]]),LeadTable[[#This Row],[Source]]<>"") -> FALSE | AJ176: Phone 1 | AK176: Phone 2 | AL176: Phone 3 | AM176: Email 1 | AN176: Email 2 | AO176: Email 3 | AP176: Link1 | AQ176: Link2 | AR176: 2023-03-22 | AS176: 2023-12-04T15:26:49
B177: 373 | C177: =ROW() -> 177 | D177: Meagan Turner | G177: Personal | J177: meaganturner16@gmail.com | X177: Ind. | Y177: Active | AB177: S:\Folders\Client Files\Meagan Turner\ | AC177: =AND(SUBTOTAL(2,LeadTable[[#This Row],[RecordNo]]),LeadTable[[#This Row],[County]]<>"") -> FALSE | AD177: =AND(SUBTOTAL(2,LeadTable[[#This Row],[RecordNo]]),LeadTable[[#This Row],[City]]<>"") -> FALSE | AE177: =AND(SUBTOTAL(2,LeadTable[[#This Row],[RecordNo]]),LeadTable[[#This Row],[State]]<>"") -> FALSE | AF177: =AND(SUBTOTAL(2,LeadTable[[#This Row],[RecordNo]]),LeadTable[[#This Row],[Category]]<>"") -> TRUE | AG177: =AND(SUBTOTAL(2,LeadTable[[#This Row],[RecordNo]]),LeadTable[[#This Row],[Type]]<>"") -> TRUE | AH177: =AND(SUBTOTAL(2,LeadTable[[#This Row],[RecordNo]]),LeadTable[[#This Row],[Status]]<>"") -> TRUE | AI177: =AND(SUBTOTAL(2,LeadTable[[#This Row],[RecordNo]]),LeadTable[[#This Row],[Source]]<>"") -> FALSE | AJ177: Phone 1 | AK177: Phone 2 | AL177: Phone 3 | AM177: Email 1 | AN177: Email 2 | AO177: Email 3 | AP177: Link1 | AQ177: Link2 | AR177: 2023-03-22 | AS177: 2023-06-30T16:30:36
B178: 374 | C178: =ROW() -> 178 | D178: Melanie Butler | G178: Bus. | J178: melanie@chattanoogapm.com | M178: (706) 639-5808 | X178: Ind. | Y178: Inactive | AB178: S:\Folders\Client Files\Melanie Butler\ | AC178: =AND(SUBTOTAL(2,LeadTable[[#This Row],[RecordNo]]),LeadTable[[#This Row],[County]]<>"") -> FALSE | AD178: =AND(SUBTOTAL(2,LeadTable[[#This Row],[RecordNo]]),LeadTable[[#This Row],[City]]<>"") -> FALSE | AE178: =AND(SUBTOTAL(2,LeadTable[[#This Row],[RecordNo]]),LeadTable[[#This Row],[State]]<>"") -> FALSE | AF178: =AND(SUBTOTAL(2,LeadTable[[#This Row],[RecordNo]]),LeadTable[[#This Row],[Category]]<>"") -> TRUE | AG178: =AND(SUBTOTAL(2,LeadTable[[#This Row],[RecordNo]]),LeadTable[[#This Row],[Type]]<>"") -> TRUE | AH178: =AND(SUBTOTAL(2,LeadTable[[#This Row],[RecordNo]]),LeadTable[[#This Row],[Status]]<>"") -> TRUE | AI178: =AND(SUBTOTAL(2,LeadTable[[#This Row],[RecordNo]]),LeadTable[[#This Row],[Source]]<>"") -> FALSE | AJ178: Phone 1 | AK178: Phone 2 | AL178: Phone 3 | AM178: Email 1 | AN178: Email 2 | AO178: Email 3 | AP178: Link1 | AQ178: Link2 | AR178: 2023-03-22 | AS178: 2023-11-06T11:35:34
B179: 375 | C179: =ROW() -> 179 | D179: Melissa Dunn | E179: Larson Consulting | F179: https://www.larsonknox.com/ | G179: Peer | J179: melissa@larsonknoxville.com | M179: (865) 766-4720 | P179: 9724 Kingston Pike | Q179: Knoxville | R179: TN | S179: 37922 | T179: Knox | X179: Ind. | Y179: Active | AB179: S:\Folders\Client Files\Larson Consulting\ | AC179: =AND(SUBTOTAL(2,LeadTable[[#This Row],[RecordNo]]),LeadTable[[#This Row],[County]]<>"") -> TRUE | AD179: =AND(SUBTOTAL(2,LeadTable[[#This Row],[RecordNo]]),LeadTable[[#This Row],[City]]<>"") -> TRUE | AE179: =AND(SUBTOTAL(2,LeadTable[[#This Row],[RecordNo]]),LeadTable[[#This Row],[State]]<>"") -> TRUE | AF179: =AND(SUBTOTAL(2,LeadTable[[#This Row],[RecordNo]]),LeadTable[[#This Row],[Category]]<>"") -> TRUE | AG179: =AND(SUBTOTAL(2,LeadTable[[#This Row],[RecordNo]]),LeadTable[[#This Row],[Type]]<>"") -> TRUE | AH179: =AND(SUBTOTAL(2,LeadTable[[#This Row],[RecordNo]]),LeadTable[[#This Row],[Status]]<>"") -> TRUE | AI179: =AND(SUBTOTAL(2,LeadTable[[#This Row],[RecordNo]]),LeadTable[[#This Row],[Source]]<>"") -> FALSE | AJ179: Phone 1 | AK179: Phone 2 | AL179: Phone 3 | AM179: Email 1 | AN179: Email 2 | AO179: Email 3 | AP179: Link1 | AQ179: Link2 | AR179: 2023-03-22 | AS179: 2024-01-31T14:24:23
B180: 376 | C180: =ROW() -> 180 | D180: Melody Ives | G180: Personal | N180: (772) 214-6598 | X180: Ind. | Y180: Active | AB180: S:\Folders\Client Files\Melody Ives\ | AC180: =AND(SUBTOTAL(2,LeadTable[[#This Row],[RecordNo]]),LeadTable[[#This Row],[County]]<>"") -> FALSE | AD180: =AND(SUBTOTAL(2,LeadTable[[#This Row],[RecordNo]]),LeadTable[[#This Row],[City]]<>"") -> FALSE | AE180: =AND(SUBTOTAL(2,LeadTable[[#This Row],[RecordNo]]),LeadTable[[#This Row],[State]]<>"") -> FALSE | AF180: =AND(SUBTOTAL(2,LeadTable[[#This Row],[RecordNo]]),LeadTable[[#This Row],[Category]]<>"") -> TRUE | AG180: =AND(SUBTOTAL(2,LeadTable[[#This Row],[RecordNo]]),LeadTable[[#This Row],[Type]]<>"") -> TRUE | AH180: =AND(SUBTOTAL(2,LeadTable[[#This Row],[RecordNo]]),LeadTable[[#This Row],[Status]]<>"") -> TRUE | AI180: =AND(SUBTOTAL(2,LeadTable[[#This Row],[RecordNo]]),LeadTable[[#This Row],[Source]]<>"") -> FALSE | AJ180: Phone 1 | AK180: Phone 2 | AL180: Phone 3 | AM180: Email 1 | AN180: Email 2 | AO180: Email 3 | AP180: Link1 | AQ180: Link2 | AR180: 2023-03-22
B181: 20231112094253 | C181: =ROW() -> 181 | D181: Michael Lermer | E181: Barbara Lermer | F181: Referred by Stephanie Heredia | G181: Client | J181: mslermer@gmail.com | M181: (239) 357-1809 | P181: 5530 Turtle Crossing Loop | Q181: Tampa | R181: FL | S181: 33625 | T181: Hillsborough | X181: Ind. | Y181: Inactive | AB181: S:\Folders\Client Files\Michael Lermer\ | AC181: =AND(SUBTOTAL(2,LeadTable[[#This Row],[RecordNo]]),LeadTable[[#This Row],[County]]<>"") -> TRUE | AD181: =AND(SUBTOTAL(2,LeadTable[[#This Row],[RecordNo]]),LeadTable[[#This Row],[City]]<>"") -> TRUE | AE181: =AND(SUBTOTAL(2,LeadTable[[#This Row],[RecordNo]]),LeadTable[[#This Row],[State]]<>"") -> TRUE | AF181: =AND(SUBTOTAL(2,LeadTable[[#This Row],[RecordNo]]),LeadTable[[#This Row],[Category]]<>"") -> TRUE | AG181: =AND(SUBTOTAL(2,LeadTable[[#This Row],[RecordNo]]),LeadTable[[#This Row],[Type]]<>"") -> TRUE | AH181: =AND(SUBTOTAL(2,LeadTable[[#This Row],[RecordNo]]),LeadTable[[#This Row],[Status]]<>"") -> TRUE | AI181: =AND(SUBTOTAL(2,LeadTable[[#This Row],[RecordNo]]),LeadTable[[#This Row],[Source]]<>"") -> FALSE | AJ181: Phone 1 | AK181: Phone 2 | AL181: Phone 3 | AM181: Email 1 | AN181: Email 2 | AO181: Email 3 | AP181: Link 1 | AQ181: Link 2 | AR181: 2023-11-12 | AS181: 2024-01-17T13:02:04
B182: 20240117161531 | C182: =ROW() -> 182 | D182: Michael Walker | F182: RO: Julie Lund (-3 hrs) (702) 868-5370 Fax: (866) 759-9449 Group # (702) 868-5005 110 N City Parkway Las Vegas, NV 89106 | G182: Client | J182: mtime88@gmail.com | M182: (215) 892-3322 | P182: 12656 Southern Highlands Pkwy, #1040 | Q182: Las Vegas | R182: NV | S182: 89141 | T182: Clark | X182: Ind. | Y182: Active | AB182: S:\Folders\Client Files\Michael Walker\ | AC182: =AND(SUBTOTAL(2,LeadTable[[#This Row],[RecordNo]]),LeadTable[[#This Row],[County]]<>"") -> TRUE | AD182: =AND(SUBTOTAL(2,LeadTable[[#This Row],[RecordNo]]),LeadTable[[#This Row],[City]]<>"") -> TRUE | AE182: =AND(SUBTOTAL(2,LeadTable[[#This Row],[RecordNo]]),LeadTable[[#This Row],[State]]<>"") -> TRUE | AF182: =AND(SUBTOTAL(2,LeadTable[[#This Row],[RecordNo]]),LeadTable[[#This Row],[Category]]<>"") -> TRUE | AG182: =AND(SUBTOTAL(2,LeadTable[[#This Row],[RecordNo]]),LeadTable[[#This Row],[Type]]<>"") -> TRUE | AH182: =AND(SUBTOTAL(2,LeadTable[[#This Row],[RecordNo]]),LeadTable[[#This Row],[Status]]<>"") -> TRUE | AI182: =AND(SUBTOTAL(2,LeadTable[[#This Row],[RecordNo]]),LeadTable[[#This Row],[Source]]<>"") -> FALSE | AJ182: Phone 1 | AK182: Phone 2 | AL182: Phone 3 | AM182: Email 1 | AN182: Email 2 | AO182: Email 3 | AP182: Link 1 | AQ182: Link 2 | AR182: 2024-01-17 | AS182: 2024-02-02T11:44:34
B183: 377 | C183: =ROW() -> 183 | D183: Miguel Paris | G183: Personal | M183: (423) 394-7939 | X183: Ind. | Y183: Inactive | AB183: S:\Folders\Client Files\Miguel Paris\ | AC183: =AND(SUBTOTAL(2,LeadTable[[#This Row],[RecordNo]]),LeadTable[[#This Row],[County]]<>"") -> FALSE | AD183: =AND(SUBTOTAL(2,LeadTable[[#This Row],[RecordNo]]),LeadTable[[#This Row],[City]]<>"") -> FALSE | AE183: =AND(SUBTOTAL(2,LeadTable[[#This Row],[RecordNo]]),LeadTable[[#This Row],[State]]<>"") -> FALSE | AF183: =AND(SUBTOTAL(2,LeadTable[[#This Row],[RecordNo]]),LeadTable[[#This Row],[Category]]<>"") -> TRUE | AG183: =AND(SUBTOTAL(2,LeadTable[[#This Row],[RecordNo]]),LeadTable[[#This Row],[Type]]<>"") -> TRUE | AH183: =AND(SUBTOTAL(2,LeadTable[[#This Row],[RecordNo]]),LeadTable[[#This Row],[Status]]<>"") -> TRUE | AI183: =AND(SUBTOTAL(2,LeadTable[[#This Row],[RecordNo]]),LeadTable[[#This Row],[Source]]<>"") -> FALSE | AJ183: Phone 1 | AK183: Phone 2 | AL183: Phone 3 | AM183: Email 1 | AN183: Email 2 | AO183: Email 3 | AP183: Link1 | AQ183: Link2 | AR183: 2023-03-22
B184: 378 | C184: =ROW() -> 184 | D184: Mike Kessel | G184: Personal | M184: (850) 375-0221 | X184: Ind. | Y184: Active | AB184: S:\Folders\Client Files\Mike Kessel\ | AC184: =AND(SUBTOTAL(2,LeadTable[[#This Row],[RecordNo]]),LeadTable[[#This Row],[County]]<>"") -> FALSE | AD184: =AND(SUBTOTAL(2,LeadTable[[#This Row],[RecordNo]]),LeadTable[[#This Row],[City]]<>"") -> FALSE | AE184: =AND(SUBTOTAL(2,LeadTable[[#This Row],[RecordNo]]),LeadTable[[#This Row],[State]]<>"") -> FALSE | AF184: =AND(SUBTOTAL(2,LeadTable[[#This Row],[RecordNo]]),LeadTable[[#This Row],[Category]]<>"") -> TRUE | AG184: =AND(SUBTOTAL(2,LeadTable[[#This Row],[RecordNo]]),LeadTable[[#This Row],[Type]]<>"") -> TRUE | AH184: =AND(SUBTOTAL(2,LeadTable[[#This Row],[RecordNo]]),LeadTable[[#This Row],[Status]]<>"") -> TRUE | AI184: =AND(SUBTOTAL(2,LeadTable[[#This Row],[RecordNo]]),LeadTable[[#This Row],[Source]]<>"") -> FALSE | AJ184: Phone 1 | AK184: Phone 2 | AL184: Phone 3 | AM184: Email 1 | AN184: Email 2 | AO184: Email 3 | AP184: Link1 | AQ184: Link2 | AR184: 2023-03-22 | AS184: 2023-11-21T11:33:04
B185: 20231121112943 | C185: =ROW() -> 185 | D185: Miller & McPhail | E185: Marilyn Miller | G185: Peer | M185: (423) 745-6680 | P185: 123 W Washington Ave | Q185: Athens | R185: TN | S185: 37303 | T185: McMinn | X185: Bus. | Y185: Active | AB185: S:\Folders\Client Files\Miller and McPhail\ | AC185: =AND(SUBTOTAL(2,LeadTable[[#This Row],[RecordNo]]),LeadTable[[#This Row],[County]]<>"") -> TRUE | AD185: =AND(SUBTOTAL(2,LeadTable[[#This Row],[RecordNo]]),LeadTable[[#This Row],[City]]<>"") -> TRUE | AE185: =AND(SUBTOTAL(2,LeadTable[[#This Row],[RecordNo]]),LeadTable[[#This Row],[State]]<>"") -> TRUE | AF185: =AND(SUBTOTAL(2,LeadTable[[#This Row],[RecordNo]]),LeadTable[[#This Row],[Category]]<>"") -> TRUE | AG185: =AND(SUBTOTAL(2,LeadTable[[#This Row],[RecordNo]]),LeadTable[[#This Row],[Type]]<>"") -> TRUE | AH185: =AND(SUBTOTAL(2,LeadTable[[#This Row],[RecordNo]]),LeadTable[[#This Row],[Status]]<>"") -> TRUE | AI185: =AND(SUBTOTAL(2,LeadTable[[#This Row],[RecordNo]]),LeadTable[[#This Row],[Source]]<>"") -> FALSE | AJ185: Phone 1 | AK185: Phone 2 | AL185: Phone 3 | AM185: Email 1 | AN185: Email 2 | AO185: Email 3 | AP185: Link 1 | AQ185: Link 2 | AR185: 2023-11-21 | AS185: 2024-01-31T14:24:13
B186: 379 | C186: =ROW() -> 186 | D186: Mitch Hackney | G186: Bus. | M186: (423) 593-5440 | X186: Ind. | Y186: Inactive | AB186: S:\Folders\Client Files\Mitch Hackney\ | AC186: =AND(SUBTOTAL(2,LeadTable[[#This Row],[RecordNo]]),LeadTable[[#This Row],[County]]<>"") -> FALSE | AD186: =AND(SUBTOTAL(2,LeadTable[[#This Row],[RecordNo]]),LeadTable[[#This Row],[City]]<>"") -> FALSE | AE186: =AND(SUBTOTAL(2,LeadTable[[#This Row],[RecordNo]]),LeadTable[[#This Row],[State]]<>"") -> FALSE | AF186: =AND(SUBTOTAL(2,LeadTable[[#This Row],[RecordNo]]),LeadTable[[#This Row],[Category]]<>"") -> TRUE | AG186: =AND(SUBTOTAL(2,LeadTable[[#This Row],[RecordNo]]),LeadTable[[#This Row],[Type]]<>"") -> TRUE | AH186: =AND(SUBTOTAL(2,LeadTable[[#This Row],[RecordNo]]),LeadTable[[#This Row],[Status]]<>"") -> TRUE | AI186: =AND(SUBTOTAL(2,LeadTable[[#This Row],[RecordNo]]),LeadTable[[#This Row],[Source]]<>"") -> FALSE | AJ186: Phone 1 | AK186: Phone 2 | AL186: Phone 3 | AM186: Email 1 | AN186: Email 2 | AO186: Email 3 | AP186: Link1 | AQ186: Link2 | AR186: 2023-03-22
B187: 20231204171742 | C187: =ROW() -> 187 | D187: Nancy Alison Moreland | F187: from FB | G187: Peer | J187: Nancy@nmorelandcpa.com | M187: (850) 339-3937 | N187: (850) 888-3725 | P187: 1704-4 Metropolitan Blvd | Q187: Tallahassee | R187: FL | S187: 32308 | T187: Leon | X187: Bus. | Y187: Active | Z187: https://nmorelandcpa.com/ | AB187: S:\Folders\Client Files\Nancy Alison Moreland\ | AC187: =AND(SUBTOTAL(2,LeadTable[[#This Row],[RecordNo]]),LeadTable[[#This Row],[County]]<>"") -> TRUE | AD187: =AND(SUBTOTAL(2,LeadTable[[#This Row],[RecordNo]]),LeadTable[[#This Row],[City]]<>"") -> TRUE | AE187: =AND(SUBTOTAL(2,LeadTable[[#This Row],[RecordNo]]),LeadTable[[#This Row],[State]]<>"") -> TRUE | AF187: =AND(SUBTOTAL(2,LeadTable[[#This Row],[RecordNo]]),LeadTable[[#This Row],[Category]]<>"") -> TRUE | AG187: =AND(SUBTOTAL(2,LeadTable[[#This Row],[RecordNo]]),LeadTable[[#This Row],[Type]]<>"") -> TRUE | AH187: =AND(SUBTOTAL(2,LeadTable[[#This Row],[RecordNo]]),LeadTable[[#This Row],[Status]]<>"") -> TRUE | AI187: =AND(SUBTOTAL(2,LeadTable[[#This Row],[RecordNo]]),LeadTable[[#This Row],[Source]]<>"") -> FALSE | AJ187: Office | AK187: Fax | AL187: Phone 3 | AM187: Email 1 | AN187: Email 2 | AO187: Email 3 | AP187: Link 1 | AQ187: Link 2 | AR187: 2023-12-04 | AS187: 2024-01-05T17:19:21
B188: 380 | C188: =ROW() -> 188 | D188: Nancy Crowder | G188: Personal | M188: (423) 580-9499 | X188: Ind. | Y188: Inactive | AB188: S:\Folders\Client Files\Nancy Crowder\ | AC188: =AND(SUBTOTAL(2,LeadTable[[#This Row],[RecordNo]]),LeadTable[[#This Row],[County]]<>"") -> FALSE | AD188: =AND(SUBTOTAL(2,LeadTable[[#This Row],[RecordNo]]),LeadTable[[#This Row],[City]]<>"") -> FALSE | AE188: =AND(SUBTOTAL(2,LeadTable[[#This Row],[RecordNo]]),LeadTable[[#This Row],[State]]<>"") -> FALSE | AF188: =AND(SUBTOTAL(2,LeadTable[[#This Row],[RecordNo]]),LeadTable[[#This Row],[Category]]<>"") -> TRUE | AG188: =AND(SUBTOTAL(2,LeadTable[[#This Row],[RecordNo]]),LeadTable[[#This Row],[Type]]<>"") -> TRUE | AH188: =AND(SUBTOTAL(2,LeadTable[[#This Row],[RecordNo]]),LeadTable[[#This Row],[Status]]<>"") -> TRUE | AI188: =AND(SUBTOTAL(2,LeadTable[[#This Row],[RecordNo]]),LeadTable[[#This Row],[Source]]<>"") -> FALSE | AJ188: Phone 1 | AK188: Phone 2 | AL188: Phone 3 | AM188: Email 1 | AN188: Email 2 | AO188: Email 3 | AP188: Link1 | AQ188: Link2 | AR188: 2023-03-22
B189: 20230922154733 | C189: =ROW() -> 189 | D189: Nine Mile Media | E189: Daniel Todd | F189: Facebook Suzanne Missy Simonetta-Lee aka: H.G. Todd, LLC | G189: Client | I189: Referral | X189: Bus. | Y189: Inactive | AB189: S:\Folders\Client Files\Nine Mile Media\ | AC189: =AND(SUBTOTAL(2,LeadTable[[#This Row],[RecordNo]]),LeadTable[[#This Row],[County]]<>"") -> FALSE | AD189: =AND(SUBTOTAL(2,LeadTable[[#This Row],[RecordNo]]),LeadTable[[#This Row],[City]]<>"") -> FALSE | AE189: =AND(SUBTOTAL(2,LeadTable[[#This Row],[RecordNo]]),LeadTable[[#This Row],[State]]<>"") -> FALSE | AF189: =AND(SUBTOTAL(2,LeadTable[[#This Row],[RecordNo]]),LeadTable[[#This Row],[Category]]<>"") -> TRUE | AG189: =AND(SUBTOTAL(2,LeadTable[[#This Row],[RecordNo]]),LeadTable[[#This Row],[Type]]<>"") -> TRUE | AH189: =AND(SUBTOTAL(2,LeadTable[[#This Row],[RecordNo]]),LeadTable[[#This Row],[Status]]<>"") -> TRUE | AI189: =AND(SUBTOTAL(2,LeadTable[[#This Row],[RecordNo]]),LeadTable[[#This Row],[Source]]<>"") -> TRUE | AJ189: Phone 1 | AK189: Phone 2 | AL189: Phone 3 | AM189: Email 1 | AN189: Email 2 | AO189: Email 3 | AP189: Link 1 | AQ189: Link 2 | AR189: 2023-09-22 | AS189: 2024-01-17T13:01:19
B190: 463 | C190: =ROW() -> 190 | D190: Ntown Motorworx | E190: Sean Turner | G190: Bus. | J190: sean@ntownmotorworx.com | M190: (423) 541-3800 | P190: 10607 Lee Hwy | Q190: Mcdonald | R190: TN | S190: 37353 | T190: Bradley | X190: Ind. | Y190: Inactive | AB190: S:\Folders\Client Files\Ntown Motorworx\ | AC190: =AND(SUBTOTAL(2,LeadTable[[#This Row],[RecordNo]]),LeadTable[[#This Row],[County]]<>"") -> TRUE | AD190: =AND(SUBTOTAL(2,LeadTable[[#This Row],[RecordNo]]),LeadTable[[#This Row],[City]]<>"") -> TRUE | AE190: =AND(SUBTOTAL(2,LeadTable[[#This Row],[RecordNo]]),LeadTable[[#This Row],[State]]<>"") -> TRUE | AF190: =AND(SUBTOTAL(2,LeadTable[[#This Row],[RecordNo]]),LeadTable[[#This Row],[Category]]<>"") -> TRUE | AG190: =AND(SUBTOTAL(2,LeadTable[[#This Row],[RecordNo]]),LeadTable[[#This Row],[Type]]<>"") -> TRUE | AH190: =AND(SUBTOTAL(2,LeadTable[[#This Row],[RecordNo]]),LeadTable[[#This Row],[Status]]<>"") -> TRUE | AI190: =AND(SUBTOTAL(2,LeadTable[[#This Row],[RecordNo]]),LeadTable[[#This Row],[Source]]<>"") -> FALSE | AJ190: Phone 1 | AK190: Phone 2 | AL190: Phone 3 | AM190: Email 1 | AN190: Email 2 | AO190: Email 3 | AP190: Link1 | AQ190: Link2 | AR190: 2023-03-22
B191: 383 | C191: =ROW() -> 191 | D191: Omar Nunez | G191: Personal | M191: (423) 243-8068 | X191: Ind. | Y191: Inactive | AB191: S:\Folders\Client Files\Omar Nunez\ | AC191: =AND(SUBTOTAL(2,LeadTable[[#This Row],[RecordNo]]),LeadTable[[#This Row],[County]]<>"") -> FALSE | AD191: =AND(SUBTOTAL(2,LeadTable[[#This Row],[RecordNo]]),LeadTable[[#This Row],[City]]<>"") -> FALSE | AE191: =AND(SUBTOTAL(2,LeadTable[[#This Row],[RecordNo]]),LeadTable[[#This Row],[State]]<>"") -> FALSE | AF191: =AND(SUBTOTAL(2,LeadTable[[#This Row],[RecordNo]]),LeadTable[[#This Row],[Category]]<>"") -> TRUE | AG191: =AND(SUBTOTAL(2,LeadTable[[#This Row],[RecordNo]]),LeadTable[[#This Row],[Type]]<>"") -> TRUE | AH191: =AND(SUBTOTAL(2,LeadTable[[#This Row],[RecordNo]]),LeadTable[[#This Row],[Status]]<>"") -> TRUE | AI191: =AND(SUBTOTAL(2,LeadTable[[#This Row],[RecordNo]]),LeadTable[[#This Row],[Source]]<>"") -> FALSE | AJ191: Phone 1 | AK191: Phone 2 | AL191: Phone 3 | AM191: Email 1 | AN191: Email 2 | AO191: Email 3 | AP191: Link1 | AQ191: Link2 | AR191: 2023-03-22
B192: 464 | C192: =ROW() -> 192 | D192: Onpay | G192: Vendor | X192: Bus. | Y192: Inactive | AB192: S:\Folders\Client Files\Onpay\ | AC192: =AND(SUBTOTAL(2,LeadTable[[#This Row],[RecordNo]]),LeadTable[[#This Row],[County]]<>"") -> FALSE | AD192: =AND(SUBTOTAL(2,LeadTable[[#This Row],[RecordNo]]),LeadTable[[#This Row],[City]]<>"") -> FALSE | AE192: =AND(SUBTOTAL(2,LeadTable[[#This Row],[RecordNo]]),LeadTable[[#This Row],[State]]<>"") -> FALSE | AF192: =AND(SUBTOTAL(2,LeadTable[[#This Row],[RecordNo]]),LeadTable[[#This Row],[Category]]<>"") -> TRUE | AG192: =AND(SUBTOTAL(2,LeadTable[[#This Row],[RecordNo]]),LeadTable[[#This Row],[Type]]<>"") -> TRUE | AH192: =AND(SUBTOTAL(2,LeadTable[[#This Row],[RecordNo]]),LeadTable[[#This Row],[Status]]<>"") -> TRUE | AI192: =AND(SUBTOTAL(2,LeadTable[[#This Row],[RecordNo]]),LeadTable[[#This Row],[Source]]<>"") -> FALSE | AJ192: Phone 1 | AK192: Phone 2 | AL192: Phone 3 | AM192: Email 1 | AN192: Email 2 | AO192: Email 3 | AP192: Link1 | AQ192: Link2 | AR192: 2023-03-22
B193: 465 | C193: =ROW() -> 193 | D193: Ooltewah Vision LLC | E193: John Mullins | G193: Bus. | M193: (423) 910-0412 | P193: 5598 Snow Hill Rd | Q193: Ooltewah | R193: TN | S193: 37363 | T193: Hamilton | X193: Bus. | Y193: Active | AB193: S:\Folders\Client Files\Ooltewah Vision LLC\ | AC193: =AND(SUBTOTAL(2,LeadTable[[#This Row],[RecordNo]]),LeadTable[[#This Row],[County]]<>"") -> TRUE | AD193: =AND(SUBTOTAL(2,LeadTable[[#This Row],[RecordNo]]),LeadTable[[#This Row],[City]]<>"") -> TRUE | AE193: =AND(SUBTOTAL(2,LeadTable[[#This Row],[RecordNo]]),LeadTable[[#This Row],[State]]<>"") -> TRUE | AF193: =AND(SUBTOTAL(2,LeadTable[[#This Row],[RecordNo]]),LeadTable[[#This Row],[Category]]<>"") -> TRUE | AG193: =AND(SUBTOTAL(2,LeadTable[[#This Row],[RecordNo]]),LeadTable[[#This Row],[Type]]<>"") -> TRUE | AH193: =AND(SUBTOTAL(2,LeadTable[[#This Row],[RecordNo]]),LeadTable[[#This Row],[Status]]<>"") -> TRUE | AI193: =AND(SUBTOTAL(2,LeadTable[[#This Row],[RecordNo]]),LeadTable[[#This Row],[Source]]<>"") -> FALSE | AJ193: Phone 1 | AK193: Phone 2 | AL193: Phone 3 | AM193: Email 1 | AN193: Email 2 | AO193: Email 3 | AP193: Link1 | AQ193: Link2 | AR193: 2023-03-22
B194: 20240104132259 | C194: =ROW() -> 194 | D194: Orlando R Dizon Esq | E194: Tax Resolution, Esq | F194: Replied to FB Post about rep for tax pros | G194: Peer | J194: attyorly@serf.me | M194: (832) 674-0829 | Q194: Houston | R194: TX | X194: Bus. | Y194: Active | Z194: taxresolution.esq | AB194: S:\Folders\Client Files\Orlando R Dizon Esq\ | AC194: =AND(SUBTOTAL(2,LeadTable[[#This Row],[RecordNo]]),LeadTable[[#This Row],[County]]<>"") -> FALSE | AD194: =AND(SUBTOTAL(2,LeadTable[[#This Row],[RecordNo]]),LeadTable[[#This Row],[City]]<>"") -> TRUE | AE194: =AND(SUBTOTAL(2,LeadTable[[#This Row],[RecordNo]]),LeadTable[[#This Row],[State]]<>"") -> TRUE | AF194: =AND(SUBTOTAL(2,LeadTable[[#This Row],[RecordNo]]),LeadTable[[#This Row],[Category]]<>"") -> TRUE | AG194: =AND(SUBTOTAL(2,LeadTable[[#This Row],[RecordNo]]),LeadTable[[#This Row],[Type]]<>"") -> TRUE | AH194: =AND(SUBTOTAL(2,LeadTable[[#This Row],[RecordNo]]),LeadTable[[#This Row],[Status]]<>"") -> TRUE | AI194: =AND(SUBTOTAL(2,LeadTable[[#This Row],[RecordNo]]),LeadTable[[#This Row],[Source]]<>"") -> FALSE | AJ194: Phone 1 | AK194: Phone 2 | AL194: Phone 3 | AM194: Email 1 | AN194: Email 2 | AO194: Email 3 | AP194: Link 1 | AQ194: Link 2 | AR194: 2024-01-04 | AS194: 2024-01-04T13:22:59
B195: 386 | C195: =ROW() -> 195 | D195: Patty Ives | G195: Personal | M195: (954) 415-9055 | N195: (772) 341-0885 | X195: Ind. | Y195: Active | AB195: S:\Folders\Client Files\Patty Ives\ | AC195: =AND(SUBTOTAL(2,LeadTable[[#This Row],[RecordNo]]),LeadTable[[#This Row],[County]]<>"") -> FALSE | AD195: =AND(SUBTOTAL(2,LeadTable[[#This Row],[RecordNo]]),LeadTable[[#This Row],[City]]<>"") -> FALSE | AE195: =AND(SUBTOTAL(2,LeadTable[[#This Row],[RecordNo]]),LeadTable[[#This Row],[State]]<>"") -> FALSE | AF195: =AND(SUBTOTAL(2,LeadTable[[#This Row],[RecordNo]]),LeadTable[[#This Row],[Category]]<>"") -> TRUE | AG195: =AND(SUBTOTAL(2,LeadTable[[#This Row],[RecordNo]]),LeadTable[[#This Row],[Type]]<>"") -> TRUE | AH195: =AND(SUBTOTAL(2,LeadTable[[#This Row],[RecordNo]]),LeadTable[[#This Row],[Status]]<>"") -> TRUE | AI195: =AND(SUBTOTAL(2,LeadTable[[#This Row],[RecordNo]]),LeadTable[[#This Row],[Source]]<>"") -> FALSE | AJ195: Phone 1 | AK195: Phone 2 | AL195: Phone 3 | AM195: Email 1 | AN195: Email 2 | AO195: Email 3 | AP195: Link1 | AQ195: Link2 | AR195: 2023-03-22
B196: 387 | C196: =ROW() -> 196 | D196: Paula Haub | E196: Internal Revenue Service | G196: Gov. | X196: Ind. | Y196: Inactive | AB196: S:\Folders\Client Files\Paula Haub\ | AC196: =AND(SUBTOTAL(2,LeadTable[[#This Row],[RecordNo]]),LeadTable[[#This Row],[County]]<>"") -> FALSE | AD196: =AND(SUBTOTAL(2,LeadTable[[#This Row],[RecordNo]]),LeadTable[[#This Row],[City]]<>"") -> FALSE | AE196: =AND(SUBTOTAL(2,LeadTable[[#This Row],[RecordNo]]),LeadTable[[#This Row],[State]]<>"") -> FALSE | AF196: =AND(SUBTOTAL(2,LeadTable[[#This Row],[RecordNo]]),LeadTable[[#This Row],[Category]]<>"") -> TRUE | AG196: =AND(SUBTOTAL(2,LeadTable[[#This Row],[RecordNo]]),LeadTable[[#This Row],[Type]]<>"") -> TRUE | AH196: =AND(SUBTOTAL(2,LeadTable[[#This Row],[RecordNo]]),LeadTable[[#This Row],[Status]]<>"") -> TRUE | AI196: =AND(SUBTOTAL(2,LeadTable[[#This Row],[RecordNo]]),LeadTable[[#This Row],[Source]]<>"") -> FALSE | AJ196: Phone 1 | AK196: Phone 2 | AL196: Phone 3 | AM196: Email 1 | AN196: Email 2 | AO196: Email 3 | AP196: Link1 | AQ196: Link2 | AR196: 2023-03-22
B197: 388 | C197: =ROW() -> 197 | D197: Paula Jeffery | E197: Internal Revenue Service | G197: Gov. | M197: (757) 218-3556 | N197: 4238556002 | X197: Ind. | Y197: Active | AB197: S:\Folders\Client Files\Paula Jeffery\ | AC197: =AND(SUBTOTAL(2,LeadTable[[#This Row],[RecordNo]]),LeadTable[[#This Row],[County]]<>"") -> FALSE | AD197: =AND(SUBTOTAL(2,LeadTable[[#This Row],[RecordNo]]),LeadTable[[#This Row],[City]]<>"") -> FALSE | AE197: =AND(SUBTOTAL(2,LeadTable[[#This Row],[RecordNo]]),LeadTable[[#This Row],[State]]<>"") -> FALSE | AF197: =AND(SUBTOTAL(2,LeadTable[[#This Row],[RecordNo]]),LeadTable[[#This Row],[Category]]<>"") -> TRUE | AG197: =AND(SUBTOTAL(2,LeadTable[[#This Row],[RecordNo]]),LeadTable[[#This Row],[Type]]<>"") -> TRUE | AH197: =AND(SUBTOTAL(2,LeadTable[[#This Row],[RecordNo]]),LeadTable[[#This Row],[Status]]<>"") -> TRUE | AI197: =AND(SUBTOTAL(2,LeadTable[[#This Row],[RecordNo]]),LeadTable[[#This Row],[Source]]<>"") -> FALSE | AJ197: Phone 1 | AK197: Phone 2 | AL197: Phone 3 | AM197: Email 1 | AN197: Email 2 | AO197: Email 3 | AP197: Link1 | AQ197: Link2 | AR197: 2023-03-22
B198: 20240104125243 | C198: =ROW() -> 198 | D198: Payton Gillis | E198: Tax Game Plan | F198: Replied to FB post about me providing resolution to tax professionals | G198: Peer | J198: pgillis@tgpfirm.com | M198: (636) 339-5998 | P198: 1171 Bryan Rd. | Q198: O’Fallon | R198: MO | S198: 63366 | T198: St. Charles | X198: Bus. | Y198: Active | Z198: tgpfirm.com | AB198: S:\Folders\Client Files\Payton Gillis\ | AC198: =AND(SUBTOTAL(2,LeadTable[[#This Row],[RecordNo]]),LeadTable[[#This Row],[County]]<>"") -> TRUE | AD198: =AND(SUBTOTAL(2,LeadTable[[#This Row],[RecordNo]]),LeadTable[[#This Row],[City]]<>"") -> TRUE | AE198: =AND(SUBTOTAL(2,LeadTable[[#This Row],[RecordNo]]),LeadTable[[#This Row],[State]]<>"") -> TRUE | AF198: =AND(SUBTOTAL(2,LeadTable[[#This Row],[RecordNo]]),LeadTable[[#This Row],[Category]]<>"") -> TRUE | AG198: =AND(SUBTOTAL(2,LeadTable[[#This Row],[RecordNo]]),LeadTable[[#This Row],[Type]]<>"") -> TRUE | AH198: =AND(SUBTOTAL(2,LeadTable[[#This Row],[RecordNo]]),LeadTable[[#This Row],[Status]]<>"") -> TRUE | AI198: =AND(SUBTOTAL(2,LeadTable[[#This Row],[RecordNo]]),LeadTable[[#This Row],[Source]]<>"") -> FALSE | AJ198: Phone 1 | AK198: Phone 2 | AL198: Phone 3 | AM198: Email 1 | AN198: Email 2 | AO198: Email 3 | AP198: Link 1 | AQ198: Link 2 | AR198: 2024-01-04 | AS198: 2024-01-04T12:52:43
B199: 389 | C199: =ROW() -> 199 | D199: Pearl Murray | G199: Personal | M199: (423) 595-6563 | X199: Ind. | Y199: Active | AB199: S:\Folders\Client Files\Pearl Murray\ | AC199: =AND(SUBTOTAL(2,LeadTable[[#This Row],[RecordNo]]),LeadTable[[#This Row],[County]]<>"") -> FALSE | AD199: =AND(SUBTOTAL(2,LeadTable[[#This Row],[RecordNo]]),LeadTable[[#This Row],[City]]<>"") -> FALSE | AE199: =AND(SUBTOTAL(2,LeadTable[[#This Row],[RecordNo]]),LeadTable[[#This Row],[State]]<>"") -> FALSE | AF199: =AND(SUBTOTAL(2,LeadTable[[#This Row],[RecordNo]]),LeadTable[[#This Row],[Category]]<>"") -> TRUE | AG199: =AND(SUBTOTAL(2,LeadTable[[#This Row],[RecordNo]]),LeadTable[[#This Row],[Type]]<>"") -> TRUE | AH199: =AND(SUBTOTAL(2,LeadTable[[#This Row],[RecordNo]]),LeadTable[[#This Row],[Status]]<>"") -> TRUE | AI199: =AND(SUBTOTAL(2,LeadTable[[#This Row],[RecordNo]]),LeadTable[[#This Row],[Source]]<>"") -> FALSE | AJ199: Phone 1 | AK199: Phone 2 | AL199: Phone 3 | AM199: Email 1 | AN199: Email 2 | AO199: Email 3 | AP199: Link1 | AQ199: Link2 | AR199: 2023-03-22
B200: 20231106093459 | C200: =ROW() -> 200 | D200: Pilar Rodriguez | E200: Rodriguez Tax Group | F200: Replied to my request for contacts in FB Group: The Entrepreneurial Accountants Specializes in trucking companies & DOT Agents | G200: Peer | M200: (620) 640-9642 | X200: Bus. | Y200: Active | AB200: S:\Folders\Client Files\Pilar Rodriguez\ | AC200: =AND(SUBTOTAL(2,LeadTable[[#This Row],[RecordNo]]),LeadTable[[#This Row],[County]]<>"") -> FALSE | AD200: =AND(SUBTOTAL(2,LeadTable[[#This Row],[RecordNo]]),LeadTable[[#This Row],[City]]<>"") -> FALSE | AE200: =AND(SUBTOTAL(2,LeadTable[[#This Row],[RecordNo]]),LeadTable[[#This Row],[State]]<>"") -> FALSE | AF200: =AND(SUBTOTAL(2,LeadTable[[#This Row],[RecordNo]]),LeadTable[[#This Row],[Category]]<>"") -> TRUE | AG200: =AND(SUBTOTAL(2,LeadTable[[#This Row],[RecordNo]]),LeadTable[[#This Row],[Type]]<>"") -> TRUE | AH200: =AND(SUBTOTAL(2,LeadTable[[#This Row],[RecordNo]]),LeadTable[[#This Row],[Status]]<>"") -> TRUE | AI200: =AND(SUBTOTAL(2,LeadTable[[#This Row],[RecordNo]]),LeadTable[[#This Row],[Source]]<>"") -> FALSE | AJ200: Phone 1 | AK200: Phone 2 | AL200: Phone 3 | AM200: Email 1 | AN200: Email 2 | AO200: Email 3 | AP200: Link 1 | AQ200: Link 2 | AR200: 2023-11-06 | AS200: 2023-12-04T14:59:25
... 51 more rows

Sheet Sensitive Data
A1: ID | B1: ClientID | C1: ClientName | D1: InfoLabel | E1: Info
A2: 6 | B2: 459 | C2: Lamberts Flooring Inc | D2: TN Labor Account | E2: Username: CTLambert Password: Charlietl$ Account #: 08847692 PIN/Code: 9559
A3: 9 | B3: 460 | C3: Lamberts Southern Pies Inc | D3: EFTPS | E3: Link: https://www.eftps.gov/eftps/login/loginInitial - Password: Lambertspie#123 - PIN/Code: 3615
A4: 10 | B4: 291 | C4: Charlie Lambert | D4: Birthday | E4: 11/26/1979
A5: 12 | B5: 273 | C5: Angela Lambert | D5: Birthday | E5: 09/19/1977
A6: 13 | B6: 459 | C6: Lamberts Flooring Inc | D6: Deposits Sprdsht pw | E6: FdEjWr8^f^1@
A7: 15 | B7: 459 | C7: Lamberts Flooring Inc | D7: TN SOS Control # | E7: 001067922
A8: 16 | B8: 460 | C8: Lamberts Southern Pies Inc | D8: TN SOS Control # | E8: 001068002
A9: 17 | B9: 482 | C9: dc Tax LLC | D9: TN SOS Control # | E9: 001345102
A10: 18 | B10: 482 | C10: dc Tax LLC | D10: EA license | E10: 00150946-EA, Issued: 1/20/23; Expires: 3/31/25
A11: 19 | B11: 482 | C11: dc Tax LLC | D11: TaxAct Practice ID | E11: TA-L5C6-M7N5
A12: 20 | B12: 482 | C12: dc Tax LLC | D12: PTIN | E12: P03013529
A13: 21 | B13: 482 | C13: dc Tax LLC | D13: EFIN | E13: 620223
A14: 22 | B14: 460 | C14: Lamberts Southern Pies Inc | D14: TNPAWS | E14: Username: LambertPie Employer No : 08874710 Password: Bakery$131 Access Code: 4502
A15: 23 | B15: 460 | C15: Lamberts Southern Pies Inc | D15: TNTAP | E15: Username: LambertPie Password: Bakery$131
A16: SD202306011426 | B16: 459 | C16: Lamberts Flooring Inc | D16: EFTPS | E16: Link: https://www.eftps.gov/eftps/login/loginInitial Password: Charlietl$123 PIN/Code: 2890
A17: SD202306011427 | B17: 459 | C17: Lamberts Flooring Inc | D17: Tab's Portal | E17: Link: www.cpataxatty.com/clientportal1.php Username: charlietlambert@icloud.com Password: charlie$123
A18: SD202306011428 | B18: 459 | C18: Lamberts Flooring Inc | D18: TNTAP | E18: Username: lambertsflooringinc Password: Charlie$123
A19: SD202306260813 | B19: 20230624103307 | C19: Scott Brannon | D19: Scott's SSN | E19: 255-37-9093
A20: SD202306260830 | B20: 20230624103307 | C20: Scott Brannon | D20: Robin's SSN | E20: 595-28-7434
A21: SD202307121231 | B21: 20230712123123 | C21: Global Protective Services | D21: EIN | E21: 47-5332114
A22: SD202307121232 | B22: 20230623141751 | C22: Curtis L Greene | D22: SSN | E22: 408-47-4408
A23: SD202307121235 | B23: 20230623141751 | C23: Curtis L Greene | D23: DOB | E23: 04/07/1973
A24: SD202401041224 | B24: 20231204151524 | C24: Ken and Sue Perrin | D24: Ken's SSN | E24: 286-58-7642
A25: SD202401041224 | B25: 20231204151524 | C25: Ken and Sue Perrin | D25: Sue's SSN | E25: 300-60-5925
A26: SD202401041224 | B26: 20231204151524 | C26: Ken and Sue Perrin | D26: Ken's DOB | E26: 10/06/1959
A27: SD202401041224 | B27: 20231204151524 | C27: Ken and Sue Perrin | D27: Sue's DOB | E27: 06/17/1961
A28: SD202401121615 | B28: 20240112103922 | C28: Tammie Mann | D28: SSN | E28: 214-98-3860
A29: SD202401121617 | B29: 20240112161641 | C29: Christian Jackson | D29: SSN | E29: 214-98-3860
A30: SD202401180950 | B30: 20240117161531 | C30: Michael Walker | D30: Document Password | E30: 721734
A31: SD202401181256 | B31: 20240117130021 | C31: Domenick Lazzara | D31: SSN | E31: 594-94-8342
A32: SD202401181257 | B32: 20240117130021 | C32: Domenick Lazzara | D32: Birthdate | E32: 10/27/1984
A33: SD202401221523 | B33: 20231204151812 | C33: Carol L Sharkey | D33: SSN | E33: 236-76-0560
A34: SD202401251604 | B34: 20240117161531 | C34: Michael Walker | D34: PW for docs to RO | E34: walker1734
A35: SD202401251606 | B35: 20240117161531 | C35: Michael Walker | D35: PW for doc from TP | E35: 721734

Sheet Issues
A9: Active Record #:
A10: 20230427142019
E11: RecordNo | F11: ContactRec | G11: Contact Name | H11: Date | I11: Issue | J11: Status
T168: =RAND() -> 0.8882399027

Sheet NoteSheet
A9: Active Record #:
A10: 20230427142019
E11: RecordNo | F11: ContactRec | G11: Contact Name | H11: Date | I11: Note
E12: Note202401191500 | F12: 20240117161531 | G12: Michael Walker
E13: Note202401221430 | F13: 20231204151812 | G13: Carol L Sharkey
E14: Note202402021621 | F14: 20240117161531 | G14: Michael Walker | H14: 02/02/2024 16:21 | I14: Sent email & fax to Ms. Lund asking for confirmation of receipt of financials.
E15: Note202402021509 | F15: 20231204151524 | G15: Ken and Sue Perrin | H15: 02/02/2024 15:09 | I15: Ms Kuhn at PPS - IA was approved & set up yesterday. First payment on Mar 28 of $100 and then $100 for 12 months on 28th. As of Mar 28, 2025 payments will go to $1,600 per month. Ms Whitehead-Smith - TP should received Letter CP508R within 30 days. I sent Sue email with info.
E16: Note202402021329 | F16: 20240117161531 | G16: Michael Walker | H16: 02/02/2024 13:29 | I16: I called her to ask if she received. Got voicemail and left message asking for call back.
E17: Note202402021326 | F17: 20240117161531 | G17: Michael Walker | H17: 02/02/2024 12:31 | I17: Ms. Lund called me back. She asked me when I was going to send financials. I told her I had already sent them and told her the dates of some. She said she has not recevied them. According to Outlook they all were sent. I told her I would resend right now and for her to please call me to confirm receipt. I then re-emailed her encrypted 433-A, bank statements & bills.
E18: Note202402021201 | F18: 20240117161531 | G18: Michael Walker | H18: 02/02/2024 12:01 | I18: Left message for Ms. Lund to call me.
E19: Note202402011508 | F19: 20240117130021 | G19: Domenick Lazzara | H19: 02/01/2024 14:56 | I19: Called PPS. Transferred me to ACS. Spoke with Mrs. Ritaer(?). Explianed that I think the minimum payment amount should be much lower than $1,378. If using 6-year rule, about $850-900. Setting up on $983 per month pays off by CSED. She is submitting that for approval with payments starting March 28. NFTL will be filed. Sent email to Dom for approval & let him know about the NFTL being filed.
E20: Note202402011456 | F20: 20240117130021 | G20: Domenick Lazzara | H20: 01/31/2024 15:36 | I20: Called PPS to establish IA. Mr Ralph said that the main screen showed him not being in active IA, but another screen does show active for 2017-2021 at $655 per month. He transferred me to ACS to resolve. ACS - Mr. Cherry - said that the IA defaulted today. He said he had two options - pay down below $50k and set up payments of about $700 or set up with minimum payment of $1,378 per month and the IRS will file NFTL.
E21: Note202401311428 | F21: 375 | G21: Melissa Dunn | H21: 01/31/2024 14:28 | I21: Sent Melissa the following email concerning FB message from Matthew Dean: I sent this guy a reply that I would have to have someone else do any amendments to returns, etc. and all I could help him with would be the resolution and/or OIC if he needs to go that route. Does this make any sense to you? Hey David, I am in an ugly spot with the IRS right now. In 2021 on my 1099-B I have a gain of $487,302.77. Then, within the first 3 months of 2022 I lost nearly every dime I have. Then, on my 2022 1099-B reflects -$743,998.57 - as of results of this I have a tax bill of $180,000 for 2021. All was caused by the Wash Sale rule. I need to be advised as to how to gain retroactive tax treatment as a trader – I need to IRS to PLEASE let me be an MTM trader. I understand the IRS has hard deadlines and I believe this is one topic. I am professionally diagnosed with Autism, and I did completely STOP trading in March 2022 as I nearly lost everything. Is this an issue I could hire you to help me resolve? I would really like to try to give it a shot to ask for mercy/forgiveness from the IRS before trying to go down the OIC route. Thank you,
E22: Note202402021148 | F22: 20240117161531 | G22: Michael Walker | H22: 01/31/2024 11:47 | I22: Sent 433-A for CDP. Also included note that I had previously sent the bank statements.
E23: Note202401301631 | F23: 20231204151812 | G23: Carol L Sharkey | H23: 01/30/2024 16:31 | I23: Mailed request for abatement for 2022 FTF penalty
E24: Note202401301450 | F24: 20230915124517 | G24: 5-Star Holdings Inc | H24: 01/30/2024 14:50 | I24: Referred Tami Lance to Evonne
E25: Note202401301450 | F25: 20231204153212 | G25: Amy King Psyhos | H25: 01/30/2024 14:50 | I25: Gave Tami Lance information to contact Amy
E26: Note202401301449 | F26: 375 | G26: Melissa Dunn | H26: 01/30/2024 14:49 | I26: Sent email to Tami Lance referring Melissa
E27: Note202401301208 | F27: 20240117161531 | G27: Michael Walker | H27: 01/30/2024 12:08 | I27: Called & left message for Julie Lund to call me.
E28: Note202402021147 | F28: 20240117161531 | G28: Michael Walker | H28: 01/30/2024 1:40 | I28: Faxed CDP request to Ms. Lund. In message stated that I would send the rest of the information needed within 24 hours.
E29: Note202401291227 | F29: 20231204151812 | G29: Carol L Sharkey | H29: 01/29/2024 12:27 | I29: Email reply from Stephanie Mills, RA - Appeal was filed. Expect reply within ~90 days.
E30: Note202401291226 | F30: 20240117161531 | G30: Michael Walker | H30: 01/29/2024 12:26 | I30: Sent the following email to Ms. Lund I would like to formally request an installment agreement for my client with payments starting on March 15, 2024. If the levy against my client, with Bank of America, is released in full and client receives the funds that were frozen, he can set up the following payment plan. The reason for the condition is that without the levy release, he will not be able to afford any payments as that is his sole source of income for the next 6 months. Start Amount March 15, 2024 $5000 September 15, 2024 $10,000 TP would like to set it up as a DDIA. If this is acceptable, please let me know as soon as possible. Thank you,
E31: Note202401291124 | F31: 20240117161531 | G31: Michael Walker | H31: 01/29/2024 11:23 | I31: Sent email to Ms. Lund asking if she received my fax on Friday about TP's levy release request.
E32: Note202401261544 | F32: 20240117161531 | G32: Michael Walker | H32: 01/26/2024 15:44 | I32: Sent fax to Ms. Lund: The situation with Mr. Walker is not as cut & dry as most cases. In 2023 TP liquidated all investments and closed several companies he was involved with. This was to focus more on his core business model which resulted in 2 companies – Rubicon Performance, LLC., (Rubicon) and Balance Benefits, PLLC (Balance). The cash from the liquidations was funneled into these two entities. Rubicon is profitable and generates cash flow. Balance, on the other hand, is not. At this point, cash flow from Rubicon is supporting the lack of cash flow of Balance. TP is also occasionally using personal funds to keep Balance operating. TP believes that in 6 to 9 months, Balance will generate positive cash flow. Until then, he maintained an account with $75,000 which was to cover his personal living expenses & taxes until Balance generates cash flow. All of this to show why TP can not expect pay checks or compensation for the at least the next 6 months. All the money that was levied from the account was his living expenses for the next 6 months. TP has been in filing & paying compliance for the past 3 years and we believe that he will be able to pay off a large portion (or all) of his balance by the end of this year. We therefore urgently & respectfully request that the levy on the Bank of America account be fully released. Thank you,
E33: Note202401261018 | F33: 20240126101746 | G33: Lisa L Booker (LisaB) | H33: 01/26/2024 10:18 | I33: Sent email reply after I requested to be added to email distribution list.
E34: Note202401251654 | F34: 20240117161531 | G34: Michael Walker | H34: 01/25/2024 16:53 | I34: Sent the following to Ms. Lund via encrypted PDF's. I also faxed her the password. incomplete 433-A bank statements Bills
E35: Note202401251554 | F35: 20240117161531 | G35: Michael Walker | H35: 01/25/2024 15:49 | I35: Called contact at (215) 892-3322 Explained that Ms. Lund wants details of which bills he needs to pay, etc. for a hardship. He is at the airport and will call me back.
E36: Note202401251603 | F36: 20240117161531 | G36: Michael Walker | H36: 01/25/2024 15:40 | I36: Ms Lund called me back. She is very evasive in her speech by not commenting any more than absolutely necessary to answer a question. For example, I told her I have been trying to send her some financials but didn't want to try faxing 80+ pages. I had asked for a "SendMyReply" code. She said "you can fax 80 pages". She finally told me I can email the documents to her as well. She wants specific bills that TP needs to pay to consider "hardship". She point blank asked if he's getting evicted, several times. I have never met anyone that could care less about someone else as she appears to.
E37: Note202401251535 | F37: 20240117161531 | G37: Michael Walker | H37: 01/25/2024 15:35 | I37: Called & left message for Ms. Lund. I was a little stern, and told her I didn't know what else I could do to talk to her but I have left multiple messages, faxed requests for calls/communication, etc. If I am doing something wrong or she would prefer me to handle it another way, would she please let me know.
E38: Note202401251203 | F38: 20240117161531 | G38: Michael Walker | H38: 01/24/2024 11:03 | I38: I received F 9297 from Ms. Lund. She said that we need to provide the information on 9297 by deadline and release of levy will be considered if a harship exists. I faxed her back the following: Thank you for the 9297. I will get you everything you asked for before any deadlines. I have a question on the levy release though. You said it would be released if there is a hardship. Are you wanting this information before making that determination? The levy was issued on Jan 4 and the bank received it on Jan 9. Depending on how they interpret the 21 days, they will send the check out between tomorrow (25th) and the 30th. The deadline to get the information to you is 2/16/2024, well after the check is mailed. Is there something we can do more quickly to get the release? Thank you,
E39: Note202401251201 | F39: 20240117161531 | G39: Michael Walker | H39: 01/24/2024 10:29 | I39: Received fax from Julie Lund that she received my fax but there was no 2848 attached. Said for me to fax it to her & she will send the 9297. I replied back (with 2848 again) by fax that I had sent it on Monday when she first asked for it & said she would call me back after receipt.
E40: Note202401251207 | F40: 20240117161531 | G40: Michael Walker | H40: 01/24/2024 3:27 | I40: Fax to Ms. Lund: Can you give me a “sendmyreply” code to upload documents to you. I’m afraid it will be quite large by fax. Thank you,
E41: Note202401231548 | F41: 20240117161531 | G41: Michael Walker | H41: 01/23/2024 15:48 | I41: Called & left message for Ms. Lund asking for a call back.
E42: Note202401231551 | F42: 20240117161531 | G42: Michael Walker | H42: 01/23/2024 13:20 | I42: Sent fax to Ms. Lund: My client, Michael Walker, is currently being levied with Acorns Security and Bank of America. Mr. Walker had moved and didn’t receive notice of these levies until January 16, when BOA sent him a letter. He contacted me on the 17th. Since the 18th, I have been trying to reach someone by phone, leaving several messages, speaking to a GM, and by email. It is my understanding that there was also a Form 9297 sent to him, which he has not received. My client is willing to work with the IRS for a solution, but the current levies are causing him a severe hardship as they have taken all his money. Some of that money was to support his business, which is his only source of income. After speaking with you yesterday morning, you asked me to fax F-2848 and you would call me back. I did fax it but have not received a return call. I’m requesting a copy of the Form 9297 be sent to me and to have the levy released until we have had an opportunity to comply with the F9297. If you are willing to fax a release to Bank of America, it would be greatly appreciated. The bank fax number is (617) 310-2751. Thank you for all your help!
E43: Note202401231156 | F43: 20240117161531 | G43: Michael Walker | H43: 01/23/2024 11:56 | I43: Called & left message for Ms. Lund to call me.
E44: Note202401221551 | F44: 20240117161531 | G44: Michael Walker | H44: 01/22/2024 15:51 | I44: Called & left message on Julie Lund's VM asking to verify receipt of POA.
E45: Note202401221534 | F45: 20240112161641 | G45: Christian Jackson | H45: 01/22/2024 15:33 | I45: TP called me. He is working with "Berniece's" sister on a $1mm deal. He said the deal is fragile and he doesn't want to mess it up by quitting Berniece right now. He said he still plans on working with me, and will reach out again when he is able to proceed.
E46: Note202401221430 | F46: 20240117161531 | G46: Michael Walker | H46: 01/22/2024 14:30 | I46: Phone call from Ms. Lund. Phone number was "Restricted". She asked me to send POA and then she'll call me back. I did so
E47: Note202401221422 | F47: 20231204151812 | G47: Carol L Sharkey | H47: 01/22/2024 14:22 | I47: Spoke to Carol. We are going to appeal.
E48: Note202401221422 | F48: 20240117161531 | G48: Michael Walker | H48: 01/22/2024 14:21 | I48: Sent email to potential GM Sandra D Cobos.
E49: Note202401221421 | F49: 20240117161531 | G49: Michael Walker | H49: 01/22/2024 12:20 | I49: Left message for Ms. Lund on her voicemail.
E50: Note202401191634 | F50: 20231204151524 | G50: Ken and Sue Perrin | H50: 01/19/2024 16:33 | I50: I completely forgot that I had already requested the IA for the Perrin's. I did get an update though that it was submitted for manager approval on Jan 12th.
E51: Note202401191509 | F51: 20240117161531 | G51: Michael Walker | H51: 01/19/2024 15:09 | I51: Sent email to Mike that he should be getting a F 9297 and when he does, to please upload it to me.
E52: Note202401191508 | F52: 20240117161531 | G52: Michael Walker | H52: 01/19/2024 15:08 | I52: Left another message on Julie Lund's voice mail.
E53: Note202401221420 | F53: 20240117161531 | G53: Michael Walker | H53: 01/19/2024 14:50 | I53: Mr. Lopez (GM) called me back. He is not the GM for the case but another GM in the area. He will get message & my POA to correct RO. He said the RO is Dariel LaForte. He is a new RO and in training. His OJI is Julie Lund. He said they have sent a Form 9297 requesting financials by Feb 16. They started levy on Jan 2nd but he said the history doesn't indicate why they did that.
E54: Note202401191036 | F54: 20231204151524 | G54: Ken and Sue Perrin | H54: 01/19/2024 10:36 | I54: Sue received her 2020 return back and said that they told her it was not accepted because it needs signatures & W-2's. She is doing that & re-sending certified.
E55: Note202401191510 | F55: 20240117130021 | G55: Domenick Lazzara | H55: 01/19/2024 | I55: I pulled transcripts and sent Mr. Lazzara an email asking for a time we can review 433-A. I also included a copy.
E56: Note202401181213 | F56: 20240117161531 | G56: Michael Walker | H56: 01/18/2024 12:13 | I56: Called & left message for RO Julie Lund asking for a call back.
E57: Note202401191449 | F57: 20240117161531 | G57: Michael Walker | H57: 01/18/2024 | I57: Called PPS & spoke to Mr. Mitchell. Faxed POA to 855 415-1045. He gave me the number for RO of (702) 868-5388. He also gave me name of GM as David Lopez at (559) 443-7701 and fax of (866) 754-9228. I called him & left call back number. I also faxed him POA.
E58: Note202401191510 | F58: 20240117130021 | G58: Domenick Lazzara | H58: 01/18/2024 | I58: Mr. Lazzara signed his POA in his IRS account.
E59: Note202401171518 | F59: 20240117114150 | G59: Alberto Rodriguez | H59: 01/17/2024 15:14 | I59: Phone call with Mr. Rodriguez. He got married last year (2023). Wife worked about 3 months and is now not working. He has balances owed for 2020-2022 totaling $43k. He is in an active installment agreement. His IA is a DDIA. He has $40k set aside for buying a house and prefers to continue in IA. He expects to owe in 2023 as well, but only about $10k. I advised him to full pay 2023 when he files the return, or at least by April 15 to make sure he doesn't owe more and get his IA defaulted. We reviewed his transcripts for FTA opportunities, but he would not qualify. I told him there wasn't a lot I could do for him.
E60: Note202401180947 | F60: 20240117161531 | G60: Michael Walker | H60: 01/17/2024 | I60: Saw a reddit post and reviewed my website. Called me to help with IA & levies
E61: Note202401161209 | F61: 20240116120950 | G61: Cindy McCullough | H61: 01/16/2024 12:09 | I61: From FB post. She asked question about high dollar clients looking for resolution. I answered her questions.
E62: Note202401131043 | F62: 20240112161641 | G62: Christian Jackson | H62: 01/13/2024 10:41 | I62: Sent Letter: We have been unable to contact you and have therefore withdrawn the Power of Attorney on file with the IRS. If you would like to re-establish this in the future, you can contact us, and we will be happy to help you in any way that we can. As we will no longer be representing you going forward, we recommend you contact the IRS about your situation and let them know you will be representing yourself or make sure whoever is helping you, has Power of Attorney on file, to avoid further actions. Please contact us at (423) 482-9737, if you have any questions or require further clarification.
E63: Note202401111415 | F63: 20231204150443 | G63: J Wayne Walston CPA | H63: 01/11/2024 14:15 | I63: Lady named Tori called me. She mistakenly didn't file her 2018 taxes. I referred her to Wayne with his phone & email
E64: Note202401081304 | F64: 20240108130350 | G64: Ralf F Heyer | H64: 01/08/2024 13:04 | I64: We had a 30 minute phone call this morning (introduction). We met from FB post about support for tax pros. He said he liked that my website mentions Christianity. Ralph has been in business for 18 years. He is an EA and said he wouldn't touch representation with a 10" pole. He predominantly does business, scorp's & partnerships. He does about 1000 returns per year but last year did 800. Last year was 60% business & 40% personal. He has 2 contacts (attorneys) in Miami that he uses for resolution but one does mostly high caliber criminal cases. He said a lot of people are leary to work with a tax attorney because it scares them, as if it implies some criminal liability. He did mention a couple clients that he advised not to take the ERC, but they went with someone else to do so. He has reached out to them because now they are caught up in the liability of taking it when they shouldn't. They haven't reached out to him yet and probably won't but he asked if I'd be willing t do that. I told him yes.
E65: Note202401031336 | F65: 20240103132240 | G65: Alan Rowe | H65: 01/03/2024 13:30 | I65: Faxed the following to 2026220017 and postal mailed to Office of Associate Chief Counsel General Legal Services Ethics & General Government Law Branch Room 6404 1111 Constitution Avenue, N.W. Washington, D.C. 20224 I am seeking advice to make sure I do not run afoul of ethics rules. I am a retired IRS Revenue Officer (9/30/2022). I am now an Enrolled Agent, providing IRS resolution / representation services to taxpayers. I was approached by a taxpayer who was in my inventory ~5 years ago. The taxpayer has paid off all balances due & filed all returns from that period. He has since been compliant up to the start of COVID issues. At that time, he began to fall behind and has accrued ~$80,000 in unpaid payroll tax. He contacted me to help resolve the issues. It is important to note that none of the current issues, periods, or balances were part of the case when I worked on it. Neither is the subsequent year. My question then is, can I accept a case under the following circumstances. 1. I worked the case as an IRS Revenue Officer over 5 years ago. I have since had no contact with the taxpayer until TP contacted me on 01/02/2024. 2. All of TP’s issues from the time I worked the case were previously resolved. Issues now are from 2020 forward. I also mailed a hard copy of this to the postal address. Thank you,
E66: Note202401021713 | F66: 20231112094253 | G66: Michael Lermer | H66: 1/2/24 | I66: Notification of transcript change this morning. Michael's IA was approved. He sent me an email that he also received a letter that it was approved. He is still a monitoring client.
E67: Note202312140951 | F67: 20230912101224 | G67: Evonne Kautz | H67: 12/14/2023 09:51 | I67: Texted me thanks for Christmas card. Scheduled for her to call me tomorrow a.m.
E68: Note202312041440 | F68: 20230530084416 | G68: Tracy L Carico CPA | H68: 12/04/2023 14:40 | I68: Sent Christmas Card
E69: Note202312041440 | F69: 20231120144248 | G69: Erica Reindel Stark | H69: 12/04/2023 14:40 | I69: Sent Christmas Card
E70: Note202312041440 | F70: 20231019134128 | G70: Stephanie Heredia | H70: 12/04/2023 14:40 | I70: Sent Christmas Card
E71: Note202401021713 | F71: 20231112094253 | G71: Michael Lermer | H71: 12/02/23 | I71: ichael had sent an email that he wanted to call me on Friday a.m. I didn't receive a call. I called him this a.m. He was out eating breakfast with his family. He made payment on invoice of $150. He also said $1,260 was fine. I explained to him why he's getting all the phone calls about the lien.
E72: Note202401021712 | F72: 20231112094253 | G72: Michael Lermer | H72: 11/28/23 | I72: Called PPS and spoke to gentleman but didn't catch his name. We got disconnected, so I called back and spoke to Ms. Paulson. She said the IA was rejected for $1,255. She resubmitted at $1,260 for 1st payment on Jan 28, 2024. TP can make payment either at irs.gov, mail a check, or switch to auto-draft by sending 433D. She said it will take about 14 days for a manager to approve.
E73: Note202401021712 | F73: 20231112094253 | G73: Michael Lermer | H73: 11/27/23 | I73: Michael sent me copies of NFTL he received. I responded with: Those are to be expected. It’s just a notice that goes on file at the county courthouse. It is public record and is there to protect the government’s interest by preventing you from selling any property without paying the government first. Other than that, it may effect you if you try to get a loan, but we can work around that. The thing I wanted to talk to you about was the installment agreement amount. It turns out you have a couple of periods that the statute expires sooner than I thought. Those are preventing me from inputting an agreement of less than $1,260 per month. Otherwise the balances would not pay off prior to the statute expiration. Are you OK with a payment that high? If not, I’ll have to get financials, bank statements, etc. to show that you can’t afford that much. Even then, with the amount of your income, unless you have some extraordinary medical expenses, etc., they’ll probably deny it, but we can try. Just let me know what you want to do and/or call me if you want to discuss. I’m available whenever works best for you. Thank you,
E74: Note202311211140 | F74: 20231121113927 | G74: Jo Lundy | H74: 11/21/2023 11:40 | I74: Jo called me to ask if letters that some of her clients were receiving from private collection agents on behalf of IRS were legitimate. I told her they were.
E75: Note202311211136 | F75: 20231121112838 | G75: Marilyn Miller | H75: 11/21/2023 11:36 | I75: Jo called me to ask about some clients that were receiving letters from private collection vs IRS to see if they were legitimate.
E76: Note202401021711 | F76: 20231112094253 | G76: Michael Lermer | H76: 10/27/23 | I76: Text from Michael that he will check the portal now.
E77: Note202401021711 | F77: 20231112094253 | G77: Michael Lermer | H77: 10/27/23 | I77: Michael sent me copies of NFTL he received. I responded with: Those are to be expected. It’s just a notice that goes on file at the county courthouse. It is public record and is there to protect the government’s interest by preventing you from selling any property without paying the government first. Other than that, it may effect you if you try to get a loan, but we can work around that. The thing I wanted to talk to you about was the installment agreement amount. It turns out you have a couple of periods that the statute expires sooner than I thought. Those are preventing me from inputting an agreement of less than $1,260 per month. Otherwise the balances would not pay off prior to the statute expiration. Are you OK with a payment that high? If not, I’ll have to get financials, bank statements, etc. to show that you can’t afford that much. Even then, with the amount of your income, unless you have some extraordinary medical expenses, etc., they’ll probably deny it, but we can try. Just let me know what you want to do and/or call me if you want to discuss. I’m available whenever works best for you. Thank you,
E78: Note202401021710 | F78: 20231112094253 | G78: Michael Lermer | H78: 10/26/23 | I78: Portal invitation sent to client
E79: Note202401021710 | F79: 20231112094253 | G79: Michael Lermer | H79: 10/26/23 | I79: Had conversation with Michael. Probably the only option is IA for around $1,200 per month. We went through a 433 and he also wants monitoring.
E80: Note202401021710 | F80: 20231112094253 | G80: Michael Lermer | H80: 10/26/23 | I80: Sent invoice #10422
E81: Note202401021709 | F81: 20231112094253 | G81: Michael Lermer | H81: 10/25/23 | I81: Pulled transcripts yesterday. TP is not in an installment agreement and there's no indication that one is coming. Last entry was termination of IA on 9/25/23. I sent him an email asking him when we can talk. He will check work schedule & get back with me.
E82: Note202401021709 | F82: 20231112094253 | G82: Michael Lermer | H82: 10/24/23 | I82: Sent text reminder to sign POA
E83: Note202401021708 | F83: 20231112094253 | G83: Michael Lermer | H83: 10/23/23 | I83: Portal invitation sent to client
E84: Note202310061141 | F84: 20230922154733 | G84: Nine Mile Media | H84: 10/06/2023 11:41 | I84: Called CLO to get Daniel's name off the liens. Liens were on LLC. Member's name (Daniel Todd) is also listed on lien.
E85: Note202309211303 | F85: 20230921130249 | G85: Suzanne Missy Simonetta-Lee | H85: 09/21/2023 13:02 | I85: Missy posted on facebook about a client that is showing liens for 941. Asked for help on the post. I responded and she sent them my contact information. It was Daniel & Sara Todd.
E86: Note202309181132 | F86: 459 | G86: Lamberts Flooring Inc | H86: 09/18/2023 11:32 | I86: Referred to Larson Consulting
E87: Note202309181132 | F87: 460 | G87: Lamberts Southern Pies Inc | H87: 09/18/2023 11:32 | I87: Referred to Larson Consulting
E88: Note202309181133 | F88: 20230624103307 | G88: Scott Brannon | H88: 09/18/2023 11:32 | I88: Marking as inactive. Scott lost his job again and I told them to not worry about paying the balance.
E89: Note202309181130 | F89: 360 | G89: Kristina Stephens | H89: 09/18/2023 11:30 | I89: The Stephens's moved out on August 31, 2023.
E90: Note202309181130 | F90: 362 | G90: Linda | H90: 09/18/2023 11:30 | I90: The Stephens's moved out on August 31, 2023.
E91: Note202309181130 | F91: 349 | G91: Jimmy Stephens | H91: 09/18/2023 11:29 | I91: The Stephens's moved out on August 31, 2023.
E92: Note202309181105 | F92: 20230712123123 | G92: Global Protective Services | H92: 09/18/2023 11:05 | I92: See Curtis L Greene
E93: Note202309181104 | F93: 20230623141751 | G93: Curtis L Greene | H93: 09/18/2023 11:03 | I93: Marking as inactive. After TP found out I couldn't represent him, he hasn't responded even though I told him I could still do bookkeeping, etc.
E94: Note202309181103 | F94: 20230902132328 | G94: Andrew Lee | H94: 09/18/2023 11:02 | I94: Marking as inactive. TP initially seemed excited about finding me. He wanted to verify credentials, etc., so I sent him several things including IRS email for verification. After several emails & texts, he has not responded.
E95: Note202309181028 | F95: 20230426142962 | G95: Allan J Glass | H95: 09/18/2023 10:27 | I95: Marking inactive. TP initially was excited to find me. He respectfully questions my legitimacy, which was fine. I gave him several things to prove my credentials and the IRS email to verify. After sending a couple follow up emails/texts, I received no reply.
E96: Note202309121012 | F96: 20230912101224 | G96: Evonne Kautz | H96: 09/12/2023 10:12 | I96: Called & left message yesterday.
E97: Note202308141359 | F97: 20230814104156 | G97: Allen J Ferrer CPA | H97: 08/14/2023 13:55 | I97: Sent the following email: To: allen@ajfcpatax.com Subject: Representation Would you be available for phone call either this afternoon (~2:00 p.m. your time) or tomorrow, anytime?
E98: Note202308141152 | F98: 20230814111534 | G98: Quiet-Life-2435 | H98: 08/14/2023 | I98: Sent message: Thank you for all your help. Any assistance I get is greatly appreciated! My contact info is below. Sincerely, David Collins Enrolled Agent Phone : (423) 482-9737 Fax : (423) 558-3274 Email: david@dctax.us 9301 Ocoee St, #64 Chattanooga, TN 37363 https://dctax.us
E99: Note202308141351 | F99: 20230814104156 | G99: Allen J Ferrer CPA | H99: 08/13/2023 06:48 | I99: Reddit Message: Hi David (Dave?) - of course; it's brutal trying to find employees/even contractors who want to work! Let me know if you have any time this week to hop on a call. IRS rep work is great but probably not that consistent - my practice tripled in less than a year; majority sole S corp owners. I have a lot of simple bookkeeping year round and a good number of tax returns for 9/15 & 10/15. As far as pay goes - I had a couple guys in the spring and rather than high hourly wage, I went with low hourly plus 15-25% of tax return fee. Worked out well (motivation to finish returns). Not sure you're level of experience but we can chat this week if you'd like. Best, Allen Allen J Ferrer, CPA 2014071182 allen@ajfcpatax.com
E100: Note202308141043 | F100: 20230814104156 | G100: Allen J Ferrer CPA | H100: 08/13/2023 5:50 AM | I100: From Reddit Post: I’m a CPA licensed in CA & NJ - just started a practice and growing rapidly. Currently in CA (Marin County) but have clients across the country. I have a few projects could use help on and the next 2 months will be crazy thanks to extension for all CA. Shoot me a PM if ya wanna make some money :)
E101: Note202308141105 | F101: 20230814110448 | G101: GrookeyGuy23 | H101: 08/13/2023 | I101: I would love to pay for a consulting session. I am an EA and I have very light experience dealing with IRS. I think you’d be a great asset and I’d be willing to pay for a zoom chat!
E102: Note202308141108 | F102: 20230814110830 | G102: tnb_research | H102: 08/13/2023 | I102: I think you've found another revenue stream. I'm a brand new EA and I've had requests for representation help. Fortunately I have some CPAs and a friend at TAS who help but Id be happy to pay to have an agent go through different resolution techniques and what are the audit red flags, etc.
E103: Note202308141116 | F103: 20230814111534 | G103: Quiet-Life-2435 | H103: 08/13/2023 | I103: Reddit Post: Look up the Landmark Tax Group. The owner is a former IRS agent and he seems to be doing well. Based in CA. He may be a good resource for getting started. Feel free to DM me w/ your info as I could use your services with my own clients. Good luck!
E104: Note202308141153 | F104: 20230814110830 | G104: tnb_research | H104: 08/13/2023 | I104: I sent: Thank you again for reaching out. The support on this website is great. My contact information is below. Thank you, David Collins Enrolled Agent, 00150946-EA Phone : (423) 482-9737 Fax : (423) 558-3274 Email: david@dctax.us 9301 Ocoee St, #64 Chattanooga, TN 37363 https://dctax.us
E105: Note202308141158 | F105: 20230814105134 | G105: Commercial-Place6793 | H105: 08/13/2023 | I105: I sent: Thank you for that! Any help I can get is much appreciated! So far as fees, I am looking at $1,500 on case acceptance and $200 per month after the first 3 months. My website is https://dctax.us. Phone : (423) 482-9737 Fax : (423) 558-3274 Email: david@dctax.us Postal: 9301 Ocoee St, #64 Chattanooga, TN 37363 [–]from Commercial-Place6793 sent 1 day ago Thanks for the info! The guy I’ve been using is like $5k to even get started. And I usually provide him ALL the information and liaise with the clients at least at first. Yeah, like I said, $4,900 to get started . . . :) just kidding That's one of the main things I wanted to avoid when I started. I think for so many people the service is priced too high. When that happens, it turns from being a mission to help people to the same ole "how much can I get".
E106: Note202308141159 | F106: 20230814110448 | G106: GrookeyGuy23 | H106: 08/13/2023 | I106: I sent: I appreciate any help I can get. For a Zoom call, I can do that pretty much anytime that is convenient for you. I am on Eastern Time. My contact information is below: Thank you again. Sincerely, David Collins Enrolled Agent, 00150946-EA Phone : (423) 482-9737 Fax : (423) 558-3274 Email: david@dctax.us 9301 Ocoee St, #64 Chattanooga, TN 37363 https://dctax.us
E107: Note202308141159 | F107: 20230814105722 | G107: meetloaf13 | H107: 08/13/2023 | I107: Thank you meetloaf13! I appreciate any help I can get. My contact information is below: Thank you again! Sincerely, David Collins Enrolled Agent, 00150946-EA Phone : (423) 482-9737 Fax : (423) 558-3274 Email: david@dctax.us 9301 Ocoee St, #64 Chattanooga, TN 37363 https://dctax.us
E108: Note202308141351 | F108: 20230814104156 | G108: Allen J Ferrer CPA | H108: 08/13/2023 | I108: I sent: Wow, that is very kind of you. Any help is greatly appreciated and I will take great care of your people. My contact information is below: Thank you again. Sincerely, David Collins Enrolled Agent, 00150946-EA Phone : (423) 482-9737 Fax : (423) 558-3274 Email: david@dctax.us 9301 Ocoee St, #64 Chattanooga, TN 37363 https://dctax.us
E109: Note202308141054 | F109: 20230814105134 | G109: Commercial-Place6793 | H109: 08/12/2023 10:52 | I109: I know a firmer IRS auditor that did the same thing you’re doing. It’s been about 10 years now and his prices are ridiculously high. I would be chomping at the bit to refer people to someone like you. I’m fine with resolving small issues/notices but I absolutely hate dealing with a full blown audits. And: Send me a DM with your website and any other info. I may be able to refer you the odd client.
E110: Note202308141057 | F110: 20230814105722 | G110: meetloaf13 | H110: 08/12/2023 | I110: Hit me up, interested to know where you fit in the process. Could send a bit of work your way.
E111: Note202308050929 | F111: 20230623141751 | G111: Curtis L Greene | H111: 08/05/2023 09:29 | I111: Met with Curtis at 618 Club.
E112: Note202308021422 | F112: 20230802114307 | G112: Allen A Scott | H112: 08/02/2023 | I112: Allen called me about whether it would be an ethical violation for me to consult on Tony McCarroll. I asked him when it was I had the case and he said right before I retired. I told him I couldn't represent him, but I can do consulting work.
E113: Note202308011441 | F113: 20230623141751 | G113: Curtis L Greene | H113: 08/01/2023 14:40 | I113: Sent text message and email as follows: I hope you are doing OK. I'm concerned that Denyse is going to restart levy on you if we don't get her the rest of the information we need to get her, ie proof of deposits, etc. Please call me as soon as you can so we can discuss. I'll also send you a more detailed email. Thank you, and email: Has Denyse contacted you about whether she will give us an extension? Has she said anything about the business transcripts that we have not received? You said something about selling your house to pay your balance. What house are you referring to? I would like to discuss this with you before you decide to do anything. I did not get your last payroll summary and deposit confirmation. This is huge with our relationship with Denyse. Also, I think you have another payday coming up this Friday, August 4th. I need the summary & deposit confirmation for it as well. The financial analysis I’ve been working on will not reconcile. I need to get this straight so we can make our argument for a favorable installment agreement. Particularly, we need to delve deeper into expenses. The expenses we came up with on the phone are not jibing with the income. I hope you feel better soon. Please call me as soon as you can.
E114: Note202308011431 | F114: 20230623141751 | G114: Curtis L Greene | H114: 08/01/2023 14:29 | I114: Called contact at (423) 504-1362 Left message on voicemail
E115: Note202308010927 | F115: 20230623141751 | G115: Curtis L Greene | H115: 08/01/2023 09:25 | I115: Called contact at (423) 504-1362 Left message on voicemail
E116: Note202307311416 | F116: 20230623141751 | G116: Curtis L Greene | H116: 07/31/2023 14:16 | I116: Mailed invioce for personal tax
E117: Note202307311313 | F117: 20230623141751 | G117: Curtis L Greene | H117: 07/31/2023 13:04 | I117: Called contact at (423) 504-1362 Left message on VM
E118: Note202307281134 | F118: 20230623141751 | G118: Curtis L Greene | H118: 07/28/2023 | I118: Curtis texted me that he has COVID. I replied asking him to get someone to send me the financial stuff I had requested.
E119: Note202307171318 | F119: 20230717114541 | G119: Valerie J Mazar | H119: 07/17/2023 13:15 | I119: Sent the following email: To: vmazar@aol.com (email address errors) Subject: Federal Tax Lien I noticed you had a federal tax lien filed in Hamilton County, TN. I tried to call you but the number I had was disconnected. If you have any questions about the lien or want to discuss, I'll be happy to do so.
E120: Note202307171314 | F120: 20230717114541 | G120: Valerie J Mazar | H120: 07/17/2023 13:13 | I120: Called contact at (570) 954-1082 Number disconnected
E121: Note202307171110 | F121: 20230623141751 | G121: Curtis L Greene | H121: 07/17/2023 11:05 | I121: Called contact at (423) 504-1362 I returned missed call. Curtis asked if I received transcripts, which I had not. He is going to follow up with Denyse and BCC me on the message.
E122: Note202307121649 | F122: 20230712123737 | G122: Denyse Rose | H122: 07/12/2023 15:06 | I122: Called contact at (865) 385-4489 Left message on voicemail
E123: Note202307121657 | F123: 20230712123737 | G123: Denyse Rose | H123: 07/11/2023 | I123: Sent POA for Curtis Greene
E124: Note202307100934 | F124: 20230623141751 | G124: Curtis L Greene | H124: 07/10/2023 09:34 | I124: Curtis called me & left message on Friday. I called him back and left him a message.
E125: Note202307081536 | F125: 20230624103307 | G125: Scott Brannon | H125: 07/08/2023 15:33 | I125: Sent the following email: To: scottabrannon@outlook.com Subject: touching base Hey Scott. I hope your trip went well to pick up your son and you all made it back OK. I wanted to reach out and see how things were coming and if you needed me to do anything. I am actually in Ft. Hood, TX for the next couple weeks, but I am working full time/regular hours. Just came out for some business and a side trip to see my daughter.
E126: Note202307061948 | F126: 20230706194649 | G126: GetNetSet | H126: 07/06/2023 19:48 | I126: Sent initial changes for setup
E127: Note202306301610 | F127: 375 | G127: Melissa Dunn | H127: 06/30/2023 16:09 | I127: Sent the following email: To: melissa@larsonknoxville.com Subject: Quickbooks Did ya'll get Charlie into his own Quickbooks yet? Want to make sure I'm not paying for something he doesn't need.
E128: Note202306291410 | G128: Darryl Mayes | H128: 06/29/2023 14:07 | I128: Called Darryl to get permission for Chris to use him for a reference. He mentioned having tax problems. Owes ~$10-12k and pays $150 per month. Looking to reduce balance somehow. I told him I normally charge $1500 up front but I wasn't sure if I could even help him so I wouldn't charge anything until I review the records, etc. Even so, I would not charge him that much, especially for such a low balance. I sent him a 2848 for signature.
E129: Note202306271338 | F129: 20230621122717 | G129: Carolyn J Davis | H129: 06/27/2023 13:36 | I129: Called contact at (901) 201-7287 Left message on voicemail
E130: Note202306271105 | F130: 468 | G130: River Valley Dentistry | H130: 06/27/2023 11:05 | I130: Sherry got a text that we have a balance of $900+
E131: Note202306271110 | F131: 468 | G131: River Valley Dentistry | H131: 06/27/2023 11:05 | I131: Called contact at (423) 875-0600 Spoke with Paige. She said it looks like a "credentialing error" and not to make any payments for several weeks and to ignore any correspondence received.
E132: Note202306241034 | F132: 20230624103307 | G132: Scott Brannon | H132: 06/24/2023 10:33 | I132: Scott sent me an email after finding me on Yelp. I called him back and we set a meeting for 1:00 pm this afternoon at his house. The email is below: Hello David, My name is Scott Brannon; I found your business on Yelp and then got further information on your website. My wife and I are interested in getting your help with our tax situation. In particular, the returns and details the IRS has on file for us are significantly different from what is shown in our records. I saw on Yelp that you had Saturday hours - we would welcome the chance to meet with you as early as today. And if that does not work out, would you perhaps have time this coming Monday (06/26) afternoon at 2:30 PM or later? We live close to Ooltewah, and we could meet you somewhere in the area or come to your location with relatively short notice. And if neither of those times work for you, we can also look towards making an appointment later this coming week or sometime after July 4th. Please feel free to contact me directly on my cell phone at 229-319-0244 if you would like. Thanks for your time, and we hope to hear from you. Sincerely Scott & Robin Brannon
E133: Note202306231502 | F133: 20230623141751 | G133: Curtis L Greene | H133: 06/23/2023 14:59 | I133: Sent the following email: To: Curtis783@gmail.com Subject: Meeting Thank you for returning my call, Curtis. I would like to sit down with you for a couple of hours next week, go through all the issues and figure out a game plan. To that end, I would like for you to have bank statements for all accounts for the last 12 months, any financial reports such as P&L, Balance Sheet, etc., and any letters you have received from the IRS. I will bring a Power of Attorney that will stop the IRS from calling you directly which will hopefully take a lot of stress off of you. So far as a meeting time, I know you have a lot going on and travel, so I'll make myself available as much as possible to your schedule. I have nothing scheduled next week that can not be changed, so let me know what works for you. Initially I charge $1,500 up front. That covers the initial work and the first 3 months. After that, if the case is not resolved, I charge $200 per month. The only additional charges are are a one-time fee for an Offer-in-Compromise, appeal or Trust Fund case. Those are an additional $450 each. I also will be offering a "compliance plan" soon. It is to file returns and monitor compliance for both business & personal. I'm still working out the details but I'll let you know as soon as I do.
E134: Note202306231439 | F134: 20230623141751 | G134: Curtis L Greene | H134: 06/23/2023 14:38 | I134: Curtis called me back. He is interested. He is out of town right now but will text me his email. We can coordinate there for a meeting next week.
E135: Note202306231438 | F135: 20230623141751 | G135: Curtis L Greene | H135: 06/23/2023 14:25 | I135: Called contact at (423) 504-0138 That number went to a female. I did not leave a message
E136: Note202306231425 | F136: 20230623141751 | G136: Curtis L Greene | H136: 06/23/2023 14:24 | I136: Called contact at (423) 504-1362 Left message to call me
E137: Note202306210927 | F137: 278 | G137: Beatriz Jaramillo | H137: 06/21/2023 09:25 | I137: Sent the following email: To: beatriz.e.jaramillo@irs.gov Subject: Hello Long time, no see. I called a few weeks ago, but you were in Columbia. You mentioned a friend that started his own representation business. Can I get his contact information? I'm struggling with sales & marketing and hoping he can give me some guidance. Are you about ready to retire? It shouldn't be too long, should it? Anyway, I know your busy so I'll close here.
E138: Note202306201607 | F138: 375 | G138: Melissa Dunn | H138: 06/20/2023 16:05 | I138: Sent the following email: To: melissa@larsonknoxville.com Subject: Lambert documents I'm sorry I didn't get this out when I told you I would. I simply got busy & forgot about it. Anyway, I wasn't able to find everything because my computer had gotten corrupted a couple months ago. I have since learned the value of backups!!! Anyway, if there is anything in particular you need, please let me know & I'll try again to find it. Email also contained attachment of "Lambert documents".
E139: Note202306161652 | F139: 291 | G139: Charlie Lambert | H139: 06/16/2023 16:48 | I139: Called contact at (865) 454-9025 Just called to check in and see how he's doing. He's fine, as is Angela. Short conversation.
E140: Note202306091232 | F140: 20230609122805 | G140: Carlos F Vinanzaca | H140: 06/09/2023 12:28 | I140: TP called me from work. His wages were just garnished for $300. He said he has not received a letter or phone call from IRS. I told him that usually means they are trying to find him and if he doesn't contact them, they will continue to levy until the balance is paid. I asked if he has been filing his returns and he said he messed up on 2021 and needs t file 2022 for which he thinks he will owe ~$1000. I told him without knowing more, not much I could do. Asked if he is wanting someone to help him and he said he didn't know. He is at work and will call me later. I told him I would be willing to look it up for him at no charge.
E141: Note202306071400 | F141: 20230530084416 | G141: Tracy L Carico CPA | H141: 06/07/2023 13:22 | I141: Called contact at (865) 379-9300 Pam gave me her personal email of "slyjinx@aol.com" I sent an email to that address and she got it. She will add me to Tracy's contacts. She will also ask her to call me about Doug Helmick.
E142: Note202306071322 | F142: 20230530084416 | G142: Tracy L Carico CPA | H142: 06/07/2023 12:21 | I142: Called contact at (865) 379-9300 Voicemail. Did not leave message
E143: Note202306071147 | F143: 20230530084416 | G143: Tracy L Carico CPA | H143: 06/07/2023 11:38 | I143: Called contact at 8653799300 Pam said that Tracy was tied up. She also said that she did not get my email last time. I told her I would re-try and asked her to check in the next 15 minutes or so. She said she would. I replied to her previous email.
E144: Note202306071056 | F144: 20230531093117 | G144: Manta | H144: 06/07/2023 10:55 | I144: Called contact at (866) 363-5010 Talked to someone on 6/7/23, named "Mike". He answered on speakerphone and was hard to understand. A couple times it was obvious he had moved away from the phone because it was quieter. He said he would cancel right then and send an email confirmation to david@dctax.us. Then asked if there was anything else he could help with. I asked if he was sending anything about the refund. He said no, it was just a confirmation of the cancellation. I told him that I can understand not refunding the first month, but the second should definitely be refunded as I have been trying to reach someone to cancel. He said he would push it up to see what they can do and he will reach out to me shortly to let me know what he finds out.
E145: Note202306071039 | F145: 20230602142009 | G145: JDL Construction Inc | H145: 06/07/2023 10:36 | I145: Sent the following email: To: Tamilance.jdl@gmail.com Subject: Touching base I hope everything is going will with the new grandbaby. I know you're enjoying it. I want to make sure you received the two documents I sent for signature. I need those before I can do anything, including talking to the RO. They will not talk to me without it. Please sign and return as soon as possible and I’ll get to work. Thank you,
E146: Note202306071412 | F146: 20230607140537 | G146: Doug Helmick | H146: 06/07/2023 | I146: Doug called me. He got my name from the NAEA directory and chose to call me because I had a profile. Had a CPA that was charging $200 per hour but durihng pandemic jumped to $500 per hour. So, he has been doing his own taxes for a while. Uses TaxAct and they reviewed for him. Said a review of last 3 years is "Screaming for an audit". He has a rental property, he and wife are self-employed, they have filed an extension for this year. Wife has insurance through ACA; they have a rental property as well. He wants someone to review his last 3 years of returns. I told him that I could help, but I would not be the one actually doing the work. I recommended Tracy Carico and told him she would be best bet for antyhing to do with returns. Called Tracy's office to refer.
E147: Note202306071040 | F147: 20230602142009 | G147: JDL Construction Inc | H147: 06/06/2023 13:15 | I147: Called contact at 865-567-3800 Left message to call me
E148: Note202306060911 | F148: 20230426142888 | G148: 100 Placement LLC | H148: 06/06/2023 09:11 | I148: Sent email through online form at https://help.manta.net/hc/en-us/requests/new?ticket_form_id=11090333135383 I have tried to cancel my subscription several times. (This is the first time I have found this page.) A couple weeks ago, I sent a request through the general email form. Prior to that, I reached out through phone and email to the guy that was, I thought, my representative - Draek Greco. In every case, I received no reply. Now I have been charged another month, when I originally wanted to not just unsubscribe, but get a refund. I have attached the body of my original email to Draek as a txt file. This is my last attempt to remedy. After this, if I don't receive, as a minimum, the last payment refunded and my account canceled, I will post this txt message anywhere and everywhere I possibly can find to do so. I'm sorry for being so confrontational, but I am at my wit's end.
E149: Note202306050806 | F149: 20230602142009 | G149: JDL Construction Inc | H149: 06/05/2023 08:05 | I149: Got email address from Bill, prepared 2848's and sent to Tammy for signature.
E150: Note202306050805 | F150: 20230602142009 | G150: JDL Construction Inc | H150: 06/05/2023 08:04 | I150: Sent the following email: To: tami@jdlinctn.com Subject: 2848 Hey Tammy, I just sent you two 2848's to sign & date - one for JDL and one for you. This is my first time using "Adobe Sign", so if you have problems, let me know. By the way, I thought your name was spelled "Tami". Is that wrong or is it wrong on the K1 you sent me? Also, thank you for putting your trust in me. I will do my best to help you in any way I can. Thank you,
E151: Note202306061050 | F151: 339 | G151: Jane Harvey | H151: 06/04/2023 10:50 | I151: Fixed printer by restarting it and went to Walmart to get a new black ink cartridge.
E152: Note202306021350 | F152: 20230530143825 | G152: Charles W "Bill" Johnston | H152: 06/02/2023 13:46 | I152: Bill called me. He was on his way to Chattanooga to meet with Bea for a summons. I told him I thought Bea was on leave. I called the office to verify with Paula & let him know Bea will not be back until 6/5. He said he had a case for me - JDL, Tammy Lance. He asked about my rates & I told him $1,500 up front and if the case gets complicated we'll deal with that then. He said "we want to hire you". Through several text messages, determined that the summons was a bank summons and they had received an informational copy. He said he will send me the information for 2848's, etc.
E153: Note202305301546 | F153: 20230530084416 | G153: Tracy L Carico CPA | H153: 05/30/2023 15:45 | I153: Sent the following email: To: tracy@tracylcaricocpa.com cc: bcc: Subject: Contact info It was good talking to you, Tracy. You have a knack for raising someone's spirits. I really like the representation part of the business, but I'm terrible at the marketing. So, I appreciate leads you send. I'll try to reciprocate as well! Anyway, my contact information is below. Thank you,
E154: Note202305301500 | F154: 20230530124722 | G154: Greg Baker CPA | H154: 05/30/2023 14:58 | I154: Called contact at (865) 983-9000 Left message on voicemail
E155: Note202305301457 | F155: 20230530124722 | G155: Greg Baker CPA | H155: 05/30/2023 14:57 | I155: Called contact at (865) 980-8886 Call cannot be completed as dialed
E156: Note202305301456 | F156: 20230530124722 | G156: Greg Baker CPA | H156: 05/30/2023 14:56 | I156: Called contact at (865) 983-0455 Call cannot be completed as dialed | T156: =RAND() -> 0.8045213874
E157: Note202305301453 | F157: 20230530143825 | G157: Charles W "Bill" Johnston | H157: 05/30/2023 14:52 | I157: Called contact at (423) 200-9979 Left message on voicemail
E158: Note202305301106 | F158: 388 | G158: Paula Jeffery | H158: 05/30/2023 10:18 | I158: Called contact at (757) 218-3556 Retirement messed up again because GRBD shows her earliest retirement date in 2032. Has something to do with her military buy back. Grandchild #4 is due in December from a child living in VA. Son that works for the same company as Chris is a nuclear fueling & defueling supervisor of ~160 engineers. Had a heart ablasion. Scan of brain for forgetfulness. Brain is good with no evidence of aging. Asked about getting Chromebook.
E159: Note202305261314 | F159: 20230525141359 | G159: Tony A Gates | H159: 05/26/2023 13:14 | I159: Called contact at (770) 456-9517 Disconnected
E160: Note202305261314 | F160: 20230525141359 | G160: Tony A Gates | H160: 05/26/2023 13:14 | I160: Called contact at (770) 947-9597 Disconnected
E161: Note202305261313 | F161: 20230525141359 | G161: Tony A Gates | H161: 05/26/2023 13:13 | I161: Called contact at (404) 409-7043 Mailbox is full
E162: Note202305261306 | F162: 20230525142933 | G162: PBI Printing Inc | H162: 05/26/2023 13:04 | I162: Called contact at (706) 965-3330 Left message to call. She said he's gone for the weekend so it'll be next week.
E163: Note202305261257 | F163: 20230525140720 | G163: Nichols Security Commercial LLC | H163: 05/26/2023 12:41 | I163: Called contact at (770) 788-2301 Amanda (a new employee) transferred me to Bianca. Bianca was obviously working from home as I heard her kids in the background. I explained that depending on when they purchased the company, the lien may impact them. She texted someone who told her they purchased the company in May of 2022. Bianca is texting the owner who she said is out of the country right now so it will be later before he replies. She said he does have a CPA/Attorney, but still wants to send him my info.
E164: Note202305261241 | F164: 20230525140720 | G164: Nichols Security Commercial LLC | H164: 05/26/2023 12:40 | I164: Called contact at (770) 314-4905 Call cannot be completed as the party is temporarily unavailable.
E165: Note202305261239 | F165: 20230426142958 | G165: Alisha D Murray | H165: 05/26/2023 12:39 | I165: Sent Letter: Thank you for taking my call. I'm glad you have someone helping you. If you have any questions or if I can be of assistance, please let me know.
E166: Note202305261238 | F166: 20230525143153 | G166: Lance M Hatfield | H166: 05/26/2023 12:37 | I166: Called contact at (423) 316-2019 Has his attorney working on it. I sent him a letter as well.
E167: Note202305261236 | F167: 20230525143816 | G167: KB Install America LLC | H167: 05/26/2023 12:27 | I167: Called contact at (706) 866-5903 Phone number goes to "Truck'n America" in Ringgold. The man that answered said Candy was his wife. I explained about KB Install and he said he wouldn't know anything about that. Candy is an accountant and it's likely one of her clients. He took my name & number and I told him with her being an accountant, wh will likely not need me, but . . .
E168: Note202305261151 | F168: 20230525140952 | G168: Bryan N Bowman | H168: 05/26/2023 11:50 | I168: Sent Letter: My name is David Collins and I'm with dc Tax, LLC in Chattanooga. The Newton County Courthouse has an IRS lien filed against you. Having recently retired from the IRS, I can probably help you navigate the issue and resolve the balance due. Some of the things we can do are: stop levies & garnishments apply for abatement of penalties & interest file appeals submit offers in compromise set up favorable installment agreements if appropriate get you classified as not collectible Of course, none of this is as easy or guaranteed as a lot of advertisements and salespeople like to claim. But it is available and happens more often than most people realize. If you would like to know more, or if you just have a couple questions, feel free to call me anytime. Thank you,
E169: Note202305261135 | F169: 20230525140952 | G169: Bryan N Bowman | H169: 05/26/2023 11:33 | I169: Called contact at (770) 231-3606 Left message asking for a call back. I also sent a letter.
E170: Note202305261132 | F170: 20230525143449 | G170: Billy R Stokes Jr | H170: 05/26/2023 11:32 | I170: Sent Letter: I tried to call you but must have a bad number. I saw an IRS lien filed at the Walker County Courthouse. I wanted to let you know that I can help you with it if you need. Or, if you simply have a question, feel free to reach out to me anytime. Thank you,
E171: Note202305261129 | F171: 20230525143449 | G171: Billy R Stokes Jr | H171: 05/26/2023 11:28 | I171: Called contact at (706) 866-6624 This one does the same thing.
E172: Note202305261128 | F172: 20230525143449 | G172: Billy R Stokes Jr | H172: 05/26/2023 11:27 | I172: Called contact at (706) 858-7558 Phone rings a few times and then goes dead.
E173: Note202305261121 | F173: 20230525155134 | G173: Base King LLC | H173: 05/26/2023 11:21 | I173: I messed up and told him I saw a lien filed against him. It was actually against the business, which we clarified. He said he was taking care of it. Friendly. Sent Letter: Thank you for taking my call today. If you end up having questions or need help resolving the issue, please let me know. Thank you,
E174: Note202305251208 | F174: 20230427143126 | G174: Nichole E Boaz Dds PC | H174: 05/25/2023 12:05 | I174: "Sent Letter: I was at Hamilton County Courthouse recently and saw a lien filed by IRS. I wanted to reach out and see if you had any questions about it or if you needed any help with it. Please let me know if I can be of assistance. Thank you,"
E175: Note202305251202 | F175: 20230427145725 | G175: Motion View Software LLC | H175: 05/25/2023 12:02 | I175: Called contact at (423) 847-3735 Disconnected
E176: Note202305251201 | F176: 20230427145725 | G176: Motion View Software LLC | H176: 05/25/2023 12:01 | I176: Called contact at (423) 400-0500 Call cannot be completed as dialed
E177: Note202305251202 | F177: 20230427145725 | G177: Motion View Software LLC | H177: 05/25/2023 12:01 | I177: Called contact at (423) 847-1795 Disconnected
E178: Note202305251104 | F178: 20230427143351 | G178: Melvin R Standefer | H178: 05/25/2023 11:04 | I178: Sent Letter: My name is David Collins. I recently retired from the Chattanooga IRS office. I saw a lien filed at the courthouse and want to offer any assistance I can. If you need help or just have a question, feel free to give me a call.
E179: Note202305251102 | F179: 20230427143351 | G179: Melvin R Standefer | H179: 05/25/2023 11:00 | I179: Called contact at (423) 240-7229 Google - what are you calling about. I said David Collins with dc Tax in Ooltewah. Replied, Sorry, they can't take your call right now. Good-bye. I mailed letter.
E180: Note202305241627 | F180: 20230427143240 | G180: Geoff Ramsey | H180: 05/24/2023 16:25 | I180: Sent Letter: Thank you for returning my call. Sorry I can't loan you $200k :). If there is anything I can help you with, or if you just need to ask a question, feel free to reach out. Thank you,
E181: Note202305241620 | F181: 20230427143240 | G181: Geoff Ramsey | H181: 05/24/2023 16:20 | I181: Mr. Ramsey called me back. Very friendly. Asked if he can borrow $200k. Already has an attorney & CPA working on it. I sent him a letter as well.
E182: Note202305241554 | F182: 20230427145450 | G182: Mark R Dwyer | H182: 05/24/2023 15:53 | I182: Called contact at (423) 886-2973 "Judy's cell phone" Did not leave message.
E183: Note202305241553 | F183: 20230427145450 | G183: Mark R Dwyer | H183: 05/24/2023 15:52 | I183: Called contact at (423) 255-0044 Voice mail for "Meghan". Sounded like a teenager so I just hung up.
E184: Note202305241552 | F184: 20230427144455 | G184: Kimberly Donah | H184: 05/24/2023 15:51 | I184: Called contact at (423) 510-9628 Cannot be completed as the called party is busy. Please hang up and try again later.
E185: Note202305241550 | F185: 20230427144455 | G185: Kimberly Donah | H185: 05/24/2023 15:50 | I185: Called contact at (423) 667-6794 Mailbox is full
E186: Note202305241551 | F186: 20230427144455 | G186: Kimberly Donah | H186: 05/24/2023 15:50 | I186: Called contact at (423) 877-3943 Disconnected
E187: Note202305241539 | F187: 20230427144728 | G187: Jackiya D Ford | H187: 05/24/2023 15:39 | I187: Called contact at (310) 263-1781 Disconnected
E188: Note202305241539 | F188: 20230427144728 | G188: Jackiya D Ford | H188: 05/24/2023 15:39 | I188: Called contact at (773) 952-2294 Call cannot be completed as dialed
E189: Note202305241539 | F189: 20230427144728 | G189: Jackiya D Ford | H189: 05/24/2023 15:38 | I189: Called contact at (310) 674-5475 Disconnected
E190: Note202305241537 | F190: 20230427143240 | G190: Geoff Ramsey | H190: 05/24/2023 15:36 | I190: Called contact at (423) 227-5564 LMAM
E191: Note202305241324 | F191: 20230426143471 | G191: Debra Dunn | H191: 05/24/2023 13:23 | I191: Called contact at (865) 235-6707 Left Message for "Mike Dunn"
E192: Note202305231103 | F192: 291 | G192: Charlie Lambert | H192: 05/23/2023 11:03 | I192: Called contact at (865) 454-9025 Melissa Dunn told me that Charlie's mom has Covid. I called; voice mailbox was full.
E193: Note202305231047 | F193: 20230517101308 | G193: David Barnett | H193: 05/23/2023 10:41 | I193: Completed review of Mr. Barnett's transcripts and forwarded them & summary to Melissa through Encyro. She called and said that was exactly what they were looking for and asked me to send a bill. I told her I was thinking of $125 and she said that is not enough. Brent was there as well and they asked a couple questions about liens & levies, etc. Melissa said that they thought I should charge $500 for my review. I told her how much I appreciated their help and told her I would send the bill.
E194: Note202305221330 | F194: 375 | G194: Melissa Dunn | H194: 05/22/2023 13:30 | I194: Sent the following email: To: melissa@larsonknoxville.com cc: bcc: Subject: Updating Been on the phone several times with IRS today, trying to get the transcripts. Waiting on a callback now as wait time is between "15-30 minutes". Earlier they told me it was "7-10 minutes" and it ended up being 45. Anyway, I just wanted you to know I didn't forget you. Thank you,
E195: Note202305221327 | F195: 455 | G195: Internal Revenue Service | H195: 05/22/2023 13:23 | I195: Called contact at (866) 860-4259. Left number on the callback system. Need to get transcripts for David Barnett - 2012-2021
E196: Note202305221124 | F196: 455 | G196: Internal Revenue Service | H196: 05/22/2023 10:45 | I196: Called e-services online for help getting into the TDS system. On hold for 45 minutes. Ms Clem answered. While I couldn't understand everything she said, I was able to get enough for her to walk me through re-applying for TDS access as an individual since I will not be filing returns. She was going to turn it on for me, but because I was already in the system, the system has to verify me first. I will get an email when that is done and TDS is turned on. In the meantime, she suggested I submit any 2848's and then call the Practitioner Priority Service at 866 860-4259. She said I do not have to wait on acceptance of the 2848.
E197: Note202305171315 | F197: 20230517101308 | G197: David Barnett | H197: 05/17/2023 13:10 | I197: Emailed contact at melissa@larsonknoxville.com The letters from the IRS are not very informative as you said. I did submit the 2848 to the CAF unit. It will be “will be processed in the order it is received”, so no telling how long that will be. They’ll email me when I have access though. Shouldn’t take more than a day or so. Yeah, right! 😊 Thank you,
E198: Note202305171301 | F198: 455 | G198: Internal Revenue Service | H198: 05/17/2023 13:01 | I198: Submitted 2848 to CAF unit online for David Barnett
E199: Note202305171301 | F199: 20230517101308 | G199: David Barnett | H199: 05/17/2023 13:01 | I199: Submitted 2848 online
E200: Note202305171239 | F200: 20230517101308 | G200: David Barnett | H200: 05/17/2023 12:39 | I200: Received the POA and other docs. POA did not have clearance for me to sign so I printed a copy to PDF and applied my signature. Will fax into CAF unit.
E201: Note202305171238 | F201: 20230517101308 | G201: David Barnett | H201: 05/16/2023 | I201: Melissa called. TP was going through divorce when his wife died. His attorney told him to not pay any more taxes until the divorce was finalized. They wanted to know if that was sound advice. The taxes could range as much as $200k and TP wants to get it all behind him. I asked her about CSED and she wasn't familiar with it. I asked if she can pull transcripts and she said no. They will get me a POA to pull the transcripts and give my assessment of what they should do.
E202: Note202305111555 | F202: 20230427145049 | G202: David T Brockman | H202: 05/11/2023 15:55 | I202: Sent Letter: Thank you for returning my call this afternoon. I know you said you are getting the issues taken care and that is great. If you have any questions, or if I can help you, please feel free to reach out at any time.
E203: Note202305111552 | F203: 20230427145049 | G203: David T Brockman | H203: 05/11/2023 15:51 | I203: Mr. Brockman called me back. He said that they are getting it taken care of. "It is mostly some residual tax from 2016/2017. I told him to call if he needed any help or had questions.
E204: Note202305111549 | F204: 20230427144557 | G204: Curt G Zacharias | H204: 05/11/2023 15:49 | I204: Sent Letter: Thank you for taking my call this afternoon. I am glad your situation was resolved but I wanted to give you my contact information. If you ever have questions or do need help in the future, feel free to reach out to me anytime.
E205: Note202305111547 | F205: 20230427145049 | G205: David T Brockman | H205: 05/11/2023 15:46 | I205: Called contact at (423) 899-2680 Left message to call.
E206: Note202305111546 | F206: 20230427144830 | G206: David Fontenot | H206: 05/11/2023 15:45 | I206: Called contact at (423) 227-3088 Left message to call.
E207: Note202305111544 | F207: 20230427144557 | G207: Curt G Zacharias | H207: 05/11/2023 15:44 | I207: Called contact at (520) 990-0009 Said it is all resolved.
E208: Note202305111542 | F208: 20230427143011 | G208: Corey A Spearman | H208: 05/11/2023 15:41 | I208: Called contact at (312) 709-4588 Left message on voicemail
... 34 more rows

Sheet Letterhead
A1: dc Tax, LLC 9301 Ocoee St, #64 Chattanooga, TN 37363
A6: IRS representation & resolution
A15: Christian Jackson 2210 Parkside Dr Bowie, MD 20721
A20: Jan 12, 2024
A28: Mr. Jackson,
A30: We have been unable to contact you and have therefore withdrawn the Power of Attorney on file with the IRS. If you would like to re-establish this in the future, you can contact us, and we will be happy to help you in any way that we can. As we will no longer be representing you going forward, we recommend you contact the IRS about your situation and let them know you will be representing yourself or make sure whoever is helping you, has Power of Attorney on file, to avoid further actions. Please contact us at (423) 482-9737, if you have any questions or require further clarification.
A32: Sincerely,
A35: David Collins Enrolled Agent

Sheet New Invoice
A1: dc Tax, LLC 9301 Ocoee St, #64 Chattanooga, TN 37363
J2: Outstanding Invoices:
G5: Payments Received
A6: tax solutions for us common folks
G9: Date: | H9: 2023-06-24
G11: Client: | H11: Scott Brannon
G13: Client ID: | H13: 20230624103307
A15: Sarah Gottesfeld 417 Blakey Blvd Cocoa Beach, FL 32931 | G15: Amount: | H15: 500
E16: Invoice Client ID | G16: Applied to: | H16: 202306260903
E17: 20230921164851 | G17: Payment Ref: | H17: Check #1007, Truist Bank
C20: INVOICE
C23: Invoice # | D23: 202401041230
C24: Invoice Date | D24: 2024-01-04
C25: Invoice Due | D25: 2024-02-03
A29: Description | B29: Qty | C29: Rate | D29: Total
D30: =IF(NOT(AND(ISBLANK(B30),ISBLANK(C30))),B30*C30,"") -> 
C38: Sub-Total | D38: =IF(SUM(D30:D35)>0,SUM(D30:D35),"") -> 
A40: You can also pay securely, online through Stripe. Just scan the QR code below. | C40: Other
C42: Tax
B44: Invoice Total | D44: =IF(SUM(D38:D43)>0,SUM(D38:D43),"") -> 
A48: Thank you for your business and may God bless you.

Sheet Invoices
J1: # of Invoices | K1: Accounts Receivable:
J2: =COUNT(I10:I100005) -> 18 | K2: =SUM(Invoices!$M$10:$M$27) -> 5768.5 | P2: =LEFT(D24,8)&MID(D24,9,1)+MID(D24,10,1)+MID(D24,11,1)+MID(D24,12,1)+MID(D24,13,1)+MID(D24,14,1) -> 2023062414
B8: Invoices | I8: Invoice Summary | O8: Payments
B9: Invoice | C9: Invoiced To | D9: Invoiced To Record ID | E9: Invoice Date | F9: Invoice Due | G9: Invoice Total | I9: Number | J9: Name | K9: Amount | L9: Payments | M9: Balance | O9: Invoice | P9: Invoiced To | Q9: Invoiced To Record ID | R9: Payment Date | S9: Payment Reference | T9: Payment Amount | U9: Applied to Invoice
B10: 202341754 | C10: Lamberts Flooring Inc | D10: 459 | E10: 2023-04-17 | F10: 2023-05-17 | G10: 80 | I10: =_xlfn.UNIQUE(TableInvoiceDetail[Invoice],FALSE) -> 202341754 | J10: =IF(I10="","",_xlfn.XLOOKUP(I10,TableInvoiceDetail[Invoice],TableInvoiceDetail[Invoiced To])) -> Lamberts Flooring Inc | K10: =_xlfn.XLOOKUP(I10,TableInvoiceDetail[Invoice],TableInvoiceDetail[Invoice Total]) -> 80 | L10: =SUMIF(TablePaymentDetail[Invoice],I10,TablePaymentDetail[Applied to Invoice]) -> 80 | M10: =_xlfn.XLOOKUP(I10,TableInvoiceDetail[Invoice],TableInvoiceDetail[Invoice Total])-SUMIF(TablePaymentDetail[Invoice],I10,TablePaymentDetail[Applied to Invoice]) -> 0 | O10: 202331643 | P10: Lamberts Flooring Inc | Q10: 459 | R10: 2023-04-12 | S10: Check #7436 | T10: 256.5 | U10: 256.5
B11: 202331642 | C11: Lamberts Flooring Inc | D11: 459 | E11: 2023-03-16 | F11: 2023-04-15 | G11: 162 | I11: 202331642 | J11: =IF(I11="","",_xlfn.XLOOKUP(I11,TableInvoiceDetail[Invoice],TableInvoiceDetail[Invoiced To])) -> Lamberts Flooring Inc | K11: =_xlfn.XLOOKUP(I11,TableInvoiceDetail[Invoice],TableInvoiceDetail[Invoice Total]) -> 162 | L11: =SUMIF(TablePaymentDetail[Invoice],I11,TablePaymentDetail[Applied to Invoice]) -> 0 | M11: =_xlfn.XLOOKUP(I11,TableInvoiceDetail[Invoice],TableInvoiceDetail[Invoice Total])-SUMIF(TablePaymentDetail[Invoice],I11,TablePaymentDetail[Applied to Invoice]) -> 162 | O11: 202341754 | P11: Lamberts Flooring Inc | Q11: 459 | R11: 2023-05-31 | S11: Check # 7501 (CBBC) | T11: 80 | U11: 80
